Workbook

Sheet Controle de Revisões
B3: Versão | C3: Controle das alterações na RenovaCalc | D3: Data de publicação
B4: 0. | C4: Versão publicada da RenovaCalc junto com a publicação da Resolução ANP nº758/2018 | D4: 2018-11-27
B5: 1. | C5: Inluida a função "SEERRO" no cabeçario que cálcula a nota de eficiência para as rotas E1GC, E1G2G, E2G, E1G Flex, E1GM, E1GMI, CombAlterHEFA | D5: 2019-01-03
C6: Retirada do limite superior das células.
B7: 2. | C7: E1GC, na célula C17. Ajustado o erro para chamar a _E1GC antes chamava a célula a aba _EGC1, que não existe. | D7: 2019-02-15
C8: Adição da fórmula : =D26*(1-G26)+D28 na célula D31 (MLC) na rota do E2G.
C9: Arrumação das mensagens de entrada nas células.
B10: 2.1 | C10: Correção da célula C17 na planilha E1GC. Correção de erro na proteção do arquivo que fazia com que o arquivo abrisse errado em versões diferentes do Excel | D10: 2019-02-19
B11: 2.2 | C11: Planilha EIGC - Desbloqueio da célula G62 / Retificação da validação da célula G63 / Correção das células Y62 e Y63 | D11: 2019-02-26
B12: 3. | C12: Alteração na rota de Biodiesel e CombAlternHEFA (Adição da pergunta "Alguma fração dessa matéria-prima é elegível?" na etapa da Fase Industrial para óleo de soja próprio, óleo de soja de terceiros, óleo de palma, óleo de algodão e outros óleos vegetais) | D12: =DATE(2019,6,3) -> 2019-06-03
C13: Revisão das formatações das células
C14: Inclusão na etapa agrícola de todos os produtores de biomassa da célula "Quantidade comprada pela unidade produtora de biocombustível"
B15: 4. | C15: Ajuste interno no cálculo da etapa industrial na rota "Etanol combustível de primeira geração produzido a partir de cana-de-açúcar e milho em usina integrada" | D15: 2019-08-29
B16: 5. | C16: Não Aplicado | D16: 2019-09-09
B17: 6. | C17: Melhoria na rota de E1G_Flex. | D17: 2020-01-09
B18: 6.1 | C18: Ajuste na rota de E1G_Flex. | D18: 2020-01-24

Sheet Instruções
B1: ..
B2: Instruções
B4: A RenovaCalc é a ferramenta de cálculo de intensidade de carbono dos biocombustíveis e geração da Nota de Eficiência Energético-Ambiental, de acordo com o referencial metodológico estabelecido no RenovaBio.
B6: O responsável pelo preenchimento deve estar atento às seguintes diretrizes:
B8: 1. Só devem ser preenchidas as células demarcadas em pontilhado:
B10: 2. Quando o parâmetro for zero, o campo deverá ser deixado em branco.
B12: 3. A unidade de preenchimento de cada parâmetro é fixa e estará sempre indicada ao lado da célula que deve ser preenchida. Por exemplo: | I12: Ureia | K12: kg N/t cana
B14: 3.1. O usuário deve sempre inserir os dados na unidade pré-indicada, sendo considerado incorreto qualquer dado que esteja em outra unidade.
B16: 3.2. Ao selecionar a célula a ser preenchida, orientações de como preencher cada parâmetro serão fornecidas. Por exemplo:
B21: 4. O usuário deve sempre preencher os dados com até duas casas decimais, para evitar problemas de arredondamento.
B23: 5. As informações referentes à fase agrícola devem ser preenchidas de acordo com o que foi calculado no arquivo correspondente de "produtores de biomassa". Devem ser preenchidos apenas os dados consolidados da fase agrícola.
B25: 6. As informações referentes à fase industrial independem do atendimento aos critérios de elegibilidade. Devem sempre ser preenchidas as quantidades totais utilizadas pela unidade produtora de biocombustível.

Sheet Diretório
B1: ..
B2: DIRETÓRIO DE ROTAS DE PRODUÇÃO DE BIOCOMBUSTÍVEIS
B3: .
E4: .

Sheet E1GC
B2: Etanol combustível de primeira geração produzido a partir de cana-de-açúcar
B4: Razão Social: | C4: Usina Hipotética
B6: CNPJ | C6: 00.000.000/0000-00
B8: Responsável pelo preenchimento:
B10: Telefone : | C10: (00) 0000-0000
C13: Etanol Anidro
B15: Intensidade de Carbono (g CO₂eq/MJ) | C15: =SUM(C17:C20) -> 0.439 | D15: Nota de Eficiência Energético-Ambiental (g CO₂eq/MJ) | G15: =G18-C15 -> 86.961
B17: agrícola | C17: =IFERROR((IF(C13="Etanol Anidro",_E1GC!C5,IF(C13="Etanol Hidratado",_E1GC!E5,""))),0) -> 0 | G17: Fóssil substituto: Gasolina
B18: industrial | C18: =IFERROR(IF(C13="Etanol Anidro",_E1GC!C6,IF(C13="Etanol Hidratado",_E1GC!E6,"")),0) -> 0 | G18: ='Dados auxiliares'!F166 -> 87.4
B19: transporte | C19: =IFERROR(IF(C13="Etanol Anidro",_E1GC!C7,IF(C13="Etanol Hidratado",_E1GC!E7,"")),0) -> 0 | G19: Redução de emissões
B20: uso | C20: =IFERROR(IF(C13="Etanol Anidro",_E1GC!C8,IF(C13="Etanol Hidratado",_E1GC!E8,"")),0) -> 0.439 | G20: =(G18-C15)/G18 -> 0.9949771167
B23: Fase agrícola - Dados Consolidados | K23: Fornecedores - Dados consolidados | T23: Média ponderada - RenovaCalc | AE23: Default - Cana | AN23: Guarda dados de preenchimento
B24: Informações gerais | K24: Informações gerais | T24: Informações gerais | AE24: Informações gerais | AN24: Informações gerais
C26: Sistema de plantio | D26: Convencional | L26: Sistema de plantio | M26: Convencional | U26: Sistema de plantio | V26: =D26 -> Convencional
C27: Área total | E27: ha | L27: Área total | N27: ha | U27: Área total | V27: =D27 -> 0 | W27: ha
C29: Produção total colhida para moagem | E29: t cana | L29: Produção total colhida para moagem | N29: t cana | U29: Produção total colhida para moagem | V29: =D29 -> 0 | W29: t cana
C30: Quantidade comprada pela unidade produtora de biocombustível | E30: t cana
C31: Teor de impurezas vegetais (base úmida) | E31: kg/t cana | F31: Umidade | L31: Teor de impurezas vegetais (base úmida) | N31: kg/t cana | O31: Umidade | P31: 0.5 | U31: Teor de impurezas vegetais (base úmida) | V31: =D31 -> 0 | W31: kg/t cana | X31: Umidade | Y31: =G31 -> 0
C32: Teor de impurezas minerais | E32: kg/t cana | L32: Teor de impurezas minerais | N32: kg/t cana | U32: Teor de impurezas minerais | V32: =D32 -> 0 | W32: kg/t cana
C33: Palha recolhida (base seca) | E33: t palha | L33: Palha recolhida (base seca) | N33: t palha | U33: Palha recolhida (base seca) | V33: =D33 -> 0 | W33: t palha
B35: Área Queimada | K35: Área Queimada | T35: Área Queimada | AE35: Área Queimada | AN35: Área Queimada
C36: Área queimada | E36: ha | L36: Área queimada | N36: ha | U36: Área queimada | V36: =D36 -> 0 | W36: ha | AF36: Área queimada | AG36: 1 | AH36: % da área total | AO36: Área queimada | AQ36: % da área total
B38: Corretivos | K38: Corretivos | T38: Corretivos | AE38: Corretivos | AN38: Corretivos
C39: Calcário calcítico | E39: kg/t cana | L39: Calcário calcítico | N39: kg/t cana | U39: Calcário calcítico | V39: =D39 -> 0 | W39: kg/t cana | AF39: Calcário calcítico | AG39: 0 | AH39: kg/t cana | AO39: Calcário calcítico | AQ39: kg/t cana
C40: Calcário dolomítico | E40: kg/t cana | L40: Calcário dolomítico | N40: kg/t cana | U40: Calcário dolomítico | V40: =D40 -> 0 | W40: kg/t cana | AF40: Calcário dolomítico | AG40: 12 | AH40: kg/t cana | AO40: Calcário dolomítico | AQ40: kg/t cana
C41: Gesso | E41: kg/t cana | L41: Gesso | N41: kg/t cana | U41: Gesso | V41: =D41 -> 0 | W41: kg/t cana | AF41: Gesso | AG41: 5 | AH41: kg/t cana | AO41: Gesso | AQ41: kg/t cana
B43: Fertilizantes Sintéticos | K43: Fertilizantes Sintéticos | T43: Fertilizantes Sintéticos | AE43: Fertilizantes Sintéticos | AN43: Fertilizantes Sintéticos
C44: Ureia | E44: kg N/t cana | L44: Ureia | N44: kg N/t cana | U44: Ureia | V44: =D44 -> 0 | W44: kg N/t cana | AF44: Ureia | AG44: 2 | AH44: kg N/t cana | AO44: Ureia | AQ44: kg N/t cana
C45: Fosfato monoamônico (MAP) | E45: kg N/t cana | L45: Fosfato monoamônico (MAP) | N45: kg N/t cana | U45: Fosfato monoamônico (MAP) | V45: 0 | W45: kg N/t cana | AF45: Fosfato monoamônico (MAP) | AG45: 0 | AH45: kg N/t cana | AO45: Fosfato monoamônico (MAP) | AQ45: kg N/t cana
C46: Fosfato monoamônico (MAP) | E46: kg P₂O₅/t cana | L46: Fosfato monoamônico (MAP) | N46: kg P₂O₅/t cana | U46: Fosfato monoamônico (MAP) | V46: 0 | W46: kg P₂O₅/t cana | AF46: Fosfato monoamônico (MAP) | AG46: 0 | AH46: kg P₂O₅/t cana | AO46: Fosfato monoamônico (MAP) | AQ46: kg P₂O₅/t cana
C47: Fosfato diamônico (DAP) | E47: kg N/t cana | L47: Fosfato diamônico (DAP) | N47: kg N/t cana | U47: Fosfato diamônico (DAP) | V47: 0 | W47: kg N/t cana | AF47: Fosfato diamônico (DAP) | AG47: 0 | AH47: kg N/t cana | AO47: Fosfato diamônico (DAP) | AQ47: kg N/t cana
C48: Fosfato diamônico (DAP) | E48: kg P₂O₅/t cana | L48: Fosfato diamônico (DAP) | N48: kg P₂O₅/t cana | U48: Fosfato diamônico (DAP) | V48: 0 | W48: kg P₂O₅/t cana | AF48: Fosfato diamônico (DAP) | AG48: 0 | AH48: kg P₂O₅/t cana | AO48: Fosfato diamônico (DAP) | AQ48: kg P₂O₅/t cana
C49: Nitrato de amônio | E49: kg N/t cana | L49: Nitrato de amônio | N49: kg N/t cana | U49: Nitrato de amônio | V49: 0 | W49: kg N/t cana | AF49: Nitrato de amônio | AG49: 0 | AH49: kg N/t cana | AO49: Nitrato de amônio | AQ49: kg N/t cana
C50: Solução de nitrato de amônio e ureia (UAN) | E50: kg N/t cana | L50: Solução de nitrato de amônio e ureia (UAN) | N50: kg N/t cana | U50: Solução de nitrato de amônio e ureia (UAN) | V50: 0 | W50: kg N/t cana | AF50: Solução de nitrato de amônio e ureia (UAN) | AG50: 0 | AH50: kg N/t cana | AO50: Solução de nitrato de amônio e ureia (UAN) | AQ50: kg N/t cana
C51: Amônia anidra | E51: kg N/t cana | L51: Amônia anidra | N51: kg N/t cana | U51: Amônia anidra | V51: 0 | W51: kg N/t cana | AF51: Amônia anidra | AG51: 0 | AH51: kg N/t cana | AO51: Amônia anidra | AQ51: kg N/t cana
C52: Sulfato de amônio | E52: kg N/t cana | L52: Sulfato de amônio | N52: kg N/t cana | U52: Sulfato de amônio | V52: 0 | W52: kg N/t cana | AF52: Sulfato de amônio | AG52: 0 | AH52: kg N/t cana | AO52: Sulfato de amônio | AQ52: kg N/t cana
C53: Nitrato de amônio e cálcio (CAN) | E53: kg N/t cana | L53: Nitrato de amônio e cálcio (CAN) | N53: kg N/t cana | U53: Nitrato de amônio e cálcio (CAN) | V53: 0 | W53: kg N/t cana | AF53: Nitrato de amônio e cálcio (CAN) | AG53: 0 | AH53: kg N/t cana | AO53: Nitrato de amônio e cálcio (CAN) | AQ53: kg N/t cana
C54: Superfosfato simples (SSP) | E54: kg P₂O₅/t cana | L54: Superfosfato simples (SSP) | N54: kg P₂O₅/t cana | U54: Superfosfato simples (SSP) | V54: 0 | W54: kg P₂O₅/t cana | AF54: Superfosfato simples (SSP) | AG54: 1 | AH54: kg P₂O₅/t cana | AO54: Superfosfato simples (SSP) | AQ54: kg P₂O₅/t cana
C55: Superfosfato triplo (TSP) | E55: kg P₂O₅/t cana | L55: Superfosfato triplo (TSP) | N55: kg P₂O₅/t cana | U55: Superfosfato triplo (TSP) | V55: 0 | W55: kg P₂O₅/t cana | AF55: Superfosfato triplo (TSP) | AG55: 0 | AH55: kg P₂O₅/t cana | AO55: Superfosfato triplo (TSP) | AQ55: kg P₂O₅/t cana
C56: Cloreto de potássio (KCl) | E56: kg K₂O/t cana | L56: Cloreto de potássio (KCl) | N56: kg K₂O/t cana | U56: Cloreto de potássio (KCl) | V56: 0 | W56: kg K₂O/t cana | AF56: Cloreto de potássio (KCl) | AG56: 2 | AH56: kg K₂O/t cana | AO56: Cloreto de potássio (KCl) | AQ56: kg K₂O/t cana
B57: Outros | C57: especificar | E57: kg N/t cana | K57: Outros | L57: especificar | N57: kg N/t cana | T57: Outros | U57: especificar | V57: 0 | W57: kg N/t cana | AE57: Outros | AF57: especificar | AG57: 0 | AH57: kg N/t cana | AN57: Outros | AO57: especificar | AQ57: kg N/t cana
B58: Outros | C58: especificar | E58: kg P₂O₅/t cana | K58: Outros | L58: especificar | N58: kg P₂O₅/t cana | T58: Outros | U58: especificar | V58: 0 | W58: kg P₂O₅/t cana | AE58: Outros | AF58: especificar | AG58: 0 | AH58: kg P₂O₅/t cana | AN58: Outros | AO58: especificar | AQ58: kg P₂O₅/t cana
B59: Outros | C59: especificar | E59: kg K₂O/t cana | K59: Outros | L59: especificar | N59: kg K₂O/t cana | T59: Outros | U59: especificar | V59: 0 | W59: kg K₂O/t cana | AE59: Outros | AF59: especificar | AG59: 0 | AH59: kg K₂O/t cana | AN59: Outros | AO59: especificar | AQ59: kg K₂O/t cana
B61: Fertilizantes Orgânicos/Organominerais | K61: Fertilizantes Orgânicos/Organominerais | T61: Fertilizantes Orgânicos/Organominerais | AE61: Fertilizantes Orgânicos/Organominerais | AN61: Fertilizantes Orgânicos/Organominerais
C62: Vinhaça | E62: L/t cana | F62: Concentração de N | H62: g N/L | L62: Vinhaça | N62: L/t cana | O62: Concentração de N | Q62: g N/L | U62: Vinhaça | V62: =D62 -> 0 | W62: L/t cana | X62: Concentração de N | Y62: =G62 -> 0 | Z62: g N/L | AF62: Vinhaça | AG62: 1000 | AH62: L/t cana | AI62: Concentração de N | AJ62: 0.375 | AK62: g N/L | AO62: Vinhaça | AQ62: L/t cana | AR62: Concentração de N | AT62: g N/L
C63: Torta de Filtro (base úmida) | E63: kg/t cana | F63: Concentração de N | H63: g N/kg | L63: Torta de Filtro (base úmida) | N63: kg/t cana | O63: Concentração de N | Q63: g N/kg | U63: Torta de Filtro (base úmida) | V63: =D63 -> 0 | W63: kg/t cana | X63: Concentração de N | Y63: =G63 -> 0 | Z63: g N/kg | AF63: Torta de Filtro (base úmida) | AG63: 42.8 | AH63: kg/t cana | AI63: Concentração de N | AJ63: 2.8 | AK63: g N/kg | AO63: Torta de Filtro (base úmida) | AQ63: kg/t cana | AR63: Concentração de N | AT63: g N/kg
C64: Cinzas e fuligem (base úmida) | E64: kg/t cana | F64: Concentração de N | H64: g N/kg | L64: Cinzas e fuligem (base úmida) | N64: kg/t cana | O64: Concentração de N | Q64: g N/kg | U64: Cinzas e fuligem (base úmida) | V64: =D64 -> 0 | W64: kg/t cana | X64: Concentração de N | Y64: =G64 -> 0 | Z64: g N/kg | AF64: Cinzas e fuligem (base úmida) | AG64: 10.08 | AH64: kg/t cana | AI64: Concentração de N | AK64: g N/kg | AO64: Cinzas e fuligem (base úmida) | AQ64: kg/t cana | AR64: Concentração de N | AT64: g N/kg
B65: Outros | C65: especificar | E65: kg/t cana | F65: Concentração de N | H65: g N/kg | K65: Outros | L65: especificar | N65: kg/t cana | O65: Concentração de N | Q65: g N/kg | T65: Outros | U65: especificar | V65: =D65 -> 0 | W65: kg/t cana | X65: Concentração de N | Y65: =G65 -> 0 | Z65: g N/kg | AE65: Outros | AF65: especificar | AG65: 0 | AH65: kg/t cana | AI65: Concentração de N | AK65: g N/kg | AN65: Outros | AO65: especificar | AQ65: kg/t cana | AR65: Concentração de N | AT65: g N/kg
B66: Outros | C66: especificar | E66: kg/t cana | F66: Concentração de N | H66: g N/kg | K66: Outros | L66: especificar | N66: kg/t cana | O66: Concentração de N | Q66: g N/kg | T66: Outros | U66: especificar | V66: =D66 -> 0 | W66: kg/t cana | X66: Concentração de N | Y66: =G66 -> 0 | Z66: g N/kg | AE66: Outros | AF66: especificar | AG66: 0 | AH66: kg/t cana | AI66: Concentração de N | AK66: g N/kg | AN66: Outros | AO66: especificar | AQ66: kg/t cana | AR66: Concentração de N | AT66: g N/kg
B68: Combustíveis e eletricidade | K68: Combustíveis e eletricidade | T68: Combustíveis e eletricidade | AE68: Combustíveis e eletricidade | AN68: Combustíveis e eletricidade
C69: Diesel - B8 | E69: L/t cana | L69: Diesel - B8 | N69: L/t cana | U69: Diesel - B8 | V69: =D69 -> 0 | W69: L/t cana | AF69: Diesel - B8 | AG69: 0 | AH69: L/t cana | AO69: Diesel - B8 | AQ69: L/t cana
C70: Diesel - B10 | E70: L/t cana | L70: Diesel - B10 | N70: L/t cana | U70: Diesel - B10 | V70: 0 | W70: L/t cana | AF70: Diesel - B10 | AG70: 6 | AH70: L/t cana | AO70: Diesel - B10 | AQ70: L/t cana
C71: Diesel - BX | E71: L/t cana | F71: Teor de biodiesel na mistura | L71: Diesel - BX | N71: L/t cana | O71: Teor de biodiesel na mistura | P71: 0.11 | U71: Diesel - BX | V71: 0 | W71: L/t cana | X71: Teor médio de biodiesel na mistura | Y71: =G71 -> 0 | Z71: % | AF71: Diesel - BX | AG71: 0 | AH71: L/t cana | AI71: Teor médio de biodiesel na mistura | AJ71: 0.11 | AK71: % | AO71: Diesel - BX | AQ71: L/t cana | AR71: Teor médio de biodiesel na mistura | AS71: 0.11 | AT71: %
C72: Diesel - B20 | E72: L/t cana | L72: Diesel - B20 | N72: L/t cana | U72: Diesel - B20 | V72: 0 | W72: L/t cana | AF72: Diesel - B20 | AG72: 0 | AH72: L/t cana | AO72: Diesel - B20 | AQ72: L/t cana
C73: Diesel - B30 | E73: L/t cana | L73: Diesel - B30 | N73: L/t cana | U73: Diesel - B30 | V73: 0 | W73: L/t cana | AF73: Diesel - B30 | AG73: 0 | AH73: L/t cana | AO73: Diesel - B30 | AQ73: L/t cana
C74: Biodiesel - B100 | E74: L/t cana | L74: Biodiesel - B100 | N74: L/t cana | U74: Biodiesel - B100 | V74: 0 | W74: L/t cana | AF74: Biodiesel - B100 | AG74: 0 | AH74: L/t cana | AO74: Biodiesel - B100 | AQ74: L/t cana
C75: Gasolina C | E75: L/t cana | L75: Gasolina C | N75: L/t cana | U75: Gasolina C | V75: 0 | W75: L/t cana | AF75: Gasolina C | AG75: 0 | AH75: L/t cana | AO75: Gasolina C | AQ75: L/t cana
C76: Etanol hidratado | E76: L/t cana | L76: Etanol hidratado | N76: L/t cana | U76: Etanol hidratado | V76: 0 | W76: L/t cana | AF76: Etanol hidratado | AG76: 0 | AH76: L/t cana | AO76: Etanol hidratado | AQ76: L/t cana
C77: Biometano de terceiros | E77: Nm³/t cana | L77: Biometano de terceiros | N77: Nm³/t cana | U77: Biometano de terceiros | V77: 0 | W77: Nm³/t cana | AF77: Biometano de terceiros | AG77: 0 | AH77: Nm³/t cana | AO77: Biometano de terceiros | AQ77: Nm³/t cana
C78: Biometano próprio | E78: Nm³/t cana | L78: Biometano próprio | N78: Nm³/t cana | U78: Biometano próprio | V78: 0 | W78: Nm³/t cana | AF78: Biometano próprio | AG78: 0 | AH78: Nm³/t cana | AO78: Biometano próprio | AQ78: Nm³/t cana
C79: Eletricidade da rede - mix médio | E79: kWh/t cana | L79: Eletricidade da rede - mix médio | N79: kWh/t cana | U79: Eletricidade da rede - mix médio | V79: 0 | W79: kWh/t cana | AF79: Eletricidade da rede - mix médio | AG79: 0 | AH79: kWh/t cana | AO79: Eletricidade da rede - mix médio | AQ79: kWh/t cana
C80: Eletricidade - PCH | E80: kWh/t cana | L80: Eletricidade - PCH | N80: kWh/t cana | U80: Eletricidade - PCH | V80: 0 | W80: kWh/t cana | AF80: Eletricidade - PCH | AG80: 0 | AH80: kWh/t cana | AO80: Eletricidade - PCH | AQ80: kWh/t cana
C81: Eletricidade - biomassa | E81: kWh/t cana | L81: Eletricidade - biomassa | N81: kWh/t cana | U81: Eletricidade - biomassa | V81: 0 | W81: kWh/t cana | AF81: Eletricidade - biomassa | AG81: 0 | AH81: kWh/t cana | AO81: Eletricidade - biomassa | AQ81: kWh/t cana
C82: Eletricidade - eólica | E82: kWh/t cana | L82: Eletricidade - eólica | N82: kWh/t cana | U82: Eletricidade - eólica | V82: 0 | W82: kWh/t cana | AF82: Eletricidade - eólica | AG82: 0 | AH82: kWh/t cana | AO82: Eletricidade - eólica | AQ82: kWh/t cana
C83: Eletricidade - solar | E83: kWh/t cana | L83: Eletricidade - solar | N83: kWh/t cana | U83: Eletricidade - solar | V83: 0 | W83: kWh/t cana | AF83: Eletricidade - solar | AG83: 0 | AH83: kWh/t cana | AO83: Eletricidade - solar | AQ83: kWh/t cana
B86: Fase industrial - processamento do etanol
B87: Processamento e rendimentos
C88: Quantidade de cana processada | E88: t cana
C89: Quantidade de palha processada (base seca) | E89: t palha
C90: Rendimento Etanol Anidro | E90: L/t cana
C91: Rendimento Etanol Hidratado | E91: L/t cana
C92: Rendimento Açúcar | E92: kg/t cana
C93: Rendimento Energia Elétrica Comercializada | E93: kWh/t cana
C94: Rendimento Bagaço Comercializado (base úmida) | E94: kg/t cana | F94: Umidade
B96: Combustíveis e eletricidade
C97: Bagaço próprio
C98: Quantidade (base úmida) | E98: kg/t cana
C99: Umidade
C101: Palha própria
C102: Quantidade (base úmida) | E102: kg/t cana
C103: Umidade
C105: Bagaço de terceiros
C106: Quantidade (base úmida) | E106: kg/t cana
C107: Umidade
C108: Distância de transporte | E108: km
C110: Palha de terceiros
C111: Quantidade (base úmida) | E111: kg/t cana
C112: Umidade
C113: Distância de transporte | E113: km
C115: Cavaco de madeira
C116: Quantidade (base úmida) | E116: kg/t cana
C117: Umidade
C118: Distância de transporte | E118: km
C120: Lenha
C121: Quantidade (base úmida) | E121: kg/t cana
C122: Umidade
C123: Distância de transporte | E123: km
C125: Resíduos florestais
C126: Quantidade (base úmida) | E126: kg/t cana
C127: Umidade
C128: Distância de transporte | E128: km
C131: Óleo combustível | E131: L/t cana
C132: Etanol hidratado próprio | E132: L/t cana
C133: Etanol anidro próprio | E133: L/t cana
C134: Biogás próprio | E134: Nm³/t cana | F134: PCI do biogás | H134: MJ/Nm³
C135: Biogás de terceiros | E135: Nm³/t cana | F135: PCI do biogás | H135: MJ/Nm³ | AA135: =IF(AND(G135<=50,G135>=30,G135=ROUND(G135,2)),G135,"") -> 
C136: Eletricidade da rede - mix médio | E136: kWh/t cana
C137: Eletricidade - PCH | E137: kWh/t cana
C138: Eletricidade - biomassa | E138: kWh/t cana
C139: Eletricidade - eólica | E139: kWh/t cana
C140: Eletricidade - solar | E140: kWh/t cana
B143: Fase de distribuição
C145: Etanol anidro
C146: Rodoviário | D146: 1
C147: Dutoviário | D147: 0 | E147: =IF((SUM(D146:D148)=1),"","A soma das porcentagens de distribuição deve ser igual a 100%!") -> 
C148: Ferroviário | D148: 0
C151: Etanol hidratado
C152: Rodoviário | D152: 1
C153: Dutoviário | D153: 0 | E153: =IF((SUM(D152:D154)=1),"","A soma das porcentagens de distribuição deve ser igual a 100%!") -> 
C154: Ferroviário | D154: 0

Sheet _E1GC (hidden)
B2: Emissões totais - g CO₂ eq
C3: Anidro | E3: Hidratado
B4: Total | C4: =C5+C6+C7+C8 ->  | E4: =E5+E6+E7+E8 -> 
B5: Agrícola | C5: =$H$86 ->  | D5: =C5/$C$4 ->  | E5: =$I$86 ->  | F5: =E5/$E$4 -> 
B6: Industrial | C6: =($H$141-$H$97) ->  | D6: =C6/$C$4 ->  | E6: =($I$141-$I$97) ->  | F6: =E6/$E$4 -> 
B7: Transporte | C7: =$D$171 ->  | D7: =C7/$C$4 ->  | E7: =$E$171 ->  | F7: =E7/$E$4 -> 
B8: Uso | C8: ='FE''s queima combustíveis'!$I$7 -> 0.439 | D8: =C8/$C$4 ->  | E8: ='FE''s queima combustíveis'!$I$8 -> 0.663 | F8: =E8/$E$4 -> 
B11: Etapa agrícola - Cana-de-açúcar | H11: Emissões por MJ de etanol anidro | I11: Emissões por MJ de etanol hidratado
B12: Produto | D12: 1 ha médio | E12: 1 t cana
B13: Produção de cana | C13: kg | D13: =(E1GC!V29/E1GC!V27)*1000 ->  | E13: 1000
B14: Entradas da natureza | D14: 1 ha médio | E14: 1 t cana
B15: Ocupação total | C15: ha | D15: 1 | E15: =(D15*E13)/D13 -> 
B16: Entradas da tecnosfera | D16: 1 ha médio | E16: 1 t cana | F16: g CO2 eq/t cana | H16: g CO2 eq/MJ | I16: g CO2 eq/MJ
B17: Fertilizantes e corretivos
B18: Calcário calcítico | C18: kg | E18: =E1GC!V39 -> 0 | F18: =E18*'Dados auxiliares'!$H$52 -> 0 | H18: =(F18/$E$91)*$F$91 ->  | I18: =(F18/$E$92)*$F$92 -> 
B19: Calcário dolomítico | C19: kg | E19: =E1GC!V40 -> 0 | F19: =E19*'Dados auxiliares'!$H$53 -> 0 | H19: =(F19/$E$91)*$F$91 ->  | I19: =(F19/$E$92)*$F$92 -> 
B20: Gesso | C20: kg | E20: =E1GC!V41 -> 0 | F20: =E20*'Dados auxiliares'!$H$54 -> 0
B21: N - Ureia | C21: kg N | E21: =E1GC!V44 -> 0 | F21: =E21*'Dados auxiliares'!$H$55 -> 0
B22: N - Fosfato monoamônico (MAP) | C22: kg N | E22: =E1GC!V45 -> 0 | F22: =E22*'Dados auxiliares'!$H$56 -> 0
B23: P₂O₅ - Fosfato monoamônico (MAP) | C23: kg P₂O₅ | E23: =E1GC!V46 -> 0 | F23: =E23*'Dados auxiliares'!$H$57 -> 0
B24: N - Fosfato diamônico (DAP) | C24: kg N | E24: =E1GC!V47 -> 0 | F24: =E24*'Dados auxiliares'!$H$58 -> 0
B25: P₂O₅ - Fosfato diamônico (DAP) | C25: kg P₂O₅ | E25: =E1GC!V48 -> 0 | F25: =E25*'Dados auxiliares'!$H$59 -> 0
B26: N - Nitrato de amônio | C26: kg N | E26: =E1GC!V49 -> 0 | F26: =E26*'Dados auxiliares'!$H$60 -> 0
B27: N - Solução de nitrato de amônio e ureia (UAN) | C27: kg N | E27: =E1GC!V50 -> 0 | F27: =E27*'Dados auxiliares'!$H$61 -> 0
B28: N - Amônia anidra | C28: kg N | E28: =E1GC!V51 -> 0 | F28: =E28*'Dados auxiliares'!$H$62 -> 0
B29: N - Sulfato de amônio | C29: kg N | E29: =E1GC!V52 -> 0 | F29: =E29*'Dados auxiliares'!$H$63 -> 0
B30: N - Nitrato de amônio e cálcio (CAN) | C30: kg N | E30: =E1GC!V53 -> 0 | F30: =E30*'Dados auxiliares'!$H$64 -> 0
B31: P₂O₅ - Superfosfato simples (SSP) | C31: kg P₂O₅ | E31: =E1GC!V54 -> 0 | F31: =E31*'Dados auxiliares'!$H$66 -> 0
B32: P₂O₅ - Superfosfato triplo (TSP) | C32: kg P₂O₅ | E32: =E1GC!V55 -> 0 | F32: =E32*'Dados auxiliares'!$H$67 -> 0
B33: K₂O - Cloreto de potássio (KCl) | C33: kg K₂O | E33: =E1GC!V56 -> 0 | F33: =E33*'Dados auxiliares'!H$68 -> 0
B34: N - Outros | C34: kg N | E34: =E1GC!V57 -> 0 | F34: =E34*'Dados auxiliares'!H$69 -> 0
B35: P₂O₅ - Outros | C35: kg P₂O₅ | E35: =E1GC!V58 -> 0 | F35: =E35*'Dados auxiliares'!H$70 -> 0
B36: K₂O - Outros | C36: kg K₂O | E36: =E1GC!V59 -> 0 | F36: =E36*'Dados auxiliares'!H$71 -> 0
B37: Vinhaça | C37: L | E37: =E1GC!V62 -> 0 | F37: 0
B38: Torta de filtro | C38: kg | E38: =E1GC!V63 -> 0 | F38: 0
B39: Cinzas e fuligem | C39: kg | E39: =E1GC!V64 -> 0 | F39: 0
B40: Outros Fertilizantes Orgânicos/Organominerais | C40: kg | E40: =E1GC!V65+E1GC!V66 -> 0 | F40: 0
B41: Agrotóxico
B42: Herbicidas e Inseticidas - Total | C42: kg | D42: =SUM(D43:D56) -> 1.083156939 | E42: =SUM(E43:E56) ->  | F42: =SUM(F43:F56) ->  | H42: =(F42/$E$91)*$F$91 -> 
B43: Herbicida, Roundup Ready, como glifosato | C43: kg | D43: 0.1741182675 | E43: =D43*$E$15 ->  | F43: =E43*'Dados auxiliares'!$H$72 -> 
B44: Herbicida, Boral 500 SC, como sulfentrazone | C44: kg | D44: 0.5107680209 | E44: =D44*$E$15 ->  | F44: =E44*'Dados auxiliares'!$H$74 -> 
B45: Herbicida, Hexaron, como hexazinona | C45: kg | D45: 0.007379322488 | E45: =D45*$E$15 ->  | F45: =E45*'Dados auxiliares'!$H$74 -> 
B46: Herbicida, Combine 500 SC, como tebuthiuron | C46: kg | D46: 0.1749146701 | F46: =E46*'Dados auxiliares'!$H$74 -> 
B47: Herbicida, Goal, como oxifluorfen | C47: kg | D47: 0.004472316659 | F47: =E47*'Dados auxiliares'!$H$74 -> 
B48: Herbicida, Diuron, como diuron | C48: kg | D48: 0.009317326374 | F48: =E48*'Dados auxiliares'!$H$74 -> 
B49: Herbicida, Herburon, como diuron | C49: kg | D49: 0.04658663187 | E49: =D49*$E$15 ->  | F49: =E49*'Dados auxiliares'!$H$74 -> 
B50: Herbicida, Hexaron, como diuron | C50: kg | D50: 0.02616305246 | E50: =D50*$E$15 ->  | F50: =E50*'Dados auxiliares'!$H$74 -> 
B51: Herbicida, Herbipak, como ametrina | C51: kg | D51: 0.04658663187 | F51: =E51*'Dados auxiliares'!$H$74 -> 
B52: Herbicida, Nortox, como 2,4 D | C52: kg | D52: 0.03754882529 | F52: =E52*'Dados auxiliares'!$H$73 -> 
B53: Inseticida, Actara, como thiamethoxan | C53: kg | D53: 0.009317326374 | F53: =E53*'Dados auxiliares'!$H$74 -> 
B54: Inseticida, Mirex, como sulfluramida | C54: kg | D54: 6.98799478e-05 | F54: =E54*'Dados auxiliares'!$H$74 -> 
B55: Inseticida, Regent 800 WG, como fipronil | C55: kg | D55: 0.03405120139 | E55: =D55*$E$15 ->  | F55: =E55*'Dados auxiliares'!$H$74 -> 
B56: Inseticida, Regent 800 WG, como fipronil | C56: kg | D56: 0.001863465275 | E56: =D56*$E$15 ->  | F56: =E56*'Dados auxiliares'!$H$74 -> 
B57: Combustíveis e eletricidade
B58: Diesel B0 | C58: kg | E58: =(E1GC!$V$69*(1-0.08)+E1GC!$V$70*(1-0.1)+E1GC!$V$71*(1-E1GC!$Y$71)+E1GC!V72*(1-0.2)+E1GC!$V$73*(1-0.3)+E1GC!$V$74*(1-1))*('Dados auxiliares'!$D$26) -> 0 | F58: =E58*'Dados auxiliares'!$H$116 -> 0 | H58: =(F58/$E$91)*$F$91 -> 
B59: Biodiesel B100 | C59: kg | E59: =(E1GC!$V$69*(0.08)+E1GC!$V$70*(0.1)+E1GC!$V$71*(E1GC!$Y$71)+E1GC!V73*(0.2)+E1GC!$V$73*(0.3)+E1GC!$V$74*(1))*('Dados auxiliares'!$D$17) -> 0 | F59: =E59*'Dados auxiliares'!$H$117 -> 0
B60: Gasolina A | C60: kg | E60: =E1GC!V75*(1-'FE''s queima combustíveis'!$D$19)*'Dados auxiliares'!$D$24 -> 0 | F60: =E60*'Dados auxiliares'!$H$120 -> 0
B61: Etanol anidro | C61: kg | E61: =E1GC!V75*('FE''s queima combustíveis'!$D$19)*'Dados auxiliares'!$D$15 -> 0 | F61: =E61*'Dados auxiliares'!$H$121 -> 0
B62: Etanol hidratado | C62: kg | E62: =E1GC!V76*'Dados auxiliares'!$D$16 -> 0 | F62: =E62*'Dados auxiliares'!$H$122 -> 0
B63: Biometano de terceiros | C63: Nm³ | E63: =E1GC!V77 -> 0 | F63: =E63*('Dados auxiliares'!$D$18*1000)*'Dados auxiliares'!$F$18*'Dados auxiliares'!$H$125 -> 0
B64: Eletricidade da rede - mix médio | C64: kWh | E64: =E1GC!V79 -> 0 | F64: =E64*'Dados auxiliares'!$H$107 -> 0
B65: Eletricidade - PCH | C65: kWh | E65: =E1GC!V80 -> 0 | F65: =E65*'Dados auxiliares'!$H$108 -> 0
B66: Eletricidade - biomassa | C66: kWh | E66: =E1GC!V81 -> 0 | F66: =E66*'Dados auxiliares'!$H$109 -> 0
B67: Eletricidade - eólica | C67: kWh | E67: =E1GC!V82 -> 0 | F67: =E67*'Dados auxiliares'!$H$110 -> 0
B68: Eletricidade - solar | C68: kWh | E68: =E1GC!V83 -> 0 | F68: =E68*'Dados auxiliares'!$H$111 -> 0
B69: Emissões | D69: 1 ha médio | E69: 1 t cana | F69: g CO2 eq/t cana | H69: g CO2 eq/MJ | I69: g CO2 eq/MJ
B70: N2O - Fertilizantes sintéticos | C70: kg | D70: ='_Emissões Agrícolas'!$C$54 ->  | E70: =D70*$E$15 ->  | F70: =E70*1000*'Dados auxiliares'!$D$9 ->  | H70: =(F70/$E$91)*$F$91 -> 
B71: N2O - Fertilizantes organominerais | C71: kg | D71: ='_Emissões Agrícolas'!$C$58 ->  | E71: =D71*$E$15 ->  | F71: =E71*1000*'Dados auxiliares'!$D$9 ->  | H71: =(F71/$E$91)*$F$91 -> 
B72: N2O - Resíduos culturais | C72: kg | D72: ='_Emissões Agrícolas'!$C$62 ->  | E72: =D72*$E$15 ->  | F72: =E72*1000*'Dados auxiliares'!$D$9 -> 
B73: CO2 - Calcário | C73: kg | E73: =$E$18*'_Emissões Agrícolas'!$E$79+$E$19*'_Emissões Agrícolas'!$E$80 -> 0 | F73: =E73*1000 -> 0 | H73: =(F73/$E$91)*$F$91 -> 
B74: CO2 - Uréia | C74: kg | E74: =$E$21*'_Emissões Agrícolas'!$E$81 -> 0 | F74: =E74*1000 -> 0
B75: N2O - queima palha | C75: kg | D75: ='_Emissões Agrícolas'!C73 ->  | E75: =D75*$E$15 ->  | F75: =E75*1000*'Dados auxiliares'!$D$9 -> 
B76: CH4 bio - queima palha | C76: kg | D76: ='_Emissões Agrícolas'!C74 ->  | E76: =D76*$E$15 ->  | F76: =E76*1000*'Dados auxiliares'!$D$8 -> 
B77: CO₂ eq - queima do diesel | C77: kg | E77: =$E$58*'FE''s queima combustíveis'!$I$64/1000 -> 0 | F77: =E77*1000 -> 0
B78: CO₂ eq - queima do biodiesel | C78: kg | E78: =$E$59*'FE''s queima combustíveis'!$I$65/1000 -> 0 | F78: =E78*1000 -> 0
B79: CO₂ eq - queima da gasolina A | C79: kg | E79: =$E$60*'FE''s queima combustíveis'!$I$9/1000 -> 0 | F79: 0
B80: CO₂ eq - queima do etanol anidro | C80: kg | E80: =$E$61*'FE''s queima combustíveis'!$I$7/1000 -> 0 | F80: 0
B81: CO₂ eq - queima do etanol hidratado | C81: kg | E81: =$E$62*'FE''s queima combustíveis'!$I$8/1000 -> 0 | F81: 0
B82: CO₂ eq - queima do biometano | C82: kg | E82: =($E$63+E1GC!V78)*'FE''s queima combustíveis'!$I$66/1000 -> 0 | F82: 0
B84: Emissões do processo | C84: g CO2 eq/t cana | F84: =SUM(F70:F82) ->  | H84: =(F84/$E$91)*$F$91 -> 
B85: Emissões background | C85: g CO2 eq/t cana | F85: =SUM(F18:F42,F57:F68) ->  | H85: =(F85/$E$91)*$F$91 ->  | I85: =(F85/$E$92)*$F$92 -> 
B86: Emissões totais | C86: g CO2 eq/t cana | F86: =F84+F85 ->  | H86: =(F86/$E$91)*$F$91 -> 
B89: Etapa industrial - Etanol | H89: Emissões por MJ de etanol anidro | I89: Emissões por MJ de etanol hidratado
B90: Produtos | C90: Unidade | D90: 1 TC | E90: MJ | F90: Alocação
B91: Etanol anidro | C91: kg | D91: =E1GC!D90*'Dados auxiliares'!$D$15 -> 0 | E91: =D91*'Dados auxiliares'!$F$15 -> 0 | F91: =E91/SUM($E$91:$E$95) -> 
B92: Etanol hidratado | C92: kg | D92: =E1GC!D91*'Dados auxiliares'!$D$16 -> 0 | E92: =D92*'Dados auxiliares'!$F$16 -> 0 | F92: =E92/SUM($E$91:$E$95) -> 
B93: Açúcar | C93: kg | D93: =E1GC!D92 -> 0 | E93: =D93*'Dados auxiliares'!D36 -> 0 | F93: =E93/SUM($E$91:$E$95) -> 
B94: Energia elétrica comercializada | C94: kWh | D94: =E1GC!D93 -> 0 | E94: =CONVERT(D94,"kWh","MJ") -> 0 | F94: =E94/SUM($E$91:$E$95) -> 
B95: Bagaço comercializado | C95: kg base úmida | D95: =E1GC!D94 -> 0 | E95: - | F95: -
B96: Entradas | C96: Unidade | D96: 1 TC | F96: g CO2 eq/t cana | H96: g CO2 eq/MJ | I96: g CO2 eq/MJ
B97: Cana-de-açúcar | C97: t | D97: 1 | F97: =D97*F86 ->  | H97: =(F97/$E$91)*$F$91 ->  | I97: =(F97/$E$92)*$F$92 -> 
B98: Água | C98: kg | D98: 1500 | F98: =D98*'Dados auxiliares'!$H$83 -> 13.2023586
B99: Cal (CaO) | C99: kg | D99: 0.82 | F99: =D99*'Dados auxiliares'!$H$84 -> 788.62447
B100: Ácido sulfúrico | C100: kg | D100: 0.265 | F100: =D100*'Dados auxiliares'!$H$88 -> 28.98036282
B101: Ácido fosfórico | C101: kg | D101: =176.5/1000 -> 0.1765 | F101: =D101*'Dados auxiliares'!$H$89 -> 267.0316072
B102: Floculante | C102: kg | D102: =2.555/1000 -> 0.002555 | F102: =D102*'Dados auxiliares'!$H$91 -> 5.495541826
B103: Antibióticos | C103: kg | D103: =0.297/1000 -> 0.000297 | F103: =D103*'Dados auxiliares'!$H$92 -> 0.6388164079
B104: Óleo lubrificante | C104: kg | D104: =13/1000 -> 0.013 | F104: =D104*'Dados auxiliares'!$H$93 -> 14.70824221
B105: Zeolita | C105: kg | D105: =(D91*0.03)/67.2 -> 0 | F105: =D105*'Dados auxiliares'!$H$94 -> 0
B106: Bagaço próprio | C106: kg base seca | D106: =E1GC!$D$98*(1-E1GC!$D$99) -> 0 | F106: 0
B107: Palha própria | C107: kg base seca | D107: =E1GC!$D$102*(1-E1GC!$D$103) -> 0 | F107: 0
B108: Bagaço de terceiros | C108: kg base seca | D108: =E1GC!$D$106*(1-E1GC!$D$107) -> 0 | F108: 0
B109: Transporte de bagaço de terceiros | C109: tkm | D109: =((D108/1000)*E1GC!$D$108) -> 0 | F109: =D109*'Dados auxiliares'!$H$131 -> 0
B110: Palha de terceiros | C110: kg base seca | D110: =E1GC!$D$111*(1-E1GC!$D$112) -> 0 | F110: =D110*'Dados auxiliares'!$H$78 -> 0
B111: Transporte de palha de terceiros | C111: tkm | D111: =((D110/1000)*E1GC!$D$113) -> 0 | F111: =D111*'Dados auxiliares'!$H$131 -> 0
B112: Cavaco de madeira | C112: kg base seca | D112: =E1GC!$D$116*(1-E1GC!$D$117) -> 0 | F112: =D112*'Dados auxiliares'!$H$123 -> 0
B113: Transporte de cavaco de madeira | C113: tkm | D113: =((D112/1000)*E1GC!$D$118) -> 0 | F113: =D113*'Dados auxiliares'!$H$131 -> 0
B114: Lenha | C114: kg base seca | D114: =E1GC!$D$121*(1-E1GC!$D$122) -> 0 | F114: =D114*'Dados auxiliares'!$H$124 -> 0
B115: Transporte de lenha | C115: tkm | D115: =((D114/1000)*E1GC!$D$123) -> 0 | F115: =D115*'Dados auxiliares'!$H$131 -> 0
B116: Resíduos florestais | C116: kg base seca | D116: =E1GC!$D$126*(1-E1GC!$D$127) -> 0 | F116: 0
B117: Transporte de resíduos florestais | C117: tkm | D117: =((D116/1000)*E1GC!$D$128) -> 0 | F117: =D117*'Dados auxiliares'!$H$131 -> 0
B118: Óleo combusível | C118: kg | D118: =E1GC!D131*'Dados auxiliares'!$D$30 -> 0 | F118: =D118*'Dados auxiliares'!$H$126 -> 0 | H118: =(F118/$E$91)*$F$91 ->  | I118: =(F118/$E$92)*$F$92 -> 
B119: Biogás de terceiros | C119: Nm³ | D119: =E1GC!D135 -> 0 | F119: =D119*E1GC!G135*'Dados auxiliares'!$H$125 -> 0 | H119: =(F119/$E$91)*$F$91 ->  | I119: =(F119/$E$92)*$F$92 -> 
B120: Eletricidade da rede - mix médio | C120: kWh | D120: =E1GC!D136 -> 0 | F120: =D120*'Dados auxiliares'!$H$107 -> 0
B121: Eletricidade - PCH | C121: kWh | D121: =E1GC!D137 -> 0 | F121: =D121*'Dados auxiliares'!$H$108 -> 0
B122: Eletricidade - biomassa | C122: kWh | D122: =E1GC!D138 -> 0 | F122: =D122*'Dados auxiliares'!$H$109 -> 0
B123: Eletricidade - eólica | C123: kWh | D123: =E1GC!D139 -> 0 | F123: =D123*'Dados auxiliares'!$H$110 -> 0
B124: Eletricidade - solar | C124: kWh | D124: =E1GC!D140 -> 0 | F124: =D124*'Dados auxiliares'!$H$111 -> 0
B125: Emissões | C125: Unidade | D125: 1 TC | F125: g CO2 eq/t cana | H125: g CO2 eq/MJ | I125: g CO2 eq/MJ
B126: CO₂ eq - queima do bagaço próprio | C126: kg | D126: =$D$106*'FE''s queima combustíveis'!$I$36/1000 -> 0 | F126: =D126*1000 -> 0 | I126: =(F126/$E$92)*$F$92 -> 
B127: CO₂ eq - queima da palha própria | C127: kg | D127: =$D$107*'FE''s queima combustíveis'!$I$37/1000 -> 0 | F127: =D127*1000 -> 0
B128: CO₂ eq - queima do bagaço de terceiros | C128: kg | D128: =$D$108*'FE''s queima combustíveis'!$I$36/1000 -> 0 | F128: 0
B129: CO₂ eq - queima da palha de terceiros | C129: kg | D129: =$D$110*'FE''s queima combustíveis'!$I$37/1000 -> 0 | F129: 0
B130: CO₂ eq - queima dos cavacos de madeira | C130: kg | D130: =$D$112*'FE''s queima combustíveis'!$I$38/1000 -> 0 | F130: 0
B131: CO₂ eq - queima da lenha | C131: kg | D131: =$D$114*'FE''s queima combustíveis'!$I$39/1000 -> 0 | F131: 0
B132: CO₂ eq - queima dos resíduos florestais | C132: kg | D132: =$D$116*'FE''s queima combustíveis'!$I$40/1000 -> 0 | F132: 0
B133: CO₂ eq - queima do óleo combustível | C133: kg | D133: =D118*'FE''s queima combustíveis'!$I$53/1000 -> 0 | F133: 0 | H133: =(F133/$E$91)*$F$91 ->  | I133: =(F133/$E$92)*$F$92 -> 
B134: CO₂ eq - queima do etanol hidratado próprio | C134: kg | D134: =E1GC!D132*'Dados auxiliares'!$D$16*'FE''s queima combustíveis'!$I$57/1000 -> 0 | F134: 0
B135: CO₂ eq - queima do etanol anidro próprio | C135: kg | D135: =E1GC!D133*'Dados auxiliares'!$D$15*'FE''s queima combustíveis'!$I$55/1000 -> 0 | F135: 0
B136: CO₂ eq - queima do biogás próprio | C136: kg | D136: =E1GC!D134*E1GC!G134*'FE''s queima combustíveis'!$I$41/1000 -> 0 | F136: 0
B137: CO₂ eq - queima do biogás de terceiros | C137: kg | D137: =E1GC!D135*E1GC!G135*'FE''s queima combustíveis'!$I$41/1000 -> 0 | F137: 0 | H137: =(F137/$E$91)*$F$91 ->  | I137: =(F137/$E$92)*$F$92 -> 
B139: Emissões do processo | C139: g CO2 eq/t cana | F139: =SUM(F126:F137) -> 0 | I139: =(F139/$E$92)*$F$92 -> 
B140: Emissões background | C140: g CO2 eq/t cana | F140: =SUM(F97:F124) -> 
B141: Emissões totais | C141: g CO2 eq/t cana | F141: =F139+F140 -> 
B144: Etapa distribuição
B145: Sistema logístico rodoviário
B146: Parâmetro | C146: Unidade | D146: Etanol anidro | E146: Etanol hidratado
B147: Massa | C147: kg/t cana | D147: =$D$91*E1GC!$D$146 -> 0 | E147: =$D$92*E1GC!$D$152 -> 0
B148: Distância de transporte rodoviário | C148: km | D148: ='Dados auxiliares'!C153 -> 700 | E148: ='Dados auxiliares'!C153 -> 700
B149: Transporte rodoviário | C149: tkm/t cana | D149: =D147/1000*D148 -> 0 | E149: =E147/1000*E148 -> 0
B150: Emissões | C150: g CO2 eq/t cana | D150: =D149*'Dados auxiliares'!$H$132 -> 0 | E150: =E149*'Dados auxiliares'!$H$132 -> 0
B151: Emissões | C151: g CO2 eq/MJ | D151: =D150/$E$91 ->  | E151: =E150/$E$92 -> 
B152: Sistema logístico dutoviário
B153: Parâmetro | C153: Unidade | D153: Etanol anidro | E153: Etanol hidratado
B154: Massa | C154: kg/t cana | D154: =$D$91*E1GC!$D$147 -> 0 | E154: =$D$92*E1GC!$D$153 -> 0
B155: Distância de transporte rodoviário | C155: km | D155: ='Dados auxiliares'!E153 -> 200 | E155: ='Dados auxiliares'!E153 -> 200
B156: Transporte rodoviário | C156: tkm/t cana | D156: =D154/1000*D155 -> 0 | E156: =E154/1000*E155 -> 0
B157: Distância de transporte dutoviário | C157: km | D157: ='Dados auxiliares'!D153 -> 500 | E157: ='Dados auxiliares'!D153 -> 500
B158: Transporte dutoviário | C158: tkm/t cana | D158: =D154/1000*D157 -> 0 | E158: =E154/1000*E157 -> 0
B159: Emissões | C159: g CO2 eq/t cana | D159: =D156*'Dados auxiliares'!$H$132+D158*'Dados auxiliares'!$H$136 -> 0 | E159: =E156*'Dados auxiliares'!$H$132+E158*'Dados auxiliares'!$H$136 -> 0
B160: Emissões | C160: g CO2 eq/MJ | D160: =D159/$E$91 ->  | E160: =E159/$E$92 -> 
B161: Sistema logístico ferroviário
B162: Parâmetro | C162: Unidade | D162: Etanol anidro | E162: Etanol hidratado
B163: Massa | C163: kg/t cana | D163: =$D$91*E1GC!$D$148 -> 0 | E163: =$D$92*E1GC!$D$154 -> 0
B164: Distância de transporte rodoviário | C164: km | D164: ='Dados auxiliares'!G153 -> 400 | E164: ='Dados auxiliares'!G153 -> 400
B165: Transporte rodoviário | C165: tkm/t cana | D165: =D163/1000*D164 -> 0 | E165: =E163/1000*E164 -> 0
B166: Distância de transporte ferroviário | C166: km | D166: ='Dados auxiliares'!F153 -> 300 | E166: ='Dados auxiliares'!F153 -> 300
B167: Transporte ferroviário | C167: tkm/t cana | D167: =D163/1000*D166 -> 0 | E167: =E163/1000*E166 -> 0
B168: Emissões | C168: g CO2 eq/t cana | D168: =D165*'Dados auxiliares'!$H$132+D167*'Dados auxiliares'!$H$135 -> 0 | E168: =E165*'Dados auxiliares'!$H$132+E167*'Dados auxiliares'!$H$135 -> 0
B169: Emissões | C169: g CO2 eq/MJ | D169: =D168/$E$91 ->  | E169: =E168/$E$92 -> 
B171: Emissões totais | C171: g CO2 eq/MJ | D171: =D151+D160+D169 ->  | E171: =E151+E160+E169 -> 

Sheet E1G2G
B2: Etanol combustível de primeira e segunda geração produzido em usina integrada
B4: Nome da Usina: | C4: Usina Hipotética
B6: CNPJ | C6: 00.000.000/0000-00
B8: Responsável pelo preenchimento:
B10: Telefone : | C10: (00) 0000-0000
C13: Etanol Anidro
B15: Intensidade de Carbono (g CO₂eq/MJ) | C15: =SUM(C17:C20) -> 0.439 | D15: Nota de Eficiência Energético-Ambiental (g CO₂eq/MJ) | G15: =G18-C15 -> 86.961
B17: agrícola | C17: =IFERROR(IF(C13="Etanol Anidro",_E1G2G!C5,IF(C13="Etanol Hidratado",_E1G2G!E5,"")),0) -> 0 | G17: Fóssil substituto: Gasolina
B18: industrial | C18: =IFERROR(IF(C13="Etanol Anidro",_E1G2G!C6,IF(C13="Etanol Hidratado",_E1G2G!E6,"")),0) -> 0 | G18: ='Dados auxiliares'!F166 -> 87.4
B19: transporte | C19: =IFERROR(IF(C13="Etanol Anidro",_E1G2G!C7,IF(C13="Etanol Hidratado",_E1G2G!E7,"")),0) -> 0 | G19: Redução de emissões
B20: uso | C20: =IFERROR(IF(C13="Etanol Anidro",_E1G2G!C8,IF(C13="Etanol Hidratado",_E1G2G!E8,"")),0) -> 0.439 | G20: =(G18-C15)/G18 -> 0.9949771167
B23: Fase agrícola - Dados Consolidados | K23: Fornecedores - Dados consolidados | T23: Média ponderada - RenovaCalc | AE23: Default - Cana | AN23: Guarda dados de preenchimento
B24: Informações gerais | K24: Informações gerais | T24: Informações gerais | AE24: Informações gerais | AN24: Informações gerais
C26: Sistema de plantio | D26: Convencional | L26: Sistema de plantio | M26: Convencional | U26: Sistema de plantio | V26: =D26 -> Convencional
C27: Área total | E27: ha | L27: Área total | N27: ha | U27: Área total | V27: =D27 -> 0 | W27: ha
C29: Produção total colhida para moagem | E29: t cana | L29: Produção total colhida para moagem | N29: t cana | U29: Produção total colhida para moagem | V29: =D29 -> 0 | W29: t cana
C30: Quantidade comprada pela unidade produtora de biocombustível | E30: t cana
C31: Teor de impurezas vegetais (base úmida) | E31: kg/t cana | F31: Umidade | L31: Teor de impurezas vegetais (base úmida) | N31: kg/t cana | O31: Umidade | P31: 0.5 | U31: Teor de impurezas vegetais (base úmida) | V31: =D31 -> 0 | W31: kg/t cana | X31: Umidade | Y31: =G31 -> 0
C32: Teor de impurezas minerais | E32: kg/t cana | L32: Teor de impurezas minerais | N32: kg/t cana | U32: Teor de impurezas minerais | V32: =D32 -> 0 | W32: kg/t cana
C33: Palha recolhida (base seca) | E33: t palha | L33: Palha recolhida (base seca) | N33: t palha | U33: Palha recolhida (base seca) | V33: =D33 -> 0 | W33: t palha
B35: Área Queimada | K35: Área Queimada | T35: Área Queimada | AE35: Área Queimada | AN35: Área Queimada
C36: Área queimada | E36: ha | L36: Área queimada | N36: ha | U36: Área queimada | V36: =D36 -> 0 | W36: ha | AF36: Área queimada | AG36: 1 | AH36: % da área total | AO36: Área queimada | AP36: 3680 | AQ36: % da área total
B38: Corretivos | K38: Corretivos | T38: Corretivos | AE38: Corretivos | AN38: Corretivos
C39: Calcário calcítico | E39: kg/t cana | L39: Calcário calcítico | N39: kg/t cana | U39: Calcário calcítico | V39: =D39 -> 0 | W39: kg/t cana | AF39: Calcário calcítico | AG39: 0 | AH39: kg/t cana | AO39: Calcário calcítico | AP39: 0 | AQ39: kg/t cana
C40: Calcário dolomítico | E40: kg/t cana | L40: Calcário dolomítico | N40: kg/t cana | U40: Calcário dolomítico | V40: =D40 -> 0 | W40: kg/t cana | AF40: Calcário dolomítico | AG40: 12 | AH40: kg/t cana | AO40: Calcário dolomítico | AP40: 5.79 | AQ40: kg/t cana
C41: Gesso | E41: kg/t cana | L41: Gesso | N41: kg/t cana | U41: Gesso | V41: =D41 -> 0 | W41: kg/t cana | AF41: Gesso | AG41: 5 | AH41: kg/t cana | AO41: Gesso | AP41: 2.79 | AQ41: kg/t cana
B43: Fertilizantes Sintéticos | K43: Fertilizantes Sintéticos | T43: Fertilizantes Sintéticos | AE43: Fertilizantes Sintéticos | AN43: Fertilizantes Sintéticos
C44: Ureia | E44: kg N/t cana | L44: Ureia | N44: kg N/t cana | U44: Ureia | V44: =D44 -> 0 | W44: kg N/t cana | AF44: Ureia | AG44: 2 | AH44: kg N/t cana | AO44: Ureia | AP44: 1.107 | AQ44: kg N/t cana
C45: Fosfato monoamônico (MAP) | E45: kg N/t cana | L45: Fosfato monoamônico (MAP) | N45: kg N/t cana | U45: Fosfato monoamônico (MAP) | V45: 0 | W45: kg N/t cana | AF45: Fosfato monoamônico (MAP) | AG45: 0 | AH45: kg N/t cana | AO45: Fosfato monoamônico (MAP) | AP45: 0 | AQ45: kg N/t cana
C46: Fosfato monoamônico (MAP) | E46: kg P₂O₅/t cana | L46: Fosfato monoamônico (MAP) | N46: kg P₂O₅/t cana | U46: Fosfato monoamônico (MAP) | V46: 0 | W46: kg P₂O₅/t cana | AF46: Fosfato monoamônico (MAP) | AG46: 0 | AH46: kg P₂O₅/t cana | AO46: Fosfato monoamônico (MAP) | AP46: 0 | AQ46: kg P₂O₅/t cana
C47: Fosfato diamônico (DAP) | E47: kg N/t cana | L47: Fosfato diamônico (DAP) | N47: kg N/t cana | U47: Fosfato diamônico (DAP) | V47: 0 | W47: kg N/t cana | AF47: Fosfato diamônico (DAP) | AG47: 0 | AH47: kg N/t cana | AO47: Fosfato diamônico (DAP) | AP47: 0 | AQ47: kg N/t cana
C48: Fosfato diamônico (DAP) | E48: kg P₂O₅/t cana | L48: Fosfato diamônico (DAP) | N48: kg P₂O₅/t cana | U48: Fosfato diamônico (DAP) | V48: 0 | W48: kg P₂O₅/t cana | AF48: Fosfato diamônico (DAP) | AG48: 0 | AH48: kg P₂O₅/t cana | AO48: Fosfato diamônico (DAP) | AP48: 0 | AQ48: kg P₂O₅/t cana
C49: Nitrato de amônio | E49: kg N/t cana | L49: Nitrato de amônio | N49: kg N/t cana | U49: Nitrato de amônio | V49: 0 | W49: kg N/t cana | AF49: Nitrato de amônio | AG49: 0 | AH49: kg N/t cana | AO49: Nitrato de amônio | AP49: 0 | AQ49: kg N/t cana
C50: Solução de nitrato de amônio e ureia (UAN) | E50: kg N/t cana | L50: Solução de nitrato de amônio e ureia (UAN) | N50: kg N/t cana | U50: Solução de nitrato de amônio e ureia (UAN) | V50: 0 | W50: kg N/t cana | AF50: Solução de nitrato de amônio e ureia (UAN) | AG50: 0 | AH50: kg N/t cana | AO50: Solução de nitrato de amônio e ureia (UAN) | AP50: 0 | AQ50: kg N/t cana
C51: Amônia anidra | E51: kg N/t cana | L51: Amônia anidra | N51: kg N/t cana | U51: Amônia anidra | V51: 0 | W51: kg N/t cana | AF51: Amônia anidra | AG51: 0 | AH51: kg N/t cana | AO51: Amônia anidra | AP51: 0 | AQ51: kg N/t cana
C52: Sulfato de amônio | E52: kg N/t cana | L52: Sulfato de amônio | N52: kg N/t cana | U52: Sulfato de amônio | V52: 0 | W52: kg N/t cana | AF52: Sulfato de amônio | AG52: 0 | AH52: kg N/t cana | AO52: Sulfato de amônio | AP52: 0 | AQ52: kg N/t cana
C53: Nitrato de amônio e cálcio (CAN) | E53: kg N/t cana | L53: Nitrato de amônio e cálcio (CAN) | N53: kg N/t cana | U53: Nitrato de amônio e cálcio (CAN) | V53: 0 | W53: kg N/t cana | AF53: Nitrato de amônio e cálcio (CAN) | AG53: 0 | AH53: kg N/t cana | AO53: Nitrato de amônio e cálcio (CAN) | AP53: 0 | AQ53: kg N/t cana
C54: Superfosfato simples (SSP) | E54: kg P₂O₅/t cana | L54: Superfosfato simples (SSP) | N54: kg P₂O₅/t cana | U54: Superfosfato simples (SSP) | V54: 0 | W54: kg P₂O₅/t cana | AF54: Superfosfato simples (SSP) | AG54: 1 | AH54: kg P₂O₅/t cana | AO54: Superfosfato simples (SSP) | AP54: 0.4438988334 | AQ54: kg P₂O₅/t cana
C55: Superfosfato triplo (TSP) | E55: kg P₂O₅/t cana | L55: Superfosfato triplo (TSP) | N55: kg P₂O₅/t cana | U55: Superfosfato triplo (TSP) | V55: 0 | W55: kg P₂O₅/t cana | AF55: Superfosfato triplo (TSP) | AG55: 0 | AH55: kg P₂O₅/t cana | AO55: Superfosfato triplo (TSP) | AP55: 0 | AQ55: kg P₂O₅/t cana
C56: Cloreto de potássio (KCl) | E56: kg K₂O/t cana | L56: Cloreto de potássio (KCl) | N56: kg K₂O/t cana | U56: Cloreto de potássio (KCl) | V56: 0 | W56: kg K₂O/t cana | AF56: Cloreto de potássio (KCl) | AG56: 2 | AH56: kg K₂O/t cana | AO56: Cloreto de potássio (KCl) | AP56: 1.346204902 | AQ56: kg K₂O/t cana
B57: Outros | C57: especificar | E57: kg N/t cana | K57: Outros | L57: especificar | N57: kg N/t cana | T57: Outros | U57: especificar | V57: 0 | W57: kg N/t cana | AE57: Outros | AF57: especificar | AG57: 0 | AH57: kg N/t cana | AN57: Outros | AO57: especificar | AP57: 0 | AQ57: kg N/t cana
B58: Outros | C58: especificar | E58: kg P₂O₅/t cana | K58: Outros | L58: especificar | N58: kg P₂O₅/t cana | T58: Outros | U58: especificar | V58: 0 | W58: kg P₂O₅/t cana | AE58: Outros | AF58: especificar | AG58: 0 | AH58: kg P₂O₅/t cana | AN58: Outros | AO58: especificar | AP58: 0 | AQ58: kg P₂O₅/t cana
B59: Outros | C59: especificar | E59: kg K₂O/t cana | K59: Outros | L59: especificar | N59: kg K₂O/t cana | T59: Outros | U59: especificar | V59: 0 | W59: kg K₂O/t cana | AE59: Outros | AF59: especificar | AG59: 0 | AH59: kg K₂O/t cana | AN59: Outros | AO59: especificar | AP59: 0 | AQ59: kg K₂O/t cana
B61: Fertilizantes Orgânicos/Organominerais | K61: Fertilizantes Orgânicos/Organominerais | T61: Fertilizantes Orgânicos/Organominerais | AE61: Fertilizantes Orgânicos/Organominerais | AN61: Fertilizantes Orgânicos/Organominerais
C62: Vinhaça | E62: L/t cana | F62: Concentração de N | H62: g N/L | L62: Vinhaça | N62: L/t cana | O62: Concentração de N | Q62: g N/L | U62: Vinhaça | V62: =D62 -> 0 | W62: L/t cana | X62: Concentração de N | Y62: =G62 -> 0 | Z62: g N/L | AF62: Vinhaça | AG62: 1000 | AH62: L/t cana | AI62: Concentração de N | AJ62: 0.375 | AK62: g N/L | AO62: Vinhaça | AP62: 440.2 | AQ62: L/t cana | AR62: Concentração de N | AS62: 0.375 | AT62: g N/L
C63: Torta de Filtro (base úmida) | E63: kg/t cana | F63: Concentração de N | H63: g N/kg | L63: Torta de Filtro (base úmida) | N63: kg/t cana | O63: Concentração de N | Q63: g N/kg | U63: Torta de Filtro (base úmida) | V63: =D63 -> 0 | W63: kg/t cana | X63: Concentração de N | Y63: =G63 -> 0 | Z63: g N/kg | AF63: Torta de Filtro (base úmida) | AG63: 42.8 | AH63: kg/t cana | AI63: Concentração de N | AJ63: 2.8 | AK63: g N/kg | AO63: Torta de Filtro (base úmida) | AP63: 30.57142857 | AQ63: kg/t cana | AR63: Concentração de N | AS63: 14 | AT63: g N/kg
C64: Cinzas e fuligem (base úmida) | E64: kg/t cana | F64: Concentração de N | H64: g N/kg | L64: Cinzas e fuligem (base úmida) | N64: kg/t cana | O64: Concentração de N | Q64: g N/kg | U64: Cinzas e fuligem (base úmida) | V64: =D64 -> 0 | W64: kg/t cana | X64: Concentração de N | Y64: =G64 -> 0 | Z64: g N/kg | AF64: Cinzas e fuligem (base úmida) | AG64: 10.08 | AH64: kg/t cana | AI64: Concentração de N | AK64: g N/kg | AO64: Cinzas e fuligem (base úmida) | AP64: 7.2 | AQ64: kg/t cana | AR64: Concentração de N | AT64: g N/kg
B65: Outros | C65: especificar | E65: kg/t cana | F65: Concentração de N | H65: g N/kg | K65: Outros | L65: especificar | N65: kg/t cana | O65: Concentração de N | Q65: g N/kg | T65: Outros | U65: especificar | V65: =D65 -> 0 | W65: kg/t cana | X65: Concentração de N | Y65: =G65 -> 0 | Z65: g N/kg | AE65: Outros | AF65: especificar | AG65: 0 | AH65: kg/t cana | AI65: Concentração de N | AK65: g N/kg | AN65: Outros | AO65: especificar | AP65: 0 | AQ65: kg/t cana | AR65: Concentração de N | AT65: g N/kg
B66: Outros | C66: especificar | E66: kg/t cana | F66: Concentração de N | H66: g N/kg | K66: Outros | L66: especificar | N66: kg/t cana | O66: Concentração de N | Q66: g N/kg | T66: Outros | U66: especificar | V66: =D66 -> 0 | W66: kg/t cana | X66: Concentração de N | Y66: =G66 -> 0 | Z66: g N/kg | AE66: Outros | AF66: especificar | AG66: 0 | AH66: kg/t cana | AI66: Concentração de N | AK66: g N/kg | AN66: Outros | AO66: especificar | AP66: 0 | AQ66: kg/t cana | AR66: Concentração de N | AT66: g N/kg
B68: Combustíveis e eletricidade | K68: Combustíveis e eletricidade | T68: Combustíveis e eletricidade | AE68: Combustíveis e eletricidade | AN68: Combustíveis e eletricidade
C69: Diesel - B8 | E69: L/t cana | L69: Diesel - B8 | N69: L/t cana | U69: Diesel - B8 | V69: =D69 -> 0 | W69: L/t cana | AF69: Diesel - B8 | AG69: 0 | AH69: L/t cana | AO69: Diesel - B8 | AP69: 0 | AQ69: L/t cana
C70: Diesel - B10 | E70: L/t cana | L70: Diesel - B10 | N70: L/t cana | U70: Diesel - B10 | V70: 0 | W70: L/t cana | AF70: Diesel - B10 | AG70: 6 | AH70: L/t cana | AO70: Diesel - B10 | AP70: 3.18 | AQ70: L/t cana
C71: Diesel - BX | E71: L/t cana | F71: Teor de biodiesel na mistura | L71: Diesel - BX | N71: L/t cana | O71: Teor de biodiesel na mistura | P71: 0.15 | U71: Diesel - BX | V71: 0 | W71: L/t cana | X71: Teor médio de biodiesel na mistura | Y71: =G71 -> 0 | Z71: % | AF71: Diesel - BX | AG71: 0 | AH71: L/t cana | AI71: Teor médio de biodiesel na mistura | AJ71: 0.11 | AK71: % | AO71: Diesel - BX | AP71: 0 | AQ71: L/t cana | AR71: Teor médio de biodiesel na mistura | AS71: 0.11 | AT71: %
C72: Diesel - B20 | E72: L/t cana | L72: Diesel - B20 | N72: L/t cana | U72: Diesel - B20 | V72: 0 | W72: L/t cana | AF72: Diesel - B20 | AG72: 0 | AH72: L/t cana | AO72: Diesel - B20 | AP72: 0 | AQ72: L/t cana
C73: Diesel - B30 | E73: L/t cana | L73: Diesel - B30 | N73: L/t cana | U73: Diesel - B30 | V73: 0 | W73: L/t cana | AF73: Diesel - B30 | AG73: 0 | AH73: L/t cana | AO73: Diesel - B30 | AP73: 0 | AQ73: L/t cana
C74: Biodiesel - B100 | E74: L/t cana | L74: Biodiesel - B100 | N74: L/t cana | U74: Biodiesel - B100 | V74: 0 | W74: L/t cana | AF74: Biodiesel - B100 | AG74: 0 | AH74: L/t cana | AO74: Biodiesel - B100 | AP74: 0 | AQ74: L/t cana
C75: Gasolina C | E75: L/t cana | L75: Gasolina C | N75: L/t cana | U75: Gasolina C | V75: 0 | W75: L/t cana | AF75: Gasolina C | AG75: 0 | AH75: L/t cana | AO75: Gasolina C | AP75: 0 | AQ75: L/t cana
C76: Etanol hidratado | E76: L/t cana | L76: Etanol hidratado | N76: L/t cana | U76: Etanol hidratado | V76: 0 | W76: L/t cana | AF76: Etanol hidratado | AG76: 0 | AH76: L/t cana | AO76: Etanol hidratado | AP76: 0 | AQ76: L/t cana
C77: Biometano de terceiros | E77: Nm³/t cana | L77: Biometano de terceiros | N77: Nm³/t cana | U77: Biometano de terceiros | V77: 0 | W77: Nm³/t cana | AF77: Biometano de terceiros | AG77: 0 | AH77: Nm³/t cana | AO77: Biometano de terceiros | AP77: 0 | AQ77: Nm³/t cana
C78: Biometano próprio | E78: Nm³/t cana | L78: Biometano próprio | N78: Nm³/t cana | U78: Biometano próprio | V78: 0 | W78: Nm³/t cana | AF78: Biometano próprio | AG78: 0 | AH78: Nm³/t cana | AO78: Biometano próprio | AP78: 0 | AQ78: Nm³/t cana
C79: Eletricidade da rede - mix médio | E79: kWh/t cana | L79: Eletricidade da rede - mix médio | N79: kWh/t cana | U79: Eletricidade da rede - mix médio | V79: 0 | W79: kWh/t cana | AF79: Eletricidade da rede - mix médio | AG79: 0 | AH79: kWh/t cana | AO79: Eletricidade da rede - mix médio | AP79: 0 | AQ79: kWh/t cana
C80: Eletricidade - PCH | E80: kWh/t cana | L80: Eletricidade - PCH | N80: kWh/t cana | U80: Eletricidade - PCH | V80: 0 | W80: kWh/t cana | AF80: Eletricidade - PCH | AG80: 0 | AH80: kWh/t cana | AO80: Eletricidade - PCH | AP80: 0 | AQ80: kWh/t cana
C81: Eletricidade - biomassa | E81: kWh/t cana | L81: Eletricidade - biomassa | N81: kWh/t cana | U81: Eletricidade - biomassa | V81: 0 | W81: kWh/t cana | AF81: Eletricidade - biomassa | AG81: 0 | AH81: kWh/t cana | AO81: Eletricidade - biomassa | AP81: 0 | AQ81: kWh/t cana
C82: Eletricidade - eólica | E82: kWh/t cana | L82: Eletricidade - eólica | N82: kWh/t cana | U82: Eletricidade - eólica | V82: 0 | W82: kWh/t cana | AF82: Eletricidade - eólica | AG82: 0 | AH82: kWh/t cana | AO82: Eletricidade - eólica | AP82: 0 | AQ82: kWh/t cana
C83: Eletricidade - solar | E83: kWh/t cana | L83: Eletricidade - solar | N83: kWh/t cana | U83: Eletricidade - solar | V83: 0 | W83: kWh/t cana | AF83: Eletricidade - solar | AG83: 0 | AH83: kWh/t cana | AO83: Eletricidade - solar | AP83: 0 | AQ83: kWh/t cana
B86: Fase industrial - processamento do etanol
B87: Processamento e rendimentos
C88: Quantidade de cana processada | E88: t cana
C89: Quantidade de palha própria processada (base seca) | E89: t palha
C90: Quantidade de bagaço próprio processado (base úmida) | E90: t bagaço | F90: Umidade
C91: Quantidade de bagaço de terceiros processado (base úmida) | E91: t bagaço | F91: Umidade
C92: Distância de transporte - bagaço de terceiros | E92: km
C93: Quantidade de palha de terceiros processada (base seca) | E93: t palha
C94: Distância de transporte - palha de terceiros | E94: km
C95: Rendimento Etanol Anidro | E95: L/t cana
C96: Rendimento Etanol Hidratado | E96: L/t cana
C97: Rendimento Açúcar | E97: kg/t cana
C98: Rendimento Energia Elétrica Comercializada | E98: kWh/t cana
C99: Rendimento Bagaço Comercializado (base úmida) | E99: kg/t cana | F99: Umidade
B101: Insumos industriais
C102: Enzimas | E102: kg/t cana
C103: Ácido sulfúrico | E103: kg/t cana
C104: Amônia | E104: kg/t cana
C105: Hidróxido de sódio | E105: kg/t cana
B107: Combustíveis e eletricidade
C108: Bagaço próprio
C109: Quantidade (base úmida) | E109: kg/t cana
C110: Umidade
C112: Palha própria
C113: Quantidade (base úmida) | E113: kg/t cana
C114: Umidade
C116: Bagaço de terceiros
C117: Quantidade (base úmida) | E117: kg/t cana
C118: Umidade
C119: Distância de transporte | E119: km
C121: Palha de terceiros
C122: Quantidade (base úmida) | E122: kg/t cana
C123: Umidade
C124: Distância de transporte | E124: km
C126: Cavaco de madeira
C127: Quantidade (base úmida) | E127: kg/t cana
C128: Umidade
C129: Distância de transporte | E129: km
C131: Lenha
C132: Quantidade (base úmida) | E132: kg/t cana
C133: Umidade
C134: Distância de transporte | E134: km
C136: Resíduos florestais
C137: Quantidade (base úmida) | E137: kg/t cana
C138: Umidade
C139: Distância de transporte | E139: km
C141: Óleo combustível | E141: L/t cana
C142: Etanol hidratado próprio | E142: L/t cana
C143: Etanol anidro próprio | E143: L/t cana
C144: Biogás próprio | E144: Nm³/t cana | F144: PCI do biogás | H144: MJ/Nm³
C145: Biogás de terceiros | E145: Nm³/t cana | F145: PCI do biogás | H145: MJ/Nm³
C146: Eletricidade da rede - mix médio | E146: kWh/t cana
C147: Eletricidade - PCH | E147: kWh/t cana
C148: Eletricidade - biomassa | E148: kWh/t cana
C149: Eletricidade - eólica | E149: kWh/t cana
C150: Eletricidade - solar | E150: kWh/t cana
B153: Fase de distribuição
C155: Etanol anidro
C156: Rodoviário | D156: 1
C157: Dutoviário | D157: 0 | E157: =IF((SUM(D156:D158)=1),"","A soma das porcentagens de distribuição deve ser igual a 100%!") -> 
C158: Ferroviário | D158: 0
C161: Etanol hidratado
C162: Rodoviário | D162: 1
C163: Dutoviário | D163: 0 | E163: =IF((SUM(D162:D164)=1),"","A soma das porcentagens de distribuição deve ser igual a 100%!") -> 
C164: Ferroviário | D164: 0

Sheet _E1G2G (hidden)
B2: Emissões totais - g CO₂ eq
C3: Anidro | E3: Hidratado
B4: Total | C4: =C5+C6+C7+C8 ->  | E4: =E5+E6+E7+E8 -> 
B5: Agrícola | C5: =$H$86 ->  | D5: =C5/$C$4 ->  | E5: =$I$86 ->  | F5: =E5/$E$4 -> 
B6: Industrial | C6: =($H$152-$H$97) ->  | D6: =C6/$C$4 ->  | E6: =($I$152-$I$97) ->  | F6: =E6/$E$4 -> 
B7: Transporte | C7: =$D$182 ->  | D7: =C7/$C$4 ->  | E7: =$E$182 ->  | F7: =E7/$E$4 -> 
B8: Uso | C8: ='FE''s queima combustíveis'!$I$7 -> 0.439 | D8: =C8/$C$4 ->  | E8: ='FE''s queima combustíveis'!$I$8 -> 0.663 | F8: =E8/$E$4 -> 
B11: Etapa agrícola - Cana-de-açúcar | H11: Emissões por MJ de etanol anidro | I11: Emissões por MJ de etanol hidratado
B12: Produto | D12: 1 ha médio | E12: 1 t cana
B13: Produção de cana | C13: kg | D13: =(E1G2G!V29/E1G2G!V27)*1000 ->  | E13: 1000
B14: Entradas da natureza | D14: 1 ha médio | E14: 1 t cana
B15: Ocupação total | C15: ha | D15: 1 | E15: =(D15*E13)/D13 -> 
B16: Entradas da tecnosfera | D16: 1 ha médio | E16: 1 t cana | F16: g CO2 eq/t cana | H16: g CO2 eq/MJ | I16: g CO2 eq/MJ
B17: Fertilizantes e corretivos
B18: Calcário calcítico | C18: kg | E18: =E1G2G!V39 -> 0 | F18: =E18*'Dados auxiliares'!$H$52 -> 0 | H18: =(F18/$E$91)*$F$91 ->  | I18: =(F18/$E$92)*$F$92 -> 
B19: Calcário dolomítico | C19: kg | E19: =E1G2G!V40 -> 0 | F19: =E19*'Dados auxiliares'!$H$53 -> 0
B20: Gesso | C20: kg | E20: =E1G2G!V41 -> 0 | F20: =E20*'Dados auxiliares'!$H$54 -> 0
B21: N - Ureia | C21: kg N | E21: =E1G2G!V44 -> 0 | F21: =E21*'Dados auxiliares'!$H$55 -> 0
B22: N - Fosfato monoamônico (MAP) | C22: kg N | E22: =E1G2G!V45 -> 0 | F22: =E22*'Dados auxiliares'!$H$56 -> 0
B23: P₂O₅ - Fosfato monoamônico (MAP) | C23: kg P₂O₅ | E23: =E1G2G!V46 -> 0 | F23: =E23*'Dados auxiliares'!$H$57 -> 0
B24: N - Fosfato diamônico (DAP) | C24: kg N | E24: =E1G2G!V47 -> 0 | F24: =E24*'Dados auxiliares'!$H$58 -> 0
B25: P₂O₅ - Fosfato diamônico (DAP) | C25: kg P₂O₅ | E25: =E1G2G!V48 -> 0 | F25: =E25*'Dados auxiliares'!$H$59 -> 0
B26: N - Nitrato de amônio | C26: kg N | E26: =E1G2G!V49 -> 0 | F26: =E26*'Dados auxiliares'!$H$60 -> 0
B27: N - Solução de nitrato de amônio e ureia (UAN) | C27: kg N | E27: =E1G2G!V50 -> 0 | F27: =E27*'Dados auxiliares'!$H$61 -> 0
B28: N - Amônia anidra | C28: kg N | E28: =E1G2G!V51 -> 0 | F28: =E28*'Dados auxiliares'!$H$62 -> 0
B29: N - Sulfato de amônio | C29: kg N | E29: =E1G2G!V52 -> 0 | F29: =E29*'Dados auxiliares'!$H$63 -> 0
B30: N - Nitrato de amônio e cálcio (CAN) | C30: kg N | E30: =E1G2G!V53 -> 0 | F30: =E30*'Dados auxiliares'!$H$64 -> 0
B31: P₂O₅ - Superfosfato simples (SSP) | C31: kg P₂O₅ | E31: =E1G2G!V54 -> 0 | F31: =E31*'Dados auxiliares'!$H$66 -> 0
B32: P₂O₅ - Superfosfato triplo (TSP) | C32: kg P₂O₅ | E32: =E1G2G!V55 -> 0 | F32: =E32*'Dados auxiliares'!$H$67 -> 0
B33: K₂O - Cloreto de potássio (KCl) | C33: kg K₂O | E33: =E1G2G!V56 -> 0 | F33: =E33*'Dados auxiliares'!H$68 -> 0
B34: N - Outros | C34: kg N | E34: =E1G2G!V57 -> 0 | F34: =E34*'Dados auxiliares'!H$69 -> 0
B35: P₂O₅ - Outros | C35: kg P₂O₅ | E35: =E1G2G!V58 -> 0 | F35: =E35*'Dados auxiliares'!H$70 -> 0
B36: K₂O - Outros | C36: kg K₂O | E36: =E1G2G!V59 -> 0 | F36: =E36*'Dados auxiliares'!H$71 -> 0
B37: Vinhaça | C37: L | E37: =E1G2G!V62 -> 0 | F37: 0
B38: Torta de filtro | C38: kg | E38: =E1G2G!V63 -> 0 | F38: 0
B39: Cinzas e fuligem | C39: kg | E39: =E1G2G!V64 -> 0 | F39: 0
B40: Outros Fertilizantes Orgânicos/Organominerais | C40: kg | E40: =E1G2G!V65+E1G2G!V66 -> 0 | F40: 0
B41: Agroquímicos
B42: Herbicidas e Inseticidas - Total | C42: kg | D42: =SUM(D43:D56) -> 1.083156939 | E42: =SUM(E43:E56) ->  | F42: =SUM(F43:F56) ->  | H42: =(F42/$E$91)*$F$91 ->  | I42: =(F42/$E$92)*$F$92 -> 
B43: Herbicida, Roundup Ready, como glifosato | C43: kg | D43: 0.1741182675 | E43: =D43*$E$15 ->  | F43: =E43*'Dados auxiliares'!$H$72 -> 
B44: Herbicida, Boral 500 SC, como sulfentrazone | C44: kg | D44: 0.5107680209 | E44: =D44*$E$15 ->  | F44: =E44*'Dados auxiliares'!$H$74 -> 
B45: Herbicida, Hexaron, como hexazinona | C45: kg | D45: 0.007379322488 | E45: =D45*$E$15 ->  | F45: =E45*'Dados auxiliares'!$H$74 -> 
B46: Herbicida, Combine 500 SC, como tebuthiuron | C46: kg | D46: 0.1749146701 | F46: =E46*'Dados auxiliares'!$H$74 -> 
B47: Herbicida, Goal, como oxifluorfen | C47: kg | D47: 0.004472316659 | F47: =E47*'Dados auxiliares'!$H$74 -> 
B48: Herbicida, Diuron, como diuron | C48: kg | D48: 0.009317326374 | F48: =E48*'Dados auxiliares'!$H$74 -> 
B49: Herbicida, Herburon, como diuron | C49: kg | D49: 0.04658663187 | E49: =D49*$E$15 ->  | F49: =E49*'Dados auxiliares'!$H$74 -> 
B50: Herbicida, Hexaron, como diuron | C50: kg | D50: 0.02616305246 | E50: =D50*$E$15 ->  | F50: =E50*'Dados auxiliares'!$H$74 -> 
B51: Herbicida, Herbipak, como ametrina | C51: kg | D51: 0.04658663187 | F51: =E51*'Dados auxiliares'!$H$74 -> 
B52: Herbicida, Nortox, como 2,4 D | C52: kg | D52: 0.03754882529 | F52: =E52*'Dados auxiliares'!$H$73 -> 
B53: Inseticida, Actara, como thiamethoxan | C53: kg | D53: 0.009317326374 | F53: =E53*'Dados auxiliares'!$H$74 -> 
B54: Inseticida, Mirex, como sulfluramida | C54: kg | D54: 6.98799478e-05 | F54: =E54*'Dados auxiliares'!$H$74 -> 
B55: Inseticida, Regent 800 WG, como fipronil | C55: kg | D55: 0.03405120139 | E55: =D55*$E$15 ->  | F55: =E55*'Dados auxiliares'!$H$74 -> 
B56: Inseticida, Regent 800 WG, como fipronil | C56: kg | D56: 0.001863465275 | E56: =D56*$E$15 ->  | F56: =E56*'Dados auxiliares'!$H$74 -> 
B57: Combustíveis e eletricidade
B58: Diesel B0 | C58: kg | E58: =(E1G2G!$V$69*(1-0.08)+E1G2G!$V$70*(1-0.1)+E1G2G!$V$71*(1-E1G2G!$Y$71)+E1G2G!V72*(1-0.2)+E1G2G!$V$73*(1-0.3)+E1G2G!$V$74*(1-1))*('Dados auxiliares'!$D$26) -> 0 | F58: =E58*'Dados auxiliares'!$H$116 -> 0 | H58: =(F58/$E$91)*$F$91 ->  | I58: =(F58/$E$92)*$F$92 -> 
B59: Biodiesel B100 | C59: kg | E59: =(E1G2G!$V$69*(0.08)+E1G2G!$V$70*(0.1)+E1G2G!$V$71*(E1G2G!$Y$71)+E1G2G!V73*(0.2)+E1G2G!$V$73*(0.3)+E1G2G!$V$74*(1))*('Dados auxiliares'!$D$17) -> 0 | F59: =E59*'Dados auxiliares'!$H$117 -> 0
B60: Gasolina A | C60: kg | E60: =E1G2G!V75*(1-'FE''s queima combustíveis'!$D$19)*'Dados auxiliares'!$D$24 -> 0 | F60: =E60*'Dados auxiliares'!$H$120 -> 0
B61: Etanol anidro | C61: kg | E61: =E1G2G!V75*('FE''s queima combustíveis'!$D$19)*'Dados auxiliares'!$D$15 -> 0 | F61: =E61*'Dados auxiliares'!$H$121 -> 0
B62: Etanol hidratado | C62: kg | E62: =E1G2G!V76*'Dados auxiliares'!$D$16 -> 0 | F62: =E62*'Dados auxiliares'!$H$122 -> 0
B63: Biometano de terceiros | C63: Nm³ | E63: =E1G2G!V77 -> 0 | F63: =E63*('Dados auxiliares'!$D$18*1000)*'Dados auxiliares'!$F$18*'Dados auxiliares'!$H$125 -> 0
B64: Eletricidade da rede - mix médio | C64: kWh | E64: =E1G2G!V79 -> 0 | F64: =E64*'Dados auxiliares'!$H$107 -> 0
B65: Eletricidade - PCH | C65: kWh | E65: =E1G2G!V80 -> 0 | F65: =E65*'Dados auxiliares'!$H$108 -> 0
B66: Eletricidade - biomassa | C66: kWh | E66: =E1G2G!V81 -> 0 | F66: =E66*'Dados auxiliares'!$H$109 -> 0
B67: Eletricidade - eólica | C67: kWh | E67: =E1G2G!V82 -> 0 | F67: =E67*'Dados auxiliares'!$H$110 -> 0
B68: Eletricidade - solar | C68: kWh | E68: =E1G2G!V83 -> 0 | F68: =E68*'Dados auxiliares'!$H$111 -> 0
B69: Emissões | D69: 1 ha médio | E69: 1 t cana | F69: g CO2 eq/t cana | H69: g CO2 eq/MJ | I69: g CO2 eq/MJ
B70: N2O - Fertilizantes sintéticos | C70: kg | D70: ='_Emissões Agrícolas'!$D$54 ->  | E70: =D70*$E$15 ->  | F70: =E70*1000*'Dados auxiliares'!$D$9 ->  | H70: =(F70/$E$91)*$F$91 ->  | I70: =(F70/$E$92)*$F$92 -> 
B71: N2O - Fertilizantes organominerais | C71: kg | D71: ='_Emissões Agrícolas'!$D$58 ->  | E71: =D71*$E$15 ->  | F71: =E71*1000*'Dados auxiliares'!$D$9 -> 
B72: N2O - Resíduos culturais | C72: kg | D72: ='_Emissões Agrícolas'!$D$62 ->  | E72: =D72*$E$15 ->  | F72: =E72*1000*'Dados auxiliares'!$D$9 -> 
B73: CO2 - Calcário | C73: kg | E73: =$E$18*'_Emissões Agrícolas'!$E$79+$E$19*'_Emissões Agrícolas'!$E$80 -> 0 | F73: =E73*1000 -> 0
B74: CO2 - Uréia | C74: kg | E74: =$E$21*'_Emissões Agrícolas'!$E$81 -> 0 | F74: =E74*1000 -> 0
B75: N2O - queima palha | C75: kg | D75: ='_Emissões Agrícolas'!D73 ->  | E75: =D75*$E$15 ->  | F75: =E75*1000*'Dados auxiliares'!$D$9 -> 
B76: CH4 bio - queima palha | C76: kg | D76: ='_Emissões Agrícolas'!D74 ->  | E76: =D76*$E$15 ->  | F76: =E76*1000*'Dados auxiliares'!$D$8 -> 
B77: CO₂ eq - queima do diesel | C77: kg | E77: =$E$58*'FE''s queima combustíveis'!$I$64/1000 -> 0 | F77: =E77*1000 -> 0
B78: CO₂ eq - queima do biodiesel | C78: kg | E78: =$E$59*'FE''s queima combustíveis'!$I$65/1000 -> 0 | F78: =E78*1000 -> 0
B79: CO₂ eq - queima da gasolina A | C79: kg | E79: =$E$60*'FE''s queima combustíveis'!$I$9/1000 -> 0 | F79: 0
B80: CO₂ eq - queima do etanol anidro | C80: kg | E80: =$E$61*'FE''s queima combustíveis'!$I$7/1000 -> 0 | F80: 0
B81: CO₂ eq - queima do etanol hidratado | C81: kg | E81: =$E$62*'FE''s queima combustíveis'!$I$8/1000 -> 0 | F81: 0
B82: CO₂ eq - queima do biometano | C82: kg | E82: =($E$63+E1G2G!V78)*'FE''s queima combustíveis'!$I$66/1000 -> 0 | F82: 0
B84: Emissões do processo | C84: g CO2 eq/t cana | F84: =SUM(F70:F82) ->  | H84: =(F84/$E$91)*$F$91 ->  | I84: =(F84/$E$92)*$F$92 -> 
B85: Emissões background | C85: g CO2 eq/t cana | F85: =SUM(F18:F42,F57:F68) ->  | H85: =(F85/$E$91)*$F$91 -> 
B86: Emissões totais | C86: g CO2 eq/t cana | F86: =F84+F85 ->  | H86: =(F86/$E$91)*$F$91 -> 
B89: Etapa industrial - Etanol | H89: Emissões por MJ de etanol anidro | I89: Emissões por MJ de etanol hidratado
B90: Produtos | C90: Unidade | D90: 1 TC | E90: MJ | F90: Alocação
B91: Etanol anidro | C91: kg | D91: =E1G2G!D95*'Dados auxiliares'!$D$15 -> 0 | E91: =D91*'Dados auxiliares'!$F$15 -> 0 | F91: =E91/SUM($E$91:$E$95) -> 
B92: Etanol hidratado | C92: kg | D92: =E1G2G!D96*'Dados auxiliares'!$D$16 -> 0 | E92: =D92*'Dados auxiliares'!$F$16 -> 0 | F92: =E92/SUM($E$91:$E$95) -> 
B93: Açúcar | C93: kg | D93: =E1G2G!D97 -> 0 | E93: =D93*'Dados auxiliares'!D36 -> 0 | F93: =E93/SUM($E$91:$E$95) -> 
B94: Energia elétrica comercializada | C94: kWh | D94: =E1G2G!D98 -> 0 | E94: =CONVERT(D94,"kWh","MJ") -> 0 | F94: =E94/SUM($E$91:$E$95) -> 
B95: Bagaço comercializado | C95: kg base úmida | D95: =E1G2G!D99 -> 0 | E95: - | F95: - | G95: Resíduo
B96: Entradas | C96: Unidade | D96: 1 TC | F96: g CO2 eq/t cana | H96: g CO2 eq/MJ | I96: g CO2 eq/MJ
B97: Cana-de-açúcar | C97: t | D97: 1 | F97: =D97*F86 ->  | H97: =(F97/$E$91)*$F$91 ->  | I97: =(F97/$E$92)*$F$92 -> 
B98: Bagaço próprio | C98: kg base seca | D98: =(E1G2G!$D$90*1-E1G2G!$G$90)*1000/E1G2G!$D$88 ->  | F98: 0 | H98: =(F98/$E$91)*$F$91 -> 
B99: Bagaço de terceiros | C99: kg base seca | D99: =(E1G2G!$D$91*1-E1G2G!$G$91)*1000/E1G2G!$D$88 ->  | F99: 0
B100: Transporte de bagaço de terceiros | C100: tkm | D100: =D99/1000*E1G2G!$D$92 ->  | F100: =D100*'Dados auxiliares'!$H$131 -> 
B101: Palha de própria | C101: kg base seca | D101: =E1G2G!D89*1000/E1G2G!$D$88 ->  | F101: =D101*0 -> 
B102: Palha de terceiros | C102: kg base seca | D102: =E1G2G!$D$93*1000/E1G2G!$D$88 ->  | F102: =D102*'Dados auxiliares'!$H$78 -> 
B103: Transporte de palha de terceiros | C103: tkm | D103: =D102/1000*E1G2G!$D$94 ->  | F103: =D103*'Dados auxiliares'!$H$131 -> 
B104: Água | C104: kg | D104: 2008.2 | F104: =D104*'Dados auxiliares'!$H$83 -> 17.6753177
B105: Cal (CaO) | C105: kg | D105: 0.62 | F105: =D105*'Dados auxiliares'!$H$84 -> 596.2770383
B106: Ácido sulfúrico | C106: kg | D106: 0.48 | F106: =D106*'Dados auxiliares'!$H$88 -> 52.49273266
B107: Ácido fosfórico | C107: kg | D107: 0.2 | F107: =D107*'Dados auxiliares'!$H$89 -> 302.5853906
B108: Floculante | C108: kg | D108: 0.00257 | F108: =D108*'Dados auxiliares'!$H$91 -> 5.527805281
B109: Antibióticos | C109: kg | D109: 0.00141 | F109: =D109*'Dados auxiliares'!$H$92 -> 3.032764765
B110: Óleo lubrificante | C110: kg | D110: =13/1000 -> 0.013 | F110: =D110*'Dados auxiliares'!$H$93 -> 14.70824221
B111: Zeolita | C111: kg | D111: =(D91*0.03)/67.2 -> 0 | F111: =D111*'Dados auxiliares'!$H$94 -> 0
B112: Enzimas | C112: kg | D112: =E1G2G!D102 -> 0 | F112: =D112*'Dados auxiliares'!$H$99 -> 0
B113: Ácido sulfúrico | C113: kg | D113: =E1G2G!D103 -> 0 | F113: =D113*'Dados auxiliares'!$H$88 -> 0
B114: Amônia | C114: kg | D114: =E1G2G!D104 -> 0 | F114: =D114*'Dados auxiliares'!$H$95 -> 0
B115: Hidróxido de sódio | C115: kg | D115: =E1G2G!D105 -> 0 | F115: =D115*'Dados auxiliares'!$H$97 -> 0
B116: Combustíveis e eletricidade
B117: Bagaço próprio | C117: kg base seca | D117: =E1G2G!$D$109*(1-E1G2G!$D$110) -> 0 | F117: 0 | I117: =(F117/$E$92)*$F$92 -> 
B118: Palha própria | C118: kg base seca | D118: =E1G2G!$D$113*(1-E1G2G!$D$114) -> 0 | F118: 0
B119: Bagaço de terceiros | C119: kg base seca | D119: =E1G2G!$D$117*(1-E1G2G!$D$118) -> 0 | F119: 0
B120: Transporte de bagaço de terceiros | C120: tkm | D120: =((D119/1000)*E1G2G!$D$119) -> 0 | F120: =D120*'Dados auxiliares'!$H$131 -> 0
B121: Palha de terceiros | C121: kg base seca | D121: =E1G2G!$D$122*(1-E1G2G!$D$123) -> 0 | F121: =D121*'Dados auxiliares'!$H$78 -> 0
B122: Transporte de palha de terceiros | C122: tkm | D122: =((D121/1000)*E1G2G!$D$124) -> 0 | F122: =D122*'Dados auxiliares'!$H$131 -> 0
B123: Cavaco de madeira | C123: kg base seca | D123: =E1G2G!$D$127*(1-E1G2G!$D$128) -> 0 | F123: =D123*'Dados auxiliares'!$H$123 -> 0
B124: Transporte de cavaco de madeira | C124: tkm | D124: =((D123/1000)*E1G2G!$D$129) -> 0 | F124: =D124*'Dados auxiliares'!$H$131 -> 0
B125: Lenha | C125: kg base seca | D125: =E1G2G!$D$132*(1-E1G2G!$D$133) -> 0 | F125: =D125*'Dados auxiliares'!$H$124 -> 0
B126: Transporte de lenha | C126: tkm | D126: =((D125/1000)*E1G2G!$D$134) -> 0 | F126: =D126*'Dados auxiliares'!$H$131 -> 0
B127: Resíduos florestais | C127: kg base seca | D127: =E1G2G!$D$137*(1-E1G2G!$D$138) -> 0 | F127: 0
B128: Transporte de resíduos florestais | C128: tkm | D128: =((D127/1000)*E1G2G!$D$139) -> 0 | F128: =D128*'Dados auxiliares'!$H$131 -> 0
B129: Óleo combusível | C129: kg | D129: =E1G2G!D141*'Dados auxiliares'!$D$30 -> 0 | F129: =D129*'Dados auxiliares'!$H$126 -> 0
B130: Biogás de terceiros | C130: Nm³ | D130: =E1G2G!D145 -> 0 | F130: =D130*E1G2G!G145*'Dados auxiliares'!$H$125 -> 0
B131: Eletricidade da rede - mix médio | C131: kWh | D131: =E1G2G!D146 -> 0 | F131: =D131*'Dados auxiliares'!$H$107 -> 0
B132: Eletricidade - PCH | C132: kWh | D132: =E1G2G!D147 -> 0 | F132: =D132*'Dados auxiliares'!$H$108 -> 0
B133: Eletricidade - biomassa | C133: kWh | D133: =E1G2G!D148 -> 0 | F133: =D133*'Dados auxiliares'!$H$109 -> 0
B134: Eletricidade - eólica | C134: kWh | D134: =E1G2G!D149 -> 0 | F134: =D134*'Dados auxiliares'!$H$110 -> 0
B135: Eletricidade - solar | C135: kWh | D135: =E1G2G!D150 -> 0 | F135: =D135*'Dados auxiliares'!$H$111 -> 0
B136: Emissões | C136: Unidade | D136: 1 TC | F136: g CO2 eq/t cana | H136: g CO2 eq/MJ | I136: g CO2 eq/MJ
B137: CO₂ eq - queima do bagaço próprio | C137: kg | D137: =$D$117*'FE''s queima combustíveis'!$I$36/1000 -> 0 | F137: =D137*1000 -> 0 | I137: =(F137/$E$92)*$F$92 -> 
B138: CO₂ eq - queima da palha própria | C138: kg | D138: =$D$118*'FE''s queima combustíveis'!$I$37/1000 -> 0 | F138: =D138*1000 -> 0
B139: CO₂ eq - queima do bagaço de terceiros | C139: kg | D139: =$D$119*'FE''s queima combustíveis'!$I$36/1000 -> 0 | F139: 0
B140: CO₂ eq - queima da palha de terceiros | C140: kg | D140: =$D$121*'FE''s queima combustíveis'!$I$37/1000 -> 0 | F140: 0
B141: CO₂ eq - queima dos cavacos de madeira | C141: kg | D141: =$D$123*'FE''s queima combustíveis'!$I$38/1000 -> 0 | F141: 0
B142: CO₂ eq - queima da lenha | C142: kg | D142: =$D$125*'FE''s queima combustíveis'!$I$39/1000 -> 0 | F142: 0
B143: CO₂ eq - queima dos resíduos florestais | C143: kg | D143: =$D$127*'FE''s queima combustíveis'!$I$40/1000 -> 0 | F143: 0
B144: CO₂ eq - queima do óleo combustível | C144: kg | D144: =D129*'FE''s queima combustíveis'!$I$53/1000 -> 0 | F144: 0
B145: CO₂ eq - queima do etanol hidratado próprio | C145: kg | D145: =E1G2G!D142*'Dados auxiliares'!$D$16*'FE''s queima combustíveis'!$I$57/1000 -> 0 | F145: 0
B146: CO₂ eq - queima do etanol anidro próprio | C146: kg | D146: =E1G2G!D143*'Dados auxiliares'!$D$15*'FE''s queima combustíveis'!$I$55/1000 -> 0 | F146: 0
B147: CO₂ eq - queima do biogás próprio | C147: kg | D147: =E1G2G!D144*E1G2G!G144*'FE''s queima combustíveis'!$I$41/1000 -> 0 | F147: 0
B148: CO₂ eq - queima do biogás de terceiros | C148: kg | D148: =E1G2G!D145*E1G2G!G145*'FE''s queima combustíveis'!$I$41/1000 -> 0 | F148: 0
B150: Emissões do processo | C150: g CO2 eq/t cana | F150: =SUM(F137:F148) -> 0 | H150: =(F150/$E$91)*$F$91 ->  | I150: =(F150/$E$92)*$F$92 -> 
B151: Emissões background | C151: g CO2 eq/t cana | F151: =SUM(F97:F135) ->  | H151: =(F151/$E$91)*$F$91 -> 
B152: Emissões totais | C152: g CO2 eq/t cana | F152: =F150+F151 -> 
B155: Etapa distribuição
B156: Sistema logístico rodoviário
B157: Parâmetro | C157: Unidade | D157: Etanol anidro | E157: Etanol hidratado
B158: Massa | C158: kg/t cana | D158: =$D$91*E1G2G!$D$156 -> 0 | E158: =$D$92*E1G2G!$D$162 -> 0
B159: Distância de transporte rodoviário | C159: km | D159: ='Dados auxiliares'!C154 -> 700 | E159: ='Dados auxiliares'!C154 -> 700
B160: Transporte rodoviário | C160: tkm/t cana | D160: =D158/1000*D159 -> 0 | E160: =E158/1000*E159 -> 0
B161: Emissões | C161: g CO2 eq/t cana | D161: =D160*'Dados auxiliares'!$H$132 -> 0 | E161: =E160*'Dados auxiliares'!$H$132 -> 0
B162: Emissões | C162: g CO2 eq/MJ | D162: =D161/$E$91 ->  | E162: =E161/$E$92 -> 
B163: Sistema logístico dutoviário
B164: Parâmetro | C164: Unidade | D164: Etanol anidro | E164: Etanol hidratado
B165: Massa | C165: kg/t cana | D165: =$D$91*E1G2G!$D$157 -> 0 | E165: =$D$92*E1G2G!$D$163 -> 0
B166: Distância de transporte rodoviário | C166: km | D166: ='Dados auxiliares'!E154 -> 200 | E166: ='Dados auxiliares'!E154 -> 200
B167: Transporte rodoviário | C167: tkm/t cana | D167: =D165/1000*D166 -> 0 | E167: =E165/1000*E166 -> 0
B168: Distância de transporte dutoviário | C168: km | D168: ='Dados auxiliares'!D154 -> 500 | E168: ='Dados auxiliares'!D154 -> 500
B169: Transporte dutoviário | C169: tkm/t cana | D169: =D165/1000*D168 -> 0 | E169: =E165/1000*E168 -> 0
B170: Emissões | C170: g CO2 eq/t cana | D170: =D167*'Dados auxiliares'!$H$132+D169*'Dados auxiliares'!$H$136 -> 0 | E170: =E167*'Dados auxiliares'!$H$132+E169*'Dados auxiliares'!$H$136 -> 0
B171: Emissões | C171: g CO2 eq/MJ | D171: =D170/$E$91 ->  | E171: =E170/$E$92 -> 
B172: Sistema logístico ferroviário
B173: Parâmetro | C173: Unidade | D173: Etanol anidro | E173: Etanol hidratado
B174: Massa | C174: kg/t cana | D174: =$D$91*E1G2G!$D$158 -> 0 | E174: =$D$92*E1G2G!$D$164 -> 0
B175: Distância de transporte rodoviário | C175: km | D175: ='Dados auxiliares'!G154 -> 400 | E175: ='Dados auxiliares'!G154 -> 400
B176: Transporte rodoviário | C176: tkm/t cana | D176: =D174/1000*D175 -> 0 | E176: =E174/1000*E175 -> 0
B177: Distância de transporte ferroviário | C177: km | D177: ='Dados auxiliares'!F154 -> 300 | E177: ='Dados auxiliares'!F154 -> 300
B178: Transporte ferroviário | C178: tkm/t cana | D178: =D174/1000*D177 -> 0 | E178: =E174/1000*E177 -> 0
B179: Emissões | C179: g CO2 eq/t cana | D179: =D176*'Dados auxiliares'!$H$132+D178*'Dados auxiliares'!$H$135 -> 0 | E179: =E176*'Dados auxiliares'!$H$132+E178*'Dados auxiliares'!$H$135 -> 0
B180: Emissões | C180: g CO2 eq/MJ | D180: =D179/$E$91 ->  | E180: =E179/$E$92 -> 
B182: Emissões totais | C182: g CO2 eq/MJ | D182: =D162+D171+D180 ->  | E182: =E162+E171+E180 -> 

Sheet E2G
B2: Etanol combustível de segunda geração
B4: Nome da Usina: | C4: Usina Hipotética
B6: CNPJ | C6: 00.000.000/0000-00
B8: Responsável pelo preenchimento:
B10: Telefone : | C10: (00) 0000-0000
C13: Etanol Anidro
B15: Intensidade de Carbono (g CO₂eq/MJ) | C15: =SUM(C17:C20) -> 0.439 | D15: Nota de Eficiência Energético-Ambiental (g CO₂eq/MJ) | G15: =G18-C15 -> 86.961
G17: Fóssil substituto: Gasolina
B18: industrial | C18: =IFERROR(IF(C13="Etanol Anidro",_E2G!C5,IF(C13="Etanol Hidratado",_E2G!E5,"")),0) -> 0 | G18: ='Dados auxiliares'!F166 -> 87.4
B19: transporte | C19: =IFERROR(IF(C13="Etanol Anidro",_E2G!C6,IF(C13="Etanol Hidratado",_E2G!E6,"")),0) -> 0 | G19: Redução de emissões
B20: uso | C20: =IFERROR(IF(C13="Etanol Anidro",_E2G!C7,IF(C13="Etanol Hidratado",_E2G!E7,"")),0) -> 0.439 | G20: =(G18-C15)/G18 -> 0.9949771167
B24: Fase industrial - processamento do etanol
B25: Processamento e rendimentos
C26: Quantidade de bagaço de terceiros processada (base úmida) | D26: 1 | E26: t bagaço | F26: Umidade | G26: 0.5
C27: Distância de transporte | D27: 1 | E27: km
C28: Quantidade de palha de terceiros processada (base seca) | D28: 1 | E28: t palha
C29: Distância de transporte | D29: 1 | E29: km
C31: Quantidade de material lignocelulósico (MLC) processado (base seca) | E31: t MLC | F31: Não deve ser preenchido. Cálculo automático
C33: Rendimento Etanol Anidro | E33: L/t MLC
C34: Rendimento Etanol Hidratado | E34: L/t MLC
C35: Rendimento Energia Elétrica Comercializada | E35: kWh/t MLC
B37: Insumos industriais
C38: Enzimas | E38: kg/t MLC
C39: Ácido sulfúrico | E39: kg/t MLC
C40: Amônia | E40: kg/t MLC
C41: Hidróxido de sódio | E41: kg/t MLC
B43: Combustíveis e eletricidade
C45: Bagaço de terceiros
C46: Quantidade (base úmida) | E46: kg/t MLC
C47: Umidade
C48: Distância de transporte | E48: km
C50: Palha de terceiros
C51: Quantidade (base úmida) | E51: kg/t MLC
C52: Umidade
C53: Distância de transporte | E53: km
C55: Cavaco de madeira
C56: Quantidade (base úmida) | E56: kg/t MLC
C57: Umidade
C58: Distância de transporte | E58: km
C60: Lenha
C61: Quantidade (base úmida) | E61: kg/t MLC
C62: Umidade
C63: Distância de transporte | E63: km
C65: Resíduos florestais
C66: Quantidade (base úmida) | E66: kg/t MLC
C67: Umidade
C68: Distância de transporte | E68: km
C70: Óleo combustível | E70: L/t MLC
C71: Etanol hidratado próprio | E71: L/t MLC
C72: Etanol anidro próprio | E72: L/t MLC
C73: Biogás próprio | E73: Nm³/t MLC | F73: PCI do biogás | H73: MJ/Nm³
C74: Biogás de terceiros | E74: Nm³/t MLC | F74: PCI do biogás | H74: MJ/Nm³
C75: Eletricidade da rede - mix médio | E75: kWh/t MLC
C76: Eletricidade - PCH | E76: kWh/t MLC
C77: Eletricidade - biomassa | E77: kWh/t MLC
C78: Eletricidade - eólica | E78: kWh/t MLC
C79: Eletricidade - solar | E79: kWh/t MLC
B82: Fase de distribuição
C84: Etanol anidro
C85: Rodoviário | D85: 1
C86: Dutoviário | D86: 0 | E86: =IF((SUM(D85:D87)=1),"","A soma das porcentagens de distribuição deve ser igual a 100%!") -> 
C87: Ferroviário | D87: 0
C90: Etanol hidratado
C91: Rodoviário | D91: 1
C92: Dutoviário | D92: 0 | E92: =IF((SUM(D91:D93)=1),"","A soma das porcentagens de distribuição deve ser igual a 100%!") -> 
C93: Ferroviário | D93: 0

Sheet _E2G (hidden)
B2: Emissões totais - g CO₂ eq
C3: Anidro | E3: Hidratado
B4: Total | C4: =C5+C6+C7 ->  | E4: =E5+E6+E7 -> 
B5: Industrial | C5: =($H$63-$H$17) ->  | D5: =C5/$C$4 ->  | E5: =($I$63-$I$17) ->  | F5: =E5/$E$4 -> 
B6: Transporte | C6: =$D$93 ->  | D6: =C6/$C$4 ->  | E6: =$E$93 ->  | F6: =E6/$E$4 -> 
B7: Uso | C7: ='FE''s queima combustíveis'!$I$7 -> 0.439 | D7: =C7/$C$4 ->  | E7: ='FE''s queima combustíveis'!$I$8 -> 0.663 | F7: =E7/$E$4 -> 
B11: Etapa industrial - Etanol | H11: Emissões por MJ de etanol anidro | I11: Emissões por MJ de etanol hidratado
B12: Produtos | C12: Unidade | D12: 1 MLC | E12: MJ | F12: Alocação
B13: Etanol anidro | C13: kg | D13: =E2G!D33*'Dados auxiliares'!$D$15 -> 0 | E13: =D13*'Dados auxiliares'!$F$15 -> 0 | F13: =E13/SUM($E$13:$E$15) -> 
B14: Etanol hidratado | C14: kg | D14: =E2G!D34*'Dados auxiliares'!$D$16 -> 0 | E14: =D14*'Dados auxiliares'!$F$16 -> 0 | F14: =E14/SUM($E$13:$E$15) -> 
B15: Energia elétrica comercializada | C15: kWh | D15: =E2G!D35 -> 0 | E15: =CONVERT(D15,"kWh","MJ") -> 0 | F15: =E15/SUM($E$13:$E$15) -> 
B16: Entradas | C16: Unidade | D16: 1 MLC | F16: g CO2 eq/t MLC | H16: g CO2 eq/MJ | I16: g CO2 eq/MJ
B17: MLC | C17: t | D17: 1 | F17: 0 | H17: =(F17/$E$13)*$F$13 ->  | I17: =(F17/$E$14)*$F$14 -> 
B18: Bagaço de terceiros | C18: kg base seca | D18: =(E2G!$D$26*1-E2G!$G$26)*1000/E2G!$D$31 ->  | F18: 0 | H18: =(F18/$E$13)*$F$13 ->  | I18: =(F18/$E$14)*$F$14 -> 
B19: Transporte de bagaço de terceiros | C19: tkm | D19: =D18/1000*E2G!$D$27 ->  | F19: =D19*'Dados auxiliares'!$H$131 -> 
B20: Palha de terceiros | C20: kg base seca | D20: =E2G!$D$28*1000/E2G!$D$31 ->  | F20: =D20*'Dados auxiliares'!$H$78 -> 
B21: Transporte de palha de terceiros | C21: tkm | D21: =D20/1000*E2G!$D$29 ->  | F21: =D21*'Dados auxiliares'!$H$131 -> 
B22: Água | C22: kg | D22: 4311.688592 | F22: =D22*'Dados auxiliares'!$H$83 -> 37.94963931
B23: Ácido sulfúrico | C23: kg | D23: 0.6190831476 | F23: =D23*'Dados auxiliares'!$H$88 -> 67.70284617
B24: Amônia | C24: kg | D24: 3.797710973 | F24: =D24*'Dados auxiliares'!$H$95 -> 11618.48018 | H24: =(F24/$E$13)*$F$13 -> 
B25: Antibióticos | C25: kg | D25: 0.002819947985 | F25: =D25*'Dados auxiliares'!$H$92 -> 6.06541765 | H25: =(F25/$E$13)*$F$13 -> 
B26: Zeolita | C26: kg | D26: =(0.4464/1000)*D13 -> 0 | F26: =D26*'Dados auxiliares'!$H$94 -> 0
B27: Enzimas | C27: kg | D27: =E2G!D38 -> 0 | F27: =D27*'Dados auxiliares'!$H$99 -> 0
B28: Ácido sulfúrico | C28: kg | D28: =E2G!D39 -> 0 | F28: =D28*'Dados auxiliares'!$H$88 -> 0
B29: Amônia | C29: kg | D29: =E2G!D40 -> 0 | F29: =D29*'Dados auxiliares'!$H$95 -> 0
B30: Hidróxido de sódio | C30: kg | D30: =E2G!D41 -> 0 | F30: =D30*'Dados auxiliares'!$H$97 -> 0
B31: Combustíveis e eletricidade
B32: Bagaço de terceiros | C32: kg base seca | D32: =E2G!$D$46*(1-E2G!$D$47) -> 0 | F32: 0 | H32: =(F32/$E$13)*$F$13 -> 
B33: Transporte de bagaço de terceiros | C33: tkm | D33: =((D32/1000)*E2G!$D$48) -> 0 | F33: =D33*'Dados auxiliares'!$H$131 -> 0
B34: Palha de terceiros | C34: kg base seca | D34: =E2G!$D$51*(1-E2G!$D$52) -> 0 | F34: =D34*'Dados auxiliares'!$H$78 -> 0
B35: Transporte de palha de terceiros | C35: tkm | D35: =((D34/1000)*E2G!$D$53) -> 0 | F35: =D35*'Dados auxiliares'!$H$131 -> 0
B36: Cavaco de madeira | C36: kg base seca | D36: =E2G!$D$56*(1-E2G!$D$57) -> 0 | F36: =D36*'Dados auxiliares'!$H$123 -> 0
B37: Transporte de cavaco de madeira | C37: tkm | D37: =((D36/1000)*E2G!$D$58) -> 0 | F37: =D37*'Dados auxiliares'!$H$131 -> 0
B38: Lenha | C38: kg base seca | D38: =E2G!$D$61*(1-E2G!$D$62) -> 0 | F38: =D38*'Dados auxiliares'!$H$124 -> 0
B39: Transporte de lenha | C39: tkm | D39: =((D38/1000)*E2G!$D$63) -> 0 | F39: =D39*'Dados auxiliares'!$H$131 -> 0
B40: Resíduos florestais | C40: kg base seca | D40: =E2G!$D$66*(1-E2G!$D$67) -> 0 | F40: 0
B41: Transporte de resíduos florestais | C41: tkm | D41: =((D40/1000)*E2G!$D$68) -> 0 | F41: =D41*'Dados auxiliares'!$H$131 -> 0 | H41: =(F41/$E$13)*$F$13 -> 
B42: Óleo combusível | C42: kg | D42: =E2G!D70*'Dados auxiliares'!$D$30 -> 0 | F42: =D42*'Dados auxiliares'!$H$126 -> 0 | H42: =(F42/$E$13)*$F$13 ->  | I42: =(F42/$E$14)*$F$14 -> 
B43: Biogás de terceiros | C43: Nm³ | D43: =E2G!D74 -> 0 | F43: =D43*E2G!G74*'Dados auxiliares'!$H$125 -> 0 | H43: =(F43/$E$13)*$F$13 ->  | I43: =(F43/$E$14)*$F$14 -> 
B44: Eletricidade da rede - mix médio | C44: kWh | D44: =E2G!D75 -> 0 | F44: =D44*'Dados auxiliares'!$H$107 -> 0
B45: Eletricidade - PCH | C45: kWh | D45: =E2G!D76 -> 0 | F45: =D45*'Dados auxiliares'!$H$108 -> 0
B46: Eletricidade - biomassa | C46: kWh | D46: =E2G!D77 -> 0 | F46: =D46*'Dados auxiliares'!$H$109 -> 0
B47: Eletricidade - eólica | C47: kWh | D47: =E2G!D78 -> 0 | F47: =D47*'Dados auxiliares'!$H$110 -> 0
B48: Eletricidade - solar | C48: kWh | D48: =E2G!D79 -> 0 | F48: =D48*'Dados auxiliares'!$H$111 -> 0
B49: Emissões | C49: Unidade | D49: 1 MLC | F49: g CO2 eq/t cana | H49: g CO2 eq/MJ | I49: g CO2 eq/MJ
B50: CO₂ eq - queima do bagaço de terceiros | C50: kg | D50: =$D$32*'FE''s queima combustíveis'!$I$36/1000 -> 0 | F50: =D50*1000 -> 0 | H50: =(F50/$E$13)*$F$13 -> 
B51: CO₂ eq - queima da palha de terceiros | C51: kg | D51: =$D$34*'FE''s queima combustíveis'!$I$37/1000 -> 0 | F51: 0 | H51: =(F51/$E$13)*$F$13 -> 
B52: CO₂ eq - queima dos cavacos de madeira | C52: kg | D52: =$D$36*'FE''s queima combustíveis'!$I$38/1000 -> 0 | F52: 0 | H52: =(F52/$E$13)*$F$13 -> 
B53: CO₂ eq - queima da lenha | C53: kg | D53: =$D$38*'FE''s queima combustíveis'!$I$39/1000 -> 0 | F53: 0 | H53: =(F53/$E$13)*$F$13 -> 
B54: CO₂ eq - queima dos resíduos florestais | C54: kg | D54: =$D$40*'FE''s queima combustíveis'!$I$40/1000 -> 0 | F54: 0 | H54: =(F54/$E$13)*$F$13 -> 
B55: CO₂ eq - queima do óleo combustível | C55: kg | D55: =D42*'FE''s queima combustíveis'!$I$53/1000 -> 0 | F55: 0 | H55: =(F55/$E$13)*$F$13 ->  | I55: =(F55/$E$14)*$F$14 -> 
B56: CO₂ eq - queima do etanol hidratado próprio | C56: kg | D56: =E2G!D71*'Dados auxiliares'!$D$16*'FE''s queima combustíveis'!$I$57/1000 -> 0 | F56: 0
B57: CO₂ eq - queima do etanol anidro próprio | C57: kg | D57: =E2G!D72*'Dados auxiliares'!$D$15*'FE''s queima combustíveis'!$I$55/1000 -> 0 | F57: 0
B58: CO₂ eq - queima do biogás próprio | C58: kg | D58: =E2G!D73*E2G!G73*'FE''s queima combustíveis'!$I$41/1000 -> 0 | F58: 0
B59: CO₂ eq - queima do biogás de terceiros | C59: kg | D59: =E2G!D74*E2G!G74*'FE''s queima combustíveis'!$I$41/1000 -> 0 | F59: =D59*1000 -> 0
B61: Emissões do processo | C61: g CO2 eq/t MLC | F61: =SUM(F50:F59) -> 0 | H61: =(F61/$E$13)*$F$13 -> 
B62: Emissões background | C62: g CO2 eq/t MLC | F62: =SUM(F17:F48) ->  | H62: =(F62/$E$13)*$F$13 -> 
B63: Emissões totais | C63: g CO2 eq/t MLC | F63: =F61+F62 ->  | H63: =(F63/$E$13)*$F$13 -> 
B66: Etapa distribuição
B67: Sistema logístico rodoviário
B68: Parâmetro | C68: Unidade | D68: Etanol anidro | E68: Etanol hidratado
B69: Massa | C69: kg/t MLC | D69: =$D$13*E2G!$D$85 -> 0 | E69: =$D$14*E2G!$D$91 -> 0
B70: Distância de transporte rodoviário | C70: km | D70: ='Dados auxiliares'!C155 -> 700 | E70: ='Dados auxiliares'!C155 -> 700
B71: Transporte rodoviário | C71: tkm/t MLC | D71: =D69/1000*D70 -> 0 | E71: =E69/1000*E70 -> 0
B72: Emissões | C72: g CO2 eq/t MLC | D72: =D71*'Dados auxiliares'!$H$132 -> 0 | E72: =E71*'Dados auxiliares'!$H$132 -> 0
B73: Emissões | C73: g CO2 eq/MJ | D73: =D72/$E$13 ->  | E73: =E72/$E$14 -> 
B74: Sistema logístico dutoviário
B75: Parâmetro | C75: Unidade | D75: Etanol anidro | E75: Etanol hidratado
B76: Massa | C76: kg/t MLC | D76: =$D$13*E2G!$D$86 -> 0 | E76: =$D$14*E2G!$D$92 -> 0
B77: Distância de transporte rodoviário | C77: km | D77: ='Dados auxiliares'!E155 -> 200 | E77: ='Dados auxiliares'!E155 -> 200
B78: Transporte rodoviário | C78: tkm/t MLC | D78: =D76/1000*D77 -> 0 | E78: =E76/1000*E77 -> 0
B79: Distância de transporte dutoviário | C79: km | D79: ='Dados auxiliares'!D155 -> 500 | E79: ='Dados auxiliares'!D155 -> 500
B80: Transporte dutoviário | C80: tkm/t MLC | D80: =D76/1000*D79 -> 0 | E80: =E76/1000*E79 -> 0
B81: Emissões | C81: g CO2 eq/t MLC | D81: =D78*'Dados auxiliares'!$H$132+D80*'Dados auxiliares'!$H$136 -> 0 | E81: =E78*'Dados auxiliares'!$H$132+E80*'Dados auxiliares'!$H$136 -> 0
B82: Emissões | C82: g CO2 eq/MJ | D82: =D81/$E$13 ->  | E82: =E81/$E$14 -> 
B83: Sistema logístico ferroviário
B84: Parâmetro | C84: Unidade | D84: Etanol anidro | E84: Etanol hidratado
B85: Massa | C85: kg/t MLC | D85: =$D$13*E2G!$D$87 -> 0 | E85: =$D$14*E2G!$D$93 -> 0
B86: Distância de transporte rodoviário | C86: km | D86: ='Dados auxiliares'!G155 -> 400 | E86: ='Dados auxiliares'!G155 -> 400
B87: Transporte rodoviário | C87: tkm/t MLC | D87: =D85/1000*D86 -> 0 | E87: =E85/1000*E86 -> 0
B88: Distância de transporte ferroviário | C88: km | D88: ='Dados auxiliares'!F155 -> 300 | E88: ='Dados auxiliares'!F155 -> 300
B89: Transporte ferroviário | C89: tkm/t MLC | D89: =D85/1000*D88 -> 0 | E89: =E85/1000*E88 -> 0
B90: Emissões | C90: g CO2 eq/t MLC | D90: =D87*'Dados auxiliares'!$H$132+D89*'Dados auxiliares'!$H$135 -> 0 | E90: =E87*'Dados auxiliares'!$H$132+E89*'Dados auxiliares'!$H$135 -> 0
B91: Emissões | C91: g CO2 eq/MJ | D91: =D90/$E$13 ->  | E91: =E90/$E$14 -> 
B93: Emissões totais | C93: g CO2 eq/MJ | D93: =D73+D82+D91 ->  | E93: =E73+E82+E91 -> 

Sheet E1G Flex
B2: Etanol combustível de primeira geração produzido a partir de cana-de-açúcar e milho em usina integrada
B4: Nome da Usina: | C4: Usina Hipotetica
B6: CNPJ | C6: 00.000.000/0000-00
B8: Responsável pelo preenchimento:
B10: Telefone : | C10: (00) 0000-0000
C13: Etanol Anidro
B15: Intensidade de Carbono (g CO₂eq/MJ) | C15: =SUM(C17:C21) -> 0.439 | D15: Nota de Eficiência Energético-Ambiental (g CO₂eq/MJ) | G15: =G18-C15 -> 86.961
B17: agrícola - cana-de-açúcar | C17: =IFERROR(IF($C$13="Etanol Anidro",'_E1G Flex'!C5,IF($C$13="Etanol Hidratado",'_E1G Flex'!E5,"")),0) -> 0 | G17: Fóssil substituto: Gasolina
B18: agrícola - milho | C18: =IFERROR(IF($C$13="Etanol Anidro",'_E1G Flex'!C6,IF($C$13="Etanol Hidratado",'_E1G Flex'!E6,"")),0) -> 0 | G18: ='Dados auxiliares'!F166 -> 87.4
B19: industrial | C19: =IFERROR(IF($C$13="Etanol Anidro",'_E1G Flex'!C7,IF($C$13="Etanol Hidratado",'_E1G Flex'!E7,"")),0) -> 0 | G19: Redução de emissões
B20: transporte | C20: =IFERROR(IF($C$13="Etanol Anidro",'_E1G Flex'!C8,IF($C$13="Etanol Hidratado",'_E1G Flex'!E8,"")),0) -> 0 | G20: =(G18-C15)/G18 -> 0.9949771167
B21: uso | C21: =IFERROR(IF($C$13="Etanol Anidro",'_E1G Flex'!C9,IF($C$13="Etanol Hidratado",'_E1G Flex'!E9,"")),0) -> 0.439
B24: Fase agrícola - Produtores de Cana-de-açúcar - Dados Consolidados | K24: Fornecedores de cana-de-açúcar- Dados consolidados | T24: Média ponderada - RenovaCalc | AE24: Default - Cana | AN24: Guarda dados de preenchimento
B25: Informações gerais | K25: Informações gerais | T25: Informações gerais | AE25: Informações gerais | AN25: Informações gerais
C27: Sistema de plantio | D27: Convencional | L27: Sistema de plantio | M27: Convencional | U27: Sistema de plantio | V27: =D27 -> Convencional
C28: Área total | E28: ha | L28: Área total | N28: ha | U28: Área total | V28: =D28 -> 0 | W28: ha
C30: Produção total colhida para moagem | E30: t cana | L30: Produção total colhida para moagem | N30: t cana | U30: Produção total colhida para moagem | V30: =D30 -> 0 | W30: t cana
C31: Quantidade comprada pela unidade produtora de biocombustível | E31: t cana
C32: Teor de impurezas vegetais (base úmida) | E32: kg/t cana | F32: Umidade | L32: Teor de impurezas vegetais (base úmida) | N32: kg/t cana | O32: Umidade | P32: 0.5 | U32: Teor de impurezas vegetais (base úmida) | V32: =D32 -> 0 | W32: kg/t cana | X32: Umidade | Y32: =G32 -> 0
C33: Teor de impurezas minerais | E33: kg/t cana | L33: Teor de impurezas minerais | N33: kg/t cana | U33: Teor de impurezas minerais | V33: =D33 -> 0 | W33: kg/t cana
C34: Palha recolhida (base seca) | E34: t palha | L34: Palha recolhida (base seca) | N34: t palha | U34: Palha recolhida (base seca) | V34: =D34 -> 0 | W34: t palha
B37: Área Queimada | K37: Área Queimada | T37: Área Queimada | AE37: Área Queimada | AN37: Área Queimada
C38: Área queimada | E38: ha | L38: Área queimada | N38: ha | U38: Área queimada | V38: =D38 -> 0 | W38: ha | AF38: Área queimada | AG38: 1 | AH38: % da área total | AO38: Área queimada | AQ38: % da área total
B40: Corretivos | K40: Corretivos | T40: Corretivos | AE40: Corretivos | AN40: Corretivos
C41: Calcário calcítico | E41: kg/t cana | L41: Calcário calcítico | N41: kg/t cana | U41: Calcário calcítico | V41: =D41 -> 0 | W41: kg/t cana | AF41: Calcário calcítico | AG41: 0 | AH41: kg/t cana | AO41: Calcário calcítico | AQ41: kg/t cana
C42: Calcário dolomítico | E42: kg/t cana | L42: Calcário dolomítico | N42: kg/t cana | U42: Calcário dolomítico | V42: =D42 -> 0 | W42: kg/t cana | AF42: Calcário dolomítico | AG42: 12 | AH42: kg/t cana | AO42: Calcário dolomítico | AQ42: kg/t cana
C43: Gesso | E43: kg/t cana | L43: Gesso | N43: kg/t cana | U43: Gesso | V43: =D43 -> 0 | W43: kg/t cana | AF43: Gesso | AG43: 5 | AH43: kg/t cana | AO43: Gesso | AQ43: kg/t cana
B45: Fertilizantes Sintéticos | K45: Fertilizantes Sintéticos | T45: Fertilizantes Sintéticos | AE45: Fertilizantes Sintéticos | AN45: Fertilizantes Sintéticos
C46: Ureia | E46: kg N/t cana | L46: Ureia | N46: kg N/t cana | U46: Ureia | V46: =D46 -> 0 | W46: kg N/t cana | AF46: Ureia | AG46: 2 | AH46: kg N/t cana | AO46: Ureia | AQ46: kg N/t cana
C47: Fosfato monoamônico (MAP) | E47: kg N/t cana | L47: Fosfato monoamônico (MAP) | N47: kg N/t cana | U47: Fosfato monoamônico (MAP) | V47: 0 | W47: kg N/t cana | AF47: Fosfato monoamônico (MAP) | AG47: 0 | AH47: kg N/t cana | AO47: Fosfato monoamônico (MAP) | AQ47: kg N/t cana
C48: Fosfato monoamônico (MAP) | E48: kg P₂O₅/t cana | L48: Fosfato monoamônico (MAP) | N48: kg P₂O₅/t cana | U48: Fosfato monoamônico (MAP) | V48: 0 | W48: kg P₂O₅/t cana | AF48: Fosfato monoamônico (MAP) | AG48: 0 | AH48: kg P₂O₅/t cana | AO48: Fosfato monoamônico (MAP) | AQ48: kg P₂O₅/t cana
C49: Fosfato diamônico (DAP) | E49: kg N/t cana | L49: Fosfato diamônico (DAP) | N49: kg N/t cana | U49: Fosfato diamônico (DAP) | V49: 0 | W49: kg N/t cana | AF49: Fosfato diamônico (DAP) | AG49: 0 | AH49: kg N/t cana | AO49: Fosfato diamônico (DAP) | AQ49: kg N/t cana
C50: Fosfato diamônico (DAP) | E50: kg P₂O₅/t cana | L50: Fosfato diamônico (DAP) | N50: kg P₂O₅/t cana | U50: Fosfato diamônico (DAP) | V50: 0 | W50: kg P₂O₅/t cana | AF50: Fosfato diamônico (DAP) | AG50: 0 | AH50: kg P₂O₅/t cana | AO50: Fosfato diamônico (DAP) | AQ50: kg P₂O₅/t cana
C51: Nitrato de amônio | E51: kg N/t cana | L51: Nitrato de amônio | N51: kg N/t cana | U51: Nitrato de amônio | V51: 0 | W51: kg N/t cana | AF51: Nitrato de amônio | AG51: 0 | AH51: kg N/t cana | AO51: Nitrato de amônio | AQ51: kg N/t cana
C52: Solução de nitrato de amônio e ureia (UAN) | E52: kg N/t cana | L52: Solução de nitrato de amônio e ureia (UAN) | N52: kg N/t cana | U52: Solução de nitrato de amônio e ureia (UAN) | V52: 0 | W52: kg N/t cana | AF52: Solução de nitrato de amônio e ureia (UAN) | AG52: 0 | AH52: kg N/t cana | AO52: Solução de nitrato de amônio e ureia (UAN) | AQ52: kg N/t cana
C53: Amônia anidra | E53: kg N/t cana | L53: Amônia anidra | N53: kg N/t cana | U53: Amônia anidra | V53: 0 | W53: kg N/t cana | AF53: Amônia anidra | AG53: 0 | AH53: kg N/t cana | AO53: Amônia anidra | AQ53: kg N/t cana
C54: Sulfato de amônio | E54: kg N/t cana | L54: Sulfato de amônio | N54: kg N/t cana | U54: Sulfato de amônio | V54: 0 | W54: kg N/t cana | AF54: Sulfato de amônio | AG54: 0 | AH54: kg N/t cana | AO54: Sulfato de amônio | AQ54: kg N/t cana
C55: Nitrato de amônio e cálcio (CAN) | E55: kg N/t cana | L55: Nitrato de amônio e cálcio (CAN) | N55: kg N/t cana | U55: Nitrato de amônio e cálcio (CAN) | V55: 0 | W55: kg N/t cana | AF55: Nitrato de amônio e cálcio (CAN) | AG55: 0 | AH55: kg N/t cana | AO55: Nitrato de amônio e cálcio (CAN) | AQ55: kg N/t cana
C56: Superfosfato simples (SSP) | E56: kg P₂O₅/t cana | L56: Superfosfato simples (SSP) | N56: kg P₂O₅/t cana | U56: Superfosfato simples (SSP) | V56: 0 | W56: kg P₂O₅/t cana | AF56: Superfosfato simples (SSP) | AG56: 1 | AH56: kg P₂O₅/t cana | AO56: Superfosfato simples (SSP) | AQ56: kg P₂O₅/t cana
C57: Superfosfato triplo (TSP) | E57: kg P₂O₅/t cana | L57: Superfosfato triplo (TSP) | N57: kg P₂O₅/t cana | U57: Superfosfato triplo (TSP) | V57: 0 | W57: kg P₂O₅/t cana | AF57: Superfosfato triplo (TSP) | AG57: 0 | AH57: kg P₂O₅/t cana | AO57: Superfosfato triplo (TSP) | AQ57: kg P₂O₅/t cana
C58: Cloreto de potássio (KCl) | E58: kg K₂O/t cana | L58: Cloreto de potássio (KCl) | N58: kg K₂O/t cana | U58: Cloreto de potássio (KCl) | V58: 0 | W58: kg K₂O/t cana | AF58: Cloreto de potássio (KCl) | AG58: 2 | AH58: kg K₂O/t cana | AO58: Cloreto de potássio (KCl) | AQ58: kg K₂O/t cana
B59: Outros | C59: especificar | E59: kg N/t cana | K59: Outros | L59: especificar | N59: kg N/t cana | T59: Outros | U59: especificar | V59: 0 | W59: kg N/t cana | AE59: Outros | AF59: especificar | AG59: 0 | AH59: kg N/t cana | AN59: Outros | AO59: especificar | AQ59: kg N/t cana
B60: Outros | C60: especificar | E60: kg P₂O₅/t cana | K60: Outros | L60: especificar | N60: kg P₂O₅/t cana | T60: Outros | U60: especificar | V60: 0 | W60: kg P₂O₅/t cana | AE60: Outros | AF60: especificar | AG60: 0 | AH60: kg P₂O₅/t cana | AN60: Outros | AO60: especificar | AQ60: kg P₂O₅/t cana
B61: Outros | C61: especificar | E61: kg K₂O/t cana | K61: Outros | L61: especificar | N61: kg K₂O/t cana | T61: Outros | U61: especificar | V61: 0 | W61: kg K₂O/t cana | AE61: Outros | AF61: especificar | AG61: 0 | AH61: kg K₂O/t cana | AN61: Outros | AO61: especificar | AQ61: kg K₂O/t cana
B63: Fertilizantes Orgânicos/Organominerais | K63: Fertilizantes Orgânicos/Organominerais | T63: Fertilizantes Orgânicos/Organominerais | AE63: Fertilizantes Orgânicos/Organominerais | AN63: Fertilizantes Orgânicos/Organominerais
C64: Vinhaça | E64: L/t cana | F64: Concentração de N | H64: g N/L | L64: Vinhaça | N64: L/t cana | O64: Concentração de N | P64: 0.375 | Q64: g N/L | U64: Vinhaça | V64: =D64 -> 0 | W64: L/t cana | X64: Concentração de N | Y64: =G64 -> 0 | Z64: g N/L | AF64: Vinhaça | AG64: 1000 | AH64: L/t cana | AI64: Concentração de N | AJ64: 0.375 | AK64: g N/L | AO64: Vinhaça | AP64: 440.2 | AQ64: L/t cana | AR64: Concentração de N | AS64: 0.375 | AT64: g N/L
C65: Torta de Filtro (base úmida) | E65: kg/t cana | F65: Concentração de N | H65: g N/kg | L65: Torta de Filtro (base úmida) | N65: kg/t cana | O65: Concentração de N | P65: 2.8 | Q65: g N/kg | U65: Torta de Filtro (base úmida) | V65: =D65 -> 0 | W65: kg/t cana | X65: Concentração de N | Y65: =G65 -> 0 | Z65: g N/kg | AF65: Torta de Filtro (base úmida) | AG65: 42.8 | AH65: kg/t cana | AI65: Concentração de N | AJ65: 2.8 | AK65: g N/kg | AO65: Torta de Filtro (base úmida) | AP65: 30.57142857 | AQ65: kg/t cana | AR65: Concentração de N | AS65: 2.8 | AT65: g N/kg
C66: Cinzas e fuligem (base úmida) | E66: kg/t cana | F66: Concentração de N | H66: g N/kg | L66: Cinzas e fuligem (base úmida) | N66: kg/t cana | O66: Concentração de N | Q66: g N/kg | U66: Cinzas e fuligem (base úmida) | V66: =D66 -> 0 | W66: kg/t cana | X66: Concentração de N | Y66: =G66 -> 0 | Z66: g N/kg | AF66: Cinzas e fuligem (base úmida) | AG66: 10.08 | AH66: kg/t cana | AI66: Concentração de N | AK66: g N/kg | AO66: Cinzas e fuligem (base úmida) | AP66: 7.2 | AQ66: kg/t cana | AR66: Concentração de N | AT66: g N/kg
B67: Outros | C67: especificar | E67: kg/t cana | F67: Concentração de N | H67: g N/kg | K67: Outros | L67: especificar | N67: kg/t cana | O67: Concentração de N | Q67: g N/kg | T67: Outros | U67: especificar | V67: =D67 -> 0 | W67: kg/t cana | X67: Concentração de N | Y67: =G67 -> 0 | Z67: g N/kg | AE67: Outros | AF67: especificar | AG67: 0 | AH67: kg/t cana | AI67: Concentração de N | AK67: g N/kg | AN67: Outros | AO67: especificar | AP67: 0 | AQ67: kg/t cana | AR67: Concentração de N | AT67: g N/kg
B68: Outros | C68: especificar | E68: kg/t cana | F68: Concentração de N | H68: g N/kg | K68: Outros | L68: especificar | N68: kg/t cana | O68: Concentração de N | Q68: g N/kg | T68: Outros | U68: especificar | V68: =D68 -> 0 | W68: kg/t cana | X68: Concentração de N | Y68: =G68 -> 0 | Z68: g N/kg | AE68: Outros | AF68: especificar | AG68: 0 | AH68: kg/t cana | AI68: Concentração de N | AK68: g N/kg | AN68: Outros | AO68: especificar | AQ68: kg/t cana | AR68: Concentração de N | AT68: g N/kg
B70: Combustíveis e eletricidade | K70: Combustíveis e eletricidade | T70: Combustíveis e eletricidade | AE70: Combustíveis e eletricidade | AN70: Combustíveis e eletricidade
C71: Diesel - B8 | E71: L/t cana | L71: Diesel - B8 | N71: L/t cana | U71: Diesel - B8 | V71: =D71 -> 0 | W71: L/t cana | AF71: Diesel - B8 | AG71: 0 | AH71: L/t cana | AO71: Diesel - B8 | AQ71: L/t cana
C72: Diesel - B10 | E72: L/t cana | L72: Diesel - B10 | N72: L/t cana | U72: Diesel - B10 | V72: 0 | W72: L/t cana | AF72: Diesel - B10 | AG72: 6 | AH72: L/t cana | AO72: Diesel - B10 | AQ72: L/t cana
C73: Diesel - BX | E73: L/t cana | F73: Teor de biodiesel na mistura | L73: Diesel - BX | N73: L/t cana | O73: Teor de biodiesel na mistura | P73: 0.11 | U73: Diesel - BX | V73: 0 | W73: L/t cana | X73: Teor médio de biodiesel na mistura | Y73: =G73 -> 0 | Z73: % | AF73: Diesel - BX | AG73: 0 | AH73: L/t cana | AI73: Teor médio de biodiesel na mistura | AJ73: 0.11 | AK73: % | AO73: Diesel - BX | AQ73: L/t cana | AR73: Teor médio de biodiesel na mistura | AS73: 0.11 | AT73: %
C74: Diesel - B20 | E74: L/t cana | L74: Diesel - B20 | N74: L/t cana | U74: Diesel - B20 | V74: 0 | W74: L/t cana | AF74: Diesel - B20 | AG74: 0 | AH74: L/t cana | AO74: Diesel - B20 | AQ74: L/t cana
C75: Diesel - B30 | E75: L/t cana | L75: Diesel - B30 | N75: L/t cana | U75: Diesel - B30 | V75: 0 | W75: L/t cana | AF75: Diesel - B30 | AG75: 0 | AH75: L/t cana | AO75: Diesel - B30 | AQ75: L/t cana
C76: Biodiesel - B100 | E76: L/t cana | L76: Biodiesel - B100 | N76: L/t cana | U76: Biodiesel - B100 | V76: 0 | W76: L/t cana | AF76: Biodiesel - B100 | AG76: 0 | AH76: L/t cana | AO76: Biodiesel - B100 | AQ76: L/t cana
C77: Gasolina C | E77: L/t cana | L77: Gasolina C | N77: L/t cana | U77: Gasolina C | V77: 0 | W77: L/t cana | AF77: Gasolina C | AG77: 0 | AH77: L/t cana | AO77: Gasolina C | AQ77: L/t cana
C78: Etanol hidratado | E78: L/t cana | L78: Etanol hidratado | N78: L/t cana | U78: Etanol hidratado | V78: 0 | W78: L/t cana | AF78: Etanol hidratado | AG78: 0 | AH78: L/t cana | AO78: Etanol hidratado | AQ78: L/t cana
C79: Biometano de terceiros | E79: Nm³/t cana | L79: Biometano de terceiros | N79: Nm³/t cana | U79: Biometano de terceiros | V79: 0 | W79: Nm³/t cana | AF79: Biometano de terceiros | AG79: 0 | AH79: Nm³/t cana | AO79: Biometano de terceiros | AQ79: Nm³/t cana
C80: Biometano próprio | E80: Nm³/t cana | L80: Biometano próprio | N80: Nm³/t cana | U80: Biometano próprio | V80: 0 | W80: Nm³/t cana | AF80: Biometano próprio | AG80: 0 | AH80: Nm³/t cana | AO80: Biometano próprio | AQ80: Nm³/t cana
C81: Eletricidade da rede - mix médio | E81: kWh/t cana | L81: Eletricidade da rede - mix médio | N81: kWh/t cana | U81: Eletricidade da rede - mix médio | V81: 0 | W81: kWh/t cana | AF81: Eletricidade da rede - mix médio | AG81: 0 | AH81: kWh/t cana | AO81: Eletricidade da rede - mix médio | AQ81: kWh/t cana
C82: Eletricidade - PCH | E82: kWh/t cana | L82: Eletricidade - PCH | N82: kWh/t cana | U82: Eletricidade - PCH | V82: 0 | W82: kWh/t cana | AF82: Eletricidade - PCH | AG82: 0 | AH82: kWh/t cana | AO82: Eletricidade - PCH | AQ82: kWh/t cana
C83: Eletricidade - biomassa | E83: kWh/t cana | L83: Eletricidade - biomassa | N83: kWh/t cana | U83: Eletricidade - biomassa | V83: 0 | W83: kWh/t cana | AF83: Eletricidade - biomassa | AG83: 0 | AH83: kWh/t cana | AO83: Eletricidade - biomassa | AQ83: kWh/t cana
C84: Eletricidade - eólica | E84: kWh/t cana | L84: Eletricidade - eólica | N84: kWh/t cana | U84: Eletricidade - eólica | V84: 0 | W84: kWh/t cana | AF84: Eletricidade - eólica | AG84: 0 | AH84: kWh/t cana | AO84: Eletricidade - eólica | AQ84: kWh/t cana
C85: Eletricidade - solar | E85: kWh/t cana | L85: Eletricidade - solar | N85: kWh/t cana | U85: Eletricidade - solar | V85: 0 | W85: kWh/t cana | AF85: Eletricidade - solar | AG85: 0 | AH85: kWh/t cana | AO85: Eletricidade - solar | AQ85: kWh/t cana
B88: Fase agrícola - Produtores de milho - Dados consolidados
B89: Informações gerais
C90: Sistema de plantio | D90: Convencional
C91: Área total | E91: ha
C93: Produção total (base úmida) | E93: t milho | F93: Umidade
B94: Quantidade comprada pela unidade produtora de biocombustível (base úmida) | E94: t milho
C95: Palha recolhida (base seca) | E95: t palha
B97: Corretivos
C98: Calcário calcítico | E98: kg/t milho
C99: Calcário dolomítico | E99: kg/t milho
C100: Gesso | E100: kg/t milho
B102: Sementes
C103: Sementes | E103: kg/t milho
B105: Fertilizantes Sintéticos
C106: Ureia | E106: kg N/t milho
C107: Fosfato Monoamônico (MAP) | E107: kg N/t milho
C108: Fosfato Monoamônico (MAP) | E108: kg P₂O₅/t milho
C109: Fosfato diamônico (DAP) | E109: kg N/t milho
C110: Fosfato diamônico (DAP) | E110: kg P₂O₅/t milho
C111: Nitrato de amônio | E111: kg N/t milho
C112: Solução de nitrato de amônio e ureia (UAN) | E112: kg N/t milho
C113: Amônia anidra | E113: kg N/t milho
C114: Sulfato de amônio | E114: kg N/t milho
C115: Nitrato de amônio e cálcio (CAN) | E115: kg N/t milho
C116: Superfosfato simples (SSP) | E116: kg P₂O₅/t milho
C117: Superfosfato triplo (TSP) | E117: kg P₂O₅/t milho
C118: Cloreto de potássio (KCl) | E118: kg K₂O/t milho
B119: Outros | C119: especificar | E119: kg N/t milho
B120: Outros | C120: especificar | E120: kg P₂O₅/t milho
B121: Outros | C121: especificar | E121: kg K₂O/t milho
B123: Fertilizantes Orgânicos/Organominerais
B124: Outros | C124: especificar | E124: kg/t milho | F124: Concentração de N | H124: g N/kg
B125: Outros | C125: especificar | E125: kg/t milho | F125: Concentração de N | H125: g N/kg
B126: Outros | C126: especificar | E126: kg/t milho | F126: Concentração de N | H126: g N/kg
B127: Outros | C127: especificar | E127: kg/t milho | F127: Concentração de N | H127: g N/kg
B128: Outros | C128: especificar | E128: kg/t milho | F128: Concentração de N | H128: g N/kg
B130: Combustíveis e eletricidade
C131: Diesel - B8 | E131: L/t milho
C132: Diesel - B10 | E132: L/t milho
C133: Diesel - BX | E133: L/t milho | F133: Teor de biodiesel na mistura
C134: Diesel - B20 | E134: L/t milho
C135: Diesel - B30 | E135: L/t milho
C136: Biodiesel - B100 | E136: L/t milho
C137: Gasolina C | E137: L/t milho
C138: Etanol hidratado | E138: L/t milho
C139: Biometano de terceiros | E139: Nm³/t milho
C140: Biometano próprio | E140: Nm³/t milho
C141: Eletricidade da rede - mix médio | E141: kWh/t milho
C142: Eletricidade - PCH | E142: kWh/t milho
C143: Eletricidade - biomassa | E143: kWh/t milho
C144: Eletricidade - eólica | E144: kWh/t milho
C145: Eletricidade - solar | E145: kWh/t milho
B149: Fase industrial - processamento do etanol
B150: Processamento e rendimentos
C151: Quantidade de cana processada | E151: t cana/ano
C152: Quantidade de palha processada (base seca) | E152: t palha/ano
C153: Quantidade de milho processado | E153: t milho/ano | F153: Umidade
C154: Distância de transporte - milho | E154: km
C155: Produção de Etanol Anidro | E155: L/ano
C156: Produção de Etanol Hidratado | E156: L/ano
C157: Produção de Açúcar | E157: kg/ano
C158: Energia Elétrica Comercializada | E158: kWh/ano
C159: Produção de DDG (Distillers Dried Grains) | E159: kg/ano | F159: Umidade
C160: Produção de DDGS (Distillers Dried Grains with Solubles) | E160: kg/ano | F160: Umidade
C161: Produção de CGM (Corn Gluten Meal) | E161: kg/ano | F161: Umidade
C162: Produção de CGF (Corn Gluten Feed) | E162: kg/ano | F162: Umidade
C163: Produção de Óleo de milho | E163: kg/ano
C164: Bagaço Comercializado (base úmida) | E164: kg/ano | F164: Umidade
B166: Combustíveis e eletricidade
C167: Bagaço próprio
C168: Quantidade (base úmida) | E168: kg/ano
C169: Umidade
C171: Palha própria
C172: Quantidade (base úmida) | E172: kg/ano
C173: Umidade
C175: Bagaço de terceiros
C176: Quantidade (base úmida) | E176: kg/ano
C177: Umidade
C178: Distância de transporte | E178: km
C180: Palha de terceiros
C181: Quantidade (base úmida) | E181: kg/ano
C182: Umidade
C183: Distância de transporte | E183: km
C185: Cavaco de madeira
C186: Quantidade (base úmida) | E186: kg/ano
C187: Umidade
C188: Distância de transporte | E188: km
C190: Lenha
C191: Quantidade (base úmida) | E191: kg/ano
C192: Umidade
C193: Distância de transporte | E193: km
C195: Resíduos florestais
C196: Quantidade (base úmida) | E196: kg/ano
C197: Umidade
C198: Distância de transporte | E198: km
C200: Óleo combustível | E200: L/ ano
C201: Etanol hidratado próprio | E201: L/ ano
C202: Etanol anidro próprio | E202: L/ ano
C203: Biogás de terceiros | E203: Nm³/ano | F203: PCI do biogás | H203: MJ/Nm³
C204: Biogás próprio | E204: Nm³/ano | F204: PCI do biogás | H204: MJ/Nm³
C205: Gás natural | E205: Nm³/ano
C206: Diesel - B8 | E206: L/ ano
C207: Diesel - B10 | E207: L/ ano
C208: Diesel - BX | E208: L/ ano | F208: Teor de biodiesel na mistura
C209: Diesel - B20 | E209: L/ ano
C210: Diesel - B30 | E210: L/ ano
C211: Biodiesel - B100 | E211: L/ ano
C212: Eletricidade da rede - mix médio | E212: kWh/ano
C213: Eletricidade - PCH | E213: kWh/ano
C214: Eletricidade - biomassa | E214: kWh/ano
C215: Eletricidade - eólica | E215: kWh/ano
C216: Eletricidade - solar | E216: kWh/ano
B219: Fase de distribuição
C221: Etanol anidro
C222: Rodoviário | D222: 1
C223: Dutoviário | D223: 0 | E223: =IF((SUM(D222:D224)=1),"","A soma das porcentagens de distribuição deve ser igual a 100%!") -> 
C224: Ferroviário | D224: 0
C227: Etanol hidratado
C228: Rodoviário | D228: 1
C229: Dutoviário | D229: 0 | E229: =IF((SUM(D228:D230)=1),"","A soma das porcentagens de distribuição deve ser igual a 100%!") -> 
C230: Ferroviário | D230: 0

Sheet _E1G Flex (hidden)
B2: Emissões totais - g CO₂ eq
C3: Anidro | E3: Hidratado
B4: Total | C4: =SUM(C5:C9) ->  | E4: =SUM(E5:E9) -> 
B5: Agrícola - Cana | C5: =$H$87 ->  | D5: =C5/$C$4 ->  | E5: =$I$87 ->  | F5: =E5/$E$4 -> 
B6: Agrícola - Milho | C6: =$H$166 ->  | D6: =C6/$C$4 ->  | E6: =$I$166 ->  | F6: =E6/$E$4 -> 
B7: Industrial | C7: =($H$240-$H$182-$H$183) ->  | D7: =C7/$C$4 ->  | E7: =($I$240-$I$182-$I$183) -> 
B8: Transporte | C8: =$D$270 ->  | E8: =$E$270 ->  | F8: =E8/$E$4 -> 
B9: Uso | C9: ='FE''s queima combustíveis'!$I$7 -> 0.439 | E9: ='FE''s queima combustíveis'!$I$8 -> 0.663 | F9: =E9/$E$4 -> 
B12: Etapa agrícola - Cana-de-açúcar | H12: Emissões por MJ de etanol anidro | I12: Emissões por MJ de etanol hidratado
B13: Produto | D13: 1 ha médio | E13: 1 t cana
B14: Produção de cana | C14: kg | D14: =('E1G Flex'!V30/'E1G Flex'!V28)*1000 ->  | E14: 1000
B15: Entradas da natureza | D15: 1 ha médio | E15: 1 t cana
B16: Ocupação total | C16: ha | D16: 1 | E16: =(D16*E14)/D14 -> 
B17: Entradas da tecnosfera | D17: 1 ha médio | E17: 1 t cana | F17: g CO2 eq/t cana | H17: g CO2 eq/MJ | I17: g CO2 eq/MJ
B18: Fertilizantes e corretivos
B19: Calcário calcítico | C19: kg | E19: ='E1G Flex'!V41 -> 0 | F19: =E19*'Dados auxiliares'!$H$52 -> 0 | H19: =(F19/$E$171)*$F$171 ->  | I19: =(F19/$E$172)*$F$172 -> 
B20: Calcário dolomítico | C20: kg | E20: ='E1G Flex'!V42 -> 0 | F20: =E20*'Dados auxiliares'!$H$53 -> 0
B21: Gesso | C21: kg | E21: ='E1G Flex'!V43 -> 0 | F21: =E21*'Dados auxiliares'!$H$54 -> 0
B22: N - Ureia | C22: kg N | E22: ='E1G Flex'!V46 -> 0 | F22: =E22*'Dados auxiliares'!$H$55 -> 0
B23: N - Fosfato monoamônico (MAP) | C23: kg N | E23: ='E1G Flex'!V47 -> 0 | F23: =E23*'Dados auxiliares'!$H$56 -> 0
B24: P₂O₅ - Fosfato monoamônico (MAP) | C24: kg P₂O₅ | E24: ='E1G Flex'!V48 -> 0 | F24: =E24*'Dados auxiliares'!$H$57 -> 0
B25: N - Fosfato diamônico (DAP) | C25: kg N | E25: ='E1G Flex'!V49 -> 0 | F25: =E25*'Dados auxiliares'!$H$58 -> 0
B26: P₂O₅ - Fosfato diamônico (DAP) | C26: kg P₂O₅ | E26: ='E1G Flex'!V50 -> 0 | F26: =E26*'Dados auxiliares'!$H$59 -> 0
B27: N - Nitrato de amônio | C27: kg N | E27: ='E1G Flex'!V51 -> 0 | F27: =E27*'Dados auxiliares'!$H$60 -> 0
B28: N - Solução de nitrato de amônio e ureia (UAN) | C28: kg N | E28: ='E1G Flex'!V52 -> 0 | F28: =E28*'Dados auxiliares'!$H$61 -> 0
B29: N - Amônia anidra | C29: kg N | E29: ='E1G Flex'!V53 -> 0 | F29: =E29*'Dados auxiliares'!$H$62 -> 0
B30: N - Sulfato de amônio | C30: kg N | E30: ='E1G Flex'!V54 -> 0 | F30: =E30*'Dados auxiliares'!$H$63 -> 0
B31: N - Nitrato de amônio e cálcio (CAN) | C31: kg N | E31: ='E1G Flex'!V55 -> 0 | F31: =E31*'Dados auxiliares'!$H$64 -> 0
B32: P₂O₅ - Superfosfato simples (SSP) | C32: kg P₂O₅ | E32: ='E1G Flex'!V56 -> 0 | F32: =E32*'Dados auxiliares'!$H$66 -> 0
B33: P₂O₅ - Superfosfato triplo (TSP) | C33: kg P₂O₅ | E33: ='E1G Flex'!V57 -> 0 | F33: =E33*'Dados auxiliares'!$H$67 -> 0
B34: K₂O - Cloreto de potássio (KCl) | C34: kg K₂O | E34: ='E1G Flex'!V58 -> 0 | F34: =E34*'Dados auxiliares'!H$68 -> 0
B35: N - Outros | C35: kg N | E35: ='E1G Flex'!V59 -> 0 | F35: =E35*'Dados auxiliares'!H$69 -> 0
B36: P₂O₅ - Outros | C36: kg P₂O₅ | E36: ='E1G Flex'!V60 -> 0 | F36: =E36*'Dados auxiliares'!H$70 -> 0
B37: K₂O - Outros | C37: kg K₂O | E37: ='E1G Flex'!V61 -> 0 | F37: =E37*'Dados auxiliares'!H$71 -> 0
B38: Vinhaça | C38: L | E38: ='E1G Flex'!V64 -> 0 | F38: 0
B39: Torta de filtro | C39: kg | E39: ='E1G Flex'!V65 -> 0 | F39: 0
B40: Cinzas e fuligem | C40: kg | E40: ='E1G Flex'!V66 -> 0 | F40: 0
B41: Outros Fertilizantes Orgânicos/Organominerais | C41: kg | E41: ='E1G Flex'!V67+'E1G Flex'!V68 -> 0 | F41: 0
B42: Agroquímicos
B43: Herbicidas e Inseticidas - Total | C43: kg | D43: =SUM(D44:D57) -> 1.083156939 | E43: =SUM(E44:E57) ->  | F43: =SUM(F44:F57) ->  | H43: =(F43/$E$171)*$F$171 ->  | I43: =(F43/$E$172)*$F$172 -> 
B44: Herbicida, Roundup Ready, como glifosato | C44: kg | D44: 0.1741182675 | E44: =D44*$E$16 ->  | F44: =E44*'Dados auxiliares'!$H$72 -> 
B45: Herbicida, Boral 500 SC, como sulfentrazone | C45: kg | D45: 0.5107680209 | E45: =D45*$E$16 ->  | F45: =E45*'Dados auxiliares'!$H$74 -> 
B46: Herbicida, Hexaron, como hexazinona | C46: kg | D46: 0.007379322488 | E46: =D46*$E$16 ->  | F46: =E46*'Dados auxiliares'!$H$74 -> 
B47: Herbicida, Combine 500 SC, como tebuthiuron | C47: kg | D47: 0.1749146701 | F47: =E47*'Dados auxiliares'!$H$74 -> 
B48: Herbicida, Goal, como oxifluorfen | C48: kg | D48: 0.004472316659 | F48: =E48*'Dados auxiliares'!$H$74 -> 
B49: Herbicida, Diuron, como diuron | C49: kg | D49: 0.009317326374 | F49: =E49*'Dados auxiliares'!$H$74 -> 
B50: Herbicida, Herburon, como diuron | C50: kg | D50: 0.04658663187 | E50: =D50*$E$16 ->  | F50: =E50*'Dados auxiliares'!$H$74 -> 
B51: Herbicida, Hexaron, como diuron | C51: kg | D51: 0.02616305246 | E51: =D51*$E$16 ->  | F51: =E51*'Dados auxiliares'!$H$74 -> 
B52: Herbicida, Herbipak, como ametrina | C52: kg | D52: 0.04658663187 | F52: =E52*'Dados auxiliares'!$H$74 -> 
B53: Herbicida, Nortox, como 2,4 D | C53: kg | D53: 0.03754882529 | F53: =E53*'Dados auxiliares'!$H$73 -> 
B54: Inseticida, Actara, como thiamethoxan | C54: kg | D54: 0.009317326374 | F54: =E54*'Dados auxiliares'!$H$74 -> 
B55: Inseticida, Mirex, como sulfluramida | C55: kg | D55: 6.98799478e-05 | F55: =E55*'Dados auxiliares'!$H$74 -> 
B56: Inseticida, Regent 800 WG, como fipronil | C56: kg | D56: 0.03405120139 | E56: =D56*$E$16 ->  | F56: =E56*'Dados auxiliares'!$H$74 -> 
B57: Inseticida, Regent 800 WG, como fipronil | C57: kg | D57: 0.001863465275 | E57: =D57*$E$16 ->  | F57: =E57*'Dados auxiliares'!$H$74 -> 
B58: Combustíveis e eletricidade
B59: Diesel B0 | C59: kg | E59: =('E1G Flex'!$V$71*(1-0.08)+'E1G Flex'!$V$72*(1-0.1)+'E1G Flex'!$V$73*(1-'E1G Flex'!$Y$73)+'E1G Flex'!V74*(1-0.2)+'E1G Flex'!$V$75*(1-0.3)+'E1G Flex'!$V$76*(1-1))*('Dados auxiliares'!$D$26) -> 0 | F59: =E59*'Dados auxiliares'!$H$116 -> 0 | H59: =(F59/$E$171)*$F$171 ->  | I59: =(F59/$E$172)*$F$172 -> 
B60: Biodiesel B100 | C60: kg | E60: =('E1G Flex'!$V$71*(0.08)+'E1G Flex'!$V$72*(0.1)+'E1G Flex'!$V$73*('E1G Flex'!$Y$73)+'E1G Flex'!V75*(0.2)+'E1G Flex'!$V$75*(0.3)+'E1G Flex'!$V$76*(1))*('Dados auxiliares'!$D$17) -> 0 | F60: =E60*'Dados auxiliares'!$H$117 -> 0 | H60: =(F60/$E$171)*$F$171 ->  | I60: =(F60/$E$172)*$F$172 -> 
B61: Gasolina A | C61: kg | E61: ='E1G Flex'!V77*(1-'FE''s queima combustíveis'!$D$19)*'Dados auxiliares'!$D$24 -> 0 | F61: =E61*'Dados auxiliares'!$H$120 -> 0 | H61: =(F61/$E$171)*$F$171 ->  | I61: =(F61/$E$172)*$F$172 -> 
B62: Etanol anidro | C62: kg | E62: ='E1G Flex'!V77*('FE''s queima combustíveis'!$D$19)*'Dados auxiliares'!$D$15 -> 0 | F62: =E62*'Dados auxiliares'!$H$121 -> 0 | H62: =(F62/$E$171)*$F$171 ->  | I62: =(F62/$E$172)*$F$172 -> 
B63: Etanol hidratado | C63: kg | E63: ='E1G Flex'!V78*'Dados auxiliares'!$D$16 -> 0 | F63: =E63*'Dados auxiliares'!$H$122 -> 0 | H63: =(F63/$E$171)*$F$171 ->  | I63: =(F63/$E$172)*$F$172 -> 
B64: Biometano de terceiros | C64: Nm³ | E64: ='E1G Flex'!V79 -> 0 | F64: =E64*('Dados auxiliares'!$D$18*1000)*'Dados auxiliares'!$F$18*'Dados auxiliares'!$H$125 -> 0 | H64: =(F64/$E$171)*$F$171 ->  | I64: =(F64/$E$172)*$F$172 -> 
B65: Eletricidade da rede - mix médio | C65: kWh | E65: ='E1G Flex'!V81 -> 0 | F65: =E65*'Dados auxiliares'!$H$107 -> 0 | H65: =(F65/$E$171)*$F$171 -> 
B66: Eletricidade - PCH | C66: kWh | E66: ='E1G Flex'!V82 -> 0 | F66: =E66*'Dados auxiliares'!$H$108 -> 0 | H66: =(F66/$E$171)*$F$171 ->  | I66: =(F66/$E$172)*$F$172 -> 
B67: Eletricidade - biomassa | C67: kWh | E67: ='E1G Flex'!V83 -> 0 | F67: =E67*'Dados auxiliares'!$H$109 -> 0 | H67: =(F67/$E$171)*$F$171 ->  | I67: =(F67/$E$172)*$F$172 -> 
B68: Eletricidade - eólica | C68: kWh | E68: ='E1G Flex'!V84 -> 0 | F68: =E68*'Dados auxiliares'!$H$110 -> 0 | H68: =(F68/$E$171)*$F$171 ->  | I68: =(F68/$E$172)*$F$172 -> 
B69: Eletricidade - solar | C69: kWh | E69: ='E1G Flex'!V85 -> 0 | F69: =E69*'Dados auxiliares'!$H$111 -> 0 | H69: =(F69/$E$171)*$F$171 ->  | I69: =(F69/$E$172)*$F$172 -> 
B70: Emissões | D70: 1 ha médio | E70: 1 t cana | F70: g CO2 eq/t cana | H70: g CO2 eq/MJ | I70: g CO2 eq/MJ
B71: N2O - Fertilizantes sintéticos | C71: kg | D71: ='_Emissões Agrícolas'!$E$54 ->  | E71: =D71*$E$16 ->  | F71: =E71*1000*'Dados auxiliares'!$D$9 ->  | H71: =(F71/$E$171)*$F$171 ->  | I71: =(F71/$E$172)*$F$172 -> 
B72: N2O - Fertilizantes organominerais | C72: kg | D72: ='_Emissões Agrícolas'!$E$58 ->  | E72: =D72*$E$16 ->  | F72: =E72*1000*'Dados auxiliares'!$D$9 -> 
B73: N2O - Resíduos culturais | C73: kg | D73: ='_Emissões Agrícolas'!$E$62 ->  | E73: =D73*$E$16 ->  | F73: =E73*1000*'Dados auxiliares'!$D$9 -> 
B74: CO2 - Calcário | C74: kg | E74: =$E$19*'_Emissões Agrícolas'!$E$79+$E$20*'_Emissões Agrícolas'!$E$80 -> 0 | F74: =E74*1000 -> 0
B75: CO2 - Uréia | C75: kg | E75: =$E$22*'_Emissões Agrícolas'!$E$81 -> 0 | F75: =E75*1000 -> 0
B76: N2O - queima palha | C76: kg | D76: ='_Emissões Agrícolas'!$E$73 ->  | E76: =D76*$E$16 ->  | F76: =E76*1000*'Dados auxiliares'!$D$9 -> 
B77: CH4 bio - queima palha | C77: kg | D77: ='_Emissões Agrícolas'!$E$74 ->  | E77: =D77*$E$16 ->  | F77: =E77*1000*'Dados auxiliares'!$D$8 -> 
B78: CO₂ eq - queima do diesel | C78: kg | E78: =$E$59*'FE''s queima combustíveis'!$I$64/1000 -> 0 | F78: =E78*1000 -> 0
B79: CO₂ eq - queima do biodiesel | C79: kg | E79: =$E$60*'FE''s queima combustíveis'!$I$65/1000 -> 0 | F79: =E79*1000 -> 0
B80: CO₂ eq - queima da gasolina A | C80: kg | E80: =$E$61*'FE''s queima combustíveis'!$I$9/1000 -> 0 | F80: 0
B81: CO₂ eq - queima do etanol anidro | C81: kg | E81: =$E$62*'FE''s queima combustíveis'!$I$7/1000 -> 0 | F81: 0
B82: CO₂ eq - queima do etanol hidratado | C82: kg | E82: =$E$63*'FE''s queima combustíveis'!$I$8/1000 -> 0 | F82: 0
B83: CO₂ eq - queima do biometano | C83: kg | E83: =($E$64+'E1G Flex'!V80)*'FE''s queima combustíveis'!$I$66/1000 -> 0 | F83: 0 | H83: =(F83/$E$171)*$F$171 -> 
B85: Emissões do processo | C85: g CO2 eq/t cana | F85: =SUM(F71:F83) ->  | H85: =(F85/$E$171)*$F$171 ->  | I85: =(F85/$E$172)*$F$172 -> 
B86: Emissões background | C86: g CO2 eq/t cana | F86: =SUM(F18:F43,F58:F69) ->  | H86: =(F86/$E$171)*$F$171 ->  | I86: =(F86/$E$172)*$F$172 -> 
B87: Emissões totais | C87: g CO2 eq/t cana | F87: =F85+F86 ->  | H87: =(F87/$E$171)*$F$171 ->  | I87: =(F87/$E$172)*$F$172 -> 
B90: Etapa agrícola - Milho | H90: Emissões por MJ de etanol anidro | I90: Emissões por MJ de etanol hidratado
B91: Produto | D91: 1 ha médio | E91: 1 t milho
B92: Produção de milho | C92: kg | D92: ='E1G Flex'!D93/'E1G Flex'!D91*1000 ->  | E92: 1000
B93: Entradas da natureza | D93: 1 ha médio | E93: 1 t milho | F93: g CO2 eq/t milho
B94: Ocupação total | C94: ha | D94: 1 | E94: =(D94*E92)/D92 ->  | F94: -
B95: Entradas da tecnosfera | D95: 1 ha médio | E95: 1 t milho | F95: g CO2 eq/t milho | H95: g CO2 eq/MJ | I95: g CO2 eq/MJ
B96: Sementes de milho | C96: kg | E96: ='E1G Flex'!D103 -> 0 | F96: =E96*'Dados auxiliares'!$H$75 -> 0 | H96: =(F96/$E$171)*$F$171*$D$183 ->  | I96: =(F96/$E$172)*$F$172*$D$183 -> 
B97: Água | C97: kg | D97: 602 | E97: =D97*$E$16/$D$16 ->  | F97: =E97*'Dados auxiliares'!$H$83 ->  | H97: =(F97/$E$171)*$F$171*$D$183 ->  | I97: =(F97/$E$172)*$F$172*$D$183 -> 
B98: Fertilizantes e corretivos
B99: Calcário calcítico | C99: kg | E99: ='E1G Flex'!D98 -> 0 | F99: =E99*'Dados auxiliares'!$H$52 -> 0 | H99: =(F99/$E$171)*$F$171*$D$183 ->  | I99: =(F99/$E$172)*$F$172*$D$183 -> 
B100: Calcário dolomítico | C100: kg | E100: ='E1G Flex'!D99 -> 0 | F100: =E100*'Dados auxiliares'!$H$53 -> 0
B101: Gesso | C101: kg | E101: ='E1G Flex'!D100 -> 0 | F101: =E101*'Dados auxiliares'!$H$54 -> 0
B102: N - Ureia | C102: kg N | E102: ='E1G Flex'!D106 -> 0 | F102: =E102*'Dados auxiliares'!$H$55 -> 0
B103: N - Fosfato monoamônico (MAP) | C103: kg N | E103: ='E1G Flex'!D107 -> 0 | F103: =E103*'Dados auxiliares'!$H$56 -> 0
B104: P₂O₅ - Fosfato monoamônico (MAP) | C104: kg P₂O₅ | E104: ='E1G Flex'!D108 -> 0 | F104: =E104*'Dados auxiliares'!$H$57 -> 0
B105: N - Fosfato diamônico (DAP) | C105: kg N | E105: ='E1G Flex'!D109 -> 0 | F105: =E105*'Dados auxiliares'!$H$58 -> 0
B106: P₂O₅ - Fosfato diamônico (DAP) | C106: kg P₂O₅ | E106: ='E1G Flex'!D110 -> 0 | F106: =E106*'Dados auxiliares'!$H$59 -> 0
B107: N - Nitrato de amônio | C107: kg N | E107: ='E1G Flex'!D111 -> 0 | F107: =E107*'Dados auxiliares'!$H$60 -> 0
B108: N - Solução de nitrato de amônio e ureia (UAN) | C108: kg N | E108: ='E1G Flex'!D112 -> 0 | F108: =E108*'Dados auxiliares'!$H$61 -> 0
B109: N - Amônia anidra | C109: kg N | E109: ='E1G Flex'!D113 -> 0 | F109: =E109*'Dados auxiliares'!$H$62 -> 0
B110: N - Sulfato de amônio | C110: kg N | E110: ='E1G Flex'!D114 -> 0 | F110: =E110*'Dados auxiliares'!$H$63 -> 0
B111: N - Nitrato de amônio e cálcio (CAN) | C111: kg N | E111: ='E1G Flex'!D115 -> 0 | F111: =E111*'Dados auxiliares'!$H$64 -> 0
B112: P₂O₅ - Superfosfato simples (SSP) | C112: kg P₂O₅ | E112: ='E1G Flex'!D116 -> 0 | F112: =E112*'Dados auxiliares'!$H$66 -> 0
B113: P₂O₅ - Superfosfato triplo (TSP) | C113: kg P₂O₅ | E113: ='E1G Flex'!D117 -> 0 | F113: =E113*'Dados auxiliares'!$H$67 -> 0
B114: K₂O - Cloreto de potássio (KCl) | C114: kg K₂O | E114: ='E1G Flex'!D118 -> 0 | F114: =E114*'Dados auxiliares'!H$68 -> 0
B115: N - Outros | C115: kg N | E115: ='E1G Flex'!D119 -> 0 | F115: =E115*'Dados auxiliares'!H$69 -> 0
B116: P₂O₅ - Outros | C116: kg P₂O₅ | E116: ='E1G Flex'!D120 -> 0 | F116: =E116*'Dados auxiliares'!H$70 -> 0
B117: K₂O - Outros | C117: kg K₂O | E117: ='E1G Flex'!D121 -> 0 | F117: =E117*'Dados auxiliares'!H$71 -> 0
B118: Outros Fertilizantes Orgânicos/Organominerais | C118: kg | E118: =SUM('E1G Flex'!D124:D128) -> 0 | F118: 0
B119: Agroquímicos
B120: Herbicidas, Fungicidas, Inseticidas, Adjuvantes | C120: kg | D120: =SUM(D121:D138) -> 4.0067465 | E120: =SUM(E121:E138) ->  | F120: =SUM(F121:F138) ->  | H120: =(F120/$E$171)*$F$171*$D$183 ->  | I120: =(F120/$E$172)*$F$172*$D$183 -> 
B121: Herbicida, como glifosato | C121: kg | D121: 0.7518739298 | E121: =D121*$E$94 ->  | F121: =E121*'Dados auxiliares'!$H$72 -> 
B122: Herbicida,como atrazina | C122: kg | D122: 2.093299303 | E122: =D122*$E$94 ->  | F122: =E122*'Dados auxiliares'!$H$74 -> 
B123: Herbicida, como Nicosulfuron | C123: kg | D123: 0.002363752979 | F123: =E123*'Dados auxiliares'!$H$74 -> 
B124: Fungicida, como tebuconazol | C124: kg | D124: 0.01832616435 | F124: =E124*'Dados auxiliares'!$H$74 -> 
B125: Fungicida, como Fluxapiroxade | C125: kg | D125: 0.005554547059 | F125: =E125*'Dados auxiliares'!$H$74 -> 
B126: Fungicida, como Piraclostrobina | C126: kg | D126: 0.01107583336 | F126: =E126*'Dados auxiliares'!$H$74 -> 
B127: Fungicida, como azoxistrobina | C127: kg | D127: 0.03105651829 | F127: =E127*'Dados auxiliares'!$H$74 -> 
B128: Fungicida, como trifloxistrobina | C128: kg | D128: 0.009163082174 | F128: =E128*'Dados auxiliares'!$H$74 -> 
B129: Fungicida, como Difeconazol | C129: kg | D129: 0.01126423255 | F129: =E129*'Dados auxiliares'!$H$74 -> 
B130: Fungicida, como ciproconazole | C130: kg | D130: 0.01242260731 | F130: =E130*'Dados auxiliares'!$H$74 -> 
B131: Inseticida, como Imidacloprido | C131: kg | D131: 0.1666937539 | F131: =E131*'Dados auxiliares'!$H$74 -> 
B132: Inseticida, como tiodicarbe | C132: kg | D132: 0.0995295831 | F132: =E132*'Dados auxiliares'!$H$74 -> 
B133: Inseticida, Connect, como beta-ciflutrina | C133: kg | D133: 0.06649568978 | F133: =E133*'Dados auxiliares'!$H$74 -> 
B134: Inseticida, como teflubenzurom | C134: kg | D134: 0.005078613669 | F134: =E134*'Dados auxiliares'!$H$74 -> 
B135: Inseticida, como bifentrina | C135: kg | D135: 0.003945864839 | F135: =E135*'Dados auxiliares'!$H$74 -> 
B136: Inseticida, como lufenuron | C136: kg | D136: 0.001636264674 | F136: =E136*'Dados auxiliares'!$H$74 -> 
B137: Adjuvante, como óleo mineral | C137: kg | D137: 0.1446327459 | F137: =E137*'Dados auxiliares'!$H$74 -> 
B138: Adjuvante, como ester metílico | C138: kg | D138: 0.5723340139 | F138: =E138*'Dados auxiliares'!$H$74 -> 
B139: Combustíveis e eletricidade
B140: Diesel B0 | C140: kg | E140: =('E1G Flex'!$D$131*(1-0.08)+'E1G Flex'!$D$132*(1-0.1)+'E1G Flex'!$D$133*(1-'E1G Flex'!$G$133)+'E1G Flex'!$D$134*(1-0.2)+'E1G Flex'!$D$135*(1-0.3)+'E1G Flex'!$D$136*(1-1))*('Dados auxiliares'!$D$26) -> 0 | F140: =E140*'Dados auxiliares'!$H$116 -> 0 | H140: =(F140/$E$171)*$F$171*$D$183 ->  | I140: =(F140/$E$172)*$F$172*$D$183 -> 
B141: Biodiesel B100 | C141: kg | E141: =('E1G Flex'!$D$131*(0.08)+'E1G Flex'!$D$132*(0.1)+'E1G Flex'!$D$133*('E1G Flex'!$G$133)+'E1G Flex'!$D$134*(0.2)+'E1G Flex'!$D$135*(0.3)+'E1G Flex'!$D$136*(1))*('Dados auxiliares'!$D$17) -> 0 | F141: =E141*'Dados auxiliares'!$H$117 -> 0 | H141: =(F141/$E$171)*$F$171*$D$183 ->  | I141: =(F141/$E$172)*$F$172*$D$183 -> 
B142: Gasolina A | C142: kg | E142: ='E1G Flex'!$D$137*(1-'FE''s queima combustíveis'!$D$19)*'Dados auxiliares'!$D$24 -> 0 | F142: =E142*'Dados auxiliares'!$H$120 -> 0 | H142: =(F142/$E$171)*$F$171*$D$183 ->  | I142: =(F142/$E$172)*$F$172*$D$183 -> 
B143: Etanol anidro | C143: kg | E143: ='E1G Flex'!$D$137*('FE''s queima combustíveis'!$D$19)*'Dados auxiliares'!$D$15 -> 0 | F143: =E143*'Dados auxiliares'!$H$121 -> 0 | H143: =(F143/$E$171)*$F$171*$D$183 ->  | I143: =(F143/$E$172)*$F$172*$D$183 -> 
B144: Etanol hidratado | C144: kg | E144: ='E1G Flex'!$D$138*'Dados auxiliares'!$D$16 -> 0 | F144: =E144*'Dados auxiliares'!$H$122 -> 0 | H144: =(F144/$E$171)*$F$171*$D$183 ->  | I144: =(F144/$E$172)*$F$172*$D$183 -> 
B145: Biometano de terceiros | C145: Nm³ | E145: ='E1G Flex'!D139 -> 0 | F145: =E145*('Dados auxiliares'!$D$18*1000)*'Dados auxiliares'!$F$18*'Dados auxiliares'!$H$125 -> 0 | H145: =(F145/$E$171)*$F$171*$D$183 ->  | I145: =(F145/$E$172)*$F$172*$D$183 -> 
B146: Eletricidade da rede - mix médio | C146: kWh | E146: ='E1G Flex'!D141 -> 0 | F146: =E146*'Dados auxiliares'!$H$107 -> 0 | H146: =(F146/$E$171)*$F$171*$D$183 ->  | I146: =(F146/$E$172)*$F$172*$D$183 -> 
B147: Eletricidade - PCH | C147: kWh | E147: ='E1G Flex'!D142 -> 0 | F147: =E147*'Dados auxiliares'!$H$108 -> 0 | H147: =(F147/$E$171)*$F$171*$D$183 ->  | I147: =(F147/$E$172)*$F$172*$D$183 -> 
B148: Eletricidade - biomassa | C148: kWh | E148: ='E1G Flex'!D143 -> 0 | F148: =E148*'Dados auxiliares'!$H$109 -> 0 | H148: =(F148/$E$171)*$F$171*$D$183 ->  | I148: =(F148/$E$172)*$F$172*$D$183 -> 
B149: Eletricidade - eólica | C149: kWh | E149: ='E1G Flex'!D144 -> 0 | F149: =E149*'Dados auxiliares'!$H$110 -> 0 | H149: =(F149/$E$171)*$F$171*$D$183 ->  | I149: =(F149/$E$172)*$F$172*$D$183 -> 
B150: Eletricidade - solar | C150: kWh | E150: ='E1G Flex'!D145 -> 0 | F150: =E150*'Dados auxiliares'!$H$111 -> 0 | H150: =(F150/$E$171)*$F$171*$D$183 ->  | I150: =(F150/$E$172)*$F$172*$D$183 -> 
B151: Emissões | D151: 1 ha médio | E151: 1 t milho | F151: g CO2 eq/t milho | H151: g CO2 eq/MJ | I151: g CO2 eq/MJ
B152: N2O - Fertilizantes sintéticos | C152: kg | D152: ='_Emissões Agrícolas'!$H$54 ->  | E152: =D152*$E$94 ->  | F152: =E152*1000*'Dados auxiliares'!$D$9 ->  | H152: =(F152/$E$171)*$F$171*$D$183 ->  | I152: =(F152/$E$172)*$F$172*$D$183 -> 
B153: N2O - Fertilizantes organominerais | C153: kg | D153: ='_Emissões Agrícolas'!$H$58 ->  | E153: =D153*$E$94 ->  | F153: =E153*1000*'Dados auxiliares'!$D$9 -> 
B154: N2O - Resíduos culturais | C154: kg | D154: ='_Emissões Agrícolas'!$H$62 ->  | F154: =E154*1000*'Dados auxiliares'!$D$9 -> 
B155: CO2 - Calcário | C155: kg | E155: =E99*'_Emissões Agrícolas'!$E$79+E100*'_Emissões Agrícolas'!$E$80 -> 0 | F155: =E155*1000 -> 0
B156: CO2 - Uréia | C156: kg | E156: =E102*'_Emissões Agrícolas'!$E$81 -> 0 | F156: =E156*1000 -> 0
B157: CO₂ eq - queima do diesel | C157: kg | E157: =E140*'FE''s queima combustíveis'!$I$64/1000 -> 0 | F157: =E157*1000 -> 0
B158: CO₂ eq - queima do biodiesel | C158: kg | E158: =E141*'FE''s queima combustíveis'!$I$65/1000 -> 0 | F158: =E158*1000 -> 0
B159: CO₂ eq - queima da gasolina A | C159: kg | E159: =E142*'FE''s queima combustíveis'!$I$9/1000 -> 0 | F159: 0
B160: CO₂ eq - queima do etanol anidro | C160: kg | E160: =E143*'FE''s queima combustíveis'!$I$7/1000 -> 0 | F160: 0
B161: CO₂ eq - queima do etanol hidratado | C161: kg | E161: =E144*'FE''s queima combustíveis'!$I$8/1000 -> 0 | F161: 0
B162: CO₂ eq - queima do biometano | C162: kg | E162: =(E145+'E1G Flex'!D140)*'FE''s queima combustíveis'!$I$66/1000 -> 0 | F162: 0
B164: Emissões do processo | C164: g CO2 eq/t milho | F164: =SUM(F152:F162) ->  | H164: =(F164/$E$171)*$F$171*$D$183 ->  | I164: =(F164/$E$172)*$F$172*$D$183 -> 
B165: Emissões background | C165: g CO2 eq/t milho | F165: =SUM(F96:F120,F139:F150) -> 
B166: Emissões totais | C166: g CO2 eq/t milho | F166: =IF(OR('E1G Flex'!$D$91=0,'E1G Flex'!$D$93=0),0,(F164+F165)) -> 0 | H166: =(F166/$E$171)*$F$171*$D$183 -> 
B169: Etapa industrial - Etanol | H169: Emissões por MJ de etanol anidro | I169: Emissões por MJ de etanol hidratado
B170: Produtos | C170: Unidade | D170: 1 TC | E170: MJ | F170: Alocação
B171: Etanol anidro | C171: kg | D171: ='E1G Flex'!D155*'Dados auxiliares'!$D$15/'E1G Flex'!$D$151 ->  | E171: =D171*'Dados auxiliares'!$F$15 ->  | F171: =E171/SUM($E$171:$E$180) -> 
B172: Etanol hidratado | C172: kg | D172: ='E1G Flex'!D156*'Dados auxiliares'!$D$16/'E1G Flex'!$D$151 ->  | E172: =D172*'Dados auxiliares'!$F$16 -> 
B173: Açúcar | C173: kg | D173: ='E1G Flex'!D157/'E1G Flex'!$D$151 ->  | E173: =D173*'Dados auxiliares'!D36 -> 
B174: Energia elétrica comercializada | C174: kWh | D174: ='E1G Flex'!D158/'E1G Flex'!$D$151 ->  | E174: =CONVERT(D174,"kWh","MJ") -> 
B175: DDGS | C175: kg | D175: ='E1G Flex'!D160*(1-'E1G Flex'!G160)/'E1G Flex'!$D$151 ->  | E175: =D175*'Dados auxiliares'!$D$38 -> 
B176: DDG | C176: kg | D176: ='E1G Flex'!D159*(1-'E1G Flex'!G159)/'E1G Flex'!$D$151 ->  | E176: =D176*'Dados auxiliares'!$D$37 -> 
B177: CGM | C177: kg | D177: ='E1G Flex'!D161*(1-'E1G Flex'!G161)/'E1G Flex'!$D$151 ->  | E177: =D177*'Dados auxiliares'!$D$39 -> 
B178: CGF | C178: kg | D178: ='E1G Flex'!D162*(1-'E1G Flex'!G162)/'E1G Flex'!$D$151 ->  | E178: =D178*'Dados auxiliares'!$D$40 -> 
B179: Óleo de Milho | C179: kg | D179: ='E1G Flex'!D163/'E1G Flex'!$D$151 ->  | E179: =D179*'Dados auxiliares'!$D$41 -> 
B180: Bagaço comercializado | C180: kg base úmida | D180: ='E1G Flex'!D164/'E1G Flex'!$D$151 ->  | E180: - | F180: - | G180: Resíduo
B181: Entradas | C181: Unidade | D181: 1 TC | F181: g CO2 eq/t cana | H181: g CO2 eq/MJ | I181: g CO2 eq/MJ
B182: Cana-de-açúcar | C182: t | D182: 1 | F182: =D182*F87 ->  | H182: =(F182/$E$171)*$F$171 ->  | I182: =(F182/$E$172)*$F$172 -> 
B183: Milho (grãos) | C183: t | D183: ='E1G Flex'!D153/'E1G Flex'!D151 ->  | F183: =D183*F166 ->  | H183: =(F183/$E$171)*$F$171 -> 
B184: Transporte do milho em grãos até a usina | C184: tkm | D184: =D183*'E1G Flex'!D154 ->  | F184: =D184*'Dados auxiliares'!$H$131 ->  | H184: =(F184/$E$171)*$F$171 -> 
B185: Água | C185: kg | D185: 1500 | F185: =D185*'Dados auxiliares'!$H$83 -> 13.2023586
B186: Cal (CaO) | C186: kg | D186: 0.82 | F186: =D186*'Dados auxiliares'!$H$84 -> 788.62447
B187: Ácido sulfúrico | C187: kg | D187: 0.265 | F187: =D187*'Dados auxiliares'!$H$88 -> 28.98036282
B188: Ácido fosfórico | C188: kg | D188: =176.5/1000 -> 0.1765 | F188: =D188*'Dados auxiliares'!$H$89 -> 267.0316072
B189: Floculante | C189: kg | D189: =2.555/1000 -> 0.002555 | F189: =D189*'Dados auxiliares'!$H$91 -> 5.495541826
B190: Antibióticos | C190: kg | D190: =0.297/1000 -> 0.000297 | F190: =D190*'Dados auxiliares'!$H$92 -> 0.6388164079
B191: Óleo lubrificante | C191: kg | D191: =13/1000 -> 0.013 | F191: =D191*'Dados auxiliares'!$H$93 -> 14.70824221
B192: Zeolita | C192: kg | D192: =(D171*0.03)/67.2 ->  | F192: =D192*'Dados auxiliares'!$H$94 -> 
B193: Alfa-amilase | C193: kg | D193: =(0.0282467716666667/0.131380333333333)*D183 ->  | F193: =D193*'Dados auxiliares'!$H$99 -> 
B194: Glucoamilase | C194: kg | D194: =(0.0564935433333333/0.131380333333333)*D183 ->  | F194: =D194*'Dados auxiliares'!$H$99 -> 
B195: Ácido sulfúrico | C195: kg | D195: =(0.01576564/0.131380333333333)*D183 ->  | F195: =D195*'Dados auxiliares'!$H$88 -> 
B196: Hidróxido de sódio | C196: kg | D196: =(0.02758987/0.131380333333333)*D183 ->  | F196: =D196*'Dados auxiliares'!$H$97 -> 
B197: Levedura | C197: kg | D197: =(0.024436742/0.131380333333333)*D183 ->  | F197: =D197*'Dados auxiliares'!$H$98 -> 
B198: Zeolita | C198: kg | D198: =(0.00814558066666667/0.131380333333333)*D183 ->  | F198: =D198*'Dados auxiliares'!$H$94 -> 
B199: Bagaço próprio | C199: kg base seca | D199: ='E1G Flex'!$D$168*(1-'E1G Flex'!$D$169)/'E1G Flex'!$D$151 ->  | F199: 0
B200: Palha própria | C200: kg base seca | D200: ='E1G Flex'!$D$172*(1-'E1G Flex'!$D$173)/'E1G Flex'!$D$151 ->  | F200: 0
B201: Bagaço de terceiros | C201: kg base seca | D201: ='E1G Flex'!$D$176*(1-'E1G Flex'!$D$177)/'E1G Flex'!$D$151 ->  | F201: 0
B202: Transporte de bagaço de terceiros | C202: tkm | D202: =((D201/1000)*'E1G Flex'!$D$178) ->  | F202: =D202*'Dados auxiliares'!$H$131 -> 
B203: Palha de terceiros | C203: kg base seca | D203: ='E1G Flex'!$D$181*(1-'E1G Flex'!$D$182)/'E1G Flex'!$D$151 ->  | F203: =D203*'Dados auxiliares'!$H$78 -> 
B204: Transporte de palha de terceiros | C204: tkm | D204: =((D203/1000)*'E1G Flex'!$D$183) ->  | F204: =D204*'Dados auxiliares'!$H$131 -> 
B205: Cavaco de madeira | C205: kg base seca | D205: ='E1G Flex'!$D$186*(1-'E1G Flex'!$D$187)/'E1G Flex'!$D$151 ->  | F205: =D205*'Dados auxiliares'!$H$123 ->  | H205: =(F205/$E$171)*$F$171 -> 
B206: Transporte de cavaco de madeira | C206: tkm | D206: =((D205/1000)*'E1G Flex'!$D$188) ->  | F206: =D206*'Dados auxiliares'!$H$131 -> 
B207: Lenha | C207: kg base seca | D207: ='E1G Flex'!$D$191*(1-'E1G Flex'!$D$192)/'E1G Flex'!$D$151 ->  | F207: =D207*'Dados auxiliares'!$H$124 -> 
B208: Transporte de lenha | C208: tkm | D208: =((D207/1000)*'E1G Flex'!$D$193) ->  | F208: =D208*'Dados auxiliares'!$H$131 -> 
B209: Resíduos florestais | C209: kg base seca | D209: ='E1G Flex'!$D$196*(1-'E1G Flex'!$D$197)/'E1G Flex'!$D$151 ->  | F209: 0
... 57 more rows

Sheet E1GM
B2: Etanol combustível de primeira geração produzido a partir de milho
B4: Nome da Usina: | C4: Usina Hipotética
B6: CNPJ | C6: 00.000.000/0000-00
B8: Responsável pelo preenchimento:
B10: Telefone : | C10: (00) 0000-0000
C13: Etanol Anidro
B15: Intensidade de Carbono (g CO₂eq/MJ) | C15: =SUM(C17:C20) -> 0.439 | D15: Nota de Eficiência Energético-Ambiental (g CO₂eq/MJ) | G15: =G18-C15 -> 86.961
B17: agrícola | C17: =IFERROR(IF(C13="Etanol Anidro",_E1GM!C5,IF(C13="Etanol Hidratado",_E1GM!E5,"")),0) -> 0 | G17: Fóssil substituto: Gasolina
B18: industrial | C18: =IFERROR(IF(C13="Etanol Anidro",_E1GM!C6,IF(C13="Etanol Hidratado",_E1GM!E6,"")),0) -> 0 | G18: ='Dados auxiliares'!F166 -> 87.4
B19: transporte | C19: =IFERROR(IF(C13="Etanol Anidro",_E1GM!C7,IF(C13="Etanol Hidratado",_E1GM!E7,"")),0) -> 0 | G19: Redução de emissões
B20: uso | C20: =IFERROR(IF(C13="Etanol Anidro",_E1GM!C8,IF(C13="Etanol Hidratado",_E1GM!E8,"")),0) -> 0.439 | G20: =(G18-C15)/G18 -> 0.9949771167
B23: Fase agrícola - Dados consolidados
B24: Informações gerais
C25: Sistema de plantio | D25: Convencional
C26: Área total | E26: ha
C28: Produção total (base úmida) | E28: t milho | F28: Umidade
B29: Quantidade comprada pela unidade produtora de biocombustível (base úmida) | E29: t milho
C30: Palha recolhida (base seca) | E30: t palha
B32: Corretivos
C33: Calcário calcítico | E33: kg/t milho
C34: Calcário dolomítico | E34: kg/t milho
C35: Gesso | E35: kg/t milho
B37: Sementes
C38: Sementes | E38: kg/t milho
B40: Fertilizantes Sintéticos
C41: Ureia | E41: kg N/t milho
C42: Fosfato Monoamônico (MAP) | E42: kg N/t milho
C43: Fosfato Monoamônico (MAP) | E43: kg P₂O₅/t milho
C44: Fosfato diamônico (DAP) | E44: kg N/t milho
C45: Fosfato diamônico (DAP) | E45: kg P₂O₅/t milho
C46: Nitrato de amônio | E46: kg N/t milho
C47: Solução de nitrato de amônio e ureia (UAN) | E47: kg N/t milho
C48: Amônia anidra | E48: kg N/t milho
C49: Sulfato de amônio | E49: kg N/t milho
C50: Nitrato de amônio e cálcio (CAN) | E50: kg N/t milho
C51: Superfosfato simples (SSP) | E51: kg P₂O₅/t milho
C52: Superfosfato triplo (TSP) | E52: kg P₂O₅/t milho
C53: Cloreto de potássio (KCl) | E53: kg K₂O/t milho
B54: Outros | C54: especificar | E54: kg N/t milho
B55: Outros | C55: especificar | E55: kg P₂O₅/t milho
B56: Outros | C56: especificar | E56: kg K₂O/t milho
B58: Fertilizantes Orgânicos/Organominerais
B59: Outros | C59: especificar | E59: kg/t milho | F59: Concentração de N | H59: g N/kg
B60: Outros | C60: especificar | E60: kg/t milho | F60: Concentração de N | H60: g N/kg
B61: Outros | C61: especificar | E61: kg/t milho | F61: Concentração de N | H61: g N/kg
B62: Outros | C62: especificar | E62: kg/t milho | F62: Concentração de N | H62: g N/kg
B63: Outros | C63: especificar | E63: kg/t milho | F63: Concentração de N | H63: g N/kg
B65: Combustíveis e eletricidade
C66: Diesel - B8 | E66: L/t milho
C67: Diesel - B10 | E67: L/t milho
C68: Diesel - BX | E68: L/t milho | F68: Teor de biodiesel na mistura
C69: Diesel - B20 | E69: L/t milho
C70: Diesel - B30 | E70: L/t milho
C71: Biodiesel - B100 | E71: L/t milho
C72: Gasolina C | E72: L/t milho
C73: Etanol hidratado | E73: L/t milho
C74: Biometano de terceiros | E74: Nm³/t milho
C75: Biometano próprio | E75: Nm³/t milho
C76: Eletricidade da rede - mix médio | E76: kWh/t milho
C77: Eletricidade - PCH | E77: kWh/t milho
C78: Eletricidade - biomassa | E78: kWh/t milho
C79: Eletricidade - eólica | E79: kWh/t milho
C80: Eletricidade - solar | E80: kWh/t milho
B83: Fase industrial - processamento do etanol
B84: Processamento e rendimentos
C85: Quantidade de milho processado | E85: t milho/ano | F85: Umidade
C86: Distância de transporte - milho | E86: km
C87: Rendimento - Etanol anidro | E87: L/ t milho
C88: Rendimento - Etanol hidratado | E88: L/ t milho
C89: Rendimento Energia elétrica comercializada | E89: kWh/ t milho
C90: Rendimento - DDG (Distillers Dried Grains) | E90: kg/ t milho | F90: Umidade
C91: Rendimento - DDGS (Distillers Dried Grains with Solubles) | E91: kg/ t milho | F91: Umidade
C92: Rendimento - CGM (Corn Gluten Meal) | E92: kg/ t milho | F92: Umidade
C93: Rendimento - CGF (Corn Gluten Feed) | E93: kg/ t milho | F93: Umidade
C94: Rendimento - Óleo de milho | E94: kg/ t milho
B96: Combustíveis e eletricidade
C97: Eletricidade da rede - mix médio | E97: kWh/t milho
C98: Eletricidade - PCH | E98: kWh/t milho
C99: Eletricidade - biomassa | E99: kWh/t milho
C100: Eletricidade - eólica | E100: kWh/t milho
C101: Eletricidade - solar | E101: kWh/t milho
C102: Diesel - B8 | E102: L/t milho
C103: Diesel - B10 | E103: L/t milho
C104: Diesel - BX | E104: L/t milho | F104: Teor de biodiesel na mistura
C105: Diesel - B20 | E105: L/t milho
C106: Diesel - B30 | E106: L/t milho
C107: Biodiesel - B100 | E107: L/t milho
C108: Óleo combustível | E108: L/t milho
C109: Etanol hidratado próprio | E109: L/t milho
C110: Etanol anidro próprio | E110: L/t milho
C111: Biogás de terceiros | E111: Nm³/t milho | F111: PCI do biogás | H111: MJ/Nm³
C112: Biogás próprio | E112: Nm³/t milho | F112: PCI do biogás | H112: MJ/Nm³
C113: Gás natural | E113: Nm³/t milho
C114: Cavaco de madeira
C115: Quantidade (base úmida) | E115: kg/t milho
C116: Umidade
C117: Distância de transporte | E117: km
C118: Lenha
C119: Quantidade (base úmida) | E119: kg/t milho
C120: Umidade
C121: Distância de transporte | E121: km
C122: Resíduos florestais
C123: Quantidade (base úmida) | E123: kg/t milho
C124: Umidade
C125: Distância de transporte | E125: km
C126: Bagaço de cana
C127: Quantidade (base úmida) | E127: kg/t milho
C128: Umidade
C129: Distância de transporte | E129: km
C130: Palha de cana
C131: Quantidade (base úmida) | E131: kg/t milho
C132: Umidade
C133: Distância de transporte | E133: km
B136: Fase de distribuição
C138: Etanol anidro
C139: Rodoviário | D139: 1 | E139: =IF((SUM(D139:D140)=1),"","A soma das porcentagens de distribuição deve ser igual a 100%!") -> 
C140: Fluvial | D140: 0
C143: Etanol hidratado
C144: Rodoviário | D144: 1 | E144: =IF((SUM(D144:D145)=1),"","A soma das porcentagens de distribuição deve ser igual a 100%!") -> 
C145: Fluvial | D145: 0

Sheet _E1GM (hidden)
B2: Emissões totais - g CO₂ eq
C3: Anidro | E3: Hidratado
B4: Total | C4: =C5+C6+C7+C8 ->  | E4: =E5+E6+E7+E8 -> 
B5: Agrícola | C5: =$H$87 ->  | D5: =C5/$C$4 ->  | E5: =$I$87 ->  | F5: =E5/$E$4 -> 
B6: Industrial | C6: =$H$151-$H$105 ->  | D6: =C6/$C$4 ->  | E6: =$I$151-$I$105 ->  | F6: =E6/$E$4 -> 
B7: Transporte | C7: =$D$172 ->  | E7: =$E$172 -> 
B8: Uso | C8: ='FE''s queima combustíveis'!$I$7 -> 0.439 | E8: ='FE''s queima combustíveis'!$I$8 -> 0.663
B11: Etapa agrícola - Milho | H11: Emissões por MJ de etanol anidro | I11: Emissões por MJ de etanol hidratado
B12: Produto | D12: 1 ha médio | E12: 1 t milho
B13: Produção de milho | C13: kg | D13: =E1GM!D28/E1GM!D26*1000 ->  | E13: 1000
B14: Entradas da natureza | D14: 1 ha médio | E14: 1 t milho | F14: g CO2 eq/t milho
B15: Ocupação total | C15: ha | D15: 1 | E15: =(D15*E13)/D13 ->  | F15: -
B16: Entradas da tecnosfera | D16: 1 ha médio | E16: 1 t milho | F16: g CO2 eq/t milho | H16: g CO2 eq/MJ | I16: g CO2 eq/MJ
B17: Sementes de milho | C17: kg | E17: =E1GM!D38 -> 0 | F17: =E17*'Dados auxiliares'!$H$75 -> 0 | H17: =(F17/$E$92)*$F$92 ->  | I17: =(F17/$E$93)*$F$93 -> 
B18: Água | C18: kg | D18: 602 | E18: =D18*$E$15/$D$15 ->  | F18: =E18*'Dados auxiliares'!$H$83 ->  | H18: =(F18/$E$92)*$F$92 ->  | I18: =(F18/$E$93)*$F$93 -> 
B19: Fertilizantes e corretivos
B20: Calcário calcítico | C20: kg | E20: =E1GM!D33 -> 0 | F20: =E20*'Dados auxiliares'!$H$52 -> 0 | H20: =(F20/$E$92)*$F$92 ->  | I20: =(F20/$E$93)*$F$93 -> 
B21: Calcário dolomítico | C21: kg | E21: =E1GM!D34 -> 0 | F21: =E21*'Dados auxiliares'!$H$53 -> 0
B22: Gesso | C22: kg | E22: =E1GM!D35 -> 0 | F22: =E22*'Dados auxiliares'!$H$54 -> 0
B23: N - Ureia | C23: kg N | E23: =E1GM!D41 -> 0 | F23: =E23*'Dados auxiliares'!$H$55 -> 0
B24: N - Fosfato monoamônico (MAP) | C24: kg N | E24: =E1GM!D42 -> 0 | F24: =E24*'Dados auxiliares'!$H$56 -> 0
B25: P₂O₅ - Fosfato monoamônico (MAP) | C25: kg P₂O₅ | E25: =E1GM!D43 -> 0 | F25: =E25*'Dados auxiliares'!$H$57 -> 0
B26: N - Fosfato diamônico (DAP) | C26: kg N | E26: =E1GM!D44 -> 0 | F26: =E26*'Dados auxiliares'!$H$58 -> 0
B27: P₂O₅ - Fosfato diamônico (DAP) | C27: kg P₂O₅ | E27: =E1GM!D45 -> 0 | F27: =E27*'Dados auxiliares'!$H$59 -> 0
B28: N - Nitrato de amônio | C28: kg N | E28: =E1GM!D46 -> 0 | F28: =E28*'Dados auxiliares'!$H$60 -> 0
B29: N - Solução de nitrato de amônio e ureia (UAN) | C29: kg N | E29: =E1GM!D47 -> 0 | F29: =E29*'Dados auxiliares'!$H$61 -> 0
B30: N - Amônia anidra | C30: kg N | E30: =E1GM!D48 -> 0 | F30: =E30*'Dados auxiliares'!$H$62 -> 0
B31: N - Sulfato de amônio | C31: kg N | E31: =E1GM!D49 -> 0 | F31: =E31*'Dados auxiliares'!$H$63 -> 0
B32: N - Nitrato de amônio e cálcio (CAN) | C32: kg N | E32: =E1GM!D50 -> 0 | F32: =E32*'Dados auxiliares'!$H$64 -> 0
B33: P₂O₅ - Superfosfato simples (SSP) | C33: kg P₂O₅ | E33: =E1GM!D51 -> 0 | F33: =E33*'Dados auxiliares'!$H$66 -> 0
B34: P₂O₅ - Superfosfato triplo (TSP) | C34: kg P₂O₅ | E34: =E1GM!D52 -> 0 | F34: =E34*'Dados auxiliares'!$H$67 -> 0
B35: K₂O - Cloreto de potássio (KCl) | C35: kg K₂O | E35: =E1GM!D53 -> 0 | F35: =E35*'Dados auxiliares'!H$68 -> 0
B36: N - Outros | C36: kg N | E36: =E1GM!D54 -> 0 | F36: =E36*'Dados auxiliares'!H$69 -> 0
B37: P₂O₅ - Outros | C37: kg P₂O₅ | E37: =E1GM!D55 -> 0 | F37: =E37*'Dados auxiliares'!H$70 -> 0
B38: K₂O - Outros | C38: kg K₂O | E38: =E1GM!D56 -> 0 | F38: =E38*'Dados auxiliares'!H$71 -> 0
B39: Outros Fertilizantes Orgânicos/Organominerais | C39: kg | E39: =SUM(E1GM!D59:D63) -> 0 | F39: 0
B40: Agroquímicos
B41: Herbicidas, Fungicidas, Inseticidas, Adjuvantes | C41: kg | D41: =SUM(D42:D59) -> 4.0067465 | E41: =SUM(E42:E59) ->  | F41: =SUM(F42:F59) ->  | H41: =(F41/$E$92)*$F$92 ->  | I41: =(F41/$E$93)*$F$93 -> 
B42: Herbicida, como glifosato | C42: kg | D42: 0.7518739298 | E42: =D42*$E$15 ->  | F42: =E42*'Dados auxiliares'!$H$72 -> 
B43: Herbicida,como atrazina | C43: kg | D43: 2.093299303 | E43: =D43*$E$15 ->  | F43: =E43*'Dados auxiliares'!$H$74 -> 
B44: Herbicida, como Nicosulfuron | C44: kg | D44: 0.002363752979 | F44: =E44*'Dados auxiliares'!$H$74 -> 
B45: Fungicida, como tebuconazol | C45: kg | D45: 0.01832616435 | F45: =E45*'Dados auxiliares'!$H$74 -> 
B46: Fungicida, como Fluxapiroxade | C46: kg | D46: 0.005554547059 | F46: =E46*'Dados auxiliares'!$H$74 -> 
B47: Fungicida, como Piraclostrobina | C47: kg | D47: 0.01107583336 | F47: =E47*'Dados auxiliares'!$H$74 -> 
B48: Fungicida, como azoxistrobina | C48: kg | D48: 0.03105651829 | F48: =E48*'Dados auxiliares'!$H$74 -> 
B49: Fungicida, como trifloxistrobina | C49: kg | D49: 0.009163082174 | F49: =E49*'Dados auxiliares'!$H$74 -> 
B50: Fungicida, como Difeconazol | C50: kg | D50: 0.01126423255 | F50: =E50*'Dados auxiliares'!$H$74 -> 
B51: Fungicida, como ciproconazole | C51: kg | D51: 0.01242260731 | F51: =E51*'Dados auxiliares'!$H$74 -> 
B52: Inseticida, como Imidacloprido | C52: kg | D52: 0.1666937539 | F52: =E52*'Dados auxiliares'!$H$74 -> 
B53: Inseticida, como tiodicarbe | C53: kg | D53: 0.0995295831 | F53: =E53*'Dados auxiliares'!$H$74 -> 
B54: Inseticida, Connect, como beta-ciflutrina | C54: kg | D54: 0.06649568978 | F54: =E54*'Dados auxiliares'!$H$74 -> 
B55: Inseticida, como teflubenzurom | C55: kg | D55: 0.005078613669 | F55: =E55*'Dados auxiliares'!$H$74 -> 
B56: Inseticida, como bifentrina | C56: kg | D56: 0.003945864839 | F56: =E56*'Dados auxiliares'!$H$74 -> 
B57: Inseticida, como lufenuron | C57: kg | D57: 0.001636264674 | F57: =E57*'Dados auxiliares'!$H$74 -> 
B58: Adjuvante, como óleo mineral | C58: kg | D58: 0.1446327459 | F58: =E58*'Dados auxiliares'!$H$74 -> 
B59: Adjuvante, como ester metílico | C59: kg | D59: 0.5723340139 | E59: =D59*$E$15 ->  | F59: =E59*'Dados auxiliares'!$H$74 -> 
B60: Combustíveis e eletricidade
B61: Diesel B0 | C61: kg | E61: =(E1GM!$D$66*(1-0.08)+E1GM!$D$67*(1-0.1)+E1GM!$D$68*(1-E1GM!$G$68)+E1GM!$D$69*(1-0.2)+E1GM!$D$70*(1-0.3)+E1GM!$D$71*(1-1))*('Dados auxiliares'!$D$26) -> 0 | F61: =E61*'Dados auxiliares'!$H$116 -> 0 | H61: =(F61/$E$92)*$F$92 ->  | I61: =(F61/$E$93)*$F$93 -> 
B62: Biodiesel B100 | C62: kg | E62: =(E1GM!$D$66*(0.08)+E1GM!$D$67*(0.1)+E1GM!$D$68*(E1GM!$G$68)+E1GM!$D$69*(0.2)+E1GM!$D$70*(0.3)+E1GM!$D$71*(1))*('Dados auxiliares'!$D$17) -> 0 | F62: =E62*'Dados auxiliares'!$H$117 -> 0
B63: Gasolina A | C63: kg | E63: =E1GM!$D$72*(1-'FE''s queima combustíveis'!$D$19)*'Dados auxiliares'!$D$24 -> 0 | F63: =E63*'Dados auxiliares'!$H$120 -> 0
B64: Etanol anidro | C64: kg | E64: =E1GM!$D$72*('FE''s queima combustíveis'!$D$19)*'Dados auxiliares'!$D$15 -> 0 | F64: =E64*'Dados auxiliares'!$H$121 -> 0
B65: Etanol hidratado | C65: kg | E65: =E1GM!$D$73*'Dados auxiliares'!$D$16 -> 0 | F65: =E65*'Dados auxiliares'!$H$122 -> 0
B66: Biometano de terceiros | C66: Nm³ | E66: =E1GM!D74 -> 0 | F66: =E66*('Dados auxiliares'!$D$18*1000)*'Dados auxiliares'!$F$18*'Dados auxiliares'!$H$125 -> 0
B67: Eletricidade da rede - mix médio | C67: kWh | E67: =E1GM!D76 -> 0 | F67: =E67*'Dados auxiliares'!$H$107 -> 0
B68: Eletricidade - PCH | C68: kWh | E68: =E1GM!D77 -> 0 | F68: =E68*'Dados auxiliares'!$H$108 -> 0
B69: Eletricidade - biomassa | C69: kWh | E69: =E1GM!D78 -> 0 | F69: =E69*'Dados auxiliares'!$H$109 -> 0
B70: Eletricidade - eólica | C70: kWh | E70: =E1GM!D79 -> 0 | F70: =E70*'Dados auxiliares'!$H$110 -> 0
B71: Eletricidade - solar | C71: kWh | E71: =E1GM!D80 -> 0 | F71: =E71*'Dados auxiliares'!$H$111 -> 0
B72: Emissões | D72: 1 ha médio | E72: 1 t milho | F72: g CO2 eq/t milho | H72: g CO2 eq/MJ | I72: g CO2 eq/MJ
B73: N2O - Fertilizantes sintéticos | C73: kg | D73: ='_Emissões Agrícolas'!$G$54 ->  | E73: =D73*$E$15 ->  | F73: =E73*1000*'Dados auxiliares'!$D$9 ->  | H73: =(F73/$E$92)*$F$92 ->  | I73: =(F73/$E$93)*$F$93 -> 
B74: N2O - Fertilizantes organominerais | C74: kg | D74: ='_Emissões Agrícolas'!$G$58 ->  | E74: =D74*$E$15 ->  | F74: =E74*1000*'Dados auxiliares'!$D$9 -> 
B75: N2O - Resíduos culturais | C75: kg | D75: ='_Emissões Agrícolas'!$G$62 ->  | F75: =E75*1000*'Dados auxiliares'!$D$9 -> 
B76: CO2 - Calcário | C76: kg | E76: =$E$20*'_Emissões Agrícolas'!$E$79+$E$21*'_Emissões Agrícolas'!$E$80 -> 0 | F76: =E76*1000 -> 0
B77: CO2 - Uréia | C77: kg | E77: =$E$23*'_Emissões Agrícolas'!$E$81 -> 0 | F77: =E77*1000 -> 0
B78: CO₂ eq - queima do diesel | C78: kg | E78: =$E$61*'FE''s queima combustíveis'!$I$64/1000 -> 0 | F78: =E78*1000 -> 0
B79: CO₂ eq - queima do biodiesel | C79: kg | E79: =$E$62*'FE''s queima combustíveis'!$I$65/1000 -> 0 | F79: =E79*1000 -> 0
B80: CO₂ eq - queima da gasolina A | C80: kg | E80: =$E$63*'FE''s queima combustíveis'!$I$9/1000 -> 0 | F80: 0
B81: CO₂ eq - queima do etanol anidro | C81: kg | E81: =$E$64*'FE''s queima combustíveis'!$I$7/1000 -> 0 | F81: 0
B82: CO₂ eq - queima do etanol hidratado | C82: kg | E82: =$E$65*'FE''s queima combustíveis'!$I$8/1000 -> 0 | F82: 0
B83: CO₂ eq - queima do biometano | C83: kg | E83: =($E$66+E1GM!D75)*'FE''s queima combustíveis'!$I$66/1000 -> 0 | F83: 0
B85: Emissões do processo | C85: g CO2 eq/t milho | F85: =SUM(F73:F83) ->  | H85: =(F85/$E$92)*$F$92 ->  | I85: =(F85/$E$93)*$F$93 -> 
B86: Emissões background | C86: g CO2 eq/t milho | F86: =SUM(F17:F41,F60:F71) -> 
B87: Emissões totais | C87: g CO2 eq/t milho | F87: =F85+F86 -> 
B90: Etapa industrial - Etanol de milho | H90: Emissões por MJ de etanol anidro | I90: Emissões por MJ de etanol hidratado
B91: Produtos | C91: Unidade | D91: 1 t milho | E91: MJ | F91: Alocação
B92: Etanol Anidro | C92: kg | D92: =E1GM!D87*'Dados auxiliares'!$D$15 -> 0 | E92: =D92*'Dados auxiliares'!$F$15 -> 0 | F92: =E92/SUM($E$92:$E$99) -> 
B93: Etanol Hidratado | C93: kg | D93: =E1GM!D88*'Dados auxiliares'!$D$16 -> 0 | E93: =D93*'Dados auxiliares'!$F$16 -> 0 | F93: =E93/SUM($E$92:$E$99) -> 
B94: Eletricidade | C94: kWh | D94: =E1GM!D89 -> 0 | E94: =CONVERT(D94,"kWh","MJ") -> 0
B95: DDGS | C95: kg | D95: =E1GM!D91*(1-E1GM!G91) -> 0 | E95: =D95*'Dados auxiliares'!D38 -> 0
B96: DDG | C96: kg | D96: =E1GM!D90*(1-E1GM!G90) -> 0 | E96: =D96*'Dados auxiliares'!D37 -> 0
B97: CGM | C97: kg | D97: =E1GM!D92*(1-E1GM!G92) -> 0 | E97: =D97*'Dados auxiliares'!D39 -> 0
B98: CGF | C98: kg | D98: =E1GM!D93*(1-E1GM!G93) -> 0 | E98: =D98*'Dados auxiliares'!D40 -> 0
B99: Óleo de Milho | C99: kg | D99: =E1GM!D94 -> 0 | E99: =D99*'Dados auxiliares'!D41 -> 0
B100: Entradas | C100: Unidade | D100: 1 t milho | F100: g CO2 eq/t milho | H100: g CO2 eq/MJ | I100: g CO2 eq/MJ
B101: Processamento dos grãos
B102: Processamento com secagem | C102: m³ | D102: =(0.00004878*0.65) -> 3.1707e-05 | F102: =D102*'Dados auxiliares'!$H$81 -> 1.01812087e-06 | H102: =(F102/$E$92)*$F$92 ->  | I102: =(F102/$E$93)*$F$93 -> 
B103: Processamento sem secagem | C103: m³ | D103: =(0.00004878*0.35) -> 1.7073e-05 | F103: =D103*'Dados auxiliares'!$H$80 -> 2.69943542e-07
B104: Insumos
B105: Milho (grãos) | C105: t | D105: 1 | F105: =D105*F87 ->  | H105: =(F105/$E$92)*$F$92 ->  | I105: =(F105/$E$93)*$F$93 -> 
B106: Transporte do milho em grãos até a usina | C106: tkm | D106: =D105*E1GM!D86 -> 0 | F106: =D106*'Dados auxiliares'!$H$131 -> 0 | H106: =(F106/$E$92)*$F$92 -> 
B107: Enzimas | C107: kg | D107: 0.572 | F107: =D107*'Dados auxiliares'!$H$99 -> 749.32
B108: Ácido sulfúrico | C108: kg | D108: 0.909 | F108: =D108*'Dados auxiliares'!$H$88 -> 99.40811247
B109: Hidróxido de sódio | C109: kg | D109: 0.333 | F109: =D109*'Dados auxiliares'!$H$97 -> 170.648578
B110: Amônia | C110: kg | D110: 0.725 | F110: =D110*'Dados auxiliares'!$H$95 -> 2218.019799
B111: Levedura | C111: kg | D111: 0.001 | F111: =D111*'Dados auxiliares'!$H$98 -> 1.049706944
B112: Zeolita | C112: kg | D112: 0.062 | F112: =D112*'Dados auxiliares'!$H$94 -> 310.6404182
B113: Combustíveis e eletricidade
B114: Eletricidade da rede - mix médio | C114: kWh | D114: =E1GM!D97 -> 0 | F114: =D114*'Dados auxiliares'!$H$107 -> 0 | H114: =(F114/$E$92)*$F$92 ->  | I114: =(F114/$E$93)*$F$93 -> 
B115: Eletricidade - PCH | C115: kWh | D115: =E1GM!D98 -> 0 | F115: =D115*'Dados auxiliares'!$H$108 -> 0
B116: Eletricidade - biomassa | C116: kWh | D116: =E1GM!D99 -> 0 | F116: =D116*'Dados auxiliares'!$H$109 -> 0
B117: Eletricidade - eólica | C117: kWh | D117: =E1GM!D100 -> 0 | F117: =D117*'Dados auxiliares'!$H$110 -> 0
B118: Eletricidade - solar | C118: kWh | D118: =E1GM!D101 -> 0 | F118: =D118*'Dados auxiliares'!$H$111 -> 0
B119: Diesel B0 | C119: kg | D119: =(E1GM!$D$102*(1-0.08)+E1GM!$D$103*(1-0.1)+E1GM!$D$104*(1-E1GM!$G$104)+E1GM!$D$105*(1-0.2)+E1GM!$D$106*(1-0.3)+E1GM!$D$107*(1-1))*('Dados auxiliares'!$D$26) -> 0 | F119: =D119*'Dados auxiliares'!$H$116 -> 0
B120: Biodiesel B100 | C120: kg | D120: =(E1GM!$D$102*(0.08)+E1GM!$D$103*(0.1)+E1GM!$D$104*(E1GM!$G$104)+E1GM!$D$105*(0.2)+E1GM!$D$106*(0.3)+E1GM!$D$107*(1))*('Dados auxiliares'!$D$17) -> 0 | F120: =D120*'Dados auxiliares'!$H$117 -> 0
B121: Óleo combusível | C121: kg | D121: =E1GM!D108*'Dados auxiliares'!$D$30 -> 0 | F121: =D121*'Dados auxiliares'!$H$126 -> 0
B122: Biogás de terceiros | C122: Nm³ | D122: =E1GM!D111 -> 0 | F122: =D122*E1GM!G111*'Dados auxiliares'!$H$125 -> 0 | H122: =(F122/$E$92)*$F$92 -> 
B123: Gás natural | C123: Nm³ | D123: =E1GM!D113 -> 0 | F123: =D123*'Dados auxiliares'!$H$115 -> 0
B124: Cavaco de madeira | C124: kg base seca | D124: =E1GM!$D$115*(1-E1GM!$D$116) -> 0 | F124: =D124*'Dados auxiliares'!$H$123 -> 0
B125: Transporte de cavaco de madeira | C125: tkm | D125: =((D124/1000)*E1GM!$D$117) -> 0 | F125: =D125*'Dados auxiliares'!$H$131 -> 0
B126: Lenha | C126: kg base seca | D126: =E1GM!$D$119*(1-E1GM!$D$120) -> 0 | F126: =D126*'Dados auxiliares'!$H$124 -> 0
B127: Transporte de lenha | C127: tkm | D127: =((D126/1000)*E1GM!$D$121) -> 0 | F127: =D127*'Dados auxiliares'!$H$131 -> 0
B128: Resíduos florestais | C128: kg base seca | D128: =E1GM!$D$123*(1-E1GM!$D$124) -> 0 | F128: 0
B129: Transporte de resíduos florestais | C129: tkm | D129: =((D128/1000)*E1GM!$D$125) -> 0 | F129: =D129*'Dados auxiliares'!$H$131 -> 0
B130: Bagaço de cana-de-açúcar | C130: kg base seca | D130: =E1GM!$D$127*(1-E1GM!$D$128) -> 0 | F130: 0
B131: Transporte de bagaço de cana-de-açúcar | C131: tkm | D131: =((D130/1000)*E1GM!$D$129) -> 0 | F131: =D131*'Dados auxiliares'!$H$131 -> 0
B132: Palha de cana-de-açúcar | C132: kg base seca | D132: =E1GM!$D$131*(1-E1GM!$D$132) -> 0 | F132: =D132*'Dados auxiliares'!$H$78 -> 0
B133: Transporte de palha de cana-de-açúcar | C133: tkm | D133: =((D132/1000)*E1GM!$D$133) -> 0 | F133: =D133*'Dados auxiliares'!$H$131 -> 0
B134: Emissões | C134: Unidade | D134: 1 t milho | F134: g CO2 eq/t milho | H134: g CO2 eq/MJ | I134: g CO2 eq/MJ
B135: CO₂ eq - queima do diesel | C135: kg | D135: =D119*'FE''s queima combustíveis'!$I$50/1000 -> 0 | F135: =D135*1000 -> 0 | H135: =(F135/$E$92)*$F$92 ->  | I135: =(F135/$E$93)*$F$93 -> 
B136: CO₂ eq - queima do biodiesel | C136: kg | D136: =D120*'FE''s queima combustíveis'!$I$51/1000 -> 0 | F136: 0
B137: CO₂ eq - queima do óleo combustível | C137: kg | D137: =D121*'FE''s queima combustíveis'!$I$53/1000 -> 0 | F137: =D137*1000 -> 0
B138: CO₂ eq - queima do etanol hidratado próprio | C138: kg | D138: =E1GM!D109*'Dados auxiliares'!$D$16*'FE''s queima combustíveis'!$I$57/1000 -> 0 | F138: 0
B139: CO₂ eq - queima do etanol anidro próprio | C139: kg | D139: =E1GM!D110*'Dados auxiliares'!$D$15*'FE''s queima combustíveis'!$I$55/1000 -> 0 | F139: 0
B140: CO₂ eq - queima do biogás de terceiros | C140: kg | D140: =E1GM!D111*E1GM!G111*'FE''s queima combustíveis'!$I$41/1000 -> 0 | F140: =D140*1000 -> 0 | H140: =(F140/$E$92)*$F$92 -> 
B141: CO₂ eq - queima do biogás próprio | C141: kg | D141: =E1GM!D112*E1GM!G112*'FE''s queima combustíveis'!$I$41/1000 -> 0 | F141: =D141*1000 -> 0 | H141: =(F141/$E$92)*$F$92 -> 
B142: CO₂ eq - queima da gás natural | C142: kg | D142: =D123*'FE''s queima combustíveis'!$I$46*('Dados auxiliares'!$D$27*1000)/1000 -> 0 | F142: 0
B143: CO₂ eq - queima do bagaço de cana-de-açúcar | C143: kg | D143: =D130*'FE''s queima combustíveis'!$I$36/1000 -> 0 | F143: 0
B144: CO₂ eq - queima da palha de cana-de-açúcar | C144: kg | D144: =D132*'FE''s queima combustíveis'!$I$37/1000 -> 0 | F144: 0
B145: CO₂ eq - queima dos cavacos de madeira | C145: kg | D145: =D124*'FE''s queima combustíveis'!$I$38/1000 -> 0 | F145: 0
B146: CO₂ eq - queima da lenha | C146: kg | D146: =D126*'FE''s queima combustíveis'!$I$39/1000 -> 0 | F146: 0
B147: CO₂ eq - queima dos resíduos florestais | C147: kg | D147: =D128*'FE''s queima combustíveis'!$I$40/1000 -> 0 | F147: 0
B149: Emissões do processo | C149: g CO2 eq/t milho | F149: =SUM(F135:F147) -> 0 | I149: =(F149/$E$93)*$F$93 -> 
B150: Emissões background | C150: g CO2 eq/t milho | F150: =SUM(F102:F133) -> 
B151: Emissões totais | C151: g CO2 eq/t milho | F151: =F149+F150 -> 
B154: Etapa distribuição
B155: Sistema logístico rodoviário
B156: Parâmetro | C156: Unidade | D156: Etanol anidro | E156: Etanol hidratado
B157: Massa | C157: kg/t milho | D157: =$D$92*E1GM!$D$139 -> 0 | E157: =$D$93*E1GM!$D$144 -> 0
B158: Distância de transporte rodoviário | C158: km | D158: ='Dados auxiliares'!C157 -> 700 | E158: ='Dados auxiliares'!C157 -> 700
B159: Transporte rodoviário | C159: tkm/t milho | D159: =D157/1000*D158 -> 0 | E159: =E157/1000*E158 -> 0
B160: Emissões | C160: g CO2 eq/t milho | D160: =D159*'Dados auxiliares'!$H$132 -> 0 | E160: =E159*'Dados auxiliares'!$H$132 -> 0
B161: Emissões | C161: g CO2 eq/MJ | D161: =D160/$E$92 ->  | E161: =E160/$E$93 -> 
B162: Sistema logístico fluvial
B163: Parâmetro | C163: Unidade | D163: Etanol anidro | E163: Etanol hidratado
B164: Massa | C164: kg/t milho | D164: =$D$92*E1GM!$D$140 -> 0 | E164: =$D$93*E1GM!$D$145 -> 0
B165: Distância de transporte rodoviário | C165: km | D165: ='Dados auxiliares'!K157 -> 1300 | E165: ='Dados auxiliares'!K157 -> 1300
B166: Transporte rodoviário | C166: tkm/t milho | D166: =D164/1000*D165 -> 0 | E166: =E164/1000*E165 -> 0
B167: Distância de transporte fluvial | C167: km | D167: ='Dados auxiliares'!L157 -> 1240 | E167: ='Dados auxiliares'!L157 -> 1240
B168: Transporte fluvial | C168: tkm/t milho | D168: =D164/1000*D167 -> 0 | E168: =E164/1000*E167 -> 0
B169: Emissões | C169: g CO2 eq/t milho | D169: =D166*'Dados auxiliares'!$H$132+D168*'Dados auxiliares'!$H$134 -> 0 | E169: =E166*'Dados auxiliares'!$H$132+E168*'Dados auxiliares'!$H$134 -> 0
B170: Emissões | C170: g CO2 eq/MJ | D170: =D169/$E$92 ->  | E170: =E169/$E$93 -> 
B172: Emissões totais | C172: g CO2 eq/MJ | D172: =D161+D170 ->  | E172: =E161+E170 -> 

Sheet E1GMI
B2: Etanol combustível importado de primeira geração produzido a partir de milho
B4: Nome da Usina: | C4: Usina Hipotética
B6: CNPJ | C6: 00.000.000/0000-00
B8: Responsável pelo preenchimento:
B10: Telefone : | C10: (00) 0000-0000
C13: Etanol Anidro
B15: Intensidade de Carbono (g CO₂eq/MJ) | C15: =SUM(C17:C20) -> 0.439 | D15: Nota de Eficiência Energético-Ambiental (g CO₂eq/MJ) | G15: =G18-C15 -> 86.961
B17: agrícola | C17: =IFERROR(IF(C13="Etanol Anidro",_E1GMI!C5,IF(C13="Etanol Hidratado",_E1GMI!E5,"")),0) -> 0 | G17: Fóssil substituto: Gasolina
B18: industrial | C18: =IFERROR(IF(C13="Etanol Anidro",_E1GMI!C6,IF(C13="Etanol Hidratado",_E1GMI!E6,"")),0) -> 0 | G18: ='Dados auxiliares'!F166 -> 87.4
B19: transporte | C19: =IFERROR(IF(C13="Etanol Anidro",_E1GMI!C7,IF(C13="Etanol Hidratado",_E1GMI!E7,"")),0) -> 0 | G19: Redução de emissões
B20: uso | C20: =IFERROR(IF(C13="Etanol Anidro",_E1GMI!C8,IF(C13="Etanol Hidratado",_E1GMI!E8,"")),0) -> 0.439 | G20: =(G18-C15)/G18 -> 0.9949771167
B23: Fase agrícola - Dados consolidados
B24: Informações gerais
C25: Sistema de plantio | D25: Convencional
C26: Área total | E26: ha
C28: Produção total (base úmida) | E28: t milho | F28: Umidade
B29: Quantidade comprada pela unidade produtora de biocombustível (base úmida) | E29: t milho
C30: Palha recolhida (base seca) | E30: t palha
B32: Corretivos
C33: Calcário calcítico | E33: kg/t milho
C34: Calcário dolomítico | E34: kg/t milho
C35: Gesso | E35: kg/t milho
B37: Sementes
C38: Sementes | E38: kg/t milho
B40: Fertilizantes Sintéticos
C41: Ureia | E41: kg N/t milho
C42: Fosfato Monoamônico (MAP) | E42: kg N/t milho
C43: Fosfato Monoamônico (MAP) | E43: kg P₂O₅/t milho
C44: Fosfato diamônico (DAP) | E44: kg N/t milho
C45: Fosfato diamônico (DAP) | E45: kg P₂O₅/t milho
C46: Nitrato de amônio | E46: kg N/t milho
C47: Solução de nitrato de amônio e ureia (UAN) | E47: kg N/t milho
C48: Amônia anidra | E48: kg N/t milho
C49: Sulfato de amônio | E49: kg N/t milho
C50: Nitrato de amônio e cálcio (CAN) | E50: kg N/t milho
C51: Superfosfato simples (SSP) | E51: kg P₂O₅/t milho
C52: Superfosfato triplo (TSP) | E52: kg P₂O₅/t milho
C53: Cloreto de potássio (KCl) | E53: kg K₂O/t milho
B54: Outros | C54: especificar | E54: kg N/t milho
B55: Outros | C55: especificar | E55: kg P₂O₅/t milho
B56: Outros | C56: especificar | E56: kg K₂O/t milho
B58: Fertilizantes Orgânicos/Organominerais
B59: Outros | C59: especificar | E59: kg/t milho | F59: Concentração de N | H59: g N/kg
B60: Outros | C60: especificar | E60: kg/t milho | F60: Concentração de N | H60: g N/kg
B61: Outros | C61: especificar | E61: kg/t milho | F61: Concentração de N | H61: g N/kg
B62: Outros | C62: especificar | E62: kg/t milho | F62: Concentração de N | H62: g N/kg
B63: Outros | C63: especificar | E63: kg/t milho | F63: Concentração de N | H63: g N/kg
B65: Combustíveis e eletricidade
C66: Diesel - B8 | E66: L/t milho
C67: Diesel - B10 | E67: L/t milho
C68: Diesel - BX | E68: L/t milho | F68: Teor de biodiesel na mistura
C69: Diesel - B20 | E69: L/t milho
C70: Diesel - B30 | E70: L/t milho
C71: Biodiesel - B100 | E71: L/t milho
C72: Gasolina C | E72: L/t milho
C73: Etanol hidratado | E73: L/t milho
C74: Biometano de terceiros | E74: Nm³/t milho
C75: Biometano próprio | E75: Nm³/t milho
C76: Gás Natural | E76: Nm³/t milho
C77: GLP | E77: L/t milho
C78: Eletricidade da rede - mix médio EUA | E78: kWh/t milho
B81: Fase industrial - processamento do etanol
B82: Processamento e rendimentos
C83: Quantidade de milho processado | E83: t milho/ano | F83: Umidade
C84: Distância de transporte - milho | E84: km
C85: Rendimento - Etanol anidro | E85: L/ t milho
C86: Rendimento - Etanol hidratado | E86: L/ t milho
C87: Rendimento Energia elétrica comercializada | E87: kWh/ t milho
C88: Rendimento - DDG (Distillers Dried Grains) | E88: kg/ t milho | F88: Umidade
C89: Rendimento - DDGS (Distillers Dried Grains with Solubles) | E89: kg/ t milho | F89: Umidade
C90: Rendimento - CGM (Corn Gluten Meal) | E90: kg/ t milho | F90: Umidade
C91: Rendimento - CGF (Corn Gluten Feed) | E91: kg/ t milho | F91: Umidade
C92: Rendimento - Óleo de milho | E92: kg/ t milho
B94: Combustíveis e eletricidade
C95: Eletricidade da rede - mix médio EUA | E95: kWh/t milho
C96: Diesel - B8 | E96: L/t milho
C97: Diesel - B10 | E97: L/t milho
C98: Diesel - BX | E98: L/t milho | F98: Teor de biodiesel na mistura
C99: Diesel - B20 | E99: L/t milho
C100: Diesel - B30 | E100: L/t milho
C101: Biodiesel - B100 | E101: L/t milho
C102: Óleo combustível | E102: L/t milho
C103: Etanol hidratado próprio | E103: L/t milho
C104: Etanol anidro próprio | E104: L/t milho
C105: Biogás de terceiros | E105: Nm³/t milho | F105: PCI do biogás | H105: MJ/Nm³
C106: Biogás próprio | E106: Nm³/t milho | F106: PCI do biogás | H106: MJ/Nm³
C107: Gás natural | E107: Nm³/t milho
C108: Calor (carvão) | E108: MJ/t milho
C109: Cavaco de madeira
C110: Quantidade (base úmida) | E110: kg/t milho
C111: Umidade
C112: Distância de transporte | E112: km
C113: Lenha
C114: Quantidade (base úmida) | E114: kg/t milho
C115: Umidade
C116: Distância de transporte | E116: km
C117: Resíduos florestais
C118: Quantidade (base úmida) | E118: kg/t milho
C119: Umidade
C120: Distância de transporte | E120: km
B123: Fase de distribuição
C125: Etanol anidro
C126: Marítimo | D126: 1 | E126: =IF((D126=1),"","A porcentagem desta distribuição deve ser igual a 100%!") -> 
C129: Etanol hidratado
C130: Marítimo | D130: 1 | E130: =IF((D130=1),"","A porcentagem desta distribuição deve ser igual a 100%!") -> 

Sheet _E1GMI (hidden)
B2: Emissões totais - g CO₂ eq
C3: Anidro | E3: Hidratado
B4: Total | C4: =C5+C6+C7+C8 ->  | E4: =E5+E6+E7+E8 -> 
B5: Agrícola | C5: =$H$87 ->  | D5: =C5/$C$4 ->  | E5: =$I$87 ->  | F5: =E5/$E$4 -> 
B6: Industrial | C6: =$H$143-$H$105 ->  | D6: =C6/$C$4 ->  | E6: =$I$143-$I$105 ->  | F6: =E6/$E$4 -> 
B7: Transporte | C7: =$D$159 ->  | E7: =$E$159 -> 
B8: Uso | C8: ='FE''s queima combustíveis'!$I$7 -> 0.439 | E8: ='FE''s queima combustíveis'!$I$8 -> 0.663
B11: Etapa agrícola - Milho | H11: Emissões por MJ de etanol anidro | I11: Emissões por MJ de etanol hidratado
B12: Produto | D12: 1 ha médio | E12: 1 t milho
B13: Produção de milho | C13: kg | D13: =E1GMI!D28/E1GMI!D26*1000 ->  | E13: 1000
B14: Entradas da natureza | D14: 1 ha médio | E14: 1 t milho | F14: g CO2 eq/t milho
B15: Ocupação total | C15: ha | D15: 1 | E15: =(D15*E13)/D13 ->  | F15: -
B16: Entradas da tecnosfera | D16: 1 ha médio | E16: 1 t milho | F16: g CO2 eq/t milho | H16: g CO2 eq/MJ | I16: g CO2 eq/MJ
B17: Sementes de milho | C17: kg | E17: =E1GMI!D38 -> 0 | F17: =E17*'Dados auxiliares'!$H$75 -> 0 | H17: =(F17/$E$92)*$F$92 ->  | I17: =(F17/$E$93)*$F$93 -> 
B18: Água | C18: kg | D18: 602 | E18: =D18*$E$15/$D$15 ->  | F18: =E18*'Dados auxiliares'!$H$83 ->  | H18: =(F18/$E$92)*$F$92 ->  | I18: =(F18/$E$93)*$F$93 -> 
B19: Fertilizantes e corretivos
B20: Calcário calcítico | C20: kg | E20: =E1GMI!D33 -> 0 | F20: =E20*'Dados auxiliares'!$H$52 -> 0 | H20: =(F20/$E$92)*$F$92 -> 
B21: Calcário dolomítico | C21: kg | E21: =E1GMI!D34 -> 0 | F21: =E21*'Dados auxiliares'!$H$53 -> 0
B22: Gesso | C22: kg | E22: =E1GMI!D35 -> 0 | F22: =E22*'Dados auxiliares'!$H$54 -> 0
B23: N - Ureia | C23: kg N | E23: =E1GMI!D41 -> 0 | F23: =E23*'Dados auxiliares'!$H$55 -> 0
B24: N - Fosfato monoamônico (MAP) | C24: kg N | E24: =E1GMI!D42 -> 0 | F24: =E24*'Dados auxiliares'!$H$56 -> 0
B25: P₂O₅ - Fosfato monoamônico (MAP) | C25: kg P₂O₅ | E25: =E1GMI!D43 -> 0 | F25: =E25*'Dados auxiliares'!$H$57 -> 0
B26: N - Fosfato diamônico (DAP) | C26: kg N | E26: =E1GMI!D44 -> 0 | F26: =E26*'Dados auxiliares'!$H$58 -> 0
B27: P₂O₅ - Fosfato diamônico (DAP) | C27: kg P₂O₅ | E27: =E1GMI!D45 -> 0 | F27: =E27*'Dados auxiliares'!$H$59 -> 0
B28: N - Nitrato de amônio | C28: kg N | E28: =E1GMI!D46 -> 0 | F28: =E28*'Dados auxiliares'!$H$60 -> 0
B29: N - Solução de nitrato de amônio e ureia (UAN) | C29: kg N | E29: =E1GMI!D47 -> 0 | F29: =E29*'Dados auxiliares'!$H$61 -> 0
B30: N - Amônia anidra | C30: kg N | E30: =E1GMI!D48 -> 0 | F30: =E30*'Dados auxiliares'!$H$62 -> 0
B31: N - Sulfato de amônio | C31: kg N | E31: =E1GMI!D49 -> 0 | F31: =E31*'Dados auxiliares'!$H$63 -> 0
B32: N - Nitrato de amônio e cálcio (CAN) | C32: kg N | E32: =E1GMI!D50 -> 0 | F32: =E32*'Dados auxiliares'!$H$64 -> 0
B33: P₂O₅ - Superfosfato simples (SSP) | C33: kg P₂O₅ | E33: =E1GMI!D51 -> 0 | F33: =E33*'Dados auxiliares'!$H$66 -> 0
B34: P₂O₅ - Superfosfato triplo (TSP) | C34: kg P₂O₅ | E34: =E1GMI!D52 -> 0 | F34: =E34*'Dados auxiliares'!$H$67 -> 0
B35: K₂O - Cloreto de potássio (KCl) | C35: kg K₂O | E35: =E1GMI!D53 -> 0 | F35: =E35*'Dados auxiliares'!H$68 -> 0
B36: N - Outros | C36: kg N | E36: =E1GMI!D54 -> 0 | F36: =E36*'Dados auxiliares'!H$69 -> 0
B37: P₂O₅ - Outros | C37: kg P₂O₅ | E37: =E1GMI!D55 -> 0 | F37: =E37*'Dados auxiliares'!H$70 -> 0
B38: K₂O - Outros | C38: kg K₂O | E38: =E1GMI!D56 -> 0 | F38: =E38*'Dados auxiliares'!H$71 -> 0
B39: Outros Fertilizantes Orgânicos/Organominerais | C39: kg | E39: =SUM(E1GMI!D59:D63) -> 0 | F39: 0
B40: Agroquímicos
B41: Herbicidas, Fungicidas, Inseticidas, Adjuvantes | C41: kg | D41: =SUM(D42:D59) -> 4.0067465 | E41: =SUM(E42:E59) ->  | F41: =SUM(F42:F59) ->  | H41: =(F41/$E$92)*$F$92 -> 
B42: Herbicida, como glifosato | C42: kg | D42: 0.7518739298 | E42: =D42*$E$15 ->  | F42: =E42*'Dados auxiliares'!$H$72 -> 
B43: Herbicida,como atrazina | C43: kg | D43: 2.093299303 | E43: =D43*$E$15 ->  | F43: =E43*'Dados auxiliares'!$H$74 -> 
B44: Herbicida, como Nicosulfuron | C44: kg | D44: 0.002363752979 | F44: =E44*'Dados auxiliares'!$H$74 -> 
B45: Fungicida, como tebuconazol | C45: kg | D45: 0.01832616435 | F45: =E45*'Dados auxiliares'!$H$74 -> 
B46: Fungicida, como Fluxapiroxade | C46: kg | D46: 0.005554547059 | F46: =E46*'Dados auxiliares'!$H$74 -> 
B47: Fungicida, como Piraclostrobina | C47: kg | D47: 0.01107583336 | F47: =E47*'Dados auxiliares'!$H$74 -> 
B48: Fungicida, como azoxistrobina | C48: kg | D48: 0.03105651829 | F48: =E48*'Dados auxiliares'!$H$74 -> 
B49: Fungicida, como trifloxistrobina | C49: kg | D49: 0.009163082174 | F49: =E49*'Dados auxiliares'!$H$74 -> 
B50: Fungicida, como Difeconazol | C50: kg | D50: 0.01126423255 | F50: =E50*'Dados auxiliares'!$H$74 -> 
B51: Fungicida, como ciproconazole | C51: kg | D51: 0.01242260731 | F51: =E51*'Dados auxiliares'!$H$74 -> 
B52: Inseticida, como Imidacloprido | C52: kg | D52: 0.1666937539 | F52: =E52*'Dados auxiliares'!$H$74 -> 
B53: Inseticida, como tiodicarbe | C53: kg | D53: 0.0995295831 | F53: =E53*'Dados auxiliares'!$H$74 -> 
B54: Inseticida, Connect, como beta-ciflutrina | C54: kg | D54: 0.06649568978 | F54: =E54*'Dados auxiliares'!$H$74 -> 
B55: Inseticida, como teflubenzurom | C55: kg | D55: 0.005078613669 | F55: =E55*'Dados auxiliares'!$H$74 -> 
B56: Inseticida, como bifentrina | C56: kg | D56: 0.003945864839 | F56: =E56*'Dados auxiliares'!$H$74 -> 
B57: Inseticida, como lufenuron | C57: kg | D57: 0.001636264674 | F57: =E57*'Dados auxiliares'!$H$74 -> 
B58: Adjuvante, como óleo mineral | C58: kg | D58: 0.1446327459 | F58: =E58*'Dados auxiliares'!$H$74 -> 
B59: Adjuvante, como ester metílico | C59: kg | D59: 0.5723340139 | E59: =D59*$E$15 ->  | F59: =E59*'Dados auxiliares'!$H$74 -> 
B60: Combustíveis e eletricidade
B61: Diesel B0 | C61: kg | E61: =(E1GMI!$D$66*(1-0.08)+E1GMI!$D$67*(1-0.1)+E1GMI!$D$68*(1-E1GMI!$G$68)+E1GMI!$D$69*(1-0.2)+E1GMI!$D$70*(1-0.3)+E1GMI!$D$71*(1-1))*('Dados auxiliares'!$D$26) -> 0 | F61: =E61*'Dados auxiliares'!$H$116 -> 0 | H61: =(F61/$E$92)*$F$92 -> 
B62: Biodiesel B100 | C62: kg | E62: =(E1GMI!$D$66*(0.08)+E1GMI!$D$67*(0.1)+E1GMI!$D$68*(E1GMI!$G$68)+E1GMI!$D$69*(0.2)+E1GMI!$D$70*(0.3)+E1GMI!$D$71*(1))*('Dados auxiliares'!$D$17) -> 0 | F62: =E62*'Dados auxiliares'!$H$117 -> 0
B63: Gasolina A | C63: kg | E63: =E1GMI!$D$72*(1-'FE''s queima combustíveis'!$D$19)*'Dados auxiliares'!$D$24 -> 0 | F63: =E63*'Dados auxiliares'!$H$120 -> 0
B64: Etanol anidro | C64: kg | E64: =E1GMI!$D$72*('FE''s queima combustíveis'!$D$19)*'Dados auxiliares'!$D$15 -> 0 | F64: =E64*'Dados auxiliares'!$H$121 -> 0
B65: Etanol hidratado | C65: kg | E65: =E1GMI!$D$73*'Dados auxiliares'!$D$16 -> 0 | F65: =E65*'Dados auxiliares'!$H$122 -> 0
B66: Biometano de terceiros | C66: Nm³ | E66: =E1GMI!D74 -> 0 | F66: =E66*('Dados auxiliares'!$D$18*1000)*'Dados auxiliares'!$F$18*'Dados auxiliares'!$H$125 -> 0
B67: Gás Natural | C67: Nm³ | E67: =E1GMI!D76 -> 0 | F67: =E67*'Dados auxiliares'!$H$115 -> 0
B68: GPL | C68: kg | E68: =E1GMI!D77*'Dados auxiliares'!$D$29 -> 0 | F68: =E68*'Dados auxiliares'!$H$119 -> 0
B69: Eletricidade da rede - mix médio EUA | C69: kWh | E69: =E1GMI!D78 -> 0 | F69: =E69*'Dados auxiliares'!$H$113 -> 0
B70: Emissões | D70: 1 ha médio | E70: 1 t milho | F70: g CO2 eq/t milho | H70: g CO2 eq/MJ | I70: g CO2 eq/MJ
B71: N2O - Fertilizantes sintéticos | C71: kg | D71: ='_Emissões Agrícolas'!$I$54 ->  | E71: =D71*$E$15 ->  | F71: =E71*1000*'Dados auxiliares'!$D$9 ->  | H71: =(F71/$E$92)*$F$92 -> 
B72: N2O - Fertilizantes organominerais | C72: kg | D72: ='_Emissões Agrícolas'!$I$58 ->  | E72: =D72*$E$15 ->  | F72: =E72*1000*'Dados auxiliares'!$D$9 -> 
B73: N2O - Resíduos culturais | C73: kg | D73: ='_Emissões Agrícolas'!$I$62 ->  | F73: =E73*1000*'Dados auxiliares'!$D$9 -> 
B74: CO2 - Calcário | C74: kg | E74: =$E$20*'_Emissões Agrícolas'!$E$79+$E$21*'_Emissões Agrícolas'!$E$80 -> 0 | F74: =E74*1000 -> 0
B75: CO2 - Uréia | C75: kg | E75: =$E$23*'_Emissões Agrícolas'!$E$81 -> 0 | F75: =E75*1000 -> 0
B76: CO₂ eq - queima do diesel | C76: kg | E76: =$E$61*'FE''s queima combustíveis'!$I$64/1000 -> 0 | F76: =E76*1000 -> 0
B77: CO₂ eq - queima do biodiesel | C77: kg | E77: =$E$62*'FE''s queima combustíveis'!$I$65/1000 -> 0 | F77: =E77*1000 -> 0
B78: CO₂ eq - queima da gasolina A | C78: kg | E78: =$E$63*'FE''s queima combustíveis'!$I$9/1000 -> 0 | F78: 0
B79: CO₂ eq - queima do etanol anidro | C79: kg | E79: =$E$64*'FE''s queima combustíveis'!$I$7/1000 -> 0 | F79: 0
B80: CO₂ eq - queima do etanol hidratado | C80: kg | E80: =$E$65*'FE''s queima combustíveis'!$I$8/1000 -> 0 | F80: 0
B81: CO₂ eq - queima do biometano | C81: kg | E81: =($E$66+E1GMI!D75)*'FE''s queima combustíveis'!$I$66/1000 -> 0 | F81: 0
B82: CO₂ eq - queima do gás natural | C82: kg | E82: =$E$67*'FE''s queima combustíveis'!$I$67/1000 -> 0 | F82: 0 | I82: =(F82/$E$93)*$F$93 -> 
B83: CO₂ eq - queima do GLP | C83: kg | E83: =$E$68*'FE''s queima combustíveis'!$I$68/1000 -> 0 | F83: 0
B85: Emissões do processo | C85: g CO2 eq/t milho | F85: =SUM(F71:F83) ->  | H85: =(F85/$E$92)*$F$92 -> 
B86: Emissões background | C86: g CO2 eq/t milho | F86: =SUM(F17:F41,F60:F69) -> 
B87: Emissões totais | C87: g CO2 eq/t milho | F87: =F85+F86 -> 
B90: Etapa industrial - Etanol de milho | H90: Emissões por MJ de etanol anidro | I90: Emissões por MJ de etanol hidratado
B91: Produtos | C91: Unidade | D91: 1 t milho | E91: MJ | F91: Alocação
B92: Etanol Anidro | C92: kg | D92: =E1GMI!D85*'Dados auxiliares'!$D$15 -> 0 | E92: =D92*'Dados auxiliares'!$F$15 -> 0 | F92: =E92/SUM($E$92:$E$99) -> 
B93: Etanol Hidratado | C93: kg | D93: =E1GMI!D86*'Dados auxiliares'!$D$16 -> 0 | E93: =D93*'Dados auxiliares'!$F$16 -> 0 | F93: =E93/SUM($E$92:$E$99) -> 
B94: Eletricidade | C94: kWh | D94: =E1GMI!D87 -> 0 | E94: =CONVERT(D94,"kWh","MJ") -> 0
B95: DDGS | C95: kg base seca | D95: =E1GMI!D89*(1-E1GMI!G89) -> 0 | E95: =D95*'Dados auxiliares'!D38 -> 0
B96: DDG | C96: kg base seca | D96: =E1GMI!D88*(1-E1GMI!G88) -> 0 | E96: =D96*'Dados auxiliares'!D37 -> 0
B97: CGM | C97: kg base seca | D97: =E1GMI!D90*(1-E1GMI!G90) -> 0 | E97: =D97*'Dados auxiliares'!D39 -> 0
B98: CGF | C98: kg base seca | D98: =E1GMI!D91*(1-E1GMI!G91) -> 0 | E98: =D98*'Dados auxiliares'!D40 -> 0
B99: Óleo de Milho | C99: kg | D99: =E1GMI!D92 -> 0 | E99: =D99*'Dados auxiliares'!D41 -> 0
B100: Entradas | C100: Unidade | D100: 1 t milho | F100: g CO2 eq/t milho | H100: g CO2 eq/MJ | I100: g CO2 eq/MJ
B101: Processamento dos grãos
B102: Processamento com secagem | C102: m³ | D102: =(0.00004878*0.65) -> 3.1707e-05 | F102: =D102*'Dados auxiliares'!$H$81 -> 1.01812087e-06 | H102: =(F102/$E$92)*$F$92 ->  | I102: =(F102/$E$93)*$F$93 -> 
B103: Processamento sem secagem | C103: m³ | D103: =(0.00004878*0.35) -> 1.7073e-05 | F103: =D103*'Dados auxiliares'!$H$80 -> 2.69943542e-07
B104: Insumos
B105: Milho (grãos) | C105: t | D105: 1 | F105: =D105*F87 ->  | H105: =(F105/$E$92)*$F$92 ->  | I105: =(F105/$E$93)*$F$93 -> 
B106: Transporte do milho em grãos até a usina | C106: tkm | D106: =D105*E1GMI!D84 -> 0 | F106: =D106*'Dados auxiliares'!$H$131 -> 0 | H106: =(F106/$E$92)*$F$92 -> 
B107: CaO | C107: kg | D107: 1.202334815 | F107: =D107*'Dados auxiliares'!$H$84 -> 1156.330068 | H107: =(F107/$E$92)*$F$92 ->  | I107: =(F107/$E$93)*$F$93 -> 
B108: Enzimas | C108: kg | D108: 0.9 | F108: =D108*'Dados auxiliares'!$H$99 -> 1179 | I108: =(F108/$E$93)*$F$93 -> 
B109: Ácido sulfúrico | C109: kg | D109: 0.53 | F109: =D109*'Dados auxiliares'!$H$88 -> 57.96072564
B110: Hidróxido de sódio | C110: kg | D110: 2.52 | F110: =D110*'Dados auxiliares'!$H$97 -> 1291.394644
B111: Amônia | C111: kg | D111: 2.01 | F111: =D111*'Dados auxiliares'!$H$95 -> 6149.268684
B112: Levedura | C112: kg | D112: 0.31 | F112: =D112*'Dados auxiliares'!$H$98 -> 325.4091525
B113: Zeolita | C113: kg | D113: 0.062 | F113: =D113*'Dados auxiliares'!$H$94 -> 310.6404182
B114: Combustíveis e eletricidade
B115: Eletricidade da rede - mix médio EUA | C115: kWh | D115: =E1GMI!D95 -> 0 | F115: =D115*'Dados auxiliares'!$H$113 -> 0 | H115: =(F115/$E$92)*$F$92 ->  | I115: =(F115/$E$93)*$F$93 -> 
B116: Diesel B0 | C116: kg | D116: =(E1GMI!$D$96*(1-0.08)+E1GMI!$D$97*(1-0.1)+E1GMI!$D$98*(1-E1GMI!$G$98)+E1GMI!$D$99*(1-0.2)+E1GMI!$D$100*(1-0.3)+E1GMI!$D$101*(1-1))*('Dados auxiliares'!$D$26) -> 0 | F116: =D116*'Dados auxiliares'!$H$116 -> 0
B117: Biodiesel B100 | C117: kg | D117: =(E1GMI!$D$96*(0.08)+E1GMI!$D$97*(0.1)+E1GMI!$D$98*(E1GMI!$G$98)+E1GMI!$D$99*(0.2)+E1GMI!$D$100*(0.3)+E1GMI!$D$101*(1))*('Dados auxiliares'!$D$17) -> 0 | F117: =D117*'Dados auxiliares'!$H$117 -> 0
B118: Óleo combusível | C118: kg | D118: =E1GMI!D102*'Dados auxiliares'!$D$30 -> 0 | F118: =D118*'Dados auxiliares'!$H$126 -> 0 | H118: =(F118/$E$92)*$F$92 ->  | I118: =(F118/$E$93)*$F$93 -> 
B119: Biogás de terceiros | C119: Nm³ | D119: =E1GMI!D105 -> 0 | F119: =D119*E1GMI!G105*'Dados auxiliares'!$H$125 -> 0
B120: Gás natural | C120: Nm³ | D120: =E1GMI!D107 -> 0 | F120: =D120*'Dados auxiliares'!$H$115 -> 0
B121: Calor (carvão) | C121: MJ | D121: =E1GMI!D108 -> 0 | F121: =D121*'Dados auxiliares'!H127 -> 0
B122: Cavaco de madeira | C122: kg base seca | D122: =E1GMI!$D$110*(1-E1GMI!$D$111) -> 0 | F122: =D122*'Dados auxiliares'!$H$123 -> 0
B123: Transporte de cavaco de madeira | C123: tkm | D123: =((D122/1000)*E1GMI!$D$112) -> 0 | F123: =D123*'Dados auxiliares'!$H$131 -> 0
B124: Lenha | C124: kg base seca | D124: =E1GMI!$D$114*(1-E1GMI!$D$115) -> 0 | F124: =D124*'Dados auxiliares'!$H$124 -> 0
B125: Transporte de lenha | C125: tkm | D125: =((D124/1000)*E1GMI!$D$116) -> 0 | F125: =D125*'Dados auxiliares'!$H$131 -> 0
B126: Resíduos florestais | C126: kg base seca | D126: =E1GMI!$D$118*(1-E1GMI!$D$119) -> 0 | F126: 0
B127: Transporte de resíduos florestais | C127: tkm | D127: =((D126/1000)*E1GMI!$D$120) -> 0 | F127: =D127*'Dados auxiliares'!$H$131 -> 0
B128: Emissões | C128: Unidade | D128: 1 t milho | F128: g CO2 eq/t milho | H128: g CO2 eq/MJ | I128: g CO2 eq/MJ
B129: CO₂ eq - queima do diesel | C129: kg | D129: =D116*'FE''s queima combustíveis'!$I$50/1000 -> 0 | F129: =D129*1000 -> 0 | H129: =(F129/$E$92)*$F$92 ->  | I129: =(F129/$E$93)*$F$93 -> 
B130: CO₂ eq - queima do biodiesel | C130: kg | D130: =D117*'FE''s queima combustíveis'!$I$51/1000 -> 0 | F130: 0
B131: CO₂ eq - queima do óleo combustível | C131: kg | D131: =D118*'FE''s queima combustíveis'!$I$53/1000 -> 0 | F131: 0 | H131: =(F131/$E$92)*$F$92 ->  | I131: =(F131/$E$93)*$F$93 -> 
B132: CO₂ eq - queima do etanol hidratado próprio | C132: kg | D132: =E1GMI!D103*'Dados auxiliares'!$D$16*'FE''s queima combustíveis'!$I$57/1000 -> 0 | F132: 0
B133: CO₂ eq - queima do etanol anidro próprio | C133: kg | D133: =E1GMI!D104*'Dados auxiliares'!$D$15*'FE''s queima combustíveis'!$I$55/1000 -> 0 | F133: 0
B134: CO₂ eq - queima do biogás de terceiros | C134: kg | D134: =E1GMI!D105*E1GMI!G105*'FE''s queima combustíveis'!$I$41/1000 -> 0 | F134: 0
B135: CO₂ eq - queima do biogás próprio | C135: kg | D135: =E1GMI!D106*E1GMI!G106*'FE''s queima combustíveis'!$I$41/1000 -> 0 | F135: 0
B136: CO₂ eq - queima da gás natural | C136: kg | D136: =D120*'FE''s queima combustíveis'!$I$46*('Dados auxiliares'!$D$27*1000)/1000 -> 0 | F136: 0
B137: CO₂ eq - queima dos cavacos de madeira | C137: kg | D137: =D122*'FE''s queima combustíveis'!$I$38/1000 -> 0 | F137: 0
B138: CO₂ eq - queima da lenha | C138: kg | D138: =D124*'FE''s queima combustíveis'!$I$39/1000 -> 0 | F138: 0
B139: CO₂ eq - queima dos resíduos florestais | C139: kg | D139: =D126*'FE''s queima combustíveis'!$I$40/1000 -> 0 | F139: 0
B141: Emissões do processo | C141: g CO2 eq/t milho | F141: =SUM(F129:F139) -> 0 | I141: =(F141/$E$93)*$F$93 -> 
B142: Emissões background | C142: g CO2 eq/t milho | F142: =SUM(F102:F127) -> 
B143: Emissões totais | C143: g CO2 eq/t milho | F143: =F141+F142 -> 
B146: Etapa distribuição
B147: Sistema logístico marítimo
B148: Parâmetro | C148: Unidade | D148: Etanol anidro | E148: Etanol hidratado
B149: Massa | C149: kg/t milho | D149: =$D$92*E1GMI!$D$126 -> 0 | E149: =$D$93*E1GMI!$E$126 -> 
B150: Distância de transporte rodoviário | C150: km | D150: ='Dados auxiliares'!H158 -> 600 | E150: ='Dados auxiliares'!H158 -> 600
B151: Transporte rodoviário | C151: tkm/t milho | D151: =D149/1000*D150 -> 0 | E151: =E149/1000*E150 -> 
B152: Distância de transporte marítimo | C152: km | D152: ='Dados auxiliares'!J158 -> 13000 | E152: ='Dados auxiliares'!J158 -> 13000
B153: Transporte marítimo | C153: tkm/t milho | D153: =D149/1000*D152 -> 0 | E153: =E149/1000*E152 -> 
B154: Distância de transporte ferroviário | C154: km | D154: ='Dados auxiliares'!I158 -> 1400 | E154: ='Dados auxiliares'!I158 -> 1400
B155: Transporte ferroviário | C155: tkm/t milho | D155: =D149/1000*D154 -> 0 | E155: =E149/1000*E154 -> 
B156: Emissões | C156: g CO2 eq/t milho | D156: =D151*'Dados auxiliares'!$H$132+D153*'Dados auxiliares'!$H$133+D155*'Dados auxiliares'!$H$135 -> 0 | E156: =E151*'Dados auxiliares'!$H$132+E153*'Dados auxiliares'!$H$133+E155*'Dados auxiliares'!$H$135 -> 
B157: Emissões | C157: g CO2 eq/MJ | D157: =D156/$E$92 ->  | E157: =E156/$E$93 -> 
B159: Emissões totais | C159: g CO2 eq/MJ | D159: =D157 ->  | E159: =E157 -> 

Sheet Biodiesel
B2: Biodiesel
B4: Nome da Usina: | C4: Usina Hipotética
B6: CNPJ | C6: 00.000.000/0000-00
B8: Responsável pelo preenchimento:
B10: Telefone : | C10: (00) 0000-0000
C13: Biodiesel
B15: Intensidade de Carbono (g CO₂eq/MJ) | C15: =IFERROR(_Biodiesel!C4,SUM(C17:C22)) -> 0.439 | D15: Nota de Eficiência Energético-Ambiental (g CO₂eq/MJ) | G15: =G18-C15 -> 86.061
B17: Óleo de soja próprio - agrícola | C17: =IFERROR(_Biodiesel!C5,0) -> 0 | G17: Fóssil substituto: Diesel
B18: Óleo de soja próprio - extração | C18: =IFERROR(_Biodiesel!C6,0) -> 0 | G18: ='Dados auxiliares'!F168 -> 86.5
B19: Outros óleos | C19: =IFERROR(_Biodiesel!C7,0) -> 0
B20: Transesterificação | C20: =IFERROR(_Biodiesel!C8,0) -> 0 | G20: Redução de emissões
B21: transporte | C21: =IFERROR(_Biodiesel!C9,0) -> 0 | G21: =(G18-C15)/G18 -> 0.9949248555
B22: uso | C22: =IFERROR(_Biodiesel!C10,0) -> 0.439
B25: Fase agrícola - Dados consolidados
B26: Informações gerais
C27: Sistema de plantio | D27: Convencional
C28: Área total | E28: ha
C30: Produção total (base úmida) | E30: t soja | F30: Umidade
B31: Quantidade comprada pela unidade produtora de biocombustível (base úmida) | E31: t soja
B33: Corretivos
C34: Calcário calcítico | E34: kg/t soja
C35: Calcário dolomítico | E35: kg/t soja
C36: Gesso | E36: kg/t soja
B38: Sementes
C39: Sementes | E39: kg/t soja
B41: Fertilizantes Sintéticos
C42: Ureia | E42: kg N/t soja
C43: Fosfato Monoamônico (MAP) | E43: kg N/t soja
C44: Fosfato Monoamônico (MAP) | E44: kg P₂O₅/t soja
C45: Fosfato diamônico (DAP) | E45: kg N/t soja
C46: Fosfato diamônico (DAP) | E46: kg P₂O₅/t soja
C47: Nitrato de amônio | E47: kg N/t soja
C48: Solução de nitrato de amônio e ureia (UAN) | E48: kg N/t soja
C49: Amônia anidra | E49: kg N/t soja
C50: Sulfato de amônio | E50: kg N/t soja
C51: Nitrato de amônio e cálcio (CAN) | E51: kg N/t soja
C52: Superfosfato simples (SSP) | E52: kg P₂O₅/t soja
C53: Superfosfato triplo (TSP) | E53: kg P₂O₅/t soja
C54: Cloreto de potássio (KCl) | E54: kg K₂O/t soja
B55: Outros | C55: especificar | E55: kg N/t soja
B56: Outros | C56: especificar | E56: kg P₂O₅/t soja
B57: Outros | C57: especificar | E57: kg K₂O/t soja
B59: Fertilizantes Orgânicos/Organominerais
B60: Outros | C60: especificar | E60: kg/t soja | F60: Concentração de N | H60: g N/kg
B61: Outros | C61: especificar | E61: kg/t soja | F61: Concentração de N | H61: g N/kg
B62: Outros | C62: especificar | E62: kg/t soja | F62: Concentração de N | H62: g N/kg
B63: Outros | C63: especificar | E63: kg/t soja | F63: Concentração de N | H63: g N/kg
B64: Outros | C64: especificar | E64: kg/t soja | F64: Concentração de N | H64: g N/kg
B66: Combustíveis e eletricidade
C67: Diesel - B8 | E67: L/t soja
C68: Diesel - B10 | E68: L/t soja
C69: Diesel - BX | E69: L/t soja | F69: Teor de biodiesel na mistura
C70: Diesel - B20 | E70: L/t soja
C71: Diesel - B30 | E71: L/t soja
C72: Biodiesel - B100 | E72: L/t soja
C73: Gasolina C | E73: L/t soja
C74: Etanol hidratado | E74: L/t soja
C75: Biometano de terceiros | E75: Nm³/t soja
C76: Biometano próprio | E76: Nm³/t soja
C77: Eletricidade da rede - mix médio | E77: kWh/t soja
C78: Eletricidade - PCH | E78: kWh/t soja
C79: Eletricidade - biomassa | E79: kWh/t soja
C80: Eletricidade - eólica | E80: kWh/t soja
C81: Eletricidade - solar | E81: kWh/t soja
B84: Fase industrial - extração do óleo de soja
B85: Processamento e rendimentos
C86: Processamento efetivo - soja | E86: t soja | F86: Umidade
C87: Distância de transporte - soja | E87: km
C88: Rendimento Óleo | E88: kg/t soja
C89: Rendimento Farelo | E89: kg/t soja
B91: Combustíveis e eletricidade
C92: Eletricidade da rede - mix médio | E92: kWh/t soja
C93: Eletricidade - PCH | E93: kWh/t soja
C94: Eletricidade - biomassa | E94: kWh/t soja
C95: Eletricidade - eólica | E95: kWh/t soja
C96: Eletricidade - solar | E96: kWh/t soja
C97: Diesel - B8 | E97: L/t soja
C98: Diesel - B10 | E98: L/t soja
C99: Diesel - BX | E99: L/t soja | F99: Teor de biodiesel na mistura
C100: Diesel - B20 | E100: L/t soja
C101: Diesel - B30 | E101: L/t soja
C102: Biodiesel - B100 | E102: L/t soja
C103: Óleo combustível | E103: L/ t soja
C104: Biogás de terceiros | E104: Nm³/t soja | F104: PCI do biogás | H104: MJ/Nm³
C105: Biogás próprio | E105: Nm³/t soja | F105: PCI do biogás | H105: MJ/Nm³
C106: Gás natural | E106: Nm³/t soja
C107: Cavaco de madeira
C108: Quantidade (base úmida) | E108: kg/t soja
C109: Umidade
C110: Distância de transporte | E110: km
C111: Lenha
C112: Quantidade (base úmida) | E112: kg/t soja
C113: Umidade
C114: Distância de transporte | E114: km
C115: Resíduos florestais
C116: Quantidade (base úmida) | E116: kg/t soja
C117: Umidade
C118: Distância de transporte | E118: km
C119: Bagaço de cana
C120: Quantidade (base úmida) | E120: kg/t soja
C121: Umidade
C122: Distância de transporte | E122: km
C123: Palha de cana
C124: Quantidade (base úmida) | E124: kg/t soja
C125: Umidade
C126: Distância de transporte | E126: km
B129: Fase industrial - produção do biodiesel
B130: Processamento e rendimentos
D131: Óleo de soja próprio
C132: Quantidade de óleo de soja processado | E132: t óleo/ano
C133: Distância de transporte - óleo de soja | E133: km
C134: Alguma fração dessa matéria-prima é elegível?
D135: Óleo de soja de terceiros
C136: Quantidade de óleo de soja processado | E136: t óleo/ano | F136: Intensidade de Carbono média do óleo adquirido pela unidade produtora | H136: g CO₂ eq/kg óleo
C137: Distância média de transporte - óleo de soja | E137: km
C138: Alguma fração dessa matéria-prima é elegível?
D139: Óleo de palma
C140: Quantidade de óleo de palma processado | E140: t óleo/ano
C141: Distância de transporte - óleo de palma | E141: km
C142: Alguma fração dessa matéria-prima é elegível?
D143: Óleo de algodão
C144: Quantidade de óleo de algodão processado | E144: t óleo/ano
C145: Distância de transporte - óleo de algodão | E145: km
C146: Alguma fração dessa matéria-prima é elegível?
D147: Outros óleos vegetais
C148: Quantidade de outros óleos vegetais processado | E148: t óleo/ano
C149: Distância de transporte - outros óleos vegetais | E149: km
C150: Alguma fração dessa matéria-prima é elegível?
D151: Óleo de fritura usado
C152: Aporte total de óleo de fritura usado processado | E152: t óleo/ano
C153: Distância de transporte - óleo de fritura usado | E153: km
D154: Gordura animal
C155: Aporte total de gordura animal processada | E155: t gordura animal/ano
C156: Distância de transporte - gordura animal | E156: km
D157: Outros óleos residuais
C158: Aporte total de outros óleos residuais processado | E158: t óleo/ano
C159: Distância de transporte - outros óleos residuais | E159: km
C162: Rota de produção
C163: Produção de Biodiesel | E163: m³/ano
C164: Produção de Glicerina purificada | E164: t/ano
C165: Produção de Glicerina bruta | E165: t/ano
B167: Insumos
C168: Metanol | E168: t/ano
C169: Metilato de sódio | E169: t/ano
C170: Etanol anidro | E170: t/ano
C171: Hidróxido de sódio | E171: t/ano
B172: Combustíveis e eletricidade
C173: Eletricidade da rede - mix médio | E173: MWh/ano
C174: Eletricidade - PCH | E174: MWh/ano
C175: Eletricidade - biomassa | E175: MWh/ano
C176: Eletricidade - eólica | E176: MWh/ano
C177: Eletricidade - solar | E177: MWh/ano
C178: Diesel - B8 | E178: m³/ano
C179: Diesel - B10 | E179: m³/ano
C180: Diesel - BX | E180: m³/ano | F180: Teor de biodiesel na mistura
C181: Diesel - B20 | E181: m³/ano
C182: Diesel - B30 | E182: m³/ano
C183: Biodiesel - B100 | E183: m³/ano
C184: Óleo combustível | E184: m3/ ano
C185: Biogás de terceiros | E185: Nm³/ano | F185: PCI do biogás | H185: MJ/Nm³
C186: Biogás próprio | E186: Nm³/ano | F186: PCI do biogás | H186: MJ/Nm³
C187: Gás natural | E187: Nm³/ano
C188: Cavaco de madeira
C189: Quantidade (base úmida) | E189: t/ano
C190: Umidade
C191: Distância de transporte | E191: km
C192: Lenha
C193: Quantidade (base úmida) | E193: t/ano
C194: Umidade
C195: Distância de transporte | E195: km
C196: Resíduos florestais
C197: Quantidade (base úmida) | E197: t/ano
C198: Umidade
C199: Distância de transporte | E199: km
C200: Bagaço de cana
C201: Quantidade (base úmida) | E201: t/ano
C202: Umidade
C203: Distância de transporte | E203: km
C204: Palha de cana
C205: Quantidade (base úmida) | E205: t/ano
C206: Umidade
C207: Distância de transporte | E207: km
B210: Fase de distribuição
C212: Rodoviário | D212: 0
C213: Fluvial | D213: 0 | E213: =IF((SUM(D212:D214)=1),"","A soma das porcentagens de distribuição deve ser igual a 100%!") -> A soma das porcentagens de distribuição deve ser igual a 100%!
C214: Ferroviário | D214: 0

Sheet _Biodiesel (hidden)
B2: Emissões totais - g CO₂ eq
C3: Biodiesel
B4: Total | C4: =H195+C9+C10 -> 
B5: Óleo de soja próprio - agrícola | C5: =IF($D$77=0,0,(H136*(H72/H124))) -> 0 | D5: =C5/$C$4 -> 
B6: Óleo de soja próprio - extração | C6: =H136-C5 ->  | D6: =C6/$C$4 -> 
B7: Outros óleos | C7: =H138+H140+H142+H144+H146+H148+H150 ->  | D7: =C7/$C$4 -> 
B8: Transesterificação | C8: =H195-C7-C6-C5 ->  | D8: =C8/$C$4 -> 
B9: Transporte | C9: =$D$226 -> 
B10: Uso | C10: ='FE''s queima combustíveis'!$I$6 -> 0.439 | D10: =C10/$C$4 -> 
B13: Etapa agrícola - Soja | H13: Emissões por MJ de biodiesel
B14: Produto | D14: 1 ha médio | E14: 1 t soja
B15: Produção de soja | C15: kg | D15: =(Biodiesel!D30*1000)/Biodiesel!D28 ->  | E15: 1000
B16: Entradas da natureza | D16: 1 ha médio | E16: 1 t soja | F16: g CO2 eq/t soja
B17: Ocupação total | C17: ha | D17: 1 | E17: =(D17*E15)/D15 -> 
B18: Entradas da tecnosfera | D18: 1 ha médio | E18: 1 t soja | F18: g CO2 eq/t soja | H18: g CO2 eq/MJ
B19: Sementes de soja | C19: kg | E19: =Biodiesel!D39 -> 0 | F19: =E19*'Dados auxiliares'!$H$76 -> 0 | H19: =(((F19*$F$77)/$D$77)*1000*$F$131)/$E$131 -> 
B20: Fertilizantes e corretivos
B21: Calcário calcítico | C21: kg | E21: =Biodiesel!D34 -> 0 | F21: =E21*'Dados auxiliares'!$H$52 -> 0 | H21: =(((F21*$F$77)/$D$77)*1000*$F$131)/$E$131 -> 
B22: Calcário dolomítico | C22: kg | E22: =Biodiesel!D35 -> 0 | F22: =E22*'Dados auxiliares'!$H$53 -> 0
B23: Gesso | C23: kg | E23: =Biodiesel!D36 -> 0 | F23: =E23*'Dados auxiliares'!$H$54 -> 0
B24: N - Ureia | C24: kg N | E24: =Biodiesel!D42 -> 0 | F24: =E24*'Dados auxiliares'!$H$55 -> 0
B25: N - Fosfato monoamônico (MAP) | C25: kg N | E25: =Biodiesel!D43 -> 0 | F25: =E25*'Dados auxiliares'!$H$56 -> 0
B26: P₂O₅ - Fosfato monoamônico (MAP) | C26: kg P₂O₅ | E26: =Biodiesel!D44 -> 0 | F26: =E26*'Dados auxiliares'!$H$57 -> 0
B27: N - Fosfato diamônico (DAP) | C27: kg N | E27: =Biodiesel!D45 -> 0 | F27: =E27*'Dados auxiliares'!$H$58 -> 0
B28: P₂O₅ - Fosfato diamônico (DAP) | C28: kg P₂O₅ | E28: =Biodiesel!D46 -> 0 | F28: =E28*'Dados auxiliares'!$H$59 -> 0
B29: N - Nitrato de amônio | C29: kg N | E29: =Biodiesel!D47 -> 0 | F29: =E29*'Dados auxiliares'!$H$60 -> 0
B30: N - Solução de nitrato de amônio e ureia (UAN) | C30: kg N | E30: =Biodiesel!D48 -> 0 | F30: =E30*'Dados auxiliares'!$H$61 -> 0
B31: N - Amônia anidra | C31: kg N | E31: =Biodiesel!D49 -> 0 | F31: =E31*'Dados auxiliares'!$H$62 -> 0
B32: N - Sulfato de amônio | C32: kg N | E32: =Biodiesel!D50 -> 0 | F32: =E32*'Dados auxiliares'!$H$63 -> 0
B33: N - Nitrato de amônio e cálcio (CAN) | C33: kg N | E33: =Biodiesel!D51 -> 0 | F33: =E33*'Dados auxiliares'!$H$64 -> 0
B34: P₂O₅ - Superfosfato simples (SSP) | C34: kg P₂O₅ | E34: =Biodiesel!D52 -> 0 | F34: =E34*'Dados auxiliares'!$H$66 -> 0
B35: P₂O₅ - Superfosfato triplo (TSP) | C35: kg P₂O₅ | E35: =Biodiesel!D53 -> 0 | F35: =E35*'Dados auxiliares'!$H$67 -> 0
B36: K₂O - Cloreto de potássio (KCl) | C36: kg K₂O | E36: =Biodiesel!D54 -> 0 | F36: =E36*'Dados auxiliares'!H$68 -> 0
B37: N - Outros | C37: kg N | E37: =Biodiesel!D55 -> 0 | F37: =E37*'Dados auxiliares'!H$69 -> 0
B38: P₂O₅ - Outros | C38: kg P₂O₅ | E38: =Biodiesel!D56 -> 0 | F38: =E38*'Dados auxiliares'!H$70 -> 0
B39: K₂O - Outros | C39: kg K₂O | E39: =Biodiesel!D57 -> 0 | F39: =E39*'Dados auxiliares'!H$71 -> 0
B40: Outros Fertilizantes Orgânicos/Organominerais | C40: kg | E40: =Biodiesel!D60+Biodiesel!D61+Biodiesel!D62+Biodiesel!D63+Biodiesel!D64 -> 0 | F40: 0
B41: Agroquímicos
B42: Pesticidas, geral | C42: kg | E42: =0.000674630945913558*1000 -> 0.6746309459 | F42: =E42*'Dados auxiliares'!$H$74 -> 7247.237365 | H42: =(((F42*$F$77)/$D$77)*1000*$F$131)/$E$131 -> 
B43: Glifosato | C43: kg | E43: =0.00086569230646321*1000 -> 0.8656923065 | F43: =E43*'Dados auxiliares'!$H$72 -> 9960.401647 | H43: =(((F43*$F$77)/$D$77)*1000*$F$131)/$E$131 -> 
B44: 2,4-D | C44: kg | E44: =0.0000652020791723256*1000 -> 0.06520207917 | F44: =E44*'Dados auxiliares'!$H$73 -> 331.3355299 | H44: =(((F44*$F$77)/$D$77)*1000*$F$131)/$E$131 -> 
B45: Combustíveis e eletricidade
B46: Diesel B0 | C46: kg | E46: =(Biodiesel!D67*(1-0.08)+Biodiesel!$D$68*(1-0.1)+Biodiesel!$D$69*(1-Biodiesel!$G$69)+Biodiesel!$D$70*(1-0.2)+Biodiesel!$D$71*(1-0.3)+Biodiesel!$D$72*(1-1))*('Dados auxiliares'!$D$26) -> 0 | F46: =E46*'Dados auxiliares'!$H$116 -> 0 | H46: =(((F46*$F$77)/$D$77)*1000*$F$131)/$E$131 -> 
B47: Biodiesel B100 | C47: kg | E47: =(Biodiesel!D67*(0.08)+Biodiesel!$D$68*(0.1)+Biodiesel!$D$69*(Biodiesel!$G$69)+Biodiesel!$D$70*(0.2)+Biodiesel!$D$71*(0.3)+Biodiesel!$D$72*(1))*('Dados auxiliares'!$D$17) -> 0 | F47: =E47*'Dados auxiliares'!$H$117 -> 0
B48: Gasolina A | C48: kg | E48: =Biodiesel!$D$73*(1-'FE''s queima combustíveis'!$D$19)*'Dados auxiliares'!$D$24 -> 0 | F48: =E48*'Dados auxiliares'!$H$120 -> 0
B49: Etanol anidro | C49: kg | E49: =Biodiesel!$D$73*('FE''s queima combustíveis'!$D$19)*'Dados auxiliares'!$D$15 -> 0 | F49: =E49*'Dados auxiliares'!$H$121 -> 0
B50: Etanol hidratado | C50: kg | E50: =Biodiesel!$D$74*'Dados auxiliares'!$D$16 -> 0 | F50: =E50*'Dados auxiliares'!$H$122 -> 0
B51: Biometano de terceiros | C51: Nm³ | E51: =Biodiesel!D75 -> 0 | F51: =E51*('Dados auxiliares'!$D$18*1000)*'Dados auxiliares'!$F$18*'Dados auxiliares'!$H$125 -> 0
B52: Eletricidade da rede - mix médio | C52: kWh | E52: =Biodiesel!D77 -> 0 | F52: =E52*'Dados auxiliares'!$H$107 -> 0
B53: Eletricidade - PCH | C53: kWh | E53: =Biodiesel!D78 -> 0 | F53: =E53*'Dados auxiliares'!$H$108 -> 0
B54: Eletricidade - biomassa | C54: kWh | E54: =Biodiesel!D79 -> 0 | F54: =E54*'Dados auxiliares'!$H$109 -> 0
B55: Eletricidade - eólica | C55: kWh | E55: =Biodiesel!D80 -> 0 | F55: =E55*'Dados auxiliares'!$H$110 -> 0
B56: Eletricidade - solar | C56: kWh | E56: =Biodiesel!D81 -> 0 | F56: =E56*'Dados auxiliares'!$H$111 -> 0
B57: Emissões | D57: 1 ha médio | E57: 1 t soja | F57: g CO2 eq/t soja | H57: g CO2 eq/MJ
B58: N2O - Fertilizantes sintéticos | C58: kg | D58: ='_Emissões Agrícolas'!$J$54 ->  | E58: =D58*$E$17 ->  | F58: =E58*1000*'Dados auxiliares'!$D$9 ->  | H58: =(((F58*$F$77)/$D$77)*1000*$F$131)/$E$131 -> 
B59: N2O - Fertilizantes organominerais | C59: kg | D59: ='_Emissões Agrícolas'!$J$58 ->  | E59: =D59*$E$17 ->  | F59: =E59*1000*'Dados auxiliares'!$D$9 -> 
B60: N2O - Resíduos culturais | C60: kg | D60: ='_Emissões Agrícolas'!$J$62 ->  | F60: =E60*1000*'Dados auxiliares'!$D$9 -> 
B61: CO2 - Calcário | C61: kg | E61: =$E$21*'_Emissões Agrícolas'!$E$79+$E$22*'_Emissões Agrícolas'!$E$80 -> 0 | F61: =E61*1000 -> 0
B62: CO2 - Uréia | C62: kg | E62: =$E$24*'_Emissões Agrícolas'!$E$81 -> 0 | F62: =E62*1000 -> 0
B63: CO₂ eq - queima do diesel | C63: kg | E63: =$E$46*'FE''s queima combustíveis'!$I$64/1000 -> 0 | F63: =E63*1000 -> 0
B64: CO₂ eq - queima do biodiesel | C64: kg | E64: =$E$47*'FE''s queima combustíveis'!$I$65/1000 -> 0 | F64: =E64*1000 -> 0
B65: CO₂ eq - queima da gasolina A | C65: kg | E65: =$E$48*'FE''s queima combustíveis'!$I$9/1000 -> 0 | F65: 0
B66: CO₂ eq - queima do etanol anidro | C66: kg | E66: =$E$49*'FE''s queima combustíveis'!$I$7/1000 -> 0 | F66: 0
B67: CO₂ eq - queima do etanol hidratado | C67: kg | E67: =$E$50*'FE''s queima combustíveis'!$I$8/1000 -> 0 | F67: 0
B68: CO₂ eq - queima do biometano | C68: kg | E68: =($E$51+Biodiesel!$D$76)*'FE''s queima combustíveis'!$I$66/1000 -> 0 | F68: 0
B70: Emissões do processo | C70: g CO2 eq/t soja | F70: =SUM(F58:F68) ->  | H70: =(((F70*$F$77)/$D$77)*1000*$F$131)/$E$131 -> 
B71: Emissões background | C71: g CO2 eq/t soja | F71: =SUM(F19:F56) -> 17538.97454 | H71: =(((F71*$F$77)/$D$77)*1000*$F$131)/$E$131 -> 
B72: Emissões totais | C72: g CO2 eq/t soja | F72: =IF(OR(Biodiesel!$D$28=0,Biodiesel!$D$30=0),0,(F70+F71)) -> 0 | H72: =IF(D77=0,0,(((F72*$F$77)/$D$77)*1000*$F$131)/$E$131) -> 0
B75: Etapa industrial - Extração do óleo de soja | H75: Emissões por MJ de biodiesel
B76: Produtos | C76: Unidade | D76: 1 t soja | E76: MJ | F76: Alocação
B77: Óleo de soja | C77: kg | D77: =Biodiesel!D88 -> 0 | E77: =D77*'Dados auxiliares'!$D$42 -> 0 | F77: =E77/SUM($E$77:$E$78) -> 
B78: Farelo de soja | C78: kg | D78: =Biodiesel!D89 -> 0 | E78: =D78*'Dados auxiliares'!$D$43 -> 0 | F78: =E78/SUM($E$77:$E$78) -> 
B79: Entradas | C79: Unidade | D79: 1 t soja | F79: g CO2 eq/t soja | H79: g CO2 eq/MJ | BZ79: =(D77+D78)*F77 -> 
B80: Processamento dos grãos
B81: Processamento com secagem | C81: m³ | D81: =0.00004878*0.6 -> 2.9268e-05 | F81: =D81*'Dados auxiliares'!$H$81 -> 9.398038799e-07 | H81: =(((F81*$F$77)/$D$77)*1000*$F$131)/$E$131 -> 
B82: Processamento sem secagem | C82: m³ | D82: =0.00004878*0.4 -> 1.9512e-05 | F82: =D82*'Dados auxiliares'!$H$80 -> 3.085069051e-07 | H82: =(((F82*$F$77)/$D$77)*1000*$F$131)/$E$131 -> 
B83: Insumos
B84: Soja (grãos) | C84: t | D84: 1 | F84: =D84*F72 -> 0 | H84: =(((F84*$F$77)/$D$77)*1000*$F$131)/$E$131 ->  | BZ84: =BZ79*F126 ->  | CA84: =(BZ79*CB159)/1000 -> 
B85: Transporte da soja em grãos até a usina | C85: tkm | D85: =D84*Biodiesel!D87 -> 0 | F85: =D85*'Dados auxiliares'!$H$131 -> 0 | H85: =(((F85*$F$77)/$D$77)*1000*$F$131)/$E$131 -> 
B86: Hexano | C86: kg | D86: 1.1 | F86: =D86*'Dados auxiliares'!$H$100 -> 339.5816291 | H86: =(((F86*$F$77)/$D$77)*1000*$F$131)/$E$131 -> 
B87: Água | C87: kg | D87: =(2.34*992.3224568)/5.17 -> 449.1362764 | F87: =D87*'Dados auxiliares'!H83 -> 3.953105455 | H87: =(((F87*$F$77)/$D$77)*1000*$F$131)/$E$131 -> 
B88: Combustíveis e eletricidade
B89: Eletricidade da rede - mix médio | C89: kWh | D89: =Biodiesel!D92 -> 0 | F89: =D89*'Dados auxiliares'!$H$107 -> 0 | H89: =(((F89*$F$77)/$D$77)*1000*$F$131)/$E$131 -> 
B90: Eletricidade - PCH | C90: kWh | D90: =Biodiesel!D93 -> 0 | F90: =D90*'Dados auxiliares'!$H$108 -> 0
B91: Eletricidade - biomassa | C91: kWh | D91: =Biodiesel!D94 -> 0 | F91: =D91*'Dados auxiliares'!$H$109 -> 0
B92: Eletricidade - eólica | C92: kWh | D92: =Biodiesel!D95 -> 0 | F92: =D92*'Dados auxiliares'!$H$110 -> 0
B93: Eletricidade - solar | C93: kWh | D93: =Biodiesel!D96 -> 0 | F93: =D93*'Dados auxiliares'!$H$111 -> 0
B94: Diesel B0 | C94: kg | D94: =(Biodiesel!D97*(1-0.08)+Biodiesel!$D$98*(1-0.1)+Biodiesel!$D$99*(1-Biodiesel!$G$99)+Biodiesel!$D$100*(1-0.2)+Biodiesel!$D$101*(1-0.3)+Biodiesel!$D$102*(1-1))*('Dados auxiliares'!$D$26) -> 0 | F94: =D94*'Dados auxiliares'!$H$116 -> 0
B95: Biodiesel B100 | C95: kg | D95: =(Biodiesel!D97*(0.08)+Biodiesel!$D$98*(0.1)+Biodiesel!$D$99*(Biodiesel!$G$99)+Biodiesel!$D$100*(0.2)+Biodiesel!$D$101*(0.3)+Biodiesel!$D$102*(1))*('Dados auxiliares'!$D$17) -> 0 | F95: =D95*'Dados auxiliares'!$H$117 -> 0
B96: Óleo combusível | C96: kg | D96: =Biodiesel!D103*'Dados auxiliares'!$D$30 -> 0 | F96: =D96*'Dados auxiliares'!$H$126 -> 0
B97: Biogás de terceiros | C97: Nm³ | D97: =Biodiesel!D104 -> 0 | F97: =D97*Biodiesel!G104*'Dados auxiliares'!$H$125 -> 0
B98: Gás natural | C98: Nm³ | D98: =Biodiesel!D106 -> 0 | F98: =D98*'Dados auxiliares'!$H$115 -> 0
B99: Cavaco de madeira | C99: kg base seca | D99: =Biodiesel!$D$108*(1-Biodiesel!$D$109) -> 0 | F99: =D99*'Dados auxiliares'!$H$123 -> 0
B100: Transporte de cavaco de madeira | C100: tkm | D100: =((D99/1000)*Biodiesel!$D$110) -> 0 | F100: =D100*'Dados auxiliares'!$H$131 -> 0
B101: Lenha | C101: kg base seca | D101: =Biodiesel!$D$112*(1-Biodiesel!$D$113) -> 0 | F101: =D101*'Dados auxiliares'!$H$124 -> 0
B102: Transporte de lenha | C102: tkm | D102: =((D101/1000)*Biodiesel!$D$114) -> 0 | F102: =D102*'Dados auxiliares'!$H$131 -> 0
B103: Resíduos florestais | C103: kg base seca | D103: =Biodiesel!$D$116*(1-Biodiesel!$D$117) -> 0 | F103: 0
B104: Transporte de resíduos florestais | C104: tkm | D104: =((D103/1000)*Biodiesel!$D$118) -> 0 | F104: =D104*'Dados auxiliares'!$H$131 -> 0
B105: Bagaço de cana-de-açúcar | C105: kg base seca | D105: =Biodiesel!$D$120*(1-Biodiesel!$D$121) -> 0 | F105: 0
B106: Transporte de bagaço de cana-de-açúcar | C106: tkm | D106: =((D105/1000)*Biodiesel!$D$122) -> 0 | F106: =D106*'Dados auxiliares'!$H$131 -> 0
B107: Palha de cana-de-açúcar | C107: kg base seca | D107: =Biodiesel!$D$124*(1-Biodiesel!$D$125) -> 0 | F107: =D107*'Dados auxiliares'!$H$78 -> 0
B108: Transporte de palha de cana-de-açúcar | C108: tkm | D108: =((D107/1000)*Biodiesel!$D$126) -> 0 | F108: =D108*'Dados auxiliares'!$H$131 -> 0
B109: Emissões | C109: Unidade | D109: 1 t soja | F109: g CO2 eq/t soja | H109: g CO2 eq/MJ | CA109: Emissão desconsiderada
B110: CO₂ eq - queima do diesel | C110: kg | D110: =D94*'FE''s queima combustíveis'!$I$50/1000 -> 0 | F110: =D110*1000 -> 0 | H110: =(((F110*$F$77)/$D$77)*1000*$F$131)/$E$131 -> 
B111: CO₂ eq - queima do biodiesel | C111: kg | D111: =D95*'FE''s queima combustíveis'!$I$51/1000 -> 0 | F111: 0
B112: CO₂ eq - queima do óleo combustível | C112: kg | D112: =D96*'FE''s queima combustíveis'!$I$53/1000 -> 0 | F112: 0
B113: CO₂ eq - queima do biogás de terceiros | C113: kg | D113: =Biodiesel!D104*Biodiesel!G104*'FE''s queima combustíveis'!$I$41/1000 -> 0 | F113: 0
B114: CO₂ eq - queima do biogás próprio | C114: kg | D114: =Biodiesel!D105*Biodiesel!G105*'FE''s queima combustíveis'!$I$41/1000 -> 0 | F114: 0
B115: CO₂ eq - queima da gás natural | C115: kg | D115: =D98*'FE''s queima combustíveis'!$I$46*('Dados auxiliares'!$D$27*1000)/1000 -> 0 | F115: 0
B116: CO₂ eq - queima do bagaço de cana-de-açúcar | C116: kg | D116: =D105*'FE''s queima combustíveis'!$I$36/1000 -> 0 | F116: =D116*1000 -> 0
B117: CO₂ eq - queima da palha de cana-de-açúcar | C117: kg | D117: =D107*'FE''s queima combustíveis'!$I$37/1000 -> 0 | F117: 0
B118: CO₂ eq - queima dos cavacos de madeira | C118: kg | D118: =D99*'FE''s queima combustíveis'!$I$38/1000 -> 0 | F118: 0
B119: CO₂ eq - queima da lenha | C119: kg | D119: =D101*'FE''s queima combustíveis'!$I$39/1000 -> 0 | F119: 0
B120: CO₂ eq - queima dos resíduos florestais | C120: kg | D120: =D103*'FE''s queima combustíveis'!$I$40/1000 -> 0 | F120: 0
B122: Emissões do processo | C122: g CO2 eq/t soja | F122: =SUM(F110:F120) -> 0 | H122: =(((F122*$F$77)/$D$77)*1000*$F$131)/$E$131 -> 
B123: Emissões background | C123: g CO2 eq/t soja | F123: =SUM(F81:F108) -> 343.5347358 | H123: =(((F123*$F$77)/$D$77)*1000*$F$131)/$E$131 -> 
B124: Emissões totais | C124: g CO2 eq/t soja | F124: =F122+F123 -> 343.5347358 | H124: =IF($D$77=0,0,((((F124*$F$77)/$D$77)*1000*$F$131)/$E$131)) -> 0
B126: Emissões totais | C126: g CO2 eq/kg óleo de soja | F126: =IF(OR(Biodiesel!$D$86=0,Biodiesel!$D$88=0),0,(F124*F77/$D$77)) -> 0
B129: Etapa industrial - Produção de biodiesel | H129: Emissões por MJ de biodiesel | BX129: =F126*CB134 -> 
B130: Produtos | C130: Unidade | D130: 1 t matéria-prima | E130: MJ | F130: Alocação
B131: Biodiesel | C131: kg | D131: =(Biodiesel!D163*'Dados auxiliares'!$D$17)*1000/((Biodiesel!$D$132+Biodiesel!$D$136+Biodiesel!$D$140+Biodiesel!$D$144+Biodiesel!$D$148+Biodiesel!$D$152+Biodiesel!$D$155+Biodiesel!$D$158)) ->  | E131: =D131*'Dados auxiliares'!$F$17 ->  | F131: =E131/SUM($E$131:$E$133) -> 
B132: Glicerina purificada | C132: kg | D132: =Biodiesel!D164*1000/((Biodiesel!$D$132+Biodiesel!$D$136+Biodiesel!$D$140+Biodiesel!$D$144+Biodiesel!$D$148+Biodiesel!$D$152+Biodiesel!$D$155+Biodiesel!$D$158)) ->  | E132: =D132*'Dados auxiliares'!$D$44 ->  | F132: =E132/SUM($E$131:$E$133) -> 
B133: Glicerina bruta | C133: kg | D133: =Biodiesel!D165*1000/((Biodiesel!$D$132+Biodiesel!$D$136+Biodiesel!$D$140+Biodiesel!$D$144+Biodiesel!$D$148+Biodiesel!$D$152+Biodiesel!$D$155+Biodiesel!$D$158)) ->  | E133: =D133*'Dados auxiliares'!$D$45 ->  | F133: =E133/SUM($E$131:$E$133) ->  | J133: Alguma fração elegível | K133: Intensidade de Carbono da Matéria-prima (referência) | L133: Unidade da Intensidade de Carbono | M133: Quantidade de materia-prima elegível | O133: Intensidade de Carbono da Matéria-prima não elegível | Q133: Intensidade de Carbono da Matéria-prima (utilizada)
B134: Entradas | C134: Unidade | D134: 1 t matéria-prima | F134: g CO2 eq/t matéria-prima | H134: g CO2 eq/MJ | BZ134: =D131/BY134 ->  | CA134: =BZ134*1000 ->  | CB134: =CA134/D131 -> 
B135: Matérias-primas | K135: g CO2 eq/t óleo especíco | M135: t matéria-prima elegível | N135: % matéria-prima elegível | O135: % materia-prima elegível * IC materia-prima elegível
B136: Óleo de soja próprio | C136: t | D136: =Biodiesel!$D$132/((Biodiesel!$D$132+Biodiesel!$D$136+Biodiesel!$D$140+Biodiesel!$D$144+Biodiesel!$D$148+Biodiesel!$D$152+Biodiesel!$D$155+Biodiesel!$D$158)) ->  | F136: =D136*Q136*1000 ->  | H136: =(F136*$F$131)/$E$131 ->  | J136: =Biodiesel!D134 -> 0 | K136: =$F$126 -> 0 | L136: g CO2 eq/kg óleo de soja | M136: =D136*IF(J136="Sim",1,0) ->  | N136: =M136/$M$152 ->  | O136: =N136*K136 ->  | Q136: =IF(J136="Sim",K136,$O$152) -> 
B137: Transporte óleo de soja até a usina | C137: tkm | D137: =D136*Biodiesel!$D$133 ->  | F137: =D137*'Dados auxiliares'!$H$132 ->  | H137: =(F137*$F$131)/$E$131 -> 
B138: Óleo de soja fornecedores | C138: t | D138: =Biodiesel!$D$136/((Biodiesel!$D$132+Biodiesel!$D$136+Biodiesel!$D$140+Biodiesel!$D$144+Biodiesel!$D$148+Biodiesel!$D$152+Biodiesel!$D$155+Biodiesel!$D$158)) ->  | F138: =D138*Q138*1000 ->  | H138: =(F138*$F$131)/$E$131 ->  | J138: =Biodiesel!D138 -> 0 | K138: =Biodiesel!$G$136 -> 0 | L138: g CO2 eq/kg óleo de soja de terceiros | M138: =D138*IF(J138="Sim",1,0) ->  | N138: =M138/$M$152 ->  | O138: =N138*K138 ->  | Q138: =IF(J138="Sim",K138,$O$152) -> 
B139: Transporte óleo de soja até a usina | C139: tkm | D139: =D138*Biodiesel!$D$137 ->  | F139: =D139*'Dados auxiliares'!$H$132 -> 
B140: Óleo de palma | C140: t | D140: =Biodiesel!$D$140/((Biodiesel!$D$132+Biodiesel!$D$136+Biodiesel!$D$140+Biodiesel!$D$144+Biodiesel!$D$148+Biodiesel!$D$152+Biodiesel!$D$155+Biodiesel!$D$158)) ->  | F140: =D140*Q140*1000 ->  | J140: =Biodiesel!D142 -> 0 | K140: ='Dados auxiliares'!$H$104 -> 589.6166105 | L140: g CO2 eq/kg óleo de palma | M140: =D140*IF(J140="Sim",1,0) ->  | N140: =M140/$M$152 ->  | O140: =N140*K140 ->  | Q140: =IF(J140="Sim",K140,$O$152) -> 
B141: Transporte óleo de palma até a usina | C141: tkm | D141: =D140*Biodiesel!$D$141 ->  | F141: =D141*'Dados auxiliares'!$H$132 -> 
B142: Óleo de algodão | C142: t | D142: =Biodiesel!$D$144/((Biodiesel!$D$132+Biodiesel!$D$136+Biodiesel!$D$140+Biodiesel!$D$144+Biodiesel!$D$148+Biodiesel!$D$152+Biodiesel!$D$155+Biodiesel!$D$158)) ->  | F142: =D142*Q142*1000 ->  | J142: =Biodiesel!D146 -> 0 | K142: ='Dados auxiliares'!$H$103 -> 2214.958796 | L142: g CO2 eq/kg óleo de algodão | M142: =D142*IF(J142="Sim",1,0) ->  | N142: =M142/$M$152 ->  | O142: =N142*K142 ->  | Q142: =IF(J142="Sim",K142,$O$152) -> 
B143: Transporte óleo de algodão até a usina | C143: tkm | D143: =D142*Biodiesel!$D$145 ->  | F143: =D143*'Dados auxiliares'!$H$132 -> 
B144: Outros óleos vegetais | C144: t | D144: =Biodiesel!$D$148/((Biodiesel!$D$132+Biodiesel!$D$136+Biodiesel!$D$140+Biodiesel!$D$144+Biodiesel!$D$148+Biodiesel!$D$152+Biodiesel!$D$155+Biodiesel!$D$158)) ->  | F144: =D144*Q144*1000 ->  | J144: =Biodiesel!D150 -> 0 | K144: ='Dados auxiliares'!$H$105 -> 2214.958796 | L144: g CO2 eq/kg outros óleos vegetais | M144: =D144*IF(J144="Sim",1,0) ->  | N144: =M144/$M$152 ->  | O144: =N144*K144 ->  | Q144: =IF(J144="Sim",K144,$O$152) -> 
B145: Transporte outros óleos vegetais até a usina | C145: tkm | D145: =D144*Biodiesel!$D$149 ->  | F145: =D145*'Dados auxiliares'!$H$132 -> 
B146: Óleo de fritura usado | C146: t | D146: =Biodiesel!$D$152/((Biodiesel!$D$132+Biodiesel!$D$136+Biodiesel!$D$140+Biodiesel!$D$144+Biodiesel!$D$148+Biodiesel!$D$152+Biodiesel!$D$155+Biodiesel!$D$158)) ->  | F146: 0 | J146: - | K146: =F146 -> 0 | L146: g CO2 eq/kg Óleo de fritura | M146: =D146 ->  | N146: =M146/$M$152 ->  | O146: =N146*K146 ->  | Q146: =K146 -> 0
B147: Transporte óleo de fritura usado até a usina | C147: tkm | D147: =D146*Biodiesel!$D$153 ->  | F147: =D147*'Dados auxiliares'!$H$132 -> 
B148: Gordura animal | C148: t | D148: =Biodiesel!$D$155/((Biodiesel!$D$132+Biodiesel!$D$136+Biodiesel!$D$140+Biodiesel!$D$144+Biodiesel!$D$148+Biodiesel!$D$152+Biodiesel!$D$155+Biodiesel!$D$158)) ->  | F148: 0 | J148: - | K148: =F148 -> 0 | L148: g CO2 eq/kg Gordura animal | M148: =D148 ->  | N148: =M148/$M$152 ->  | O148: =N148*K148 ->  | Q148: =K148 -> 0
B149: Transporte gordura animal até a usina | C149: tkm | D149: =D148*Biodiesel!$D$156 ->  | F149: =D149*'Dados auxiliares'!$H$132 -> 
B150: Outros óleos residuais | C150: t | D150: =Biodiesel!$D$158/((Biodiesel!$D$132+Biodiesel!$D$136+Biodiesel!$D$140+Biodiesel!$D$144+Biodiesel!$D$148+Biodiesel!$D$152+Biodiesel!$D$155+Biodiesel!$D$158)) ->  | F150: 0 | J150: - | K150: =F150 -> 0 | L150: g CO2 eq/kg Outros oleos residuais | M150: =D150 ->  | N150: =M150/$M$152 ->  | O150: =N150*K150 ->  | Q150: =K150 -> 0
B151: Transporte outros óleos residiais até a usina | C151: tkm | D151: =D150*Biodiesel!$D$159 ->  | F151: =D151*'Dados auxiliares'!$H$132 ->  | O151: g CO2 eq/kg materia-prima não elegível
B152: Insumos | M152: =SUM(M136:M150) ->  | N152: =SUM(N136:N150) ->  | O152: =SUM(O136:O150) -> 
B153: Água | C153: kg | D153: 328.6384977 | F153: =D153*'Dados auxiliares'!$H$83 -> 2.892535531
B154: Metanol | C154: kg | D154: =Biodiesel!D168*1000/((Biodiesel!$D$132+Biodiesel!$D$136+Biodiesel!$D$140+Biodiesel!$D$144+Biodiesel!$D$148+Biodiesel!$D$152+Biodiesel!$D$155+Biodiesel!$D$158)) ->  | F154: =D154*'Dados auxiliares'!$H$101 -> 
B155: Metilato de sódio | C155: kg | D155: =Biodiesel!D169*1000/((Biodiesel!$D$132+Biodiesel!$D$136+Biodiesel!$D$140+Biodiesel!$D$144+Biodiesel!$D$148+Biodiesel!$D$152+Biodiesel!$D$155+Biodiesel!$D$158)) ->  | F155: =D155*'Dados auxiliares'!$H$90 -> 
B156: Ácido clorídrico | C156: kg | D156: =IF(Biodiesel!$D$162="Metílica",13.0516431924883,0) -> 0 | F156: =D156*'Dados auxiliares'!$H$86 -> 0
B157: Ácido fosfórico | C157: kg | D157: =IF(Biodiesel!$D$162="Metílica",0.5,IF(Biodiesel!$D$162="Etílica",0.0301810865191147,0)) -> 0 | F157: =D157*'Dados auxiliares'!$H$89 -> 0 | BZ157: =D131+D132 -> 
B158: Etanol anidro | C158: kg | D158: =Biodiesel!D170*1000/((Biodiesel!$D$132+Biodiesel!$D$136+Biodiesel!$D$140+Biodiesel!$D$144+Biodiesel!$D$148+Biodiesel!$D$152+Biodiesel!$D$155+Biodiesel!$D$158)) ->  | F158: =D158*'Dados auxiliares'!$H$121 -> 
B159: Hidróxido de sódio | C159: kg | D159: =Biodiesel!D171*1000/((Biodiesel!$D$132+Biodiesel!$D$136+Biodiesel!$D$140+Biodiesel!$D$144+Biodiesel!$D$148+Biodiesel!$D$152+Biodiesel!$D$155+Biodiesel!$D$158)) ->  | F159: =D159*'Dados auxiliares'!$H$97 ->  | BZ159: =BZ157*#REF! -> 
B160: Eletricidade da rede - mix médio | C160: kWh | D160: =Biodiesel!D173*1000/((Biodiesel!$D$132+Biodiesel!$D$136+Biodiesel!$D$140+Biodiesel!$D$144+Biodiesel!$D$148+Biodiesel!$D$152+Biodiesel!$D$155+Biodiesel!$D$158)) ->  | F160: =D160*'Dados auxiliares'!$H$107 -> 
B161: Eletricidade - PCH | C161: kWh | D161: =Biodiesel!D174*1000/((Biodiesel!$D$132+Biodiesel!$D$136+Biodiesel!$D$140+Biodiesel!$D$144+Biodiesel!$D$148+Biodiesel!$D$152+Biodiesel!$D$155+Biodiesel!$D$158)) ->  | F161: =D161*'Dados auxiliares'!$H$108 -> 
B162: Eletricidade - biomassa | C162: kWh | D162: =Biodiesel!D175*1000/((Biodiesel!$D$132+Biodiesel!$D$136+Biodiesel!$D$140+Biodiesel!$D$144+Biodiesel!$D$148+Biodiesel!$D$152+Biodiesel!$D$155+Biodiesel!$D$158)) ->  | F162: =D162*'Dados auxiliares'!$H$109 -> 
B163: Eletricidade - eólica | C163: kWh | D163: =Biodiesel!D176*1000/((Biodiesel!$D$132+Biodiesel!$D$136+Biodiesel!$D$140+Biodiesel!$D$144+Biodiesel!$D$148+Biodiesel!$D$152+Biodiesel!$D$155+Biodiesel!$D$158)) ->  | F163: =D163*'Dados auxiliares'!$H$110 -> 
B164: Eletricidade - solar | C164: kWh | D164: =Biodiesel!D177*1000/((Biodiesel!$D$132+Biodiesel!$D$136+Biodiesel!$D$140+Biodiesel!$D$144+Biodiesel!$D$148+Biodiesel!$D$152+Biodiesel!$D$155+Biodiesel!$D$158)) ->  | F164: =D164*'Dados auxiliares'!$H$111 -> 
B165: Diesel B0 | C165: kg | D165: =((Biodiesel!D178*(1-0.08)+Biodiesel!$D$179*(1-0.1)+Biodiesel!$D$180*(1-Biodiesel!$G$180)+Biodiesel!$D$181*(1-0.2)+Biodiesel!$D$182*(1-0.3)+Biodiesel!$D$183*(1-1))*('Dados auxiliares'!$D$26))*1000/((Biodiesel!$D$132+Biodiesel!$D$136+Biodiesel!$D$140+Biodiesel!$D$144+Biodiesel!$D$148+Biodiesel!$D$152+Biodiesel!$D$155+Biodiesel!$D$158)) ->  | F165: =D165*'Dados auxiliares'!$H$116 -> 
B166: Biodiesel B100 | C166: kg | D166: =((Biodiesel!D178*(0.08)+Biodiesel!$D$179*(0.1)+Biodiesel!$D$180*(Biodiesel!$G$180)+Biodiesel!$D$181*(0.2)+Biodiesel!$D$182*(0.3)+Biodiesel!$D$183*(1))*('Dados auxiliares'!$D$17))*1000/((Biodiesel!$D$132+Biodiesel!$D$136+Biodiesel!$D$140+Biodiesel!$D$144+Biodiesel!$D$148+Biodiesel!$D$152+Biodiesel!$D$155+Biodiesel!$D$158)) ->  | F166: =D166*'Dados auxiliares'!$H$117 -> 
B167: Óleo combusível | C167: kg | D167: =(Biodiesel!D184*1000/((Biodiesel!$D$132+Biodiesel!$D$136+Biodiesel!$D$140+Biodiesel!$D$144+Biodiesel!$D$148+Biodiesel!$D$152+Biodiesel!$D$155+Biodiesel!$D$158)))*'Dados auxiliares'!$D$30 ->  | F167: =D167*'Dados auxiliares'!$H$126 -> 
B168: Biogás de terceiros | C168: Nm³ | D168: =Biodiesel!D185/((Biodiesel!$D$132+Biodiesel!$D$136+Biodiesel!$D$140+Biodiesel!$D$144+Biodiesel!$D$148+Biodiesel!$D$152+Biodiesel!$D$155+Biodiesel!$D$158)) ->  | F168: =D168*Biodiesel!G185*'Dados auxiliares'!$H$125 -> 
B169: Gás natural | C169: Nm³ | D169: =Biodiesel!D187/((Biodiesel!$D$132+Biodiesel!$D$136+Biodiesel!$D$140+Biodiesel!$D$144+Biodiesel!$D$148+Biodiesel!$D$152+Biodiesel!$D$155+Biodiesel!$D$158)) ->  | F169: =D169*'Dados auxiliares'!$H$115 -> 
B170: Cavaco de madeira | C170: kg base seca | D170: =Biodiesel!$D$189*(1-Biodiesel!$D$190)*1000/((Biodiesel!$D$132+Biodiesel!$D$136+Biodiesel!$D$140+Biodiesel!$D$144+Biodiesel!$D$148+Biodiesel!$D$152+Biodiesel!$D$155+Biodiesel!$D$158)) ->  | F170: =D170*'Dados auxiliares'!$H$123 -> 
B171: Transporte de cavaco de madeira | C171: tkm | D171: =((D170/1000)*Biodiesel!$D$191) ->  | F171: =D171*'Dados auxiliares'!$H$131 -> 
B172: Lenha | C172: kg base seca | D172: =Biodiesel!$D$193*(1-Biodiesel!$D$194)*1000/((Biodiesel!$D$132+Biodiesel!$D$136+Biodiesel!$D$140+Biodiesel!$D$144+Biodiesel!$D$148+Biodiesel!$D$152+Biodiesel!$D$155+Biodiesel!$D$158)) ->  | F172: =D172*'Dados auxiliares'!$H$124 -> 
B173: Transporte de lenha | C173: tkm | D173: =((D172/1000)*Biodiesel!$D$195) ->  | F173: =D173*'Dados auxiliares'!$H$131 -> 
B174: Resíduos florestais | C174: kg base seca | D174: =Biodiesel!$D$197*(1-Biodiesel!$D$198)*1000/((Biodiesel!$D$132+Biodiesel!$D$136+Biodiesel!$D$140+Biodiesel!$D$144+Biodiesel!$D$148+Biodiesel!$D$152+Biodiesel!$D$155+Biodiesel!$D$158)) ->  | F174: 0
B175: Transporte de resíduos florestais | C175: tkm | D175: =((D174/1000)*Biodiesel!$D$199) ->  | F175: =D175*'Dados auxiliares'!$H$131 -> 
B176: Bagaço de cana-de-açúcar | C176: kg base seca | D176: =Biodiesel!$D$201*(1-Biodiesel!$D$202)*1000/((Biodiesel!$D$132+Biodiesel!$D$136+Biodiesel!$D$140+Biodiesel!$D$144+Biodiesel!$D$148+Biodiesel!$D$152+Biodiesel!$D$155+Biodiesel!$D$158)) ->  | F176: 0
B177: Transporte de bagaço de cana-de-açúcar | C177: tkm | D177: =((D176/1000)*Biodiesel!$D$203) ->  | F177: =D177*'Dados auxiliares'!$H$131 -> 
B178: Palha de cana-de-açúcar | C178: kg base seca | D178: =Biodiesel!$D$205*(1-Biodiesel!$D$206)*1000/((Biodiesel!$D$132+Biodiesel!$D$136+Biodiesel!$D$140+Biodiesel!$D$144+Biodiesel!$D$148+Biodiesel!$D$152+Biodiesel!$D$155+Biodiesel!$D$158)) ->  | F178: =D178*'Dados auxiliares'!$H$78 -> 
B179: Transporte de palha de cana-de-açúcar | C179: tkm | D179: =((D178/1000)*Biodiesel!$D$207) ->  | F179: =D179*'Dados auxiliares'!$H$131 -> 
B180: Emissões | C180: Unidade | D180: 1 t óleo | F180: g CO2 eq/t óleo | H180: g CO2 eq/MJ
B181: CO₂ eq - queima do diesel | C181: kg | D181: =D165*'FE''s queima combustíveis'!$I$50/1000 ->  | F181: =D181*1000 ->  | H181: =(F181*$F$131)/$E$131 -> 
B182: CO₂ eq - queima do biodiesel | C182: kg | D182: =D166*'FE''s queima combustíveis'!$I$51/1000 -> 
B183: CO₂ eq - queima do óleo combustível | C183: kg | D183: =D167*'FE''s queima combustíveis'!$I$53/1000 ->  | F183: =D183*1000 -> 
B184: CO₂ eq - queima do biogás de terceiros | C184: kg | D184: =Biodiesel!D185*Biodiesel!G185*'FE''s queima combustíveis'!$I$41/1000 -> 0 | F184: 0
B185: CO₂ eq - queima do biogás próprio | C185: kg | D185: =Biodiesel!D186*Biodiesel!G186*'FE''s queima combustíveis'!$I$41/1000 -> 0 | F185: 0
B186: CO₂ eq - queima da gás natural | C186: kg | D186: =D169*'FE''s queima combustíveis'!$I$46*('Dados auxiliares'!$D$27/1000)/1000 -> 
B187: CO₂ eq - queima do bagaço de cana-de-açúcar | C187: kg | D187: =D176*'FE''s queima combustíveis'!$I$36/1000 -> 
B188: CO₂ eq - queima da palha de cana-de-açúcar | C188: kg | D188: =D178*'FE''s queima combustíveis'!$I$37/1000 -> 
B189: CO₂ eq - queima dos cavacos de madeira | C189: kg | D189: =D170*'FE''s queima combustíveis'!$I$38/1000 -> 
B190: CO₂ eq - queima da lenha | C190: kg | D190: =D172*'FE''s queima combustíveis'!$I$39/1000 -> 
B191: CO₂ eq - queima dos resíduos florestais | C191: kg | D191: =D174*'FE''s queima combustíveis'!$I$40/1000 -> 
B193: Emissões do processo | C193: g CO2 eq/kg biodiesel | F193: =SUM(F181:F191) ->  | H193: =(F193*$F$131)/$E$131 -> 
B194: Emissões background | C194: g CO2 eq/kg biodiesel | F194: =SUM(F136:F179) ->  | H194: =(F194*$F$131)/$E$131 -> 
B195: Emissões totais | C195: g CO2 eq/kg biodiesel | F195: =F194+F193 -> 
B197: Emissões totais | C197: g CO2 eq/kg biodiesel
B199: Etapa distribuição
B200: Sistema logístico rodoviário
B201: Parâmetro | C201: Unidade | D201: Biodiesel
B202: Massa | C202: kg/t biodiesel | D202: =$D$131*Biodiesel!D212 -> 
B203: Distância de transporte rodoviário | C203: km | D203: ='Dados auxiliares'!C159 -> 700
B204: Transporte rodoviário | C204: tkm/t biodiesel | D204: =D202/1000*D203 -> 
B205: Emissões | C205: g CO2 eq/t biodiesel | D205: =D204*'Dados auxiliares'!$H$132 -> 
B206: Emissões | C206: g CO2 eq/MJ | D206: =D205/$E$131 -> 
B207: Sistema logístico fluvial
B208: Parâmetro | C208: Unidade | D208: Biodiesel
B209: Massa | C209: kg/t biodiesel | D209: =$D$131*Biodiesel!$D$213 -> 
B210: Distância de transporte rodoviário | C210: km | D210: ='Dados auxiliares'!K159 -> 1300
B211: Transporte rodoviário | C211: tkm/t biodiesel | D211: =D209/1000*D210 -> 
B212: Distância de transporte fluvial | C212: km | D212: ='Dados auxiliares'!L159 -> 1240
B213: Transporte fluvial | C213: tkm/t biodiesel | D213: =D209/1000*D212 -> 
... 12 more rows

Sheet CombAlterHEFA
B2: Combustíveis alternativos sintetizados por ácidos graxos e ésteres hidroprocessados (HEFA) de soja
B4: Nome da Usina: | C4: Usina Hipotética
B6: CNPJ | C6: 00.000.000/0000-00
B8: Responsável pelo preenchimento:
B10: Telefone : | C10: (00) 0000-0000
C13: Bioquerosene
B15: Intensidade de Carbono (g CO₂eq/MJ) | C15: =SUM(C17:C21) -> 0.5509623652 | D15: Nota de Eficiência Energético-Ambiental (g CO₂eq/MJ) | G15: =G18-C15 -> 86.94903763
B17: agrícola | C17: =IFERROR(IF($C$13=Listas!$B$25,_BioQavHEFA!C5,IF($C$13=Listas!$B$26,_BioQavHEFA!E5,IF($C$13=Listas!$B$27,_BioQavHEFA!H5,IF($C$13=Listas!#REF!,_BioQavHEFA!J5,0)))),0) -> 0 | G17: =CONCATENATE("Fóssil substituto: ",IF($C$13=Listas!$B$25,'Dados auxiliares'!$C$170,IF($C$13=Listas!$B$26,'Dados auxiliares'!$C$171,IF($C$13=Listas!$B$27,'Dados auxiliares'!$C$172,IF($C$13=Listas!#REF!,'Dados auxiliares'!$C$173,0))))) -> Fóssil substituto: Querosene de aviação
B18: industrial - extração do óleo | C18: =IFERROR(IF($C$13=Listas!$B$25,_BioQavHEFA!C6,IF($C$13=Listas!$B$26,_BioQavHEFA!E6,IF($C$13=Listas!$B$27,_BioQavHEFA!H6,IF($C$13=Listas!#REF!,_BioQavHEFA!J6,0)))),0) -> 0 | G18: =IF($C$13=Listas!$B$25,'Dados auxiliares'!$F$170,IF($C$13=Listas!$B$26,'Dados auxiliares'!$F$171,IF($C$13=Listas!$B$27,'Dados auxiliares'!$F$172,IF($C$13=Listas!#REF!,'Dados auxiliares'!$F$173,0)))) -> 87.5
B19: industrial - transesterificação | C19: =IFERROR(IF($C$13=Listas!$B$25,_BioQavHEFA!C7,IF($C$13=Listas!$B$26,_BioQavHEFA!E7,IF($C$13=Listas!$B$27,_BioQavHEFA!H7,IF($C$13=Listas!#REF!,_BioQavHEFA!J7,0)))),0) -> 0 | G19: Redução de emissões
B20: transporte | C20: =IFERROR(IF($C$13=Listas!$B$25,_BioQavHEFA!C8,IF($C$13=Listas!$B$26,_BioQavHEFA!E8,IF($C$13=Listas!$B$27,_BioQavHEFA!H8,IF($C$13=Listas!#REF!,_BioQavHEFA!J8,0)))),0) -> 0 | G20: =(G18-C15)/G18 -> 0.9937032873
B21: uso | C21: =IFERROR(IF($C$13=Listas!$B$25,_BioQavHEFA!C9,IF($C$13=Listas!$B$26,_BioQavHEFA!E9,IF($C$13=Listas!$B$27,_BioQavHEFA!H9,IF($C$13=Listas!#REF!,_BioQavHEFA!J9,0)))),0) -> 0.5509623652
B24: Fase agrícola - Dados consolidados
B25: Informações gerais
C26: Área total | E26: ha
C28: Produção total (base úmida) | E28: t soja | F28: Umidade
B29: Quantidade comprada pela unidade produtora de biocombustível (base úmida) | E29: t soja
B32: Corretivos
C33: Calcário calcítico | E33: kg/t soja
C34: Calcário dolomítico | E34: kg/t soja
C35: Gesso | E35: kg/t soja
B37: Sementes
C38: Sementes | E38: kg/t soja
B40: Fertilizantes Sintéticos
C41: Ureia | E41: kg N/t soja
C42: Fosfato Monoamônico (MAP) | E42: kg N/t soja
C43: Fosfato Monoamônico (MAP) | E43: kg P₂O₅/t soja
C44: Fosfato diamônico (DAP) | E44: kg N/t soja
C45: Fosfato diamônico (DAP) | E45: kg P₂O₅/t soja
C46: Nitrato de amônio | E46: kg N/t soja
C47: Solução de nitrato de amônio e ureia (UAN) | E47: kg N/t soja
C48: Amônia anidra | E48: kg N/t soja
C49: Sulfato de amônio | E49: kg N/t soja
C50: Nitrato de amônio e cálcio (CAN) | E50: kg N/t soja
C51: Superfosfato simples (SSP) | E51: kg P₂O₅/t soja
C52: Superfosfato triplo (TSP) | E52: kg P₂O₅/t soja
C53: Cloreto de potássio (KCl) | E53: kg K₂O/t soja
B54: Outros | C54: especificar | E54: kg N/t soja
B55: Outros | C55: especificar | E55: kg P₂O₅/t soja
B56: Outros | C56: especificar | E56: kg K₂O/t soja
B58: Fertilizantes Orgânicos/Organominerais
B59: Outros | C59: especificar | E59: kg/t soja | F59: Concentração de N | H59: g N/kg
B60: Outros | C60: especificar | E60: kg/t soja | F60: Concentração de N | H60: g N/kg
B61: Outros | C61: especificar | E61: kg/t soja | F61: Concentração de N | H61: g N/kg
B62: Outros | C62: especificar | E62: kg/t soja | F62: Concentração de N | H62: g N/kg
B63: Outros | C63: especificar | E63: kg/t soja | F63: Concentração de N | H63: g N/kg
B65: Combustíveis e eletricidade
C66: Diesel - B8 | E66: L/t soja
C67: Diesel - B10 | E67: L/t soja
C68: Diesel - BX | E68: L/t soja | F68: Teor de biodiesel na mistura
C69: Diesel - B20 | E69: L/t soja
C70: Diesel - B30 | E70: L/t soja
C71: Biodiesel - B100 | E71: L/t soja
C72: Gasolina C | E72: L/t soja
C73: Etanol hidratado | E73: L/t soja
C74: Biometano de terceiros | E74: Nm³/t soja
C75: Biometano próprio | E75: Nm³/t soja
C76: Eletricidade da rede - mix médio | E76: kWh/t soja
C77: Eletricidade - PCH | E77: kWh/t soja
C78: Eletricidade - biomassa | E78: kWh/t soja
C79: Eletricidade - eólica | E79: kWh/t soja
C80: Eletricidade - solar | E80: kWh/t soja
B83: Fase industrial - extração do óleo de soja
B84: Processamento e Rendimentos
C85: Processamento efetivo - soja | E85: t soja | F85: Umidade
C86: Distância de transporte - soja | E86: km
C87: Rendimento Óleo | E87: kg/t soja
C88: Rendimento Farelo | E88: kg/t soja
B90: Combustíveis e eletricidade
C91: Eletricidade da rede - mix médio | E91: kWh/t soja
C92: Eletricidade - PCH | E92: kWh/t soja
C93: Eletricidade - biomassa | E93: kWh/t soja
C94: Eletricidade - eólica | E94: kWh/t soja
C95: Eletricidade - solar | E95: kWh/t soja
C96: Diesel - B8 | E96: L/t soja
C97: Diesel - B10 | E97: L/t soja
C98: Diesel - BX | E98: L/t soja | F98: Teor de biodiesel na mistura
C99: Diesel - B20 | E99: L/t soja
C100: Diesel - B30 | E100: L/t soja
C101: Biodiesel - B100 | E101: L/t soja
C102: Óleo combustível | E102: L/ t soja
C103: Biogás de terceiros | E103: Nm³/t soja | F103: PCI do biogás | H103: MJ/Nm³
C104: Biogás próprio | E104: Nm³/t soja | F104: PCI do biogás | H104: MJ/Nm³
C105: Gás natural | E105: Nm³/t soja
C106: Cavaco de madeira
C107: Quantidade (base úmida) | E107: kg/t soja
C108: Umidade
C109: Distância de transporte | E109: km
C110: Lenha
C111: Quantidade (base úmida) | E111: kg/t soja
C112: Umidade
C113: Distância de transporte | E113: km
C114: Resíduos florestais
C115: Quantidade (base úmida) | E115: kg/t soja
C116: Umidade
C117: Distância de transporte | E117: km
C118: Bagaço de cana
C119: Quantidade (base úmida) | E119: kg/t soja
C120: Umidade
C121: Distância de transporte | E121: km
C122: Palha de cana
C123: Quantidade (base úmida) | E123: kg/t soja
C124: Umidade
C125: Distância de transporte | E125: km
B128: Fase industrial - produção dos combustíveis alternativos
B129: Processamento e rendimentos
D130: Óleo de soja próprio
C131: Processamento efetivo - óleo de soja próprio | E131: t óleo
C132: Distância de transporte - óleo de soja próprio | E132: km
C133: Alguma fração dessa matéria-prima é elegível?
D134: Óleo de soja de terceiros
C135: Processamento efetivo - óleo de soja fornecedores | E135: t óleo | F135: Intensidade de Carbono média do óleo adquirido pela unidade produtora | H135: g CO₂ eq/kg óleo
C136: Distância de transporte - óleo de soja fornecedores | E136: km
C137: Alguma fração dessa matéria-prima é elegível?
C140: Rendimento - Bioquerosene | E140: kg/t óleo
C141: Rendimento - Gasolina alternativa | E141: kg/t óleo
C142: Rendimento - Diesel alternativa | E142: kg/t óleo
C143: Rendimento - Gás combustível alternativa | E143: kg/t óleo
C144: Energia elétrica comercializada | E144: kWh/t óleo
B146: Insumos
C147: Hidrogênio | E147: kg/t óleo
B148: Combustíveis e energia
C149: Eletricidade da rede - mix médio | E149: kWh/t óleo
C150: Eletricidade - PCH | E150: kWh/t óleo
C151: Eletricidade - biomassa | E151: kWh/t óleo
C152: Eletricidade - eólica | E152: kWh/t óleo
C153: Eletricidade - solar | E153: kWh/t óleo
C154: Diesel - B8 | E154: L/t óleo
C155: Diesel - B10 | E155: L/t óleo
C156: Diesel - BX | E156: L/t óleo | F156: Teor de biodiesel na mistura | G156: 0.02
C157: Diesel - B20 | E157: L/t óleo
C158: Diesel - B30 | E158: L/t óleo
C159: Biodiesel - B100 | E159: L/t óleo
C160: Óleo combustível | E160: L/ t óleo
C161: Biogás de terceiros | E161: Nm³/t óleo | F161: PCI do biogás | H161: MJ/Nm³
C162: Biogás próprio | E162: Nm³/t óleo | F162: PCI do biogás | H162: MJ/Nm³
C163: Gás combustível renovável próprio | E163: Nm³/t óleo | F163: PCI do gás combustível renovável | H163: MJ/Nm³
C164: Gás natural | E164: Nm³/t óleo
C165: Cavaco de madeira
C166: Quantidade (base úmida) | E166: kg/t óleo
C167: Umidade
C168: Distância de transporte | E168: km
C169: Lenha
C170: Quantidade (base úmida) | E170: kg/t óleo
C171: Umidade
C172: Distância de transporte | E172: km
C173: Resíduos florestais
C174: Quantidade (base úmida) | E174: kg/t óleo
C175: Umidade
C176: Distância de transporte | E176: km
C177: Bagaço de cana
C178: Quantidade (base úmida) | E178: kg/t óleo
C179: Umidade
C180: Distância de transporte | E180: km
C181: Palha de cana
C182: Quantidade (base úmida) | E182: kg/t óleo
C183: Umidade
C184: Distância de transporte | E184: km
B187: Fase de distribuição
C189: Querosene alternativo (bioquerosene)
C190: Rodoviário | D190: 1
C191: Dutoviário | D191: 0 | E191: =IF((SUM(D190:D192)=1),"","A soma das porcentagens de distribuição deve ser igual a 100%!") -> 
C192: Ferroviário | D192: 0
C195: Gasolina alternativa
C196: Rodoviário | D196: 1
C197: Dutoviário | D197: 0 | E197: =IF((SUM(D196:D198)=1),"","A soma das porcentagens de distribuição deve ser igual a 100%!") -> 
C198: Ferroviário | D198: 0
C201: Diesel alternativo
C202: Rodoviário | D202: 1
C203: Dutoviário | D203: 0 | E203: =IF((SUM(D202:D204)=1),"","A soma das porcentagens de distribuição deve ser igual a 100%!") -> 
C204: Ferroviário | D204: 0

Sheet _BioQavHEFA (hidden)
B2: Emissões totais - g CO₂ eq/MJ
C3: BioQAV | E3: Gasolina renovável | H3: Diesel renovável
B4: Total | C4: =SUM(C5:C9) ->  | E4: =SUM(E5:E9) ->  | H4: =SUM(H5:H9) -> 
B5: Agrícola | C5: =H71 ->  | D5: =C5/$C$4 ->  | E5: =I71 ->  | F5: =E5/$E$4 ->  | H5: =J71 ->  | I5: =H5/$H$4 -> 
B6: Industrial - extração do óleo | C6: =H123-H83 ->  | D6: =C6/$C$4 ->  | E6: =I123-I83 ->  | F6: =E6/$E$4 ->  | H6: =J123-J83 ->  | I6: =H6/$H$4 -> 
B7: Industrial - HEFA | C7: =H178-H136 ->  | D7: =C7/$C$4 ->  | E7: =I178-I136 ->  | H7: =J178-J136 -> 
B8: Transporte | C8: =$D$209 ->  | E8: =$E$209 ->  | H8: =$F$209 -> 
B9: Uso | C9: ='FE''s queima combustíveis'!$I$14 -> 0.5509623652 | E9: ='FE''s queima combustíveis'!$I$15 -> 2.732320214 | H9: ='FE''s queima combustíveis'!$I$16 -> 1.098703712
B12: Etapa agrícola - Soja | H12: Emissões por MJ de bioQAV | I12: Emissões por MJ de gasolina renovável | J12: Emissões por MJ de diesel renovável
B13: Produto | D13: 1 ha médio | E13: 1 t soja
B14: Produção de soja | C14: kg | D14: =(CombAlterHEFA!D28*1000)/CombAlterHEFA!D26 ->  | E14: 1000
B15: Entradas da natureza | D15: 1 ha médio | E15: 1 t soja | F15: g CO2 eq/t soja
B16: Ocupação total | C16: ha | D16: 1 | E16: =(D16*E14)/D14 -> 
B17: Entradas da tecnosfera | D17: 1 ha médio | E17: 1 t soja | F17: g CO2 eq/t soja | H17: g CO2 eq/MJ | I17: g CO2 eq/MJ | J17: g CO2 eq/MJ
B18: Sementes de soja | C18: kg | E18: =CombAlterHEFA!D38 -> 0 | F18: =E18*'Dados auxiliares'!$H$76 -> 0 | H18: =(((F18*$F$76)/$D$76)*1000*$F$130)/$E$130 ->  | I18: =(((F18*$F$76)/$D$76)*1000*$F$131)/$E$131 ->  | J18: =(((F18*$F$76)/$D$76)*1000*$F$132)/$E$132 -> 
B19: Fertilizantes e corretivos
B20: Calcário calcítico | C20: kg | E20: =CombAlterHEFA!D33 -> 0 | F20: =E20*'Dados auxiliares'!$H$52 -> 0 | H20: =(((F20*$F$76)/$D$76)*1000*$F$130)/$E$130 ->  | I20: =(((F20*$F$76)/$D$76)*1000*$F$131)/$E$131 ->  | J20: =(((F20*$F$76)/$D$76)*1000*$F$132)/$E$132 -> 
B21: Calcário dolomítico | C21: kg | E21: =CombAlterHEFA!D34 -> 0 | F21: =E21*'Dados auxiliares'!$H$53 -> 0
B22: Gesso | C22: kg | E22: =CombAlterHEFA!D35 -> 0 | F22: =E22*'Dados auxiliares'!$H$54 -> 0
B23: N - Ureia | C23: kg N | E23: =CombAlterHEFA!D41 -> 0 | F23: =E23*'Dados auxiliares'!$H$55 -> 0
B24: N - Fosfato monoamônico (MAP) | C24: kg N | E24: =CombAlterHEFA!D42 -> 0 | F24: =E24*'Dados auxiliares'!$H$56 -> 0
B25: P₂O₅ - Fosfato monoamônico (MAP) | C25: kg P₂O₅ | E25: =CombAlterHEFA!D43 -> 0 | F25: =E25*'Dados auxiliares'!$H$57 -> 0
B26: N - Fosfato diamônico (DAP) | C26: kg N | E26: =CombAlterHEFA!D44 -> 0 | F26: =E26*'Dados auxiliares'!$H$58 -> 0
B27: P₂O₅ - Fosfato diamônico (DAP) | C27: kg P₂O₅ | E27: =CombAlterHEFA!D45 -> 0 | F27: =E27*'Dados auxiliares'!$H$59 -> 0
B28: N - Nitrato de amônio | C28: kg N | E28: =CombAlterHEFA!D46 -> 0 | F28: =E28*'Dados auxiliares'!$H$60 -> 0
B29: N - Solução de nitrato de amônio e ureia (UAN) | C29: kg N | E29: =CombAlterHEFA!D47 -> 0 | F29: =E29*'Dados auxiliares'!$H$61 -> 0
B30: N - Amônia anidra | C30: kg N | E30: =CombAlterHEFA!D48 -> 0 | F30: =E30*'Dados auxiliares'!$H$62 -> 0
B31: N - Sulfato de amônio | C31: kg N | E31: =CombAlterHEFA!D49 -> 0 | F31: =E31*'Dados auxiliares'!$H$63 -> 0
B32: N - Nitrato de amônio e cálcio (CAN) | C32: kg N | E32: =CombAlterHEFA!D50 -> 0 | F32: =E32*'Dados auxiliares'!$H$64 -> 0
B33: P₂O₅ - Superfosfato simples (SSP) | C33: kg P₂O₅ | E33: =CombAlterHEFA!D51 -> 0 | F33: =E33*'Dados auxiliares'!$H$66 -> 0
B34: P₂O₅ - Superfosfato triplo (TSP) | C34: kg P₂O₅ | E34: =CombAlterHEFA!D52 -> 0 | F34: =E34*'Dados auxiliares'!$H$67 -> 0
B35: K₂O - Cloreto de potássio (KCl) | C35: kg K₂O | E35: =CombAlterHEFA!D53 -> 0 | F35: =E35*'Dados auxiliares'!H$68 -> 0
B36: N - Outros | C36: kg N | E36: =CombAlterHEFA!D54 -> 0 | F36: =E36*'Dados auxiliares'!H$69 -> 0
B37: P₂O₅ - Outros | C37: kg P₂O₅ | E37: =CombAlterHEFA!D55 -> 0 | F37: =E37*'Dados auxiliares'!H$70 -> 0
B38: K₂O - Outros | C38: kg K₂O | E38: =CombAlterHEFA!D56 -> 0 | F38: =E38*'Dados auxiliares'!H$71 -> 0
B39: Outros Fertilizantes Orgânicos/Organominerais | C39: kg | E39: =CombAlterHEFA!D59+CombAlterHEFA!D60+CombAlterHEFA!D61+CombAlterHEFA!D62+CombAlterHEFA!D63 -> 0 | F39: 0
B40: Agroquímicos
B41: Pesticidas, geral | C41: kg | E41: =0.000674630945913558*1000 -> 0.6746309459 | F41: =E41*'Dados auxiliares'!$H$74 -> 7247.237365 | H41: =(((F41*$F$76)/$D$76)*1000*$F$130)/$E$130 ->  | I41: =(((F41*$F$76)/$D$76)*1000*$F$131)/$E$131 ->  | J41: =(((F41*$F$76)/$D$76)*1000*$F$132)/$E$132 -> 
B42: Glifosato | C42: kg | E42: =0.00086569230646321*1000 -> 0.8656923065 | F42: =E42*'Dados auxiliares'!$H$72 -> 9960.401647 | H42: =(((F42*$F$76)/$D$76)*1000*$F$130)/$E$130 ->  | I42: =(((F42*$F$76)/$D$76)*1000*$F$131)/$E$131 ->  | J42: =(((F42*$F$76)/$D$76)*1000*$F$132)/$E$132 -> 
B43: 2,4-D | C43: kg | E43: =0.0000652020791723256*1000 -> 0.06520207917 | F43: =E43*'Dados auxiliares'!$H$73 -> 331.3355299 | H43: =(((F43*$F$76)/$D$76)*1000*$F$130)/$E$130 ->  | I43: =(((F43*$F$76)/$D$76)*1000*$F$131)/$E$131 ->  | J43: =(((F43*$F$76)/$D$76)*1000*$F$132)/$E$132 -> 
B44: Combustíveis e eletricidade
B45: Diesel B0 | C45: kg | E45: =(CombAlterHEFA!$D$66*(1-0.08)+CombAlterHEFA!$D$67*(1-0.1)+CombAlterHEFA!$D$68*(1-CombAlterHEFA!$G$68)+CombAlterHEFA!$D$69*(1-0.2)+CombAlterHEFA!$D$70*(1-0.3)+CombAlterHEFA!$D$71*(1-1))*('Dados auxiliares'!$D$26) -> 0 | F45: =E45*'Dados auxiliares'!$H$116 -> 0 | H45: =(((F45*$F$76)/$D$76)*1000*$F$130)/$E$130 ->  | I45: =(((F45*$F$76)/$D$76)*1000*$F$131)/$E$131 ->  | J45: =(((F45*$F$76)/$D$76)*1000*$F$132)/$E$132 -> 
B46: Biodiesel B100 | C46: kg | E46: =(CombAlterHEFA!$D$66*(0.08)+CombAlterHEFA!$D$67*(0.1)+CombAlterHEFA!$D$68*(CombAlterHEFA!$G$68)+CombAlterHEFA!$D$69*(0.2)+CombAlterHEFA!$D$70*(0.3)+CombAlterHEFA!$D$71*(1))*('Dados auxiliares'!$D$17) -> 0 | F46: =E46*'Dados auxiliares'!$H$117 -> 0
B47: Gasolina A | C47: kg | E47: =CombAlterHEFA!$D$72*(1-'FE''s queima combustíveis'!$D$19)*'Dados auxiliares'!$D$24 -> 0 | F47: =E47*'Dados auxiliares'!$H$120 -> 0
B48: Etanol anidro | C48: kg | E48: =CombAlterHEFA!$D$72*('FE''s queima combustíveis'!$D$19)*'Dados auxiliares'!$D$15 -> 0 | F48: =E48*'Dados auxiliares'!$H$121 -> 0
B49: Etanol hidratado | C49: kg | E49: =CombAlterHEFA!$D$73*'Dados auxiliares'!$D$16 -> 0 | F49: =E49*'Dados auxiliares'!$H$122 -> 0
B50: Biometano de terceiros | C50: Nm³ | E50: =CombAlterHEFA!D74 -> 0 | F50: =E50*('Dados auxiliares'!$D$18*1000)*'Dados auxiliares'!$F$18*'Dados auxiliares'!$H$125 -> 0
B51: Eletricidade da rede - mix médio | C51: kWh | E51: =CombAlterHEFA!D76 -> 0 | F51: =E51*'Dados auxiliares'!$H$107 -> 0
B52: Eletricidade - PCH | C52: kWh | E52: =CombAlterHEFA!D77 -> 0 | F52: =E52*'Dados auxiliares'!$H$108 -> 0
B53: Eletricidade - biomassa | C53: kWh | E53: =CombAlterHEFA!D78 -> 0 | F53: =E53*'Dados auxiliares'!$H$109 -> 0
B54: Eletricidade - eólica | C54: kWh | E54: =CombAlterHEFA!D79 -> 0 | F54: =E54*'Dados auxiliares'!$H$110 -> 0
B55: Eletricidade - solar | C55: kWh | E55: =CombAlterHEFA!D80 -> 0 | F55: =E55*'Dados auxiliares'!$H$111 -> 0
B56: Emissões | D56: 1 ha médio | E56: 1 t soja | F56: g CO2 eq/t soja | H56: g CO2 eq/MJ | I56: g CO2 eq/MJ | J56: g CO2 eq/MJ
B57: N2O - Fertilizantes sintéticos | C57: kg | D57: ='_Emissões Agrícolas'!$K$54 ->  | E57: =D57*$E$16 ->  | F57: =E57*1000*'Dados auxiliares'!$D$9 ->  | H57: =(((F57*$F$76)/$D$76)*1000*$F$130)/$E$130 ->  | I57: =(((F57*$F$76)/$D$76)*1000*$F$131)/$E$131 ->  | J57: =(((F57*$F$76)/$D$76)*1000*$F$132)/$E$132 -> 
B58: N2O - Fertilizantes organominerais | C58: kg | D58: ='_Emissões Agrícolas'!$K$58 ->  | E58: =D58*$E$16 ->  | F58: =E58*1000*'Dados auxiliares'!$D$9 -> 
B59: N2O - Resíduos culturais | C59: kg | D59: ='_Emissões Agrícolas'!$K$62 ->  | F59: =E59*1000*'Dados auxiliares'!$D$9 -> 
B60: CO2 - Calcário | C60: kg | E60: =$E$20*'_Emissões Agrícolas'!$E$79+$E$21*'_Emissões Agrícolas'!$E$80 -> 0 | F60: =E60*1000 -> 0
B61: CO2 - Uréia | C61: kg | E61: =$E$23*'_Emissões Agrícolas'!$E$81 -> 0 | F61: =E61*1000 -> 0
B62: CO₂ eq - queima do diesel | C62: kg | E62: =$E$45*'FE''s queima combustíveis'!$I$64/1000 -> 0 | F62: =E62*1000 -> 0
B63: CO₂ eq - queima do biodiesel | C63: kg | E63: =$E$46*'FE''s queima combustíveis'!$I$65/1000 -> 0 | F63: =E63*1000 -> 0
B64: CO₂ eq - queima da gasolina A | C64: kg | E64: =$E$47*'FE''s queima combustíveis'!$I$9/1000 -> 0 | F64: 0
B65: CO₂ eq - queima do etanol anidro | C65: kg | E65: =$E$48*'FE''s queima combustíveis'!$I$7/1000 -> 0 | F65: 0
B66: CO₂ eq - queima do etanol hidratado | C66: kg | E66: =$E$49*'FE''s queima combustíveis'!$I$8/1000 -> 0 | F66: 0
B67: CO₂ eq - queima do biometano | C67: kg | E67: =($E$50+CombAlterHEFA!$D$75)*'FE''s queima combustíveis'!$I$66/1000 -> 0 | F67: 0
B69: Emissões do processo | C69: g CO2 eq/t soja | F69: =SUM(F57:F67) ->  | H69: =(((F69*$F$76)/$D$76)*1000*$F$130)/$E$130 ->  | I69: =(((F69*$F$76)/$D$76)*1000*$F$131)/$E$131 ->  | J69: =(((F69*$F$76)/$D$76)*1000*$F$132)/$E$132 -> 
B70: Emissões background | C70: g CO2 eq/t soja | F70: =SUM(F18:F55) -> 17538.97454 | H70: =(((F70*$F$76)/$D$76)*1000*$F$130)/$E$130 ->  | I70: =(((F70*$F$76)/$D$76)*1000*$F$131)/$E$131 ->  | J70: =(((F70*$F$76)/$D$76)*1000*$F$132)/$E$132 -> 
B71: Emissões totais | C71: g CO2 eq/t soja | F71: =IF(OR(CombAlterHEFA!$D$26=0,CombAlterHEFA!$D$28=0),0,(F69+F70)) -> 0 | H71: =(((F71*$F$76)/$D$76)*1000*$F$130)/$E$130 ->  | I71: =(((F71*$F$76)/$D$76)*1000*$F$131)/$E$131 ->  | J71: =(((F71*$F$76)/$D$76)*1000*$F$132)/$E$132 -> 
B74: Etapa industrial - Extração do óleo de soja | H74: Emissões por MJ de bioQAV | I74: Emissões por MJ de gasolina renovável | J74: Emissões por MJ de diesel renovável
B75: Produtos | C75: Unidade | D75: 1 t soja | E75: MJ | F75: Alocação
B76: Óleo de soja | C76: kg | D76: =CombAlterHEFA!D87 -> 0 | E76: =D76*'Dados auxiliares'!$D$42 -> 0 | F76: =E76/SUM($E$76:$E$77) -> 
B77: Farelo de soja | C77: kg | D77: =CombAlterHEFA!D88 -> 0 | E77: =D77*'Dados auxiliares'!$D$43 -> 0 | F77: =E77/SUM($E$76:$E$77) -> 
B78: Entradas | C78: Unidade | D78: 1 t soja | F78: g CO2 eq/t soja | H78: g CO2 eq/MJ | I78: g CO2 eq/MJ | J78: g CO2 eq/MJ | CB78: =(D76+D77)*F76 -> 
B79: Processamento dos grãos
B80: Processamento com secagem | C80: m³ | D80: =0.00004878*0.6 -> 2.9268e-05 | F80: =D80*'Dados auxiliares'!$H$81 -> 9.398038799e-07 | H80: =(((F80*$F$76)/$D$76)*1000*$F$130)/$E$130 ->  | I80: =(((F80*$F$76)/$D$76)*1000*$F$131)/$E$131 ->  | J80: =(((F80*$F$76)/$D$76)*1000*$F$132)/$E$132 -> 
B81: Processamento sem secagem | C81: m³ | D81: =0.00004878*0.4 -> 1.9512e-05 | F81: =D81*'Dados auxiliares'!$H$80 -> 3.085069051e-07 | H81: =(((F81*$F$76)/$D$76)*1000*$F$130)/$E$130 ->  | I81: =(((F81*$F$76)/$D$76)*1000*$F$131)/$E$131 ->  | J81: =(((F81*$F$76)/$D$76)*1000*$F$132)/$E$132 -> 
B82: Insumos
B83: Soja (grãos) | C83: t | D83: 1 | F83: =D83*F71 -> 0 | H83: =(((F83*$F$76)/$D$76)*1000*$F$130)/$E$130 ->  | I83: =(((F83*$F$76)/$D$76)*1000*$F$131)/$E$131 ->  | J83: =(((F83*$F$76)/$D$76)*1000*$F$132)/$E$132 ->  | CB83: =CB78*F125 ->  | CC83: =(CB78*#REF!)/1000 -> 
B84: Transporte da soja em grãos até a usina | C84: tkm | D84: =D83*CombAlterHEFA!D86 -> 0 | F84: =D84*'Dados auxiliares'!$H$131 -> 0 | H84: =(((F84*$F$76)/$D$76)*1000*$F$130)/$E$130 ->  | I84: =(((F84*$F$76)/$D$76)*1000*$F$131)/$E$131 ->  | J84: =(((F84*$F$76)/$D$76)*1000*$F$132)/$E$132 -> 
B85: Hexano | C85: kg | D85: 1.1 | F85: =D85*'Dados auxiliares'!$H$100 -> 339.5816291 | H85: =(((F85*$F$76)/$D$76)*1000*$F$130)/$E$130 ->  | I85: =(((F85*$F$76)/$D$76)*1000*$F$131)/$E$131 ->  | J85: =(((F85*$F$76)/$D$76)*1000*$F$132)/$E$132 -> 
B86: Água | C86: kg | D86: =(2.34*992.3224568)/5.17 -> 449.1362764 | F86: =D86*'Dados auxiliares'!H83 -> 3.953105455 | H86: =(((F86*$F$76)/$D$76)*1000*$F$130)/$E$130 ->  | I86: =(((F86*$F$76)/$D$76)*1000*$F$131)/$E$131 ->  | J86: =(((F86*$F$76)/$D$76)*1000*$F$132)/$E$132 -> 
B87: Combustíveis e eletricidade
B88: Eletricidade da rede - mix médio | C88: kWh | D88: =CombAlterHEFA!D91 -> 0 | F88: =D88*'Dados auxiliares'!$H$107 -> 0 | H88: =(((F88*$F$76)/$D$76)*1000*$F$130)/$E$130 ->  | I88: =(((F88*$F$76)/$D$76)*1000*$F$131)/$E$131 ->  | J88: =(((F88*$F$76)/$D$76)*1000*$F$132)/$E$132 -> 
B89: Eletricidade - PCH | C89: kWh | D89: =CombAlterHEFA!D92 -> 0 | F89: =D89*'Dados auxiliares'!$H$108 -> 0
B90: Eletricidade - biomassa | C90: kWh | D90: =CombAlterHEFA!D93 -> 0 | F90: =D90*'Dados auxiliares'!$H$109 -> 0
B91: Eletricidade - eólica | C91: kWh | D91: =CombAlterHEFA!D94 -> 0 | F91: =D91*'Dados auxiliares'!$H$110 -> 0
B92: Eletricidade - solar | C92: kWh | D92: =CombAlterHEFA!D95 -> 0 | F92: =D92*'Dados auxiliares'!$H$111 -> 0
B93: Diesel B0 | C93: kg | D93: =(CombAlterHEFA!$D$96*(1-0.08)+CombAlterHEFA!$D$97*(1-0.1)+CombAlterHEFA!$D$98*(1-CombAlterHEFA!$G$98)+CombAlterHEFA!$D$99*(1-0.2)+CombAlterHEFA!$D$100*(1-0.3)+CombAlterHEFA!$D$101*(1-1))*('Dados auxiliares'!$D$26) -> 0 | F93: =D93*'Dados auxiliares'!$H$116 -> 0
B94: Biodiesel B100 | C94: kg | D94: =(CombAlterHEFA!$D$96*(0.08)+CombAlterHEFA!$D$97*(0.1)+CombAlterHEFA!$D$98*(CombAlterHEFA!$G$98)+CombAlterHEFA!$D$99*(0.2)+CombAlterHEFA!$D$100*(0.3)+CombAlterHEFA!$D$101*(1))*('Dados auxiliares'!$D$17) -> 0 | F94: =D94*'Dados auxiliares'!$H$117 -> 0
B95: Óleo combusível | C95: kg | D95: =CombAlterHEFA!D102*'Dados auxiliares'!$D$30 -> 0 | F95: =D95*'Dados auxiliares'!$H$126 -> 0
B96: Biogás de terceiros | C96: Nm³ | D96: =CombAlterHEFA!D103 -> 0 | F96: =D96*CombAlterHEFA!G103*'Dados auxiliares'!$H$125 -> 0
B97: Gás natural | C97: Nm³ | D97: =CombAlterHEFA!D105 -> 0 | F97: =D97*'Dados auxiliares'!$H$115 -> 0
B98: Cavaco de madeira | C98: kg base seca | D98: =CombAlterHEFA!$D$107*(1-CombAlterHEFA!$D$108) -> 0 | F98: =D98*'Dados auxiliares'!$H$123 -> 0
B99: Transporte de cavaco de madeira | C99: tkm | D99: =((D98/1000)*CombAlterHEFA!$D$109) -> 0 | F99: =D99*'Dados auxiliares'!$H$131 -> 0
B100: Lenha | C100: kg base seca | D100: =CombAlterHEFA!$D$111*(1-CombAlterHEFA!$D$112) -> 0 | F100: =D100*'Dados auxiliares'!$H$124 -> 0
B101: Transporte de lenha | C101: tkm | D101: =((D100/1000)*CombAlterHEFA!$D$113) -> 0 | F101: =D101*'Dados auxiliares'!$H$131 -> 0
B102: Resíduos florestais | C102: kg base seca | D102: =CombAlterHEFA!$D$115*(1-CombAlterHEFA!$D$116) -> 0 | F102: 0
B103: Transporte de resíduos florestais | C103: tkm | D103: =((D102/1000)*CombAlterHEFA!$D$117) -> 0 | F103: =D103*'Dados auxiliares'!$H$131 -> 0
B104: Bagaço de cana-de-açúcar | C104: kg base seca | D104: =CombAlterHEFA!$D$119*(1-CombAlterHEFA!$D$120) -> 0 | F104: 0
B105: Transporte de bagaço de cana-de-açúcar | C105: tkm | D105: =((D104/1000)*CombAlterHEFA!$D$121) -> 0 | F105: =D105*'Dados auxiliares'!$H$131 -> 0
B106: Palha de cana-de-açúcar | C106: kg base seca | D106: =CombAlterHEFA!$D$123*(1-CombAlterHEFA!$D$124) -> 0 | F106: =D106*'Dados auxiliares'!$H$78 -> 0
B107: Transporte de palha de cana-de-açúcar | C107: tkm | D107: =((D106/1000)*CombAlterHEFA!$D$125) -> 0 | F107: =D107*'Dados auxiliares'!$H$131 -> 0
B108: Emissões | C108: Unidade | D108: 1 t soja | F108: g CO2 eq/t soja | H108: g CO2 eq/MJ | I108: g CO2 eq/MJ | J108: g CO2 eq/MJ | CC108: Emissão desconsiderada
B109: CO₂ eq - queima do diesel | C109: kg | D109: =D93*'FE''s queima combustíveis'!$I$50/1000 -> 0 | F109: =D109*1000 -> 0 | H109: =(((F109*$F$76)/$D$76)*1000*$F$130)/$E$130 ->  | I109: =(((F109*$F$76)/$D$76)*1000*$F$131)/$E$131 ->  | J109: =(((F109*$F$76)/$D$76)*1000*$F$132)/$E$132 -> 
B110: CO₂ eq - queima do biodiesel | C110: kg | D110: =D94*'FE''s queima combustíveis'!$I$51/1000 -> 0 | F110: 0 | H110: =(((F110*$F$76)/$D$76)*1000*$F$130)/$E$130 ->  | I110: =(((F110*$F$76)/$D$76)*1000*$F$131)/$E$131 ->  | J110: =(((F110*$F$76)/$D$76)*1000*$F$132)/$E$132 -> 
B111: CO₂ eq - queima do óleo combustível | C111: kg | D111: =D95*'FE''s queima combustíveis'!$I$53/1000 -> 0 | F111: =D111*1000 -> 0 | H111: =(((F111*$F$76)/$D$76)*1000*$F$130)/$E$130 ->  | I111: =(((F111*$F$76)/$D$76)*1000*$F$131)/$E$131 ->  | J111: =(((F111*$F$76)/$D$76)*1000*$F$132)/$E$132 -> 
B112: CO₂ eq - queima do biogás de terceiros | C112: kg | D112: =CombAlterHEFA!D103*CombAlterHEFA!G103*'FE''s queima combustíveis'!$I$41/1000 -> 0 | F112: 0 | H112: =(((F112*$F$76)/$D$76)*1000*$F$130)/$E$130 ->  | I112: =(((F112*$F$76)/$D$76)*1000*$F$131)/$E$131 ->  | J112: =(((F112*$F$76)/$D$76)*1000*$F$132)/$E$132 -> 
B113: CO₂ eq - queima do biogás próprio | C113: kg | D113: =CombAlterHEFA!D104*CombAlterHEFA!G104*'FE''s queima combustíveis'!$I$41/1000 -> 0 | F113: 0 | H113: =(((F113*$F$76)/$D$76)*1000*$F$130)/$E$130 ->  | I113: =(((F113*$F$76)/$D$76)*1000*$F$131)/$E$131 ->  | J113: =(((F113*$F$76)/$D$76)*1000*$F$132)/$E$132 -> 
B114: CO₂ eq - queima da gás natural | C114: kg | D114: =D97*'FE''s queima combustíveis'!$I$46*('Dados auxiliares'!$D$27/1000)/1000 -> 0 | F114: 0 | H114: =(((F114*$F$76)/$D$76)*1000*$F$130)/$E$130 ->  | I114: =(((F114*$F$76)/$D$76)*1000*$F$131)/$E$131 ->  | J114: =(((F114*$F$76)/$D$76)*1000*$F$132)/$E$132 -> 
B115: CO₂ eq - queima do bagaço de cana-de-açúcar | C115: kg | D115: =D104*'FE''s queima combustíveis'!$I$36/1000 -> 0 | F115: 0
B116: CO₂ eq - queima da palha de cana-de-açúcar | C116: kg | D116: =D106*'FE''s queima combustíveis'!$I$37/1000 -> 0 | F116: 0
B117: CO₂ eq - queima dos cavacos de madeira | C117: kg | D117: =D98*'FE''s queima combustíveis'!$I$38/1000 -> 0 | F117: 0
B118: CO₂ eq - queima da lenha | C118: kg | D118: =D100*'FE''s queima combustíveis'!$I$39/1000 -> 0 | F118: 0
B119: CO₂ eq - queima dos resíduos florestais | C119: kg | D119: =D102*'FE''s queima combustíveis'!$I$40/1000 -> 0 | F119: 0
B121: Emissões do processo | C121: g CO2 eq/t soja | F121: =SUM(F109:F119) -> 0 | H121: =(((F121*$F$76)/$D$76)*1000*$F$130)/$E$130 ->  | I121: =(((F121*$F$76)/$D$76)*1000*$F$131)/$E$131 ->  | J121: =(((F121*$F$76)/$D$76)*1000*$F$132)/$E$132 -> 
B122: Emissões background | C122: g CO2 eq/t soja | F122: =SUM(F80:F107) -> 343.5347358 | H122: =(((F122*$F$76)/$D$76)*1000*$F$130)/$E$130 ->  | I122: =(((F122*$F$76)/$D$76)*1000*$F$131)/$E$131 ->  | J122: =(((F122*$F$76)/$D$76)*1000*$F$132)/$E$132 -> 
B123: Emissões totais | C123: g CO2 eq/t soja | F123: =F121+F122 -> 343.5347358 | H123: =(((F123*$F$76)/$D$76)*1000*$F$130)/$E$130 ->  | I123: =(((F123*$F$76)/$D$76)*1000*$F$131)/$E$131 ->  | J123: =(((F123*$F$76)/$D$76)*1000*$F$132)/$E$132 -> 
B125: Emissões totais | C125: g CO2 eq/kg óleo de soja | F125: =F123*F76/$D$76 -> 
B128: Etapa industrial - Produção de bioquerosene | H128: Emissões por MJ de bioQAV | I128: Emissões por MJ de gasolina renovável | J128: Emissões por MJ de diesel renovável | BZ128: =F125*CD135 -> 
B129: Produtos | C129: Unidade | D129: 1 t óleo | E129: MJ | F129: Alocação
B130: Bioquerosene | C130: kg | D130: =CombAlterHEFA!D140 -> 0 | E130: =D130*'Dados auxiliares'!$F$20 -> 0 | F130: =E130/SUM($E$130:$E$134) -> 
B131: Gasolina renovável | C131: kg | D131: =CombAlterHEFA!D141 -> 0 | E131: =D131*'Dados auxiliares'!$F$22 -> 0 | F131: =E131/SUM($E$130:$E$134) -> 
B132: Diesel renovável | C132: kg | D132: =CombAlterHEFA!D142 -> 0 | E132: =D132*'Dados auxiliares'!$F$21 -> 0
B133: Gás combustível renovável | C133: kg | D133: =CombAlterHEFA!D143 -> 0 | E133: =D133*'Dados auxiliares'!$F$23 -> 0 | L133: Alguma fração elegível | M133: Intensidade de Carbono da Matéria-prima (referência) | N133: Unidade da Intensidade de Carbono | O133: Quantidade de materia-prima elegível | Q133: Intensidade de Carbono da Matéria-prima não elegível | S133: Intensidade de Carbono da Matéria-prima (utilizada)
B134: Energia elétrica excedente | C134: kWh | D134: =CombAlterHEFA!D144 -> 0 | E134: =CONVERT(D134,"kWh","MJ") -> 0
B135: Entradas | C135: Unidade | D135: 1 t óleo | F135: g CO2 eq/t óleo | H135: g CO2 eq/MJ | I135: g CO2 eq/MJ | J135: g CO2 eq/MJ | M135: g CO2 eq/t óleo especíco | O135: t matéria-prima elegível | P135: % matéria-prima elegível | Q135: % materia-prima elegível * IC materia-prima elegível | CB135: =D130/CA135 ->  | CC135: =CB135*1000 ->  | CD135: =CC135/D130 -> 
B136: Óleo de soja próprio | C136: kg | D136: =CombAlterHEFA!$D$131/(CombAlterHEFA!$D$131+CombAlterHEFA!$D$135) ->  | F136: =CombAlterHEFA!$D$131*$F$125*1000*D136 ->  | H136: =(F136*$F$130)/$E$130 ->  | I136: =(F136*$F$131)/$E$131 ->  | J136: =(F136*$F$132)/$E$132 ->  | L136: =CombAlterHEFA!D133 -> 0 | M136: =$F$125 ->  | N136: g CO2 eq/kg óleo de soja | O136: =D136*IF(L136="Sim",1,0) ->  | P136: =O136/$O$140 ->  | Q136: =P136*IF(O136>0,M136,0) ->  | S136: =IF(L136="Sim",M136,$Q$140) -> 
B137: Transporte óleo de soja até a usina | C137: tkm | D137: =D136*CombAlterHEFA!$D$132 ->  | F137: =D137*'Dados auxiliares'!$H$132 ->  | H137: =(F137*$F$130)/$E$130 ->  | I137: =(F137*$F$131)/$E$131 ->  | J137: =(F137*$F$132)/$E$132 -> 
B138: Óleo de soja de terceiros | C138: kg | D138: =CombAlterHEFA!$D$135/(CombAlterHEFA!$D$131+CombAlterHEFA!$D$135) ->  | F138: =(CombAlterHEFA!D135*CombAlterHEFA!G135*1000)*D138 ->  | I138: =(F138*$F$131)/$E$131 ->  | J138: =(F138*$F$132)/$E$132 ->  | L138: =CombAlterHEFA!D137 -> 0 | M138: =CombAlterHEFA!G135 -> 0 | N138: g CO2 eq/kg óleo de soja de terceiros | O138: =D138*IF(L138="Sim",1,0) ->  | P138: =O138/$O$140 ->  | Q138: =P138*M138 ->  | S138: =IF(L138="Sim",M138,$Q$140) -> 
B139: Transporte óleo de soja até a usina - fornecedores | C139: tkm | D139: =(CombAlterHEFA!D135*CombAlterHEFA!D136)/(CombAlterHEFA!$D$131+CombAlterHEFA!$D$135) ->  | F139: =D139*'Dados auxiliares'!$H$132 ->  | H139: =(F139*$F$130)/$E$130 ->  | I139: =(F139*$F$131)/$E$131 ->  | J139: =(F139*$F$132)/$E$132 ->  | Q139: g CO2 eq/kg materia-prima não elegível
B140: Água | C140: kg | D140: 383.5348837 | F140: =D140*'Dados auxiliares'!$H$83 -> 3.375710048 | O140: =SUM(O136:O138) ->  | P140: =SUM(P136:P138) ->  | Q140: =SUM(Q136:Q138) -> 
B141: Hidrogênio | C141: kg | D141: =CombAlterHEFA!D147 -> 0 | F141: =D141*'Dados auxiliares'!$H$102 -> 0
B142: Eletricidade da rede - mix médio | C142: kWh | D142: =CombAlterHEFA!D149 -> 0 | F142: =D142*'Dados auxiliares'!$H$107 -> 0
B143: Eletricidade - PCH | C143: kWh | D143: =CombAlterHEFA!D150 -> 0 | F143: =D143*'Dados auxiliares'!$H$108 -> 0
B144: Eletricidade - biomassa | C144: kWh | D144: =CombAlterHEFA!D151 -> 0 | F144: =D144*'Dados auxiliares'!$H$109 -> 0
B145: Eletricidade - eólica | C145: kWh | D145: =CombAlterHEFA!D152 -> 0 | F145: =D145*'Dados auxiliares'!$H$110 -> 0
B146: Eletricidade - solar | C146: kWh | D146: =CombAlterHEFA!D153 -> 0 | F146: =D146*'Dados auxiliares'!$H$111 -> 0
B147: Diesel B0 | C147: kg | D147: =(CombAlterHEFA!$D$154*(1-0.08)+CombAlterHEFA!$D$155*(1-0.1)+CombAlterHEFA!$D$156*(1-CombAlterHEFA!$G$156)+CombAlterHEFA!$D$157*(1-0.2)+CombAlterHEFA!$D$158*(1-0.3)+CombAlterHEFA!$D$159*(1-1))*('Dados auxiliares'!$D$26) -> 0 | F147: =D147*'Dados auxiliares'!$H$116 -> 0
B148: Biodiesel B100 | C148: kg | D148: =(CombAlterHEFA!$D$154*(0.08)+CombAlterHEFA!$D$155*(0.1)+CombAlterHEFA!$D$156*(CombAlterHEFA!$G$156)+CombAlterHEFA!$D$157*(0.2)+CombAlterHEFA!$D$158*(0.3)+CombAlterHEFA!$D$159*(1))*('Dados auxiliares'!$D$17) -> 0 | F148: =D148*'Dados auxiliares'!$H$117 -> 0
B149: Óleo combusível | C149: kg | D149: =CombAlterHEFA!D160*'Dados auxiliares'!$D$30 -> 0 | F149: =D149*'Dados auxiliares'!$H$126 -> 0 | H149: =(F149*$F$130)/$E$130 ->  | I149: =(F149*$F$131)/$E$131 ->  | J149: =(F149*$F$132)/$E$132 -> 
B150: Biogás de terceiros | C150: Nm³ | D150: =CombAlterHEFA!D161 -> 0 | F150: =D150*CombAlterHEFA!G161*'Dados auxiliares'!$H$125 -> 0
B151: Gás natural | C151: Nm³ | D151: =CombAlterHEFA!D164 -> 0 | F151: =D151*'Dados auxiliares'!$H$115 -> 0
B152: Cavaco de madeira | C152: kg base seca | D152: =CombAlterHEFA!$D$166*(1-CombAlterHEFA!$D$167) -> 0 | F152: =D152*'Dados auxiliares'!$H$123 -> 0
B153: Transporte de cavaco de madeira | C153: tkm | D153: =((D152/1000)*CombAlterHEFA!$D$168) -> 0 | F153: =D153*'Dados auxiliares'!$H$131 -> 0
B154: Lenha | C154: kg base seca | D154: =CombAlterHEFA!$D$170*(1-CombAlterHEFA!$D$171) -> 0 | F154: =D154*'Dados auxiliares'!$H$124 -> 0
B155: Transporte de lenha | C155: tkm | D155: =((D154/1000)*CombAlterHEFA!$D$172) -> 0 | F155: =D155*'Dados auxiliares'!$H$131 -> 0
B156: Resíduos florestais | C156: kg base seca | D156: =CombAlterHEFA!$D$174*(1-CombAlterHEFA!$D$175) -> 0 | F156: 0
B157: Transporte de resíduos florestais | C157: tkm | D157: =((D156/1000)*CombAlterHEFA!$D$176) -> 0 | F157: =D157*'Dados auxiliares'!$H$131 -> 0
B158: Bagaço de cana-de-açúcar | C158: kg base seca | D158: =CombAlterHEFA!$D$178*(1-CombAlterHEFA!$D$179) -> 0 | F158: 0
B159: Transporte de bagaço de cana-de-açúcar | C159: tkm | D159: =((D158/1000)*CombAlterHEFA!$D$180) -> 0 | F159: =D159*'Dados auxiliares'!$H$131 -> 0
B160: Palha de cana-de-açúcar | C160: kg base seca | D160: =CombAlterHEFA!$D$182*(1-CombAlterHEFA!$D$183) -> 0 | F160: =D160*'Dados auxiliares'!$H$78 -> 0
B161: Transporte de palha de cana-de-açúcar | C161: tkm | D161: =((D160/1000)*CombAlterHEFA!$D$184) -> 0 | F161: =D161*'Dados auxiliares'!$H$131 -> 0
B162: Emissões | C162: Unidade | D162: 1 t óleo | F162: g CO2 eq/t óleo | H162: g CO2 eq/MJ | I162: g CO2 eq/MJ | J162: g CO2 eq/MJ
B163: CO₂ eq - queima do diesel | C163: kg | D163: =D147*'FE''s queima combustíveis'!$I$50/1000 -> 0 | F163: =D163*1000 -> 0 | H163: =(((F163*$F$76)/$D$76)*1000*$F$130)/$E$130 -> 
B164: CO₂ eq - queima do biodiesel | C164: kg | D164: =D148*'FE''s queima combustíveis'!$I$51/1000 -> 0 | F164: 0 | H164: =(((F164*$F$76)/$D$76)*1000*$F$130)/$E$130 -> 
B165: CO₂ eq - queima do óleo combustível | C165: kg | D165: =D149*'FE''s queima combustíveis'!$I$53/1000 -> 0 | F165: =D165*1000 -> 0 | H165: =(((F165*$F$76)/$D$76)*1000*$F$130)/$E$130 ->  | I165: =(F165*$F$131)/$E$131 ->  | J165: =(F165*$F$132)/$E$132 -> 
B166: CO₂ eq - queima do biogás de terceiros | C166: kg | D166: =CombAlterHEFA!D161*CombAlterHEFA!G161*'FE''s queima combustíveis'!$I$41/1000 -> 0 | F166: =D166*1000 -> 0 | H166: =(((F166*$F$76)/$D$76)*1000*$F$130)/$E$130 ->  | J166: =(F166*$F$132)/$E$132 -> 
B167: CO₂ eq - queima do biogás próprio | C167: kg | D167: =CombAlterHEFA!D162*CombAlterHEFA!G162*'FE''s queima combustíveis'!$I$41/1000 -> 0 | F167: 0
B168: CO₂ eq - queima da gás natural | C168: kg | D168: =D151*'FE''s queima combustíveis'!$I$46*('Dados auxiliares'!$D$27/1000)/1000 -> 0 | F168: 0 | H168: =(((F168*$F$76)/$D$76)*1000*$F$130)/$E$130 -> 
B169: CO₂ eq - queima do gás combustível renovável | C169: kg | D169: =CombAlterHEFA!D163*CombAlterHEFA!G163*'FE''s queima combustíveis'!$I$44/1000 -> 0 | F169: =D169*1000 -> 0 | H169: =(((F169*$F$76)/$D$76)*1000*$F$130)/$E$130 ->  | I169: =(F169*$F$131)/$E$131 ->  | J169: =(F169*$F$132)/$E$132 -> 
B170: CO₂ eq - queima do bagaço de cana-de-açúcar | C170: kg | D170: =D158*'FE''s queima combustíveis'!$I$36/1000 -> 0 | F170: 0 | H170: =(((F170*$F$76)/$D$76)*1000*$F$130)/$E$130 -> 
B171: CO₂ eq - queima da palha de cana-de-açúcar | C171: kg | D171: =D160*'FE''s queima combustíveis'!$I$37/1000 -> 0 | F171: 0 | H171: =(((F171*$F$76)/$D$76)*1000*$F$130)/$E$130 -> 
B172: CO₂ eq - queima dos cavacos de madeira | C172: kg | D172: =D152*'FE''s queima combustíveis'!$I$38/1000 -> 0 | F172: 0 | H172: =(((F172*$F$76)/$D$76)*1000*$F$130)/$E$130 -> 
B173: CO₂ eq - queima da lenha | C173: kg | D173: =D154*'FE''s queima combustíveis'!$I$39/1000 -> 0 | F173: 0 | H173: =(((F173*$F$76)/$D$76)*1000*$F$130)/$E$130 -> 
B174: CO₂ eq - queima dos resíduos florestais | C174: kg | D174: =D156*'FE''s queima combustíveis'!$I$40/1000 -> 0 | F174: 0 | H174: =(((F174*$F$76)/$D$76)*1000*$F$130)/$E$130 -> 
B176: Emissões do processo | C176: g CO2 eq/kg óleo | F176: =SUM(F163:F174) -> 0 | H176: =(F176*$F$130)/$E$130 ->  | I176: =(F176*$F$131)/$E$131 ->  | J176: =(F176*$F$132)/$E$132 -> 
B177: Emissões background | C177: g CO2 eq/kg óleo | F177: =SUM(F136:F161) -> 
B178: Emissões totais | C178: g CO2 eq/kg óleo | F178: =F177+F176 -> 
B182: Etapa distribuição
B183: Sistema logístico rodoviário
B184: Parâmetro | C184: Unidade | D184: BioQAV | E184: Gasolina renovável | F184: Diesel renovável
B185: Massa | C185: kg/t óleo | D185: =$D$130*CombAlterHEFA!$D$190 -> 0 | E185: =$D$131*CombAlterHEFA!$D$196 -> 0 | F185: =$D$132*CombAlterHEFA!$D$202 -> 0
B186: Distância de transporte rodoviário | C186: km | D186: ='Dados auxiliares'!C160 -> 1500 | E186: ='Dados auxiliares'!C160 -> 1500 | F186: ='Dados auxiliares'!C160 -> 1500
B187: Transporte rodoviário | C187: tkm/t óleo | D187: =D185/1000*D186 -> 0 | E187: =E185/1000*E186 -> 0 | F187: 0
B188: Emissões | C188: g CO2 eq/t óleo | D188: =D187*'Dados auxiliares'!$H$132 -> 0 | E188: =E187*'Dados auxiliares'!$H$132 -> 0 | F188: =F187*'Dados auxiliares'!$H$132 -> 0
B189: Emissões | C189: g CO2 eq/MJ | D189: =D188/$E$130 ->  | E189: =E188/$E$131 ->  | F189: =F188/$E$132 -> 
B190: Sistema logístico dutoviário
B191: Parâmetro | C191: Unidade | D191: BioQAV | E191: Gasolina renovável | F191: Diesel renovável
B192: Massa | C192: kg/t óleo | D192: =$D$130*CombAlterHEFA!D191 -> 0 | E192: =$D$131*CombAlterHEFA!$D$197 -> 0 | F192: =$D$132*CombAlterHEFA!$D$203 -> 0
B193: Distância de transporte rodoviário | C193: km | D193: ='Dados auxiliares'!E160 -> 600 | E193: ='Dados auxiliares'!E160 -> 600 | F193: ='Dados auxiliares'!E160 -> 600
B194: Transporte rodoviário | C194: tkm/t óleo | D194: =D192/1000*D193 -> 0 | E194: =E192/1000*E193 -> 0 | F194: 0
B195: Distância de transporte dutoviário | C195: km | D195: ='Dados auxiliares'!D160 -> 900 | E195: ='Dados auxiliares'!D160 -> 900 | F195: ='Dados auxiliares'!D160 -> 900
B196: Transporte dutoviário | C196: tkm/t óleo | D196: =D192/1000*D195 -> 0 | E196: =E192/1000*E195 -> 0 | F196: 0
B197: Emissões | C197: g CO2 eq/t óleo | D197: =D194*'Dados auxiliares'!$H$132+D196*'Dados auxiliares'!$H$136 -> 0 | E197: =E194*'Dados auxiliares'!$H$132+E196*'Dados auxiliares'!$H$136 -> 0 | F197: =F194*'Dados auxiliares'!$H$132+F196*'Dados auxiliares'!$H$136 -> 0
B198: Emissões | C198: g CO2 eq/MJ | D198: =D197/$E$130 ->  | E198: =E197/$E$130 -> 
B199: Sistema logístico ferroviário
B200: Parâmetro | C200: Unidade | D200: BioQAV | E200: Gasolina renovável | F200: Diesel renovável
B201: Massa | C201: kg/t óleo | D201: =$D$130*CombAlterHEFA!D192 -> 0 | E201: =$D$131*CombAlterHEFA!$D$198 -> 0 | F201: =$D$132*CombAlterHEFA!$D$204 -> 0
B202: Distância de transporte rodoviário | C202: km | D202: ='Dados auxiliares'!G160 -> 600 | E202: ='Dados auxiliares'!G160 -> 600 | F202: ='Dados auxiliares'!G160 -> 600
B203: Transporte rodoviário | C203: tkm/t óleo | D203: =D201/1000*D202 -> 0 | E203: =E201/1000*E202 -> 0 | F203: 0
B204: Distância de transporte ferroviário | C204: km | D204: ='Dados auxiliares'!F160 -> 900 | E204: ='Dados auxiliares'!F160 -> 900 | F204: ='Dados auxiliares'!F160 -> 900
B205: Transporte ferroviário | C205: tkm/t óleo | D205: =D201/1000*D204 -> 0 | E205: =E201/1000*E204 -> 0 | F205: 0
B206: Emissões | C206: g CO2 eq/t óleo | D206: =D203*'Dados auxiliares'!$H$132+D205*'Dados auxiliares'!$H$135 -> 0 | E206: =E203*'Dados auxiliares'!$H$132+E205*'Dados auxiliares'!$H$135 -> 0 | F206: =F203*'Dados auxiliares'!$H$132+F205*'Dados auxiliares'!$H$135 -> 0
B207: Emissões | C207: g CO2 eq/MJ | D207: =D206/$E$130 ->  | E207: =E206/$E$130 -> 
B209: Emissões totais | C209: g CO2 eq/MJ | D209: =D189+D198+D207 ->  | E209: =E189+E198+E207 -> 

Sheet Biometano
B2: Produção de biometano
B4: Nome da Usina: | C4: Usina Hipotética
B6: CNPJ | C6: 00.000.000/0000-00
B8: Responsável pelo preenchimento:
B10: Telefone : | C10: (00) 0000-0000
C13: Biometano
B15: Intensidade de Carbono (g CO₂eq/MJ) | C15: =SUM(C18:C20) -> 3.482705503 | D15: Nota de Eficiência Energético-Ambiental (g CO₂eq/MJ) | G15: =G18-C15 -> 83.2172945
G17: Fóssil substituto: Média entre Gasolina, Diesel e GNV
B18: industrial | C18: =IFERROR(_Biometano!C5,0) -> 0 | G18: ='Dados auxiliares'!F169 -> 86.7
B19: transporte | C19: =IFERROR(_Biometano!C6,0) -> 0 | G19: Redução de emissões
B20: uso | C20: =IFERROR(_Biometano!C7,0) -> 3.482705503 | G20: =(G18-C15)/G18 -> 0.9598303864
B23: Fase industrial - produção de biometano
B24: Biomassas
D25: Biomassa 1
C26: Biogás de Aterro Sanitário
C27: Quantidade | E27: t/ano
C28: Distância de transporte | E28: km
D30: Biomassa 2
C31: Especificar
C32: Quantidade | E32: t/ano
C33: Distância de transporte | E33: km
D35: Biomassa 3
C36: Especificar
C37: Quantidade | E37: t/ano
C38: Distância de transporte | E38: km
D40: Biomassa 4
C41: Especificar
C42: Quantidade | E42: t/ano
C43: Distância de transporte | E43: km
D45: Biomassa 5
C46: Especificar
C47: Quantidade | E47: t/ano
C48: Distância de transporte | E48: km
B50: Produtos
C51: Produção de biometano | E51: Nm³/ano | F51: Poder calorífico inferior | H51: MJ/Nm³
F52: Teor de metano | H52: % molar
C53: Eletricidade comercializada | E53: kWh/ano
B55: Combustíveis e eletricidade
C56: Eletricidade da rede - mix médio | E56: MWh/ano
C57: Eletricidade - PCH | E57: MWh/ano
C58: Eletricidade - biomassa | E58: MWh/ano
C59: Eletricidade - eólica | E59: MWh/ano
C60: Eletricidade - solar | E60: MWh/ano
C61: Diesel - B8 | E61: m³/ano
C62: Diesel - B10 | E62: m³/ano
C63: Diesel - BX | E63: m³/ano | F63: Teor de biodiesel na mistura
C64: Diesel - B20 | E64: m³/ano
C65: Diesel - B30 | E65: m³/ano
C66: Biodiesel - B100 | E66: m³/ano
C67: Óleo combustível | E67: m3/ ano
C68: Biogás de terceiros | E68: Nm³/ano | F68: PCI do biogás | H68: MJ/Nm³
C69: Biogás próprio | E69: Nm³/ano | F69: PCI do biogás | H69: MJ/Nm³
C70: Gás natural | E70: Nm³/ano
C71: Cavaco de madeira
C72: Quantidade (base úmida) | E72: t/ano
C73: Umidade
C74: Distância de transporte | E74: km
C75: Lenha
C76: Quantidade (base úmida) | E76: t/ano
C77: Umidade
C78: Distância de transporte | E78: km
C79: Resíduos florestais
C80: Quantidade (base úmida) | E80: t/ano
C81: Umidade
C82: Distância de transporte | E82: km
C83: Bagaço de cana
C84: Quantidade (base úmida) | E84: t/ano
C85: Umidade
C86: Distância de transporte | E86: km
C87: Palha de cana
C88: Quantidade (base úmida) | E88: t/ano
C89: Umidade
C90: Distância de transporte | E90: km
B93: Fase de distribuição
C95: Rodoviário | D95: 1 | E95: =IF((SUM(D95:D96)=1),"","A soma das porcentagens de distribuição deve ser igual a 100%!") -> 
C96: Dutoviário | D96: 0

Sheet _Biometano (hidden)
B2: Emissões totais - g CO₂ eq
C3: Biometano
B4: Total | C4: =SUM(C5:C7) -> 
B5: Industrial | C5: =H62 ->  | D5: =C5/$C$4 -> 
B6: Transporte | C6: =D82 -> 
B7: Uso | C7: ='FE''s queima combustíveis'!$I$12 -> 3.482705503
B10: Etapa industrial - Produção de biogás | H10: Emissões por MJ de biometano | BZ10: =#REF!*CD14 -> 
B11: Produtos | C11: Unidade | D11: Unidade/ano | E11: MJ | F11: Alocação
B12: Biogás | C12: Nm³ | D12: =Biometano!D51 -> 0 | E12: =D12*Biometano!G51 -> 0 | F12: =E12/SUM($E$12:$E$13) -> 
B13: Eletricidade | C13: kWh | D13: =Biometano!D53 -> 0 | E13: =CONVERT(D13,"kWh","MJ") -> 0 | F13: =E13/SUM($E$12:$E$13) -> 
B14: Entradas | C14: Unidade | D14: Unidade/ano | F14: g CO2 eq/ano | H14: g CO2 eq/MJ | CB14: =D12/CA14 ->  | CC14: =CB14*1000 ->  | CD14: =CC14/D12 -> 
B15: Matérias-primas
B16: Matéria-prima 1 | C16: t | D16: =Biometano!$D$27 -> 0 | F16: 0 | H16: =(F16*$F$12)/$E$12 -> 
B17: Transporte matéria-prima 1 até a usina | C17: tkm | D17: =D16*Biometano!$D$28 -> 0 | F17: =D17*'Dados auxiliares'!$H$132 -> 0 | H17: =(F17*$F$12)/$E$12 -> 
B18: Matéria-prima 2 | C18: t | D18: =Biometano!$D$32 -> 0 | F18: 0
B19: Transporte matéria-prima 2 até a usina | C19: tkm | D19: =D18*Biometano!$D$33 -> 0 | F19: =D19*'Dados auxiliares'!$H$132 -> 0
B20: Matéria-prima 3 | C20: t | D20: =Biometano!$D$37 -> 0 | F20: 0
B21: Transporte matéria-prima 3 até a usina | C21: tkm | D21: =D20*Biometano!$D$38 -> 0 | F21: =D21*'Dados auxiliares'!$H$132 -> 0
B22: Matéria-prima 4 | C22: t | D22: =Biometano!$D$42 -> 0 | F22: 0
B23: Transporte matéria-prima 4 até a usina | C23: tkm | D23: =D22*Biometano!$D$43 -> 0 | F23: =D23*'Dados auxiliares'!$H$132 -> 0
B24: Matéria-prima 5 | C24: t | D24: =Biometano!$D$47 -> 0 | F24: 0
B25: Transporte matéria-prima 5 até a usina | C25: tkm | D25: =D24*Biometano!$D$48 -> 0 | F25: =D25*'Dados auxiliares'!$H$132 -> 0
B26: Insumos
B27: Eletricidade da rede - mix médio | C27: kWh | D27: =Biometano!D56*1000 -> 0 | F27: =D27*'Dados auxiliares'!$H$107 -> 0
B28: Eletricidade - PCH | C28: kWh | D28: =Biometano!D57*1000 -> 0 | F28: =D28*'Dados auxiliares'!$H$108 -> 0
B29: Eletricidade - biomassa | C29: kWh | D29: =Biometano!D58*1000 -> 0 | F29: =D29*'Dados auxiliares'!$H$109 -> 0
B30: Eletricidade - eólica | C30: kWh | D30: =Biometano!D59*1000 -> 0 | F30: =D30*'Dados auxiliares'!$H$110 -> 0
B31: Eletricidade - solar | C31: kWh | D31: =Biometano!D60*1000 -> 0 | F31: =D31*'Dados auxiliares'!$H$111 -> 0
B32: Diesel B0 | C32: kg | D32: =((Biometano!$D$61*(1-0.08)+Biometano!$D$62*(1-0.1)+Biometano!$D$63*(1-Biometano!$G$63)+Biometano!$D$64*(1-0.2)+Biometano!$D$65*(1-0.3)+Biometano!$D$66*(1-1))*('Dados auxiliares'!$D$26))*1000 -> 0 | F32: =D32*'Dados auxiliares'!$H$116 -> 0
B33: Biodiesel B100 | C33: kg | D33: =((Biometano!$D$61*(0.08)+Biometano!$D$62*(0.1)+Biometano!$D$63*(Biometano!$G$63)+Biometano!$D$64*(0.2)+Biometano!$D$65*(0.3)+Biometano!$D$66*(1))*('Dados auxiliares'!$D$17))*1000 -> 0 | F33: =D33*'Dados auxiliares'!$H$117 -> 0
B34: Óleo combustível | C34: kg | D34: =Biometano!D67*'Dados auxiliares'!$D$30*1000 -> 0 | F34: =D34*'Dados auxiliares'!$H$126 -> 0
B35: Biogás de terceiros | C35: Nm³ | D35: =Biometano!D68 -> 0 | F35: =D35*Biometano!G68*'Dados auxiliares'!$H$125 -> 0
B36: Gás natural | C36: Nm³ | D36: =Biometano!D70 -> 0 | F36: =D36*'Dados auxiliares'!$H$115 -> 0
B37: Cavaco de madeira | C37: kg base seca | D37: =Biometano!$D$72*(1-Biometano!$D$73)*1000 -> 0 | F37: =D37*'Dados auxiliares'!$H$123 -> 0
B38: Transporte de cavaco de madeira | C38: tkm | D38: =((D37/1000)*Biometano!$D$74) -> 0 | F38: =D38*'Dados auxiliares'!$H$131 -> 0
B39: Lenha | C39: kg base seca | D39: =Biometano!$D$76*(1-Biometano!$D$77)*1000 -> 0 | F39: =D39*'Dados auxiliares'!$H$124 -> 0
B40: Transporte de lenha | C40: tkm | D40: =((D39/1000)*Biometano!$D$78) -> 0 | F40: =D40*'Dados auxiliares'!$H$131 -> 0
B41: Resíduos florestais | C41: kg base seca | D41: =Biometano!$D$80*(1-Biometano!$D$81)*1000 -> 0 | F41: 0
B42: Transporte de resíduos florestais | C42: tkm | D42: =((D41/1000)*Biometano!$D$82) -> 0 | F42: =D42*'Dados auxiliares'!$H$131 -> 0
B43: Bagaço de cana-de-açúcar | C43: kg base seca | D43: =Biometano!$D$84*(1-Biometano!$D$85)*1000 -> 0 | F43: 0
B44: Transporte de bagaço de cana-de-açúcar | C44: tkm | D44: =((D43/1000)*Biometano!$D$86) -> 0 | F44: =D44*'Dados auxiliares'!$H$131 -> 0
B45: Palha de cana-de-açúcar | C45: kg base seca | D45: =Biometano!$D$88*(1-Biometano!$D$89)*1000 -> 0 | F45: =D45*'Dados auxiliares'!$H$78 -> 0
B46: Transporte de palha de cana-de-açúcar | C46: tkm | D46: =((D45/1000)*Biometano!$D$90) -> 0 | F46: =D46*'Dados auxiliares'!$H$131 -> 0
B47: Emissões | C47: Unidade | D47: Unidade/ano | F47: g CO2 eq/t óleo | H47: g CO2 eq/MJ
B48: CO₂ eq - queima do diesel | C48: kg | D48: =D32*'FE''s queima combustíveis'!$I$50/1000 -> 0 | F48: =D48*1000 -> 0
B49: CO₂ eq - queima do biodiesel | C49: kg | D49: =D33*'FE''s queima combustíveis'!$I$51/1000 -> 0 | F49: 0
B50: CO₂ eq - queima do óleo combustível | C50: kg | D50: =D34*'FE''s queima combustíveis'!$I$53/1000 -> 0 | F50: =D50*1000 -> 0
B51: CO₂ eq - queima do biogás de terceiros | C51: kg | D51: =Biometano!D68*Biometano!G68*'FE''s queima combustíveis'!$I$41/1000 -> 0 | F51: 0
B52: CO₂ eq - queima do biogás próprio | C52: kg | D52: =Biometano!D69*Biometano!G69*'FE''s queima combustíveis'!$I$41/1000 -> 0 | F52: 0
B53: CO₂ eq - queima da gás natural | C53: kg | D53: =D36*'FE''s queima combustíveis'!$I$46*('Dados auxiliares'!$D$27/1000)/1000 -> 0 | F53: 0
B54: CO₂ eq - queima do bagaço de cana-de-açúcar | C54: kg | D54: =D43*'FE''s queima combustíveis'!$I$36/1000 -> 0 | F54: 0
B55: CO₂ eq - queima da palha de cana-de-açúcar | C55: kg | D55: =D45*'FE''s queima combustíveis'!$I$37/1000 -> 0 | F55: 0
B56: CO₂ eq - queima dos cavacos de madeira | C56: kg | D56: =D37*'FE''s queima combustíveis'!$I$38/1000 -> 0 | F56: 0
B57: CO₂ eq - queima da lenha | C57: kg | D57: =D39*'FE''s queima combustíveis'!$I$39/1000 -> 0 | F57: 0
B58: CO₂ eq - queima dos resíduos florestais | C58: kg | D58: =D41*'FE''s queima combustíveis'!$I$40/1000 -> 0 | F58: 0
B60: Emissões do processo | C60: g CO2 eq/kg biometano | F60: =SUM(F48:F58) -> 0
B61: Emissões background | C61: g CO2 eq/kg biometano | F61: =SUM(F16:F46) -> 0
B62: Emissões totais | C62: g CO2 eq/kg biometano | F62: =F61+F60 -> 0
B64: Emissões totais | C64: g CO2 eq/kg biometano
B66: Etapa distribuição
B67: Sistema logístico rodoviário
B68: Parâmetro | C68: Unidade | D68: Biometano
B69: Massa | C69: t | D69: =$D$12*'Dados auxiliares'!D18*Biometano!$D$95 -> 0
B70: Distância de transporte rodoviário | C70: km | D70: ='Dados auxiliares'!C161 -> 43
B71: Transporte rodoviário | C71: tkm | D71: =D69*D70 -> 0
B72: Emissões | C72: g CO2 eq | D72: =D71*'Dados auxiliares'!$H$132 -> 0
B73: Emissões | C73: g CO2 eq/MJ | D73: =D72/E12 -> 
B74: Sistema logístico dutoviário
B75: Parâmetro | C75: Unidade | D75: Biometano
B76: Massa | C76: t | D76: =$D$12*'Dados auxiliares'!D27*Biometano!$D$96 -> 0
B77: Distância de transporte dutoviário | C77: km | D77: ='Dados auxiliares'!D161 -> 24
B78: Transporte dutoviário | C78: tkm/t óleo | D78: =D76*D77 -> 0
B79: Emissões | C79: g CO2 eq/t óleo | D79: =D78*'Dados auxiliares'!$H$136 -> 0
B80: Emissões | C80: g CO2 eq/MJ | D80: =D79/E12 -> 
B82: Emissões totais | C82: g CO2 eq/MJ | D82: =D73+D80 -> 

Sheet Dados auxiliares (hidden)
B3: Fatores de caracterização dos gases causadores do efeito estufa
B4: Gases de Efeito Estufa | D4: GWP | E4: Referência
D5: kg CO2eq/kg
B6: CO2 - Dióxido de Carbono Fóssil | D6: 1 | E6: AR5 (IPCC)
B7: CH4 - Metano Fóssil | D7: 30 | E7: AR5 (IPCC)
B8: CH4 - biogênico - Metano Biogênico | D8: 28 | E8: AR5 (IPCC)
B9: N2O - Óxido Nitroso | D9: 265 | E9: AR5 (IPCC)
B12: Massa específica e poder calorífico inferior dos combustíveis
B13: Combustíveis | D13: Massa específica | E13: PCI | G13: Referência
D14: kg/L | E14: kcal/kg | F14: MJ/kg
B15: Etanol anidro | D15: =0.791 -> 0.791 | E15: 6750 | F15: =CONVERT(E15,"kcal","MJ") -> 28.2609 | G15: ANP
B16: Etanol hidratado | D16: =0.809 -> 0.809 | E16: 6300 | F16: =CONVERT(E16,"kcal","MJ") -> 26.37684 | G16: ANP
B17: Biodiesel (B100) | D17: =0.88 -> 0.88 | E17: 9000 | F17: =CONVERT(E17,"kcal","MJ") -> 37.6812 | G17: ANP
B18: Biometano (96,5% metano) | D18: 0.0007576054205 | E18: =CONVERT(F18,"MJ","kcal") -> 11524.31451 | F18: 48.25 | G18: RenovaBio
B19: Gás combustível renovável | D19: 0.0008 | E19: =CONVERT(F19,"MJ","kcal") -> 10848.38062 | F19: 45.42 | G19: Petrobras
B20: BioQav | D20: 0.735 | E20: 10400 | F20: =CONVERT(E20,"kcal","MJ") -> 43.54272 | G20: KLEIN et al. (2018) - CTBE
B21: Diesel renovável | D21: 0.782 | E21: =CONVERT(F21,"MJ","kcal") -> 10504.44253 | F21: 43.98 | G21: Petrobras
B22: Gasolina renovável | D22: 0.69 | E22: =CONVERT(F22,"MJ","kcal") -> 10733.73459 | F22: 44.94 | G22: Petrobras
B23: GLP renovável | D23: =0.55 -> 0.55 | E23: =CONVERT(F23,"MJ","kcal") -> 11130.21878 | F23: 46.6 | G23: Petrobras
B24: Gasolina A | D24: 0.742 | E24: 10400 | F24: =CONVERT(E24,"kcal","MJ") -> 43.54272 | G24: ANP
B25: Gasolina C | D25: 0.75425 | E25: 9400 | F25: 39.35592 | G25: ANP
B26: Diesel A | D26: =0.84 -> 0.84 | E26: 10100 | F26: 42.28668 | G26: ANP
B27: Gás natural seco | D27: 0.00074 | E27: 8800 | F27: 36.84384 | G27: ANP
B28: Querosene de Aviação | D28: 0.799 | E28: 10400 | F28: 43.54272 | G28: ANP
B29: GLP | D29: =0.552 -> 0.552 | E29: 11100 | F29: 46.47348 | G29: ANP
B30: Óleo combustível | D30: 1.013 | E30: 9590 | F30: =CONVERT(E30,"kcal","MJ") -> 40.151412 | G30: ANP
B33: Poder calorífico inferior de outros co-produtos
B34: Produto | D34: PCI | E34: Referência
D35: MJ/kg
B36: Açúcar | D36: 16.19 | E36: TACO (2011)
B37: DDG – “Dried Distillers Grains” | D37: 20.243178 | E37: Assumido igual ao do DDGS
B38: DDGS – “Dried Distillers Grains with Solubles” | D38: 20.243178 | E38: Aurora et al (2010)
B39: CGM - "Corn Gluten Meal" | D39: 18.608 | E39: Shapouri et al (2002)
B40: CGF - "Corn Gluten Feed" | D40: 18.608 | E40: Shapouri et al (2002)
B41: Óleo de Milho | D41: 37.216 | E41: Aurora et al (2010)
B42: Óleo de Soja | D42: 34.04 | E42: Mourad & Walter (2011)
B43: Farelo de Soja | D43: 15.4 | E43: Mourad & Walter (2011)
B44: Glicerina purificada | D44: 16.2 | E44: Mourad & Walter (2011)
B45: Glicerina bruta | D45: =CONVERT(3491,"kcal","MJ") -> 14.6161188 | E45: ABIOVE
B48: Emissões do ciclo de vida dos insumos e outros processos à montante
B49: Insumo | C49: Unidade | D49: Emissões do ciclo de vida [kg/unidade] | H49: g CO₂ eq/ unidade | I49: Fonte dos dados | J49: Processo de referência
D50: CO₂ | E50: N₂O | F50: CH₄ biog | G50: CH₄
B51: Insumos agrícolas
B52: Calcário calcítico | C52: kg | D52: 0.03400195696 | E52: 1.450669659e-06 | F52: 1.786883245e-06 | G52: 7.997402775e-05 | H52: =(D52+(E52*$D$9)+(F52*$D$8)+(G52*$D$7))*1000 -> 36.83563798 | I52: Ecoinvent V.3.1 | J52: Lime {RoW}| production, milled, loose | Alloc Rec, U
B53: Calcário dolomítico | C53: kg | D53: 0.03400195696 | E53: 1.450669659e-06 | F53: 1.786883245e-06 | G53: 7.997402775e-05 | H53: 36.83563798 | I53: Ecoinvent V.3.1 | J53: Lime {RoW}| production, milled, loose | Alloc Rec, U
B54: Gesso | C54: kg | D54: 0.002551358999 | E54: 6.599441574e-07 | F54: 1.140176214e-07 | G54: 3.314587811e-06 | H54: 2.828874328 | I54: Ecoinvent V.3.1 | J54: Gypsum, mineral {RoW}| gypsum quarry operation | Alloc Rec, U
B55: N - Ureia | C55: kg | D55: 2.99725367 | E55: 6.434038225e-05 | F55: 8.120179483e-05 | G55: 0.00648789048 | H55: 3211.214236 | I55: Ecoinvent V.3.1 | J55: Urea, as N {RoW}| production | Alloc Rec, U
B56: N - MAP - Fosfato Monoamônico | C56: kg | D56: 3.073802815 | E56: 9.607851595e-05 | F56: 0.0002016246283 | G56: 0.005253209653 | H56: 3262.505401 | I56: Ecoinvent V.3.1 | J56: Nitrogen fertiliser, as N {RER}| monoammonium phosphate production | Alloc Rec, U
B57: P₂O₅ - MAP - Fosfato Monoamônico | C57: kg | D57: 1.566144768 | E57: 4.895332398e-05 | F57: 0.0001027305184 | G57: 0.002676582497 | H57: 1662.291328 | I57: Ecoinvent V.3.1 | J57: Phosphate fertiliser, as P2O5 {RER}| monoammonium phosphate production | Alloc Rec, U
B58: N - DAP - Fosfato diamônico | C58: kg | D58: 3.196614099 | E58: 9.52709086e-05 | F58: 0.0001710625028 | G58: 0.004775382926 | H58: 3369.912128 | I58: Ecoinvent V.3.1 | J58: Nitrogen fertiliser, as N {RER}| diammonium phosphate production | Alloc Rec, U
B59: P₂O₅ - DAP - Fosfato diamônico | C59: kg | D59: 1.33449 | E59: 3.8509173e-05 | F59: 3.5445093e-05 | G59: 0.003361019735 | H59: 1446.517986 | I59: Ecoinvent V.3.1 | J59: Phosphate fertiliser, as P2O5 {RoW}| diammonium phosphate production | Alloc Rec, U
B60: N - Nitrato de Amônio | C60: kg | D60: 3.057679838 | E60: 0.01894325204 | F60: 7.751787781e-05 | G60: 0.00489206088 | H60: 8226.573955 | I60: Ecoinvent V.3.1 | J60: Ammonium nitrate, as N {RoW}| ammonium nitrate production | Alloc Rec, U
B61: N - UAN - Nitrato de amônio Ureia | C61: kg | D61: 2.997445561 | E61: 0.009545368551 | F61: 8.353328841e-05 | G61: 0.005589378829 | H61: 5696.988524 | I61: Ecoinvent V.3.1 | J61: Nitrogen fertiliser, as N {RoW}| urea ammonium nitrate production | Alloc Rec, U
B62: N - Amônia anidra | C62: kg | D62: 1.7437523 | E62: 2.4352648e-05 | F62: 0.003894214761 | G62: 0.003894214761 | H62: 1976.070208 | I62: Ecoinvent V.3.2 | J62: Ammonia, liquid {RoW}| ammonia production, steam reforming, liquid | Alloc Def, U
B63: N - Sulfato de Amônio | C63: kg | D63: 1.649475632 | E63: 4.824921333e-05 | F63: 6.959736467e-05 | G63: 0.004637738486 | H63: 1803.342554 | I63: Ecoinvent V.3.1 | J63: Ammonium sulfate, as N {RoW}| ammonium sulfate production | Alloc Rec, U
B64: N - CAN - Nitrato de amônio cálcio | C64: kg | D64: 3.137276223 | E64: 0.01894696142 | F64: 8.607073443e-05 | G64: 0.005084327109 | H64: 8313.160793 | I64: Ecoinvent V.3.1 | J64: Nitrogen fertiliser, as N {RoW}| calcium ammonium nitrate production | Alloc Rec, U
B65: N - Nitrato de cálcio | C65: kg | D65: 1.203454487 | E65: 0.00574857306 | F65: 3.658316637e-05 | G65: 0.001750295357 | H65: 2780.359537 | I65: Ecoinvent V.3.1 | J65: Ammonium nitrate, as N {RoW}| calcium nitrate production | Alloc Rec, U
B66: P₂O₅ - SSP - Superfosfato Simples | C66: kg | D66: 2.170288146 | E66: 9.802688282e-05 | F66: 0.0002709454145 | G66: 0.005460155865 | H66: 2367.656417 | I66: Ecoinvent V.3.1 | J66: Phosphate fertiliser, as P2O5 {RoW}| single superphosphate production | Alloc Rec, U
B67: P₂O₅ - TSP - Superfosfato Triplo | C67: kg | D67: 1.732015848 | E67: 6.83545249e-05 | F67: 0.000176456132 | G67: 0.004043720177 | H67: 1876.382174 | I67: Ecoinvent V.3.1 | J67: Phosphate fertiliser, as P2O5 {RoW}| triple superphosphate production | Alloc Rec, U
B68: K₂O - KCl - Cloreto de potássio | C68: kg | D68: 0.4105007436 | E68: 2.326439478e-05 | F68: 2.97998386e-05 | G68: 0.001256918574 | H68: 455.2077609 | I68: Ecoinvent V.3.1 | J68: Potassium chloride, as K2O {RoW}| potassium chloride production | Alloc Rec, U
B69: N - Outros | C69: kg | D69: 2.99725367 | E69: 6.434038225e-05 | F69: 8.120179483e-05 | G69: 0.00648789048 | H69: 3211.214236 | I69: Ecoinvent V.3.2 | J69: Urea, as N {RoW}| production | Alloc Rec, U
B70: P₂O₅ - Outros | C70: kg | D70: 2.170288146 | E70: 9.802688282e-05 | F70: 0.0002709454145 | G70: 0.005460155865 | H70: 2367.656417 | I70: Ecoinvent V.3.3 | J70: Phosphate fertiliser, as P2O5 {RoW}| single superphosphate production | Alloc Rec, U
B71: K₂O - Outros | C71: kg | D71: 0.4105007436 | E71: 2.326439478e-05 | F71: 2.97998386e-05 | G71: 0.001256918574 | H71: 455.2077609 | I71: Ecoinvent V.3.4 | J71: Potassium chloride, as K2O {RoW}| potassium chloride production | Alloc Rec, U
B72: Glifosato | C72: kg | D72: 10.40099593 | E72: 0.0003884181691 | F72: 0.0009528207018 | G72: 0.03250336112 | H72: 11505.70656 | I72: Ecoinvent V.3.1 | J72: Glyphosate {RoW}| production | Alloc Rec, U
B73: 2,4 - D | C73: kg | D73: 4.471838954 | E73: 0.0001278045147 | F73: 0.0003485344374 | G73: 0.01887350383 | H73: 5081.67123 | I73: Ecoinvent V.3.1 | J73: 2,4-dichlorophenol {RoW}| production | Alloc Rec, U
B74: Pesticidas, geral | C74: kg | D74: 9.247839055 | E74: 0.002015447545 | F74: 0.0007630983399 | G74: 0.03130739931 | H74: 10742.52139 | I74: Ecoinvent V.3.1 | J74: Pesticide, unspecified {RoW}| production | Alloc Rec, U
B75: Sementes de milho | C75: kg | D75: 0.9708155196 | E75: 0.00199933456 | F75: 5.578538799e-05 | G75: 0.002129655538 | H75: 1566.090835 | I75: Ecoinvent V.3.1 | J75: Maize seed, Swiss integrated production, at farm {CH}| production | Alloc Rec, U
B76: Sementes de soja | C76: kg | D76: 1.548919339 | E76: 0.0009029448071 | F76: 3.826157715e-05 | G76: 0.0004382217316 | H76: 1802.417689 | I76: Ecoinvent V.3.1 | J76: Soybean seed, for sowing {RoW}| production | Alloc Rec, U
B77: Operações agrícolas
B78: Recolhimento de palha de cana | C78: kg palha (bs) | H78: 11.95349029 | I78: CTBE | J78: Recolhimento de palha enfardada, com 50% de recolhimento
B79: Secagem de grãos | C79: m³ | H79: 0.01629915 | I79: Embrapa | J79: Drying of maize grain sozinho {BR - Renovabio}
B80: Processamento de grãos secos (limpeza e armazenamento) | C80: m³ | H80: =H81-H79 -> 0.015811137 | I80: Embrapa
B81: Processamento de grãos incluindo secagem(limpeza, secagem e armazenamento) | C81: m³ | H81: 0.032110287 | I81: Embrapa | J81: Processamento do milho {BR - Renovabio}| limpeza, secagem e armazenamento | Alloc Def, U
B82: Insumos industriais
B83: Água | C83: kg | D83: 8.261610519e-06 | E83: 1.747185929e-10 | F83: 4.732176921e-10 | G83: 1.601371201e-08 | H83: =(D83+(E83*$D$9)+(F83*$D$8)+(G83*$D$7))*1000 -> 0.008801572402 | I83: Ecoinvent V.3.1. | J83: Water, decarbonised, at user {RoW}| water production and supply, decarbonised | Alloc Rec, U
B84: Cal (CaO) | C84: kg | D84: 0.9559166369 | E84: 2.601050303e-06 | F84: 2.036897088e-06 | G84: 0.0001691403399 | H84: 961.7371585 | I84: Ecoinvent V.3.1. | J84: Quicklime, milled, loose {RoW}| production | Alloc Rec, U
B85: Ácido cítrico | C85: kg | D85: 24.9609306 | E85: 0.003242877882 | F85: 0.002066223246 | G85: 0.05307168658 | H85: 27470.29808 | I85: Ecoinvent V.3.1. | J85: Citric acid {RoW}| production | Alloc Def, U
B86: Ácido Clorídrico | C86: kg | D86: 1.523518559 | E86: 6.980338594e-05 | F86: 0.0001899003681 | G86: 0.004278032897 | H86: 1675.674654 | I86: Ecoinvent V.3.1. | J86: Hydrochloric acid, without water, in 30% solution state {RoW}| hydrochloric acid production, from the reaction of hydrogen with chlorine | Alloc Def, U
B87: Ácido Clorídrico - solução 30% | C87: kg | D87: 0.6486767053 | E87: 4.226664525e-05 | F87: 0.002846972632 | G87: 0.001356999294 | H87: 780.3025788 | I87: Ecoinvent | J87: Hydrochloric acid, 30% in H2O, at plant/BR U
B88: Ácido sulfúrico | C88: kg | D88: 0.09840532511 | E88: 3.363213968e-06 | F88: 2.76780375e-05 | G88: 0.0003096099279 | H88: 109.3598597 | I88: Ecoinvent V.3.1. | J88: Sulfuric acid {RoW}| production | Alloc Def, U
B89: Ácido fosfórico | C89: kg | D89: 1.417039617 | E89: 4.195496608e-05 | F89: 0.0001108365852 | G89: 0.002722194837 | H89: 1512.926953 | I89: Ecoinvent V.3.1. | J89: Phosphoric acid, industrial grade, without water, in 85% solution state {RER}| purification of wet-process phosphoric acid to industrial grade, product in 85% solution state | Alloc Def, U
B90: Metilato de sódio | C90: kg | D90: 1.625019718 | E90: 6.589332142e-05 | F90: 0.000152183932 | G90: 0.006291820047 | H90: 1835.4972 | I90: Ecoinvent V.3.1. | J90: Sodium methoxide {GLO}| production | Alloc Def, U
B91: Floculante (flocculant polymer) | C91: kg | D91: 1.661800988 | E91: 0.001414485676 | F91: 0.0002340353147 | G91: 0.003590143837 | H91: 2150.896996 | I91: Ecoinvent V.3.1. | J91: Chemical, inorganic {GLO}| production | Alloc Def, U
B92: Antibióticos | C92: kg | D92: 1.661800988 | E92: 0.001414485676 | F92: 0.0002340353147 | G92: 0.003590143837 | H92: 2150.896996 | I92: Ecoinvent V.3.1. | J92: Chemical, inorganic {GLO}| production | Alloc Def, U
B93: Óleo lubrificante | C93: kg | D93: 1.025829805 | E93: 2.250073186e-05 | F93: 3.562965649e-05 | G93: 0.003287103926 | H93: 1131.403247 | I93: Ecoinvent V.3.1. | J93: Lubricating oil {RER}| production | Alloc Def, U
B94: Zeolita | C94: kg | D94: 4.637702442 | E94: 0.0001451340849 | F94: 0.0002748030865 | G94: 0.01088239549 | H94: 5010.329325 | I94: Ecoinvent V.3.1. | J94: Zeolite, powder {RER}| production | Alloc Def, U
B95: Amonia | C95: kg | D95: 2.425285431 | E95: 3.312128251e-05 | F95: 0.0004904535765 | G95: 0.02038474607 | H95: 3059.337654 | I95: CTBE | J95: Ammonia, liquid, at plant, production mix/CTBE BR
B96: Tratamento de água | C96: kg | D96: 0.0001459876987 | E96: 5.477394037e-09 | F96: 1.727756684e-07 | G96: 2.545797211e-07 | H96: 0.1599143184 | I96: CTBE | J96: Water treatment biorefinery/CTBE BR U
B97: Hidróxido de sódio | C97: kg | D97: 0.4146028344 | E97: 2.665510201e-05 | F97: 0.002763184874 | G97: 0.0004474193092 | H97: 512.4581922 | I97: Ecoinvent V.3.1 | J97: Sodium hydroxide, 50% in H2O, market mix, at plant/CTBE BR U
B98: Levedura | C98: kg | H98: 1049.706944 | I98: Ecoinvent V.3.1 | J98: Yeast paste, from whey, at fermentation/CH U
B99: Enzima celulase | C99: kg | H99: 1310 | I99: CTBE | J99: Enzyme, cellulase/CTBE BR U
B100: Hexano | C100: kg | D100: 0.2785800831 | E100: 6.770602433e-06 | F100: 1.133247159e-05 | G100: 0.0009339656649 | H100: =(D100+(E100*$D$9)+(F100*$D$8)+(G100*$D$7))*1000 -> 308.7105719 | I100: Ecoinvent | J100: Hexane {RoW}| molecular sieve separation of naphtha | Alloc Def, U
B101: Metanol | C101: kg | D101: 0.4124626291 | E101: 1.281529325e-05 | F101: 1.102149597e-05 | G101: 0.004802756784 | H101: 560.2499872 | I101: Ecoinvent V.3.1. | J101: Methanol {GLO}| production | Alloc Def, U
B102: Hidrogênio | C102: kg | D102: 1.7803344 | E102: 2.1070451e-05 | F102: 8.2710412e-05 | G102: 0.01962723359 | H102: 2377.050969 | I102: Ecoinvent V.3 | J102: Hydrogen, liquid {RoW}| market for | Alloc Def, U
B103: Óleo de algodão | C103: kg | D103: 1.6542555 | E103: 0.0013750658 | F103: 0.0007605472 | G103: 0.005833851235 | H103: 2214.958796 | I103: Ecoinvent V.3 | J103: Cottonseed oil, refined {RoW}| cottonseed oil refinery operation | Alloc Def, U
B104: Óleo de palma | C104: kg | D104: 0.32519384 | E104: 0.000806552 | F104: 0.00075718159 | G104: 0.0009828468675 | H104: 589.6166105 | I104: Ecoinvent V.3 | J104: Palm oil, refined {GLO}| palm oil refinery operation | Alloc Def, U
B105: Outros óleos vegetais | C105: kg | D105: 1.6542555 | E105: 0.0013750658 | F105: 0.0007605472 | G105: 0.005833851235 | H105: 2214.958796 | I105: Ecoinvent V.3 | J105: Cottonseed oil, refined {RoW}| cottonseed oil refinery operation | Alloc Def, U
B106: Eletricidade
B107: Eletricidade BR Mix - Alta Voltagem | C107: kWh | D107: =91.2/1000 -> 0.0912 | E107: =8.12/1000000 -> 8.12e-06 | F107: =1.69/1000 -> 0.00169 | G107: =171/1000000 -> 0.000171 | H107: =(D107+(E107*$D$9)+(F107*$D$8)+(G107*$D$7))*1000 -> 145.8018 | I107: Ecoinvent V.3.1 | J107: Electricity, high voltage, production BR, at grid/BR U
B108: Eletricidade - PCH | C108: kWh | D108: 0.0040244853 | E108: 7.9806567e-08 | F108: 6.9980358e-08 | G108: 6.887307865e-06 | H108: 4.254212726 | I108: Ecoinvent V.3 | J108: Electricity, high voltage {RoW}| electricity production, hydro, run-of-river | Alloc Def, U
B109: Eletricidade - biomassa | C109: kWh | D109: 0.042743054 | E109: 6.8079306e-05 | F109: 0.00052857907 | G109: 0.0001235939279 | H109: 79.29210189 | I109: Ecoinvent V.3 | J109: Electricity, high voltage {BR}| cane sugar production with ethanol by-product | Alloc Def, U
B110: Eletricidade - eólica | C110: kWh | D110: 0.01299104 | E110: 0.00045145853 | F110: 0.00047898268 | G110: 4.475348181e-05 | H110: 147.3816699 | I110: Ecoinvent V.3 | J110: Electricity, high voltage {BR}| electricity production, wind, 1-3MW turbine, onshore | Alloc Def, U
B111: Eletricidade - solar | C111: kWh | D111: 0.071841186 | E111: 2.4306162e-06 | F111: 7.7619165e-06 | G111: 0.0002675042441 | H111: 80.72776028 | I111: Ecoinvent V.3 | J111: Electricity, low voltage {RoW}| electricity production, photovoltaic, 570kWp open ground installation, multi-Si | Alloc Def, U
B112: Eletricidade BR Mix - Média Voltagem | C112: kWh | D112: =93.8/1000 -> 0.0938 | E112: =8.33/1000000 -> 8.33e-06 | F112: =1.73/1000 -> 0.00173 | G112: =175/1000000 -> 0.000175 | H112: 149.69745 | I112: Ecoinvent V.3.1 | J112: Electricity, medium voltage, production BR, at grid/BR U
B113: Eletricidade EUA - Alta Voltagem | C113: kWh | D113: 0.7188661435 | E113: 2.356852158e-05 | F113: 1.722930772e-05 | G113: 0.001139440606 | H113: 759.7774405 | I113: Ecoinvent V.3.1 | J113: Electricity, high voltage, at grid/US U
B114: Combustíveis
B115: Gás Natural | C115: Nm³ | D115: 0.120207 | E115: 1.8228707e-06 | F115: 2.0969835e-06 | G115: 5.7767816e-11 | H115: =(D115+(E115*$D$9)+(F115*$D$8)+(G115*$D$7))*1000 -> 120.748778 | I115: Ecoinvent V.3.1 | J115: Natural gas, high pressure {RoW}| market for | Alloc Def, U
B116: Diesel (B0) | C116: kg | D116: 0.55302595 | E116: 1.0735006e-05 | F116: 9.234576e-06 | G116: 3.7140826e-10 | H116: =(D116+(E116*$D$9)+(F116*$D$8)+(G116*$D$7))*1000 -> 556.1293059 | I116: Ecoinvent V.3.1. BEN 2016 | J116: Diesel, low-sulfur {RoW}| market for | Alloc Def, U
B117: Biodiesel (B100) | C117: kg | H117: 986.8901344 | I117: RenovaCalc - Típico | J117: BEN 2016 - Tabela VIII.9 – Densidades e Poderes Caloríficos p.226
B118: Diesel B8 | C118: kg | H118: =(D118+(E118*$D$9)+(F118*$D$8)+(G118*$D$7))*1000 -> 0 | I118: Ecoinvent V.3.1 + B0 Soja RenovaCalc
B119: GLP | C119: kg | D119: 0.6318946522 | E119: 1.087784156e-05 | F119: 1.763699666e-05 | G119: 0.001954782684 | H119: =(D119+(E119*$D$9)+(F119*$D$8)+(G119*$D$7))*1000 -> 693.9145967 | I119: Ecoinvent V.3.1 | J119: Liquefied petroleum gas {RoW}| petroleum refinery operation | Alloc Def, U
B120: Gasolina A | C120: kg | D120: 0.76136376 | E120: 1.1447172e-05 | F120: 1.0571435e-05 | G120: 0.002493169703 | H120: =(D120+(E120*$D$9)+(F120*$D$8)+(G120*$D$7))*1000 -> 839.4883518 | I120: Ecoinvent V.3 | J120: Petrol, low-sulfur {RoW}| production | Alloc Def, U
B121: Etanol anidro | C121: kg | H121: 547.1203838 | I121: RenovaCalc
B122: Etanol hidratado | C122: kg | I122: RenovaCalc
B123: Cavaco de madeira | C123: kg | D123: 0.03203943248 | E123: 1.40396649e-06 | F123: 2.181666654e-06 | G123: 5.803250408e-05 | H123: =(D123+(E123*$D$9)+(F123*$D$8)+(G123*$D$7))*1000 -> 34.21354539 | I123: Ecoinvent V.3.1. | J123: Wood chips, wet, measured as dry mass {RoW}| wood chips production, hardwood, at sawmill | Alloc Def, U
B124: Lenha | C124: kg | D124: 0.03203943248 | E124: 1.40396649e-06 | F124: 2.181666654e-06 | G124: 5.803250408e-05 | H124: =(D124+(E124*$D$9)+(F124*$D$8)+(G124*$D$7))*1000 -> 34.21354539 | I124: Ecoinvent V.3.1. | J124: Wood chips, wet, measured as dry mass {RoW}| wood chips production, hardwood, at sawmill | Alloc Def, U
B125: Biometano | C125: MJ | H125: 7.5 | I125: RenovaCalc
B126: Óleo combustível | C126: kg | D126: 0.55302595 | E126: 1.0735006e-05 | F126: 9.234576e-06 | G126: 3.7140826e-10 | H126: =(D126+(E126*$D$9)+(F126*$D$8)+(G126*$D$7))*1000 -> 556.1293059 | I126: Ecoinvent V.3.1. BEN 2016 | J126: Diesel, low-sulfur {RoW}| market for | Alloc Def, U
B127: Calor, MJ | C127: MJ | H127: 93.9836 | I127: Ecoinvent V.3.1. | J127: Heat, district or industrial, other than natural gas {RoW}| heat production, at hard coal industrial furnace 1-10MW | Alloc Def, U
B128: Transporte
B129: Transporte, caminhão 7.5-16t | C129: tkm | D129: 0.226253972 | E129: 1.044608264e-05 | F129: 9.59093591e-07 | G129: 0.0002494537313 | H129: =(D129+(E129*$D$9)+(F129*$D$8)+(G129*$D$7))*1000 -> 236.5326505 | I129: Ecoinvent V.3.1. | J129: Transport, lorry 7.5-16t, EURO3/RER U
B130: Transporte caminhão 16-32t | C130: tkm | D130: 0.1759904372 | E130: 6.197461214e-06 | F130: 6.783937538e-07 | G130: 0.0002039387623 | H130: =(D130+(E130*$D$9)+(F130*$D$8)+(G130*$D$7))*1000 -> 183.7699223 | I130: Ecoinvent V.3.1. | J130: Transport, freight, lorry 16-32 metric ton, EURO3 {RoW}| transport, freight, lorry 16-32 metric ton, EURO3 | Alloc Def, U
B131: Transporte, caminhão >32t | C131: tkm | D131: 0.1150157377 | E131: 3.291158064e-06 | F131: 4.463746878e-07 | G131: 0.0001394861097 | H131: =(D131+(E131*$D$9)+(F131*$D$8)+(G131*$D$7))*1000 -> 120.0849763 | I131: Ecoinvent V.3.1. | J131: Transport, lorry >32t, EURO3/RER U
B132: Transporte, caminhão 60m³ | C132: tkm | H132: =G143 -> 72.59035724 | I132: RenovaBio
B133: Transporte, navio | C133: tkm | H133: 6.1318 | I133: Ecoinvent V.3.1. | J133: Transport, freight, sea, transoceanic tanker {GLO}| processing | Alloc Def, U
B134: Transporte, balsa | C134: tkm | H134: 48.6055 | I134: Ecoinvent V.3.1. | J134: Transport, freight, inland waterways, barge tanker {RoW}| processing | Alloc Def, U
B135: Transporte, ferroviário | C135: tkm | H135: =G145 -> 39.62840931
B136: Transporte, dutoviário - Combustíveis líquidos | C136: tkm | H136: =G144 -> 2.766663428
B137: Transporte, dutoviário - Biometano | C137: tkm | H137: =G146 -> 14.39005445
B140: Emissões do ciclo de vida dos processos de transporte
B141: Transporte | D141: Diesel (produção) | E141: Emissões da queima do diesel | F141: Consumo de E.E. | G141: CO2eq
D142: CO2eq | E142: CO2eq | F142: CO2eq | G142: CO2eq
B143: Transporte rodoviário 60 m³ | C143: tkm | D143: =0.0196*$H$116 -> 10.90013439 | E143: =(0.0196*$F$26*'FE''s queima combustíveis'!$I$5) -> 61.69022284 | F143: 0 | G143: =SUM(D143:F143) -> 72.59035724
B144: Transporte dutoviário - Combustíveis Líquidos | C144: tkm | D144: =0.000139650451744186*$H$116 -> 0.07766370879 | E144: =(0.000139650451744186*$F$26*'FE''s queima combustíveis'!$I$5) -> 0.4395442596 | F144: =0.0154281734496124*$H$107 -> 2.24945546 | G144: =SUM(D144:F144) -> 2.766663428
B145: Transporte ferroviário | C145: tkm | D145: =0.0107*$H$116 -> 5.950583573 | E145: =(0.0107*$F$26*'FE''s queima combustíveis'!$I$5) -> 33.67782574 | F145: 0 | G145: =SUM(D145:F145) -> 39.62840931
B146: Transporte dutoviário - Biometano | C146: tkm | D146: 0 | E146: 0 | F146: =0.098696*$H$107 -> 14.39005445 | G146: =SUM(D146:F146) -> 14.39005445
B147: Transporte fluvial | C147: tkm | G147: =H134 -> 48.6055 | H147: Incluir emissões do transporte fluvial de milho
B150: Composição e distâncias médias dos sistemas logísticos de transporte
B151: Biocombustível | C151: Rodoviário | D151: Dutoviário | F151: Ferroviário | H151: Marítimo | K151: Fluvial
C152: Rodoviário | D152: Dutoviário | E152: Rodoviário | F152: Ferroviário | G152: Rodoviário | H152: Rodoviário | I152: Ferroviário | J152: Marítimo | K152: Rodoviário | L152: Fluvial
B153: E1G C | C153: 700 | D153: 500 | E153: 200 | F153: 300 | G153: 400 | H153: - | I153: - | J153: - | K153: - | L153: -
B154: E1G2G | C154: 700 | D154: 500 | E154: 200 | F154: 300 | G154: 400 | H154: - | I154: - | J154: - | K154: - | L154: -
B155: E2G | C155: 700 | D155: 500 | E155: 200 | F155: 300 | G155: 400 | H155: - | I155: - | J155: - | K155: - | L155: -
B156: E1G Flex | C156: 700 | D156: 500 | E156: 200 | F156: 300 | G156: 400 | H156: - | I156: - | J156: - | K156: - | L156: -
B157: E1G M | C157: 700 | D157: - | E157: - | F157: - | G157: - | H157: - | I157: - | J157: - | K157: 1300 | L157: 1240
B158: E1G MI | C158: - | D158: - | E158: - | F158: - | G158: - | H158: 600 | I158: 1400 | J158: 13000 | K158: - | L158: -
B159: Biodiesel | C159: 700 | D159: - | E159: - | F159: 1200 | G159: 300 | H159: - | I159: - | J159: - | K159: 1300 | L159: 1240
B160: BioQavHEFA | C160: 1500 | D160: 900 | E160: 600 | F160: 900 | G160: 600 | H160: - | I160: - | J160: - | K160: - | L160: -
B161: Biometano | C161: 43 | D161: 24 | E161: - | F161: - | G161: - | H161: - | I161: - | J161: - | K161: - | L161: -
B164: Emissões do ciclo de vida dos combustíveis fósseis substitutos dos biocombustíveis
B165: Biocombustível | C165: Combustível fóssil substiuto | F165: Intensidade de carbono do combustível fóssil substiuto (g CO₂ eq/MJ)
B166: Etanol anidro | C166: Gasolina A | F166: 87.4
B167: Etanol hidratado | C167: Gasolina A | F167: 87.4
B168: Biodiesel | C168: Diesel A | F168: 86.5
B169: Biometano | C169: Média ponderada: Diesel A, Gasolina A e GNV | F169: 86.7
B170: Bioquerosene de aviação | C170: Querosene de aviação | F170: 87.5
B171: Gasolina alternativa | C171: Gasolina A | F171: 87.4
B172: Diesel alternativo | C172: Diesel A | F172: 86.5
B173: Gás combustível alternativo | C173: GLP | F173: 85

Sheet FE's queima combustíveis (hidden)
B2: Fatores de emissão da queima de combustíveis em fontes móveis
B3: Combustível | C3: Unidade | D3: CO2 Fóssil | E3: CO2 Biogênico | F3: CH4 Fóssil | G3: CH4 Biogênico | H3: N2O | I3: CO₂ eq/MJ | J3: Referência
D4: g/unidade | E4: g/unidade | F4: g/unidade | G4: g/unidade | H4: g/unidade | I4: g/MJ
B5: Diesel A (B0) | C5: kg | D5: =D24/'Dados auxiliares'!$D$26 -> 3098.809524 | E5: =E24/'Dados auxiliares'!$D$26 -> 0 | F5: =F24/'Dados auxiliares'!$D$26 -> 0.164918052 | G5: =G24/'Dados auxiliares'!$D$26 -> 0 | H5: =H24/'Dados auxiliares'!$D$26 -> 0.164918052 | I5: =(D5+F5*'Dados auxiliares'!$D$7+G5*'Dados auxiliares'!$D$8+H5*'Dados auxiliares'!$D$9)/'Dados auxiliares'!$F$26 -> 74.43148408
B6: Biodiesel (B100) | C6: kg | D6: =D25/'Dados auxiliares'!$D$17 -> 0 | E6: =E25/'Dados auxiliares'!$D$17 -> 2762.5 | F6: =F25/'Dados auxiliares'!$D$17 -> 0 | G6: =G25/'Dados auxiliares'!$D$17 -> 0.376812 | H6: =H25/'Dados auxiliares'!$D$17 -> 0.02260872 | I6: =(D6+F6*'Dados auxiliares'!$D$7+G6*'Dados auxiliares'!$D$8+H6*'Dados auxiliares'!$D$9)/'Dados auxiliares'!$F$17 -> 0.439
B7: Etanol Anidro | C7: kg | D7: =D26/'Dados auxiliares'!$D$15 -> 0 | E7: =E26/'Dados auxiliares'!$D$15 -> 1929.20354 | F7: =F26/'Dados auxiliares'!$D$15 -> 0 | G7: =G26/'Dados auxiliares'!$D$15 -> 0.282609 | H7: =H26/'Dados auxiliares'!$D$15 -> 0.01695654 | I7: =(D7+F7*'Dados auxiliares'!$D$7+G7*'Dados auxiliares'!$D$8+H7*'Dados auxiliares'!$D$9)/'Dados auxiliares'!$F$15 -> 0.439
B8: Etanol Hidratado | C8: kg | D8: =D27/'Dados auxiliares'!$D$16 -> 0 | E8: =E27/'Dados auxiliares'!$D$16 -> 1800.988875 | F8: =F27/'Dados auxiliares'!$D$16 -> 0 | G8: =G27/'Dados auxiliares'!$D$16 -> 0.47478312 | H8: =H27/'Dados auxiliares'!$D$16 -> 0.015826104 | I8: =(D8+F8*'Dados auxiliares'!$D$7+G8*'Dados auxiliares'!$D$8+H8*'Dados auxiliares'!$D$9)/'Dados auxiliares'!$F$16 -> 0.663
B9: Gasolina A | C9: kg | D9: =D28/'Dados auxiliares'!$D$24 -> 2981.132075 | E9: =E28/'Dados auxiliares'!$D$24 -> 0 | F9: =F28/'Dados auxiliares'!$D$24 -> 1.088568 | G9: =G28/'Dados auxiliares'!$D$24 -> 0 | H9: =H28/'Dados auxiliares'!$D$24 -> 0.34834176 | I9: =(D9+F9*'Dados auxiliares'!$D$7+G9*'Dados auxiliares'!$D$8+H9*'Dados auxiliares'!$D$9)/'Dados auxiliares'!$F$24 -> 71.33453495
